{"text_format":"1","workbook":"xlsx","n_sheets":14,"sheets":["Dt","General","Resumen","Estado_del_arte","Objetivos","Metodología","Etica","Cronograma","Integrantes","Productos","Presupuesto","Bibliografía","Impactos","Declaración"],"not_rendered":{"charts":0,"images":1,"macros":1,"external_links":0,"defined_names":68,"comments":8,"pivot_tables":0},"unopened":[],"bounds":{"document_bytes":16777216,"sheet_cells":100000,"rows_first":2000,"rows_last":500,"rows_between":2000,"halvings":0,"cell_chars":16384,"cell_head_chars":4096},"cells_cut":0,"cells_raw":0,"read":"whole","date_system":"1900"}

{"sheet":"Dt","index":0,"n_rows":2006,"n_cols":647,"rows_kept":2006,"cut":false,"hidden":true,"merged":[]}
[null,"No eliminar Hoja … :)))",null,null,null,null,null,"Cronograma",null,null,"Integrante",null,null,null,null,null,null,null,null,null,null,null,null,null,null,null,"No","Campo ","1_Opcion","2_Opcion",null,"Avaya1719",null,null,null,null,null,null,null,null,{"$f":"MAX(AN:AN)","v":77},"2022-02-15","http://scienti.minciencias.gov.co:8080/gruplac/jsp/visualiza/visualizagr.jsp?nro=",null,null,null,null,null,null,null,null,null,null,null,null,null,null,null,null,null,null,null,null,null,null,null,null,null,null,null,null,null,null,null,null,null,null,null,null,null,null,null,null,null,null,null,null,null,null,null,null,null,null,null,null,null,null,null,null,{"$f":"Productos!H5","v":"INV"},null,null,null,"Validaciones y reglas de la convocatoria",{"$f":"MAX(DB3:DB200)","v":31},null,null," ",{"$f":"IF(DA1=0,\" \",\"Error \"&TEXT(DA1,\"000\")&\".- en : [\"&VLOOKUP($DA$1,$CX$2:$DE$109,2,0)&\"] \"&VLOOKUP($DA$1,$CX$2:$DE$109,4,0))","v":"Error 031.- en : [General] Pendiente seleccionar Programa del lider del proyecto"},null,null,null,null,null,null,{"$f":"MIN(IF(DB3:DB200>0,DB3:DB200,MAX(DB3:DB200)))","v":1}]
[null,null,null,null,null,"Tipo","Objetivo","Actividad","Mes Inicio","Duracion","CC","Nombre","Apellidos","Nivel","Mes","Horas","Rol","Vin","NBC","Cvlac","Nombre Completo",null,null,null,null,null,1,"Sedes","Bogotá",null,null,null,null,null,null,null,null,null,null,null,null,null,null,null,null,"BB",null,{"$f":"MIN(BD3:BD286)","v":4},{"$f":"MAX(BD3:BD286)","v":286},null,null,null,null,null,null,null,null,null,null,null,null,null,null,null,null,null,null,null,null,null,null,null,null,null,null,null,null,null,null,"Variables aplicadas a la Hoja de impactos",null,null,null,null,null,null,null,null,null,null,"Id","IDFinal","Clase","Subclase","Producto","Indicador","INV","IMP","CLAS",null,null,"No","Hoja","Regla","Mensaje Error","Validacion","Parametro1","Parametro2","Parametro3",null,"No","Hojas","No error","Error","Hojas"]
[null,null,"Dato",null," ",{"$f":"ROW()-3","v":0},{"$f":"CLEAN(TRIM(Objetivos!C8))","v":""},"NA","NA","NA","NA","NA","NA","NA","NA","NA","NA","NA","NA","NA","NA",null,null,null,null,null,2,"Sedes","Campus Nueva Granada",null,null,null,null,null,null,null,"Hoja",null,null,"Hoja","FAC","Grupo","COD","Clas","Link","Lineas","Fila Grupo","Min","Max","FAC",null,null,"COD","Linea","Cel","Fila","E:Gp",null,null,"Hora","Agente","Agente",null,null,null,"Areas Grupos UMN",null,null,null,null,null,"No","Areas","Area1","Area2",null,null,null,null,"No","Tipo","Duración","Tipo","Alcance","Linea","SRL",null,null,null,null,{"$f":"ROW()-2","v":1},101,"Productos de Generación de Nuevo Conocimiento (GNC)","Artículos en Revistas Científicas no incluidas en las listas de revistas depredadoras (ejemplo Beall-list)","Artículo en revista en Cuartil 1 (Q1) del SJR (Scimago) o del JCR (Clarivate). ","Copia del sometimiento y copia del artículo enviado a la revista",40,0,null,null,null,{"$f":"ROW()-3","v":0},"Nada","Sin error ",null,0,null,null,null,null,{"$f":"ROW()-2","v":1},{"$f":"IFERROR(NbHoja(ROW()-2),DK3)","v":"Dt"},0,{"$f":"IF(DI3=0,\" \",\"Error : \"&TEXT($DI3,\"000\")&\".- \"&VLOOKUP($DI$5,$CX$2:$DE$109,4,0))","v":" "},"Dt"]
[null,null,"Titulo",{"$f":"TRIM(CLEAN(General!B9))","v":"Formato: actualizado a 08 Abr 2022"},null,{"$f":"ROW()-3","v":1},{"$f":"CLEAN(TRIM(Objetivos!C9))","v":""},{"$f":"CLEAN(TRIM(Cronograma!C8))","v":"zdsak"},{"$f":"Cronograma!D8","v":0},{"$f":"Cronograma!E8","v":0},{"$f":"INDEX(Dt_Integ,2+($F4-1)*3,(COLUMN()-9))","v":0},"Luis Alexander","Chirivi",0,12,0,{"$f":"INDEX(Dt_Integ,3+($F4-1)*3,(COLUMN()-14))","v":"Investigador Principal"},{"$f":"INDEX(Dt_Integ,3+($F4-1)*3,(COLUMN()-14))","v":0},{"$f":"INDEX(Dt_Integ,3+($F4-1)*3,(COLUMN()-14))","v":0},{"$f":"INDEX(Dt_Integ,4+($F4-1)*3,(COLUMN()-17))","v":0},{"$f":"(TRIM(L4&\" \"&M4))","v":"Luis Alexander Chirivi"},null,null,null,null,null,3,"Sedes","Medicina","No habilitada 2018",null,null,null,null,"No Reconocido",null,3,1,{"$f":"COUNTIF($AN$4:$AN$816,AL4)","v":1},1,"CIAS","Fitoplasmas y Virus","COL0028687","B","https://scienti.minciencias.gov.co/gruplac/jsp/visualiza/visualizagr.jsp?nro=00000000008436",{"$f":"$AT$2&AV4&\":\"&$AT$2&AW4","v":"BB308:BB309"},{"$f":"ROW()","v":4},{"$f":"MINA(IF(AQ4=$BA$4:$BA$394,$BD$4:$BD$394))","v":308},{"$f":"MAXA(IF(AQ4=$BA$4:$BA$394,$BD$4:$BD$394))","v":309},{"$f":"AO4","v":"CIAS"},null,null,"COL0002896","Modelos de simulación",{"$f":"COUNTIF(BA$4:BA4,BA4)","v":1},{"$f":"ROW()","v":4},{"$f":"COUNTIF($AQ$3:$AQ$95,BA4)","v":1},null,null,"19:54:00","a","a",{"$f":"DMIN(BH3:BI12,\"hora\",BJ3:BJ4)","v":0.4548611111111111},"|",null,"Biotecnología",null,null,null,null,null,1,{"$f":"BV4&\"-\"&BW4","v":"Ciencias Naturales-Matemática"},"Ciencias Naturales","Matemática",{"$f":"BT4","v":1},null,null,null,1,"Fin de la pobreza","Corto (1 año)","Político","Regional","Transferencia e intercambio de conocimiento","SRL 0 – Identificación del problema.",null,null,null,null,{"$f":"ROW()-2","v":2},102,"Productos de Generación de Nuevo Conocimiento (GNC)","Artículos en Revistas Científicas no incluidas en las listas de revistas depredadoras (ejemplo Beall-list)","Artículo en revista en Cuartil 2 (Q2) del SJR (Scimago) o del JCR (Clarivate). ","Copia del sometimiento y copia del artículo enviado a la revista",30,0,null,null,null,{"$f":"ROW()-3","v":1},"Resumen","Tiene Planteamiento","No tiene datos de resumen (Planteamiento diligenciados)",{"$f":"IF(DC4<10,CX4,0)","v":1},{"$f":"Resumen!$G$23","v":0},null,null,null,{"$f":"ROW()-2","v":2},{"$f":"IFERROR(NbHoja(ROW()-2),DK4)","v":"General"},{"$f":"MAX(IF($CY$2:$CY$400=$DH4,$DB$2:$DB$400,0))","v":31},{"$f":"IF(DI4=0,\" \",\"Error : \"&TEXT($DI4,\"000\")&\".- \"&VLOOKUP($DI4,$CX$2:$DE$109,4,0))","v":"Error : 031.- Pendiente seleccionar Programa del lider del proyecto"},"General"]
[null,null,"Lider",{"$f":"TRIM(CLEAN(General!C10))","v":"Luis Alexander Chirivi"},null,{"$f":"ROW()-3","v":2},{"$f":"CLEAN(TRIM(Objetivos!C10))","v":""},{"$f":"CLEAN(TRIM(Cronograma!C9))","v":"sadsa"},{"$f":"Cronograma!D9","v":0},{"$f":"Cronograma!E9","v":0},"Contribuciones"," ",0,0,0,0,{"$f":"INDEX(Dt_Integ,3+($F5-1)*3,(COLUMN()-14))","v":0},0,null,0,{"$f":"TRIM(L5&\" \"&M5)","v":"0"},null,null,null,null,null,4,"Sedes","Otros","No habilitada 2018",null,null,null,null,"Categoría B",null,4,2,1,2,"CIAS","Grupo de investigación en Biodiversidad y ecología de abejas silvestres","COL0031959","B","https://scienti.minciencias.gov.co/gruplac/jsp/visualiza/visualizagr.jsp?nro=00000000001366",{"$f":"$AT$2&AV5&\":\"&$AT$2&AW5","v":"BB231:BB235"},{"$f":"ROW()","v":5},{"$f":"MINA(IF(AQ5=$BA$4:$BA$394,$BD$4:$BD$394))","v":231},{"$f":"MAXA(IF(AQ5=$BA$4:$BA$394,$BD$4:$BD$394))","v":235},{"$f":"AO5","v":"CIAS"},null,null,"COL0002896","Educación y Sociedad",{"$f":"COUNTIF(BA$4:BA5,BA5)","v":2},{"$f":"ROW()","v":5},1,null,null,"09:54:00","b","B",null,null,null,null,null,null,null,null,null,2,{"$f":"BV5&\"-\"&BW5","v":"Ciencias Naturales-Ciencias Físicas"},"Ciencias Naturales","Ciencias Físicas",{"$f":"BT5","v":2},null,null,null,{"$f":"CB4+1","v":2},"Hambre Cero ","Medio (2 años)","Salud","Nacional","Gestión del conocimiento para la apropiación","SRL 1 – Identificación del problema y el grado de madurez social.",null,null,null,null,3,103,"Productos de Generación de Nuevo Conocimiento (GNC)","Artículos en Revistas Científicas no incluidas en las listas de revistas depredadoras (ejemplo Beall-list)","Artículo en revista en Cuartil 3 (Q3) del SJR (Scimago) o del JCR (Clarivate) o clasificada en B en Publindex. ","Copia del sometimiento y copia del artículo enviado a la revista",20,0,null,null,null,2,"Resumen","Tiene Resumen","No tiene datos de resumen diligenciados ",{"$f":"IF(DC5<10,CX5,0)","v":2},{"$f":"Resumen!$H$5","v":0},null,null,null,3,{"$f":"IFERROR(NbHoja(ROW()-2),DK5)","v":"Resumen"},{"$f":"MAX(IF($CY$2:$CY$400=$DH5,$DB$2:$DB$400,0))","v":2},"Error : 002.- No tiene datos de resumen diligenciados ","Resumen"]
[null,null,"Sede",{"$f":"General!H12","v":0},null,3,{"$f":"CLEAN(TRIM(Objetivos!C11))","v":""},{"$f":"CLEAN(TRIM(Cronograma!C10))","v":"sadsad dsada"},{"$f":"Cronograma!D10","v":0},{"$f":"Cronograma!E10","v":0},"CvLac:",0,0,0,0,0,0,0,null,0,"0 0",null,null,null,null,null,1,"Facultad","Ciencias Básicas y Aplicadas","CIAS",null,null,null,null,"Categoría B",null,12,3,1,3,"CIAS","MATRIX","COL0039321","B","https://scienti.minciencias.gov.co/gruplac/jsp/visualiza/visualizagr.jsp?nro=00000000002208","BB147:BB151",{"$f":"ROW()","v":6},{"$f":"MINA(IF(AQ6=$BA$4:$BA$394,$BD$4:$BD$394))","v":147},{"$f":"MAXA(IF(AQ6=$BA$4:$BA$394,$BD$4:$BD$394))","v":151},"CIAS",null,null,"COL0002896","Educación y cultura",{"$f":"COUNTIF(BA$4:BA6,BA6)","v":3},{"$f":"ROW()","v":6},1,null,null,"17:54:00","c","c",null,null,null,null,null,null,null,null,null,3,"Ciencias Naturales-Ciencias Biológicas","Ciencias Naturales","Ciencias Biológicas",3,null,null,null,3,"Salud y bienestar","Largo (3 años)","Tecnológico","Internacional","Participación ciudadana en CTeI","SRL 2 – Formulación del problema, soluciones propuestas e impacto potencial, grado de madurez social esperado; identificación de partes interesadas relevantes para el proyecto",null,null,null,null,4,104,"Productos de Generación de Nuevo Conocimiento (GNC)","Artículos en Revistas Científicas no incluidas en las listas de revistas depredadoras (ejemplo Beall-list)","Artículo en revista en Cuartil 4 (Q4) del SJR (Scopus) o del JCR (Web of Science) o clasificada en C en Publindex. ","Copia del sometimiento y copia del artículo enviado a la revista",10,0,null,null,null,3,"Objetivos","Tiene Objetivos","No tiene datos de objetivos diligenciados ",{"$f":"IF(DC6<2,CX6,0)","v":3},{"$f":"Objetivos!$G$3","v":0},null,null,null,4,{"$f":"IFERROR(NbHoja(ROW()-2),DK6)","v":"Estado_del_arte"},{"$f":"MAX(IF($CY$2:$CY$400=$DH6,$DB$2:$DB$400,0))","v":0}," ","Estado_del_arte"]
[null,null,"Facultad",{"$f":"General!C13","v":0},null,4,{"$f":"CLEAN(TRIM(Objetivos!C12))","v":""},{"$f":"CLEAN(TRIM(Cronograma!C11))","v":""},{"$f":"Cronograma!D11","v":0},{"$f":"Cronograma!E11","v":0},"Funcion :",0,0,0,0,0,0,0,null,0,"0 0",null,null,null,null,null,2,"Facultad","Ciencias Económicas","ECO",null,null,null,null,"Categoría A",null,18,4,1,4,"CIAS","Control Biológico UMNG","COL0032278","A","https://scienti.minciencias.gov.co/gruplac/jsp/visualiza/visualizagr.jsp?nro=00000000001399","BB228:BB230",{"$f":"ROW()","v":7},{"$f":"MINA(IF(AQ7=$BA$4:$BA$394,$BD$4:$BD$394))","v":228},{"$f":"MAXA(IF(AQ7=$BA$4:$BA$394,$BD$4:$BD$394))","v":230},"CIAS",null,null,"COL0065804","Desarrollos mecatrónicos",{"$f":"COUNTIF(BA$4:BA7,BA7)","v":1},{"$f":"ROW()","v":7},1,null,null,"10:55:00","a",null,null,null,null,null,null,null,null,null,null,4,"Ciencias Naturales-Computación y Ciencias de la Información","Ciencias Naturales","Computación y Ciencias de la Información",4,null,null,null,4,"Educación de calidad"," ","Económico",null,"Comunicación del conocimiento","SRL 3 – Pruebas iniciales de las soluciones propuestas junto con partes interesadas relevantes.",null,null,null,null,5,105,"Productos de Generación de Nuevo Conocimiento (GNC)","Artículos en Revistas Científicas no incluidas en las listas de revistas depredadoras (ejemplo Beall-list)","Artículo D de acuerdo con las especificaciones del Documento conceptual de la Convocatoria 833 de 2018 de Minciencias. ","Copia del sometimiento y copia del artículo enviado a la revista",7,0,null,null,null,4,"Presupuesto","Limite Minimo para estimulo estudiantes 9%",{"$f":"\"No cumple mínimo exigido para el rubro de estímulo a estudiantes. Pendiente asignar al rubro \"&TEXT(DD7,\"$ ##.###.###\")","v":"No cumple mínimo exigido para el rubro de estímulo a estudiantes. Pendiente asignar al rubro $ 1.350.000"},{"$f":"IF(DC7<1,CX7,0)","v":4},{"$f":"Presupuesto!$Q$75","v":0},{"$f":"Presupuesto!$Q$76","v":1350000},null,null,5,{"$f":"IFERROR(NbHoja(ROW()-2),DK7)","v":"Objetivos"},{"$f":"MAX(IF($CY$2:$CY$400=$DH7,$DB$2:$DB$400,0))","v":22},"Error : 022.- Objetivo gereral pendiente de diligenciar","Objetivos"]
[null,null,"Programa",{"$f":"CLEAN(General!H13)","v":""},null,5,{"$f":"CLEAN(TRIM(Objetivos!C13))","v":""},{"$f":"CLEAN(TRIM(Cronograma!C12))","v":""},{"$f":"Cronograma!D12","v":0},{"$f":"Cronograma!E12","v":0},0,0,0,0,0,0,0,0,null,0,"0 0",null,null,null,null,null,3,"Facultad","Derecho","DER",null,null,null,null,"Categoría A1",null,26,5,1,5,"CIAS","Grupo de Micología y Fitopatologia ","COL0013719","A1","https://scienti.minciencias.gov.co/gruplac/jsp/visualiza/visualizagr.jsp?nro=00000000001127","BB101:BB105",{"$f":"ROW()","v":8},{"$f":"MINA(IF(AQ8=$BA$4:$BA$394,$BD$4:$BD$394))","v":101},{"$f":"MAXA(IF(AQ8=$BA$4:$BA$394,$BD$4:$BD$394))","v":105},"CIAS",null,null,"COL0065804","Energías Renovables",{"$f":"COUNTIF(BA$4:BA8,BA8)","v":2},{"$f":"ROW()","v":8},1,null,null,"11:45:00","a",null,null,null,null,null,null,null,null,null,null,5,"Ciencias Naturales-Ciencias Químicas","Ciencias Naturales","Ciencias Químicas",5,null,null,null,5,"Igualdad de genero"," ","Legal",null,null,"SRL 4 – Problema validado por medio de pruebas piloto en un entorno relevantes para justificar el impacto propuesto y el grado de madurez social",null,null,null,null,6,109,"Productos de Generación de Nuevo Conocimiento (GNC)","Libro de Investigación","Libro resultado de investigación en colección indexada en Scopus Books o indizado en el Book Citation Index (Clarivate)","Copia del sometimiento  ante editorial y copia completa del proyecto del libro.",60,0,null,null,null,5,"Presupuesto","Meter estudiantes de postgrado a presgrado ","Debe diligencia el valor en el rubro correcto de Auxiliar de Pregrado o \"Posgrado (MG y DOC)\"",{"$f":"IF(AND(DC8<>DD8,DD8>0),CX8,0)","v":0},{"$f":"Presupuesto!$P$82","v":0},{"$f":"Presupuesto!$Q$82","v":0},null,null,6,{"$f":"IFERROR(NbHoja(ROW()-2),DK8)","v":"Metodología"},{"$f":"MAX(IF($CY$2:$CY$400=$DH8,$DB$2:$DB$400,0))","v":0}," ","Metodología"]
[null,null,"Correo",{"$f":"TRIM(CLEAN(General!C11))","v":""},null,6,{"$f":"CLEAN(TRIM(Objetivos!C14))","v":""},{"$f":"CLEAN(TRIM(Cronograma!C13))","v":""},{"$f":"Cronograma!D13","v":0},{"$f":"Cronograma!E13","v":0},"Contribuciones",0,0,0,0,0,0,0,null,0,"0 0",null,null,null,null,null,4,"Facultad","Educación y Humanidades","HUM",null,null,null,null,"Categoría C",null,28,6,1,6,"CIAS","Fitopatologia molecular","COL0086179","C","https://scienti.minciencias.gov.co/gruplac/jsp/visualiza/visualizagr.jsp?nro=00000000007907","BB18:BB20",{"$f":"ROW()","v":9},{"$f":"MINA(IF(AQ9=$BA$4:$BA$394,$BD$4:$BD$394))","v":18},{"$f":"MAXA(IF(AQ9=$BA$4:$BA$394,$BD$4:$BD$394))","v":20},"CIAS",null,null,"COL0065804","Materiales y Procesos de Manufactura",{"$f":"COUNTIF(BA$4:BA9,BA9)","v":3},{"$f":"ROW()","v":9},1,null,null,"15:12:00","b",null,null,null,null,null,null,null,null,null,null,6,"Ciencias Naturales-Otras Ciencias Naturales","Ciencias Naturales","Otras Ciencias Naturales",6,null,null,null,6,"Agua limpia y saneamiento"," ","Cultural",null,null,"SRL 5 – Soluciones propuestas validadas, ahora por las partes interesadas importantes en el área.",null,null,null,null,7,110,"Productos de Generación de Nuevo Conocimiento (GNC)","Libro de Investigación","Libro resultado de investigación sometido por la Editorial Neogranadina o libro resultado de investigación que cumpla con lo especificado por Minciencias en el Documento Conceptual de la Convocatoria 833 de 2018.","Copia del sometimiento  ante editorial y copia completa del proyecto del libro.",30,0,null,null,null,6,"Presupuesto","Diferencias personal OPS y Plan",{"$f":"\"No están los valores acordes entre la tabla (OPS y Estimulo a estudiantes) y el plan de compras, diferencia \"&TEXT(DC9,\"$ ##.###.###\")","v":"No están los valores acordes entre la tabla (OPS y Estimulo a estudiantes) y el plan de compras, diferencia $ "},{"$f":"IF(DC9=0,0,CX9)","v":0},{"$f":"Presupuesto!$R$77","v":0},null,null,null,7,{"$f":"IFERROR(NbHoja(ROW()-2),DK9)","v":"Etica"},{"$f":"MAX(IF($CY$2:$CY$400=$DH9,$DB$2:$DB$400,0))","v":0}," ","Etica"]
[null,null,"Fase",{"$f":"General!F12","v":"No"},null,7,{"$f":"CLEAN(TRIM(Objetivos!C15))","v":""},{"$f":"CLEAN(TRIM(Cronograma!C14))","v":""},{"$f":"Cronograma!D14","v":0},{"$f":"Cronograma!E14","v":0},"CvLac:",0,0,0,0,0,0,0,null,0,"0 0",null,null,null,null,null,5,"Facultad","Estudios a Distancia","DIS",null,null,null,null,"Categoría B",null,30,7,1,7,"CIAS","Estadística, Control y Optimización","COL0136423","A","https://scienti.minciencias.gov.co/gruplac/jsp/visualiza/visualizagr.jsp?nro=00000000013845","BB179:BB183",{"$f":"ROW()","v":10},{"$f":"MINA(IF(AQ10=$BA$4:$BA$394,$BD$4:$BD$394))","v":179},{"$f":"MAXA(IF(AQ10=$BA$4:$BA$394,$BD$4:$BD$394))","v":183},"CIAS",null,null,"COL0036025","Biomecatronica",{"$f":"COUNTIF(BA$4:BA10,BA10)","v":1},{"$f":"ROW()","v":10},1,null,null,"23:12:00","b",null,null,null,null,null,null,null,null,null,null,7,"Ciencias Naturales-Ciencias de la Tierra y Medioambientales","Ciencias Naturales","Ciencias de la Tierra y Medioambientales",7,null,null,null,7,"Energía asequible y no contaminante"," ","Social ",null,null,"SRL 6 – Soluciones demostradas en un entorno relevante, en cooperación con las partes interasadas relevantes para obtener retroalimentación inicial subre impactos potenciales",null,null,null,null,8,111,"Productos de Generación de Nuevo Conocimiento (GNC)","Capítulo de Libro de Investigación","Capítulo incluido en libro resultado de investigación dentro de una colección indexada Scopus Books o indizado en el Book Citation Index (Clarivate)","Copia del sometimiento ante editorial Neogranadina o editorial externa (copia del proyecto editorial de libro en el que se incluiría el capítulo y del aval de la Editorial sobre ese proyecto) y copia del capítulo de libro enviado a la editorial",20,0,null,null,null,7,"Presupuesto","Máximo en equipos",{"$f":"\"Supera el máximo de presupuesto rubro de [Equipos] disponible en \"&TEXT(DC10,\"$ ##.###.###\")","v":"Supera el máximo de presupuesto rubro de [Equipos] disponible en -$ 2.250.000"},{"$f":"IF(DD10>0.15,CX10,0)","v":0},{"$f":"Presupuesto!$P$78","v":-2250000},{"$f":"IFERROR(Presupuesto!$Q$78,0)","v":0},null,null,8,{"$f":"IFERROR(NbHoja(ROW()-2),DK10)","v":"Cronograma"},{"$f":"MAX(IF($CY$2:$CY$400=$DH10,$DB$2:$DB$400,0))","v":0}," ","Cronograma"]
[null,null,"Finan Antes",{"$f":"General!I12","v":"No"},null,8,{"$f":"CLEAN(TRIM(Objetivos!C16))","v":""},{"$f":"CLEAN(TRIM(Cronograma!C15))","v":""},{"$f":"Cronograma!D15","v":0},{"$f":"Cronograma!E15","v":0},"Funcion :",0,0,0,0,0,0,0,null,0,"0 0",null,null,null,null,null,6,"Facultad","Ingeniería","ING",null,null,null,null,"Categoría C",null,32,8,1,8,"CIAS","Grupo de Ecotoxicología, Evolución, Medio ambiente y conservación (E = mc2)","COL0038084","C","https://scienti.minciencias.gov.co/gruplac/jsp/visualiza/visualizagr.jsp?nro=00000000002068","BB251:BB255",{"$f":"ROW()","v":11},{"$f":"MINA(IF(AQ11=$BA$4:$BA$394,$BD$4:$BD$394))","v":251},{"$f":"MAXA(IF(AQ11=$BA$4:$BA$394,$BD$4:$BD$394))","v":255},"CIAS",null,null,"COL0036025","Optimización y Control de sistemas dinámicos",{"$f":"COUNTIF(BA$4:BA11,BA11)","v":2},{"$f":"ROW()","v":11},1,null,null,"06:20:00","c",null,null,null,null,null,null,null,null,null,null,8,"Ciencias Médicas y de la Salud-Medicina Clínica","Ciencias Médicas y de la Salud","Medicina Clínica",8,null,null,null,8,"Trabajo decente y crecimiento económico"," ","Ambiental",null,null,"SRL 7 – Refinamiento del proyecto y/o solución y, de ser necesario, aplicación de nuevas pruebas en el entorno relevante, con partes interesadas relevantes.",null,null,null,null,9,112,"Productos de Generación de Nuevo Conocimiento (GNC)","Capítulo de Libro de Investigación","Capítulo en libro de la Editorial Neogranadina o un capítulo en libro resultado de investigación que cumpla con lo especificado por Minciencias en el Documento Conceptual de la Convocatoria 833 de 2018.","Copia del sometimiento ante editorial Neogranadina o editorial externa (copia del proyecto editorial de libro en el que se incluiría el capítulo y del aval de la Editorial sobre ese proyecto) y copia del capítulo de libro enviado a la editorial",20,0,null,null,null,8,"Presupuesto","Máximo en Materiales[papelería]",{"$f":"\"Supera el máximo de presupuesto rubro de [Materiales Papelería] disponible en \"&TEXT(DC11,\"$ ##.###.###\")","v":"Supera el máximo de presupuesto rubro de [Materiales Papelería] disponible en -$ 150.000"},{"$f":"IF(DD11>0.01,CX11,0)","v":0},{"$f":"Presupuesto!$P$79","v":-150000},{"$f":"IFERROR(Presupuesto!$Q$79,0)","v":0},null,null,9,{"$f":"IFERROR(NbHoja(ROW()-2),DK11)","v":"Integrantes"},{"$f":"MAX(IF($CY$2:$CY$400=$DH11,$DB$2:$DB$400,0))","v":0}," ","Integrantes"]
[null,null,"Resumen",{"$f":" CLEAN(TRIM(Resumen!C7&\" \"&Resumen!C8&\" \"&Resumen!#REF!&\" \"&Resumen!C15&\" \"&Resumen!C16&\" \"&Resumen!C17&\" \"&Resumen!C18&\" \"&Resumen!C19))","v":{"$error":"#REF!"}},null,9,{"$f":"CLEAN(TRIM(Objetivos!C17))","v":""},{"$f":"CLEAN(TRIM(Cronograma!C16))","v":""},{"$f":"Cronograma!D16","v":0},{"$f":"Cronograma!E16","v":0},0,0,0,0,0,0,0,0,null,0,"0 0",null,null,null,null,null,7,"Facultad","Medicina y Ciencias de la Salud","MED",null,null,null,null,"Categoría C",null,41,9,1,9,"CIAS","Grupo de Investigación en Hidrobiología Aplicada (HIDROBIA)","COL0048492","C","https://scienti.minciencias.gov.co/gruplac/jsp/visualiza/visualizagr.jsp?nro=00000000005664","BB124:BB128",{"$f":"ROW()","v":12},{"$f":"MINA(IF(AQ12=$BA$4:$BA$394,$BD$4:$BD$394))","v":124},{"$f":"MAXA(IF(AQ12=$BA$4:$BA$394,$BD$4:$BD$394))","v":128},"CIAS",null,null,"COL0036025","Robótica híbrida",{"$f":"COUNTIF(BA$4:BA12,BA12)","v":3},{"$f":"ROW()","v":12},1,null,null,"12:30:00","a",null,null,null,null,null,null,null,null,null,null,9,"Ciencias Médicas y de la Salud-Biotecnología en Salud","Ciencias Médicas y de la Salud","Biotecnología en Salud",9,null,null,null,9,"Industria, innovación e infraestructura"," ",null,null,null,"SRL 8 – Soluciones propuestas, así como un plan para la adaptación social completo y certificado.",null,null,null,null,10,113,"Productos de Generación de Nuevo Conocimiento (GNC)","Variedad vegetal o nueva raza animal","Publicación en gaceta de variedades vegetales protegidas o equivalente con estado de admisión respaldada por un concepto favorable de potencial de mercado o con valor real o potencial de contribución a la seguridad alimentaria.","Documento en el que se describa la variedad vegetal obtenida con nombre, tipo de ciclo (corto o largo), fecha, cód. de trazabilidad  y autores debidamente registrados según  Res. De vinculación vigente. Publicación en gaceta o equivalente, con estado de admisión de la solicitud de certificado de obtentor del ICA",60,0,null,null,null,9,"Presupuesto","Máximo en salidas de campo",{"$f":"\"Supera el máximo de presupuesto rubro de [Salidas de Campo] disponible en \"&TEXT(DC12,\"$ ##.###.###\")","v":"Supera el máximo de presupuesto rubro de [Salidas de Campo] disponible en -$ 1.500.000"},{"$f":"IF(DD12>0.1,CX12,0)","v":0},{"$f":"Presupuesto!$P$80","v":-1500000},{"$f":"Presupuesto!$Q$80","v":0},null,null,10,{"$f":"IFERROR(NbHoja(ROW()-2),DK12)","v":"Productos"},{"$f":"MAX(IF($CY$2:$CY$400=$DH12,$DB$2:$DB$400,0))","v":15},"Error : 015.- No tiene la productividad mínima requerida para la convcocatoria INV de 20 Puntos.","Productos"]
[null,null,"Total Vicen",{"$f":"General!G52","v":0},null,10,{"$f":"CLEAN(TRIM(Objetivos!C18))","v":""},{"$f":"CLEAN(TRIM(Cronograma!C17))","v":""},{"$f":"Cronograma!D17","v":0},{"$f":"Cronograma!E17","v":0},"Contribuciones",0,0,0,0,0,0,0,null,0,"0 0",null,null,null,null,null,8,"Facultad","Relaciones Internacionales, Estrategia y Seguridad","EES",null,null,null,null,"No Reconocido",null,42,10,1,10,"CIAS","Agrobiología de especies vegetales promisorias de clima frío","COL0077814","NR","https://scienti.minciencias.gov.co/gruplac/jsp/visualiza/visualizagr.jsp?nro=00000000006560","BB307:BB307",{"$f":"ROW()","v":13},{"$f":"MINA(IF(AQ13=$BA$4:$BA$394,$BD$4:$BD$394))","v":307},{"$f":"MAXA(IF(AQ13=$BA$4:$BA$394,$BD$4:$BD$394))","v":307},"CIAS",null,null,"COL0036025","Simulacion y Realidad Virtual",{"$f":"COUNTIF(BA$4:BA13,BA13)","v":4},{"$f":"ROW()","v":13},1,null,null,null,null,null,null,null,null,null,null,null,null,null,null,10,"Ciencias Médicas y de la Salud-Otras Ciencias Médicas","Ciencias Médicas y de la Salud","Otras Ciencias Médicas",10,null,null,null,10,"Reducción de las desigualdades"," ",null,null,null,"SRL 9 – Soluciones reales del proyecto, probadas en un entorno relevante",null,null,null,null,11,114,"Productos de Generación de Nuevo Conocimiento (GNC)","Nota científica","Nota Científica Impresa o electrónica sometida en revista indexada del SJR (Scimago) o del JCR (Clarivate) que cumpla con lo especificado por Minciencias en el Documento Conceptual de la Convocatoria 833 de 2018","Copia del sometimiento y copia de la nota científica enviada a la revista",10,0,null,null,null,10,"Presupuesto","Máximo en salidas de campo",{"$f":"\"Supera el máximo de presupuesto rubro de [Movilidad] disponible en \"&TEXT(DC13,\"$ ##.###.###\")","v":"Supera el máximo de presupuesto rubro de [Movilidad] disponible en -$ 750.000"},{"$f":"IF(DD13>0.05,CX13,0)","v":0},{"$f":"Presupuesto!$P$81","v":-750000},{"$f":"IFERROR(Presupuesto!$Q$81,0)","v":0},null,null,11,{"$f":"IFERROR(NbHoja(ROW()-2),DK13)","v":"Presupuesto"},{"$f":"MAX(IF($CY$2:$CY$400=$DH13,$DB$2:$DB$400,0))","v":4},"Error : 004.- No cumple mínimo exigido para el rubro de estímulo a estudiantes. Pendiente asignar al rubro $ 1.350.000","Presupuesto"]
[null,null,"Total Pts",{"$f":"General!D52","v":0},null,11,{"$f":"CLEAN(TRIM(Objetivos!C19))","v":""},{"$f":"CLEAN(TRIM(Cronograma!C18))","v":""},{"$f":"Cronograma!D18","v":0},{"$f":"Cronograma!E18","v":0},null,null,null,null,null,null,null,null,null,null,null,null,null,null,null,null,1,"Programa","CIAS","Biología Aplicada",2,null,null,null,"Categoría A1",null,43,11,1,11,"CIAS","Grupo Integrado de Investigaciones en Química Bioorgánica (InQuiBio)","COL0077707","A1","https://scienti.minciencias.gov.co/gruplac/jsp/visualiza/visualizagr.jsp?nro=00000000008358","BB261:BB269",{"$f":"ROW()","v":14},{"$f":"MINA(IF(AQ14=$BA$4:$BA$394,$BD$4:$BD$394))","v":261},{"$f":"MAXA(IF(AQ14=$BA$4:$BA$394,$BD$4:$BD$394))","v":269},"CIAS",null,null,"COL0031824","Bioética Global y Complejidad",{"$f":"COUNTIF(BA$4:BA14,BA14)","v":1},{"$f":"ROW()","v":14},1,null,null,null,null,null,null,null,null,null,null,null,null,null,null,11,"Ciencias Médicas y de la Salud-Medicina Básica","Ciencias Médicas y de la Salud","Medicina Básica",11,null,null,null,11,"Ciudades y comunidades sostenibles"," ",null,null,null,null,null,null,null,null,12,115,"Productos de Generación de Nuevo Conocimiento (GNC)","Patente Solitud Nacional Invencion","Publicación de la solicitud, por la Oficina Nacional Competente, de patente de invención vía fase nacional respaldada por un concepto favorable de vigilancia tecnológica efectuado por la División de Desarrollo Tecnológico e Innovación y soportada por un prototipo validado que se encuentre en un nivel igual o superior a TRL 4","Concepto favorable de vigilancia tecnológica de la DDTI, y publicación en la gaceta de la Superintendencia de Industria  Comercio.",0,0,30,null,null,11,"Presupuesto","Maximo habilitado",{"$f":"\"Supera el máximo de presupuesto disponible en \"&TEXT(DE14,\"$ ##.###.###\")","v":"Supera el máximo de presupuesto disponible en -$ 15.000.000"},{"$f":"IF(DC14<DD14,CX14,0)","v":0},{"$f":"Presupuesto!$N$2","v":15000000},{"$f":"Presupuesto!$G$87","v":0},{"$f":"DD14-DC14","v":-15000000},null,12,{"$f":"IFERROR(NbHoja(ROW()-2),DK14)","v":"Bibliografía"},{"$f":"MAX(IF($CY$2:$CY$400=$DH14,$DB$2:$DB$400,0))","v":0}," ","Bibliografía"]
[null,null,null,null,null,12,{"$f":"CLEAN(TRIM(Objetivos!C20))","v":""},{"$f":"CLEAN(TRIM(Cronograma!C19))","v":""},{"$f":"Cronograma!D19","v":0},{"$f":"Cronograma!E19","v":0},null,"Datos de Grupos de  Investigación  Integrantes",null,null,null,null,null,null,null,null,null,null,null,null,null,null,2,"Programa","CIAS","Tecnologia en Gestion y Produccion horticola",3,null,null,null,"Categoría C",null,44,12,1,12,"CIAS","Grupo de investigación en química ambiental y tecnologías limpias - QUATELI","COL0110436","C","https://scienti.minciencias.gov.co/gruplac/jsp/visualiza/visualizagr.jsp?nro=00000000011141","BB87:BB90",{"$f":"ROW()","v":15},{"$f":"MINA(IF(AQ15=$BA$4:$BA$394,$BD$4:$BD$394))","v":87},{"$f":"MAXA(IF(AQ15=$BA$4:$BA$394,$BD$4:$BD$394))","v":90},"CIAS",null,null,"COL0031824","Bioética Médica y salud pública",{"$f":"COUNTIF(BA$4:BA15,BA15)","v":2},{"$f":"ROW()","v":15},1,null,null,null,null,null,null,null,null,null,null,null,null,null,null,12,"Ciencias Médicas y de la Salud-Ciencias de la Salud","Ciencias Médicas y de la Salud","Ciencias de la Salud",12,null,null,null,12,"Producción y consumo responsables"," ",null,null,null,null,null,null,null,null,13,116,"Productos de Generación de Nuevo Conocimiento (GNC)","Patente Solitud PCT Invencion","Publicación de la solicitud, por la Oficina Nacional Competente, de patente de invención vía PCT respaldada por un concepto favorable de vigilancia tecnológica efectuado por la División de Desarrollo Tecnológico e Innovación y soportada por un prototipo validado que se encuentre en un nivel igual o superior a TRL 4","Concepto favorable de vigilancia tecnológica de la DDTI, y publicación en la gaceta de la Superintendencia de Industria  Comercio.",0,0,20,null,null,12,"Productos","20 Pts : Clas (GNC) mayor que 1","No tiene producto de Generación de Nuevo Conocimiento (GNC) ",{"$f":"IF(DC15<1,CX15,0)","v":12},{"$f":"Productos!$H$33","v":0},{"$f":"V_Max","v":0},null,null,13,{"$f":"IFERROR(NbHoja(ROW()-2),DK15)","v":"Impactos"},{"$f":"MAX(IF($CY$2:$CY$400=$DH15,$DB$2:$DB$400,0))","v":21},"Error : 021.- No se a diligenciado la hoja [Impactos]","Impactos"]
[null,null,null,null,null,13,{"$f":"CLEAN(TRIM(Objetivos!C21))","v":""},{"$f":"CLEAN(TRIM(Cronograma!C20))","v":""},{"$f":"Cronograma!D20","v":0},{"$f":"Cronograma!E20","v":0},null,"Fila\\ Columna","D",null,null,null,null,null,null,null,null,null,null,null,null,null,3,"Programa","CIAS","Maestría en Biología Aplicada",33,null,null,null,"Categoría C",null,56,13,1,13,"CIAS","ECMU (Evaluacion en Competencias y Matemáticas Universitarias)","COL0110329","C","https://scienti.minciencias.gov.co/gruplac/jsp/visualiza/visualizagr.jsp?nro=00000000011130","BB248:BB250",{"$f":"ROW()","v":16},{"$f":"MINA(IF(AQ16=$BA$4:$BA$394,$BD$4:$BD$394))","v":248},{"$f":"MAXA(IF(AQ16=$BA$4:$BA$394,$BD$4:$BD$394))","v":250},"CIAS",null,null,"COL0031824","Bioética, Biopolítica y Biojurídica",{"$f":"COUNTIF(BA$4:BA16,BA16)","v":3},{"$f":"ROW()","v":16},1,null,null,null,null,null,null,null,null,null,null,null,null,null,null,13,"Ciencias Sociales-Otras Ciencias Sociales","Ciencias Sociales","Otras Ciencias Sociales",13,null,null,null,13,"Acción por el clima"," ",null,null,null,null,null,null,null,null,14,117,"Productos de Generación de Nuevo Conocimiento (GNC)","Patente Solitud Nacional Utilidad","Publicación de la solicitud, por la Oficina Nacional Competente, de modelo de utilidad vía fase nacional respaldada por un concepto favorable de vigilancia tecnológica efectuado por la División de Desarrollo Tecnológico e Innovación y soportada por un prototipo validado que se encuentre en un nivel igual o superior a TRL 4","Concepto favorable de vigilancia tecnológica de la DDTI, y publicación en la gaceta de la Superintendencia de Industria  Comercio.",0,0,15,null,null,13,"Productos","20 Pts : Clas (FRH) mayor que 1","No tiene producto de Formación de Recurso Humano (FRH) ",{"$f":"IF(DC16<1,CX16,0)","v":13},{"$f":"Productos!$H$34","v":0},{"$f":"V_Max","v":0},null,null,14,{"$f":"IFERROR(NbHoja(ROW()-2),DK16)","v":"Declaración"},{"$f":"MAX(IF($CY$2:$CY$400=$DH16,$DB$2:$DB$400,0))","v":0}," ","Declaración"]
[null,null,null,null,null,14,{"$f":"CLEAN(TRIM(Objetivos!C22))","v":""},{"$f":"CLEAN(TRIM(Cronograma!C21))","v":""},{"$f":"Cronograma!D21","v":0},{"$f":"Cronograma!E21","v":0},null,"General","Nombre","Cod","Clas","Fac","Linea","Cvlac","Ref",null,null,null,null,null,null,null,3,"Programa","CIAS","Departamento de Matemáticas",34,null,null,null,"Categoría C",null,58,14,1,14,"CIAS","Grupo de Docencia e Investigación en Física","COL0138796","NR","https://scienti.minciencias.gov.co/gruplac/jsp/visualiza/visualizagr.jsp?nro=00000000014082",{"$f":"$AT$2&AV17&\":\"&$AT$2&AW17","v":"BB223:BB227"},{"$f":"ROW()","v":17},{"$f":"MINA(IF(AQ17=$BA$4:$BA$394,$BD$4:$BD$394))","v":223},{"$f":"MAXA(IF(AQ17=$BA$4:$BA$394,$BD$4:$BD$394))","v":227},{"$f":"AO17","v":"CIAS"},null,null,"COL0031824","Bioética, educación y cultura",{"$f":"COUNTIF(BA$4:BA17,BA17)","v":4},{"$f":"ROW()","v":17},1,null,null,null,null,null,null,null,null,null,null,null,null,null,null,14,"Ciencias Sociales-Psicología","Ciencias Sociales","Psicología",14,null,null,null,14,"Vida submarina"," ",null,null,null,null,null,null,null,null,15,118,"Productos de Generación de Nuevo Conocimiento (GNC)","Patente Solitud PCT Utilidad","Publicación de la solicitud, por la Oficina Nacional Competente, de modelo de utilidad vía PCT respaldada por un concepto favorable de vigilancia tecnológica efectuado por la División de Desarrollo Tecnológico e Innovación y soportada por un prototipo validado que se encuentre en un nivel igual o superior a TRL 4","Concepto favorable de vigilancia tecnológica de la DDTI, y publicación en la gaceta de la Superintendencia de Industria  Comercio.",0,0,15,null,null,14,"Productos","40 Pts : Clas (SAC) mayor que 1","No tiene producto de Socialización y Apropiación social del Conocimiento (SAC) ",{"$f":"IF(AND(DC17<1,DD17>40),CX17,0)","v":0},{"$f":"Productos!$H$35","v":0},{"$f":"V_Max","v":0},null,null,15,{"$f":"IFERROR(NbHoja(ROW()-2),\"-\")","v":"-"},{"$f":"MAX(IF($CY$2:$CY$400=$DH17,$DB$2:$DB$400,0))","v":0}," ",{"$error":"#VALUE!"}]
[null,null,null,null,null,15,{"$f":"CLEAN(TRIM(Objetivos!C23))","v":""},{"$f":"CLEAN(TRIM(Cronograma!C22))","v":""},{"$f":"Cronograma!D22","v":0},{"$f":"Cronograma!E22","v":0},null,1,{"$f":"General!C18","v":0},{"$f":"General!L18","v":0},{"$f":"General!I19","v":""},{"$f":"General!#REF!","v":{"$error":"#REF!"}},{"$f":"General!C20","v":0},{"$f":"General!C19","v":""},{"$f":"General!L20","v":0},null,null,null,null,null,null,null,3,"Programa","CIAS","Departamento de Física",35,null,null,null,"Categoría C",null,71,71,1,71,"CIAS","DIVERSITAS","COL0178619","C","https://scienti.minciencias.gov.co/gruplac/jsp/visualiza/visualizagr.jsp?nro=00000000018063",{"$f":"$AT$2&AV18&\":\"&$AT$2&AW18","v":"BB282:BB287"},{"$f":"ROW()","v":18},{"$f":"MINA(IF(AQ18=$BA$4:$BA$394,$BD$4:$BD$394))","v":282},{"$f":"MAXA(IF(AQ18=$BA$4:$BA$394,$BD$4:$BD$394))","v":287},{"$f":"AO18","v":"CIAS"},null,null,"COL0086179","Búsqueda de marcadores genéticos y estudio de genes ligados a la resistencia a Fusarium en clavel.",{"$f":"COUNTIF(BA$4:BA18,BA18)","v":1},{"$f":"ROW()","v":18},1,null,null,null,null,null,null,null,null,null,null,null,null,null,null,15,"Ciencias Sociales-Economía y Negocios","Ciencias Sociales","Economía y Negocios",15,null,null,null,15,"Vida de ecosistemas terrestres"," ",null,null,null,null,null,null,null,null,16,201,"Productos resultado de actividades de desarrollo tecnológico e innovación (DTI)","Software","Software aprobado para registro ante la DNDA, de acuerdo con procedimientos establecidos por la UMNG.","Soporte logico registre el aval para el software que incluya : Manual técnico,  Manual de usuario todos con la inclucion código  de trazabilidad, ",10,0,null,null,null,15,"Productos","sin el minimo de productos ","No tiene la productividad mínima requerida para la convcocatoria INV de 20 Puntos.",{"$f":"IF(DC18<20,CX18,0)","v":15},{"$f":"V_Max","v":0}]
[null,null,null,null,null,16,null,{"$f":"CLEAN(TRIM(Cronograma!C23))","v":""},{"$f":"Cronograma!D23","v":0},{"$f":"Cronograma!E23","v":0},null,2,{"$f":"General!D22","v":0},{"$f":"General!L22","v":0},{"$f":"General!I23","v":""},{"$f":"General!C22","v":0},{"$f":"General!C24","v":0},{"$f":"General!C23","v":""},{"$f":"General!L24","v":0},null,null,null,null,null,null,null,3,"Programa","CIAS","Departamento de Química",36,null,null,null,"Categoría B",null,72,72,1,72,"CIAS","Nanofab","COL0179618","C","https://scienti.minciencias.gov.co/gruplac/jsp/visualiza/visualizagr.jsp?nro=00000000018163",{"$f":"$AT$2&AV19&\":\"&$AT$2&AW19","v":"BB118:BB123"},{"$f":"ROW()","v":19},{"$f":"MINA(IF(AQ19=$BA$4:$BA$394,$BD$4:$BD$394))","v":118},{"$f":"MAXA(IF(AQ19=$BA$4:$BA$394,$BD$4:$BD$394))","v":123},{"$f":"AO19","v":"CIAS"},null,null,"COL0086179","Producción de nuevas variedades de clavel resistentes a parasitos vasculares.",{"$f":"COUNTIF(BA$4:BA19,BA19)","v":2},{"$f":"ROW()","v":19},1,null,null,null,null,null,null,null,null,null,null,null,null,null,null,16,"Ciencias Sociales-Derecho","Ciencias Sociales","Derecho",16,null,null,null,16,"Paz, justicia e instituciones sólidas"," ",null,null,null,null,null,null,null,null,17,202,"Productos resultado de actividades de desarrollo tecnológico e innovación (DTI)","Esquema trazado","Esquema de trazado de circuito integrado registrado ante la SIC a través de acto administrativo que resuelva la concesión favorable.","Documento en el que se describa el esquema de trazado de circuito integrado obtenido con nombre, autor, fecha, cód. de trazabilidad  y autores debidamente registrados según  Res. vigente, Acto administrativo de la Superintendencia de Industria y Comercio que resuelva la concesión favorable.",10,0,null,null,null,16,"Integrantes","Mas de un coinvestigador Interno","La convocatoria limita a un solo coinvestigador UMNG en el proyecto.",{"$f":"IF(DC19>1,CX19,0)","v":0},{"$f":"Integrantes!$AB$24","v":0}]
[null,null,null,null,null,17,null,{"$f":"CLEAN(TRIM(Cronograma!C24))","v":""},{"$f":"Cronograma!D24","v":0},{"$f":"Cronograma!E24","v":0},null,3,{"$f":"General!D26","v":0},{"$f":"General!L26","v":0},{"$f":"General!I27","v":""},{"$f":"General!C26","v":0},{"$f":"General!C28","v":0},{"$f":"General!C27","v":""},{"$f":"General!L28","v":0},null,null,null,null,null,null,null,3,"Programa","CIAS","Doctorado en Ciencias Aplicadas",33,null,null,null,"Categoría B",null,11,15,1,77,"CIAS","ICAAO: Inteligencia Computacional, Aprendizaje Automático y Optimización","COL0169362","C","https://scienti.minciencias.gov.co/gruplac/jsp/visualiza/visualizagr.jsp?nro=00000000017140",{"$f":"$AT$2&AV20&\":\"&$AT$2&AW20","v":"BB330:BB333"},{"$f":"ROW()","v":20},{"$f":"MINA(IF(AQ20=$BA$4:$BA$394,$BD$4:$BD$394))","v":330},{"$f":"MAXA(IF(AQ20=$BA$4:$BA$394,$BD$4:$BD$394))","v":333},{"$f":"AO20","v":"CIAS"},null,null,"COL0086179","Taxonomia y filogenia molecular: desarrollo de intrumentos de analsis",{"$f":"COUNTIF(BA$4:BA20,BA20)","v":3},{"$f":"ROW()","v":20},1,null,null,null,null,null,null,null,null,null,null,null,null,null,null,17,"Ciencias Sociales-Ciencias de la Educación","Ciencias Sociales","Ciencias de la Educación",17,null,null,null,17,"Alianzas para lograr los objetivos"," ",null,null,null,null,null,null,null,null,18,203,"Productos resultado de actividades de desarrollo tecnológico e innovación (DTI)","Normas Internacionales","Regulaciones, normas, reglamentos o legislaciones implementadas internacionalmente, acorde con parámetros de Minciencias. ","\"Documento en el que se describa la regulación, norma, reglamento o legislación+CR10 obtenido con nombre, autor, fecha, cód. de trazabilidad  y autores debidamente registrados según  Res. vigente\" ,\"Certificado de la entidad o institución que emitió el producto, indicando la participación en su construcción de todos o de alguno de los integrantes del proyecto, título, país, ciudad, fecha de  publicación / implementación, tipo de regulación, ámbito.",20,0,null,null,null,17,"Integrantes","Mas de 3 coinvestigadores Ext. 2 Ins  ","No se pueden incluir mas de 3 coinvestigadores externos",{"$f":"IF(DC20>3,CX20,0)","v":0},{"$f":"Integrantes!$AB$14","v":0}]
[null,null,null,null,null,18,null,{"$f":"CLEAN(TRIM(Cronograma!C25))","v":""},{"$f":"Cronograma!D25","v":0},{"$f":"Cronograma!E25","v":0},null,null,null,null,null,null,null,null,null,null,null,null,null,null,null,null,4,"Programa","DER","Derecho",16,null,null,null,"Categoría C",null,47,16,1,15,"DER","Grupo de derecho público ","COL0028918","B","https://scienti.minciencias.gov.co/gruplac/jsp/visualiza/visualizagr.jsp?nro=00000000001079","BB293:BB297",{"$f":"ROW()","v":21},{"$f":"MINA(IF(AQ21=$BA$4:$BA$394,$BD$4:$BD$394))","v":293},{"$f":"MAXA(IF(AQ21=$BA$4:$BA$394,$BD$4:$BD$394))","v":297},"DER",null,null,"COL0028767","Estrategia y control de gestión",{"$f":"COUNTIF(BA$4:BA21,BA21)","v":1},{"$f":"ROW()","v":21},1,null,null,null,null,null,null,null,null,null,null,null,null,null,null,18,"Ciencias Sociales-Sociología","Ciencias Sociales","Sociología",18,null,null,null,null,null,null,null,null,null,null,null,null,null,null,19,204,"Productos resultado de actividades de desarrollo tecnológico e innovación (DTI)","Normas Nacionales","Regulaciones, normas, reglamentos o legislaciones implementadas nacionalmente (no institucional), acorde con parámetros de Minciencias.","\"Documento en el que se describa la regulación, norma, reglamento o legislación+CR10 obtenido con nombre, autor, fecha, cód. de trazabilidad  y autores debidamente registrados según  Res. vigente\" ,\"Certificado de la entidad o institución que emitió el producto, indicando la participación en su construcción de todos o de alguno de los integrantes del proyecto, título, país, ciudad, fecha de  publicación / implementación, tipo de regulación, ámbito.",10,0,null,null,null,18,"Integrantes","Mas de 2 Coinvestigadores Ext. 1 Inst",{"$f":"\"No se pueden incluir mas de 2 coinvestigadores externos\"&IF(DD21>1,\" de una de (\"&DE21 &\")\",\"\")","v":"No se pueden incluir mas de 2 coinvestigadores externos"},{"$f":"IF(AND(DC21>2,DD21>3),CX21,0)","v":0},{"$f":"Integrantes!$AB$14","v":0},{"$f":"General!I30","v":0},{"$f":"CLEAN(General!C32)","v":""}]
[null,null,null,null,null,19,null,{"$f":"CLEAN(TRIM(Cronograma!C26))","v":""},{"$f":"Cronograma!D26","v":0},{"$f":"Cronograma!E26","v":0},null,null,null,null,null,null,null,null,null,null,null,null,null,null,null,null,5,"Programa","DER","Maestría en Derecho Procesal Penal",47,null,null,null,"Categoría C",null,68,17,1,16,"DER","Grupo de Derecho Privado","COL0128047","C","https://scienti.minciencias.gov.co/gruplac/jsp/visualiza/visualizagr.jsp?nro=00000000012964","BB132:BB133",{"$f":"ROW()","v":22},{"$f":"MINA(IF(AQ22=$BA$4:$BA$394,$BD$4:$BD$394))","v":132},{"$f":"MAXA(IF(AQ22=$BA$4:$BA$394,$BD$4:$BD$394))","v":133},"DER",null,null,"COL0028767","Estudios Organizacionales (EO) y responsabilidad social (RS)",{"$f":"COUNTIF(BA$4:BA22,BA22)","v":2},{"$f":"ROW()","v":22},1,null,null,null,null,null,null,null,null,null,null,null,null,null,null,19,"Ciencias Sociales-Ciencias Políticas","Ciencias Sociales","Ciencias Políticas",19,null,null,null,null,null,null,null,null,null,null,null,null,null,null,20,205,"Productos resultado de actividades de desarrollo tecnológico e innovación (DTI)","Nuevo registro cientifico","Nuevo registro científico - Incluido en sistemas de información científica con las especificaciones del Documento conceptual de la Convocatoria 833 de 2018 de Minciencias.","Copia de la Inclusión del nuevo registro científico en el sistema de información científico, matriz con la relación de conjunto de metadatos publicado, y URL de acceso.",15,0,null,null,null,19,"Integrantes","Externos con 5 hras min o $$$","Se debe aportar mínimo 5 hrs semanal por investigador externo o el aporte en recurso efectivo",{"$f":"IF(AND(DC22>0,$DE$22=0),CX22,0)","v":0},{"$f":"Integrantes!$Y$29","v":0},null,{"$f":"Presupuesto!$H$141","v":0},{"$f":"General!$I$30","v":0}]
[null,null,null,null,null,20,null,{"$f":"CLEAN(TRIM(Cronograma!C27))","v":""},{"$f":"Cronograma!D27","v":0},{"$f":"Cronograma!E27","v":0},null,null,null,null,null,null,null,null,null,null,null,null,null,null,null,null,6,"Programa","DER","Maestría en Derecho Administrativo",48,null,null,null,"No Reconocido",null,2,18,1,17,"DER","Red de estudios sociojurídicos comparados y políticas públicas","COL0142449","A","https://scienti.minciencias.gov.co/gruplac/jsp/visualiza/visualizagr.jsp?nro=00000000014449","BB270:BB275",{"$f":"ROW()","v":23},{"$f":"MINA(IF(AQ23=$BA$4:$BA$394,$BD$4:$BD$394))","v":270},{"$f":"MAXA(IF(AQ23=$BA$4:$BA$394,$BD$4:$BD$394))","v":275},"DER",null,null,"COL0028767","Estudios en Ciencia, Tecnología, Innovación y Emprendimiento (desde la gestión, economía y política pública)",{"$f":"COUNTIF(BA$4:BA23,BA23)","v":3},{"$f":"ROW()","v":23},1,null,null,null,null,null,null,null,null,null,null,null,null,null,null,20,"Ciencias Sociales-Geografía Social y Económica","Ciencias Sociales","Geografía Social y Económica",20,null,null,null,null,null,null,null,null,null,null,null,null,null,null,21,207,"Productos resultado de actividades de desarrollo tecnológico e innovación (DTI)","Prototipo TRL4","Productos o procesos tecnológicos usualmente no patentables (Prototipo) - Estado de desarrollo TRL4 - Validación a nivel de laboratorio.","Prototipo madurado en mínimo TRL 4 Validado por DDTI o Ente externo especializado y acompañado de: 1. Manual de funcionamiento según el formato establecido por VICEIN. 2.Registro fotográfico de los componentes del prototipo. 3.Registro fílmico sobre funcionamiento del prototipo.4.Soportes de pruebas y validación (según aplique)",10,0,null,null,null,20,"Impactos","Datos de impactos pendientes",{"$f":"\"No se a diligenciado en la hoja [Impactos]: \"&DD23","v":"No se a diligenciado en la hoja [Impactos]: Impacto principal"},{"$f":"IF(DC23>0,CX23,0)","v":20},{"$f":"Impactos!$O$16","v":10},{"$f":"Impactos!$N$16","v":"Impacto principal"}]
[null,null,null,null,null,"Col",1,{"$f":"G24+1","v":2},{"$f":"H24+1","v":3},4,5,6,7,8,9,10,11,12,13,14,15,16,null,null,null,null,7,"Programa","DER","Maestría en Instituciones Jurídicas de la Fuerza Pública",49,null,null,null,"No Reconocido",null,8,19,1,18,"DIS","PROPPIO: Procesos organizacionales, programaticos y políticos para la promoción del desarrollo","COL0062704","NR","https://scienti.minciencias.gov.co/gruplac/jsp/visualiza/visualizagr.jsp?nro=00000000006477","BB303:BB306",{"$f":"ROW()","v":24},{"$f":"MINA(IF(AQ24=$BA$4:$BA$394,$BD$4:$BD$394))","v":303},{"$f":"MAXA(IF(AQ24=$BA$4:$BA$394,$BD$4:$BD$394))","v":306},"DIS",null,null,"COL0045848","Epidemiología Clínica de Diabetes e Insulino resistencia",{"$f":"COUNTIF(BA$4:BA24,BA24)","v":1},{"$f":"ROW()","v":24},1,null,null,null,null,null,null,null,null,null,null,null,null,null,null,21,"Ciencias Sociales-Periodismo y Comunicaciones","Ciencias Sociales","Periodismo y Comunicaciones",21,null,null,null,null,null,null,null,null,null,null,null,null,null,null,22,208,"Productos resultado de actividades de desarrollo tecnológico e innovación (DTI)","Prototipo TRL5","Productos o procesos tecnológicos (Prototipo) - Estado de desarrollo TRL5 - validación de componentes en entorno relevante.","Prototipo madurado en mínimo un nivel en la escala TRL comprometida o esperada, Validado por DDTI o Ente externo especializado y acompañado de: 1. Manual de funcionamiento según el formato establecido por VICEIN. 2.Registro fotográfico de los componentes del prototipo. 3.Registro fílmico sobre funcionamiento del prototipo. 4.Soportes de pruebas y validación (según aplique).  ",13,0,null,null,null,21,"Impactos","Impactos sin diligenciar","No se a diligenciado la hoja [Impactos]",{"$f":"IF(DC24=9,CX24,0)","v":21},{"$f":"Impactos!$O$3","v":9}]
[null,null,null,null,null,null,null,null,null,null,null,null,null,null,null,null,null,null,null,null,null,null,null,null,null,null,8,"Programa","DER","Especialización en Derecho Administrativo",50,null,null,null,"Categoría B",null,20,20,1,19,"DIS","INCONDIS","COL0127649","C","https://scienti.minciencias.gov.co/gruplac/jsp/visualiza/visualizagr.jsp?nro=00000000012918","BB315:BB315",{"$f":"ROW()","v":25},{"$f":"MINA(IF(AQ25=$BA$4:$BA$394,$BD$4:$BD$394))","v":315},{"$f":"MAXA(IF(AQ25=$BA$4:$BA$394,$BD$4:$BD$394))","v":315},"DIS",null,null,"COL0045848","Genética de diabetes mellitus e insulino resistencia",{"$f":"COUNTIF(BA$4:BA25,BA25)","v":2},{"$f":"ROW()","v":25},1,null,null,null,null,null,null,null,null,null,null,null,null,null,null,22,"Ingeniería y Tecnología-Ingeniería Mecánica","Ingeniería y Tecnología","Ingeniería Mecánica",22,null,null,null,null,null,null,null,null,null,null,null,null,null,null,23,209,"Productos resultado de actividades de desarrollo tecnológico e innovación (DTI)","Prototipo TRL6","Productos o procesos tecnológicos (Prototipo) - Estado de desarrollo TRL6 - Validación de sistema o subsistema en entorno relevante","Prototipo madurado en mínimo un nivel en la escala TRL comprometida o esperada, Validado por DDTI o Ente externo especializado y acompañado de: 1. Manual de funcionamiento según el formato establecido por VICEIN. 2.Registro fotográfico de los componentes del prototipo. 3.Registro fílmico sobre funcionamiento del prototipo. 4.Soportes de pruebas y validación (según aplique).  ",16,0,null,null,null,22,"Objetivos","Obj General pendiente ","Objetivo gereral pendiente de diligenciar",{"$f":"IF(DC25=0,CX25,0)","v":22},{"$f":"Objetivos!$G$8","v":0}]
[null,null,null,null,null,null,null,null,null,null,null,null,null,null,null,null,null,null,null,null,null,null,null,null,null,null,9,"Programa","DER","Especialización en Procedimiento Penal, Constitucional y Justicia Militar",51,null,null,null,"Categoría C",null,22,21,1,20,"DIS","\"PYDES\" Pedagogía y didáctica en la educación superior","COL0018448","C","https://scienti.minciencias.gov.co/gruplac/jsp/visualiza/visualizagr.jsp?nro=00000000000929","BB236:BB238",{"$f":"ROW()","v":26},{"$f":"MINA(IF(AQ26=$BA$4:$BA$394,$BD$4:$BD$394))","v":236},{"$f":"MAXA(IF(AQ26=$BA$4:$BA$394,$BD$4:$BD$394))","v":238},"DIS",null,null,"COL0045848","Prevención Cardiovascular",{"$f":"COUNTIF(BA$4:BA26,BA26)","v":3},{"$f":"ROW()","v":26},1,null,null,null,null,null,null,null,null,null,null,null,null,null,null,23,"Ingeniería y Tecnología-Otras Ingenierías y Tecnologías","Ingeniería y Tecnología","Otras Ingenierías y Tecnologías",23,null,null,null,null,null,null,null,null,null,null,null,null,null,null,24,210,"Productos resultado de actividades de desarrollo tecnológico e innovación (DTI)","Prototipo TRL7","Productos o procesos tecnológicos (Prototipo) - Estado de desarrollo TRL7 - Validación en entorno real.","Prototipo madurado en mínimo un nivel en la escala TRL comprometida o esperada, Validado por DDTI o Ente externo especializado y acompañado de: 1. Manual de funcionamiento según el formato establecido por VICEIN. 2.Registro fotográfico de los componentes del prototipo. 3.Registro fílmico sobre funcionamiento del prototipo. 4.Soportes de pruebas y validación (según aplique).  ",19,0,null,null,null,23,"Objetivos","Obj especificos pendientes ","Pendientes incluir objetivos especificos.",{"$f":"IF(DC26=0,CX26,0)","v":0},{"$f":"SUM(Cronograma!$I$8:$I$26)","v":4}]
[null,null,null,null,null,null,null,null,"Totales",null,{"$f":"SUM(K31:K52)","v":0},null,null,null,null,null,{"$f":"SUM(Q30:Q52)","v":0},null,null,null,null,{"$f":"SUM(V30:V52)","v":0},{"$f":"SUM(W30:W52)","v":0},{"$f":"SUM(X30:X52)","v":0},null,null,10,"Programa","DER","Especialización en Derecho Sancionatorio",52,null,null,null,"Categoría C",null,39,22,1,21,"DIS","Medios, Mediaciones y Procesos en Educación a Distancia","COL0067504","C","https://scienti.minciencias.gov.co/gruplac/jsp/visualiza/visualizagr.jsp?nro=00000000004308","BB184:BB189",{"$f":"ROW()","v":27},{"$f":"MINA(IF(AQ27=$BA$4:$BA$394,$BD$4:$BD$394))","v":184},{"$f":"MAXA(IF(AQ27=$BA$4:$BA$394,$BD$4:$BD$394))","v":189},"DIS",null,null,"COL0152319","Epidemiología Clínica",{"$f":"COUNTIF(BA$4:BA27,BA27)","v":1},{"$f":"ROW()","v":27},1,null,null,null,null,null,null,null,null,null,null,null,null,null,null,24,"Ingeniería y Tecnología-Ingeniería Química","Ingeniería y Tecnología","Ingeniería Química",24,null,null,null,null,null,null,null,null,null,null,null,null,null,null,25,211,"Productos resultado de actividades de desarrollo tecnológico e innovación (DTI)","Prototipo TRL8","Productos o procesos tecnológicos (Prototipo) - Estado de desarrollo TRL8 - Validación completa y certificacion en entorno real.","Prototipo madurado en mínimo un nivel en la escala TRL comprometida o esperada, Validado por DDTI o Ente externo especializado y acompañado de: 1. Manual de funcionamiento según el formato establecido por VICEIN. 2.Registro fotográfico de los componentes del prototipo. 3.Registro fílmico sobre funcionamiento del prototipo. 4.Soportes de pruebas y validación (según aplique).  ",22,0,null,null,null,24,"General","Instituciones Externas","Pendiente incluir presupuesto de instituciones Externas",{"$f":"IF(AND(DC27>0,DD27<1),CX27,0)","v":0},{"$f":"General!$I$30","v":0},{"$f":"Presupuesto!$I$87","v":0}]
[null,null,null,null,null,"Valores Presupuestales",null,null,null,null,null,null,null,null,null,null,null,null,null,null,null,null,null,null,null,null,11,"Programa","DER","Especialización en Derechos Humanos y Sistemas de Protección",53,null,null,null,"Categoría C",null,61,23,1,22,"DIS","PIREO \"Procesos de Integración, Regionalización y Estructuras Organizacionales\"","COL0066229","B","https://scienti.minciencias.gov.co/gruplac/jsp/visualiza/visualizagr.jsp?nro=00000000004242","BB140:BB142",{"$f":"ROW()","v":28},{"$f":"MINA(IF(AQ28=$BA$4:$BA$394,$BD$4:$BD$394))","v":140},{"$f":"MAXA(IF(AQ28=$BA$4:$BA$394,$BD$4:$BD$394))","v":142},"DIS",null,null,"COL0152319","Epidemiología General.",{"$f":"COUNTIF(BA$4:BA28,BA28)","v":2},{"$f":"ROW()","v":28},1,null,null,null,null,null,null,null,null,null,null,null,null,null,null,25,"Ingeniería y Tecnología-Ingenierías Eléctrica, Electrónica e Informática","Ingeniería y Tecnología","Ingenierías Eléctrica, Electrónica e Informática",25,null,null,null,{"$f":"CB20+1","v":18},"Ciencias básicas "," ",null,null,null,null,null,null,null,null,26,212,"Productos resultado de actividades de desarrollo tecnológico e innovación (DTI)","Prototipo TRL9","Productos o procesos tecnológicos (Prototipo) - Estado de desarrollo TRL9 - Prueba exitosa en entorno real.","Prototipo madurado en mínimo un nivel en la escala TRL comprometida o esperada, Validado por DDTI o Ente externo especializado y acompañado de: 1. Manual de funcionamiento según el formato establecido por VICEIN. 2.Registro fotográfico de los componentes del prototipo. 3.Registro fílmico sobre funcionamiento del prototipo. 4.Soportes de pruebas y validación (según aplique).  ",25,0,null,null,null,25,"General","Lider  Igual","El nombre completo del lider debe ser igual al incluido en la hoja integrantes",{"$f":"IF(DE28=0,0,CX28)","v":0},{"$f":"General!$C$10","v":"Luis Alexander Chirivi"},{"$f":"CLEAN(TRIM(Integrantes!$D$9&\" \"&Integrantes!$E$9))","v":"Luis Alexander Chirivi"},{"$f":"LEN(DC28)-LEN(DD28)","v":0}]
[null,null,null,null,null,null,"Datos de Contrapartida",null,null,null,null,"Datos OPS",null,null,null,null,null,null,null,null,null,null,null,null,null,null,12,"Programa","DIS","Administración de Empresas",17,null,null,null,"Categoría C",null,67,24,1,23,"DIS","Modelos de simulación ICDIST","COL0069296","C","https://scienti.minciencias.gov.co/gruplac/jsp/visualiza/visualizagr.jsp?nro=00000000004423","BB171:BB171",{"$f":"ROW()","v":29},{"$f":"MINA(IF(AQ29=$BA$4:$BA$394,$BD$4:$BD$394))","v":171},{"$f":"MAXA(IF(AQ29=$BA$4:$BA$394,$BD$4:$BD$394))","v":171},"DIS",null,null,"COL0152319","Formación del Recurso Humano en Salud en Epidemiología y Salud Colectiva",{"$f":"COUNTIF(BA$4:BA29,BA29)","v":3},{"$f":"ROW()","v":29},1,null,null,null,null,null,null,null,null,null,null,null,null,null,null,26,"Ingeniería y Tecnología-Biotecnología Ambiental","Ingeniería y Tecnología","Biotecnología Ambiental",26,null,null,null,19,"Otros"," ",null,null,null,null,null,null,null,null,27,301,"Producción resultado de actividades de apropiación social del conocimiento (ASC)","Circulación de conocimiento especializado","Ponencia en evento Internacional de acuerdo con los requisitos de la resolución vigente de movilidad.","Certificado de ponente, trabajo presentado en el evento que será publicado en memorias con ISSN o ISBN, cód. de trazabilidad y autores debidamente registrados según  Res. De movilidad Vigente.",10,0,null,null,null,26,"General","Grupo Lider sin definir","Pendiente Seleccionar Grupo de investigaciones Principal",{"$f":"IF(DC29=0,CX29,0)","v":26},{"$f":"LEN(General!$C$18)","v":0}]
[null,null,null,null,null,"No","Identidad",{"$f":"Presupuesto!E13","v":"Tipo de Vinculo UMNG"},{"$f":"Presupuesto!F13","v":"Numero de meses "},{"$f":"Presupuesto!G13","v":"Número Horas / Semanal"},{"$f":"Presupuesto!H13","v":"Valor Final"},{"$f":"Presupuesto!C29","v":"Valor mensual"},{"$f":"Presupuesto!D29","v":"Factor Salarial"},{"$f":"Presupuesto!E29","v":"Tipo de vinculación"},"mes","Horas",{"$f":"Presupuesto!H29","v":"Valor total"},{"$f":"Presupuesto!C50","v":"Rubro / Destino"},{"$f":"Presupuesto!D50","v":"Año de Vigencia"},{"$f":"Presupuesto!E50","v":"Descripción (Entidad- "},{"$f":"Presupuesto!F50","v":0},{"$f":"Presupuesto!G50","v":"Finaciación Vicein $"},{"$f":"Presupuesto!H50","v":"$ Contrapartida Facultad"},{"$f":"Presupuesto!I50","v":"Contrapartida Otros $"},null,null,12,"Programa","DIS","Administración de seguridad y Salud Ocupacional ","X",null,null,null,"Categoría C",null,13,25,1,24,"DIS","INAMPE","COL0142331","C","https://scienti.minciencias.gov.co/gruplac/jsp/visualiza/visualizagr.jsp?nro=00000000014438","BB58:BB60",{"$f":"ROW()","v":30},{"$f":"MINA(IF(AQ30=$BA$4:$BA$394,$BD$4:$BD$394))","v":58},{"$f":"MAXA(IF(AQ30=$BA$4:$BA$394,$BD$4:$BD$394))","v":60},"DIS",null,null,"COL0152319","Las Tecnologías de la Información y de la comunicación en Epidemiología y Salud Colectiva",{"$f":"COUNTIF(BA$4:BA30,BA30)","v":4},{"$f":"ROW()","v":30},1,null,null,null,null,null,null,null,null,null,null,null,null,null,null,27,"Ingeniería y Tecnología-Nanotecnología","Ingeniería y Tecnología","Nanotecnología",27,null,null,null,null,null,null,null,null,null,null,null,null,null,null,28,302,"Producción resultado de actividades de apropiación social del conocimiento (ASC)","Circulación de conocimiento especializado","Ponencia en evento nacional de acuerdo con los requisitos de la resolución vigente de movilidad.","Certificado de ponente, trabajo presentado en el evento que será publicado en memorias con ISSN o ISBN, cód. de trazabilidad y autores debidamente registrados según  Res. De movilidad Vigente.",5,0,null,null,null,27,"General","Linea del Grupo lider","Pendiente Seleccionar linea de investacion Grupo de investigaciones Principal",{"$f":"IF(AND(DC29>0,DC30<2),CX30,0)","v":0},{"$f":"LEN(General!$C$20)","v":0}]
[null,null,null,null,null,{"$f":"ROW()-30","v":1},{"$f":"Presupuesto!I14","v":0},{"$f":"Presupuesto!E14","v":0},{"$f":"Presupuesto!F14","v":12},{"$f":"Presupuesto!G14","v":0},{"$f":"Presupuesto!H14","v":0},{"$f":"Presupuesto!C30","v":0},{"$f":"Presupuesto!D30","v":0},{"$f":"Presupuesto!E30","v":0},{"$f":"Presupuesto!F30","v":10},{"$f":"Presupuesto!G30","v":"No Aplica"},{"$f":"Presupuesto!H30","v":0},{"$f":"Presupuesto!C51","v":"Personal"},{"$f":"Presupuesto!D51","v":1},{"$f":"Presupuesto!E51","v":"Contrapartida definida por VICEIN (No Habilitado)"},{"$f":"Presupuesto!F51","v":0},{"$f":"Presupuesto!G51","v":0},{"$f":"Presupuesto!H51","v":0},{"$f":"Presupuesto!I51","v":0},null,null,13,"Programa","DIS","Contaduría Pública",18,null,null,null,"Categoría C",null,17,26,1,25,"ECO","Grupo de Estudios en Ciencias Económicas - CIE","COL0050294","B","https://scienti.minciencias.gov.co/gruplac/jsp/visualiza/visualizagr.jsp?nro=00000000003322","BB32:BB33",{"$f":"ROW()","v":31},{"$f":"MINA(IF(AQ31=$BA$4:$BA$394,$BD$4:$BD$394))","v":32},{"$f":"MAXA(IF(AQ31=$BA$4:$BA$394,$BD$4:$BD$394))","v":33},"ECO",null,null,"COL0152319","Medicina tradicional complementaria.",{"$f":"COUNTIF(BA$4:BA31,BA31)","v":5},{"$f":"ROW()","v":31},1,null,null,null,null,null,null,null,null,null,null,null,null,null,null,28,"Ingeniería y Tecnología-Ingeniería Civil","Ingeniería y Tecnología","Ingeniería Civil",28,null,null,null,null,null,null,null,null,null,null,null,null,null,null,29,303,"Producción resultado de actividades de apropiación social del conocimiento (ASC)","Participación ciudadana en CTeI","Participación ciudadana en CTeI acorde con parámetros del modelo de medición de grupos de investigación- Minciencias** (Tabla XIV ANEXO 1)","Constancia de participación emitida por la comunidad o comunidades indicando que fueron incluidos en el proyecto/espacio/evento de CTI, con título del proyecto o nombre del espacio/evento, fecha de inicio, investigadores participantes, cód. de trazabilidad, nombre de la comunidad o comunidades participantes y otras instituciones o entidades vinculadas al proyecto/ espacio/evento de CTI.",5,0,null,null,null,28,"General","Linea del Grupo Aliado 1","Pendiente Seleccionar linea de investacion Grupo de investigaciones Aliado 1",{"$f":"IF(AND(DC31>0,DD31=0),CX31,0)","v":0},{"$f":"LEN(General!$C$22)","v":0},{"$f":"LEN(General!$C$24)","v":0}]
[null,null,null,null,null,{"$f":"ROW()-30","v":2},{"$f":"Presupuesto!I15","v":0},{"$f":"Presupuesto!E15","v":0},{"$f":"Presupuesto!F15","v":12},{"$f":"Presupuesto!G15","v":0},{"$f":"Presupuesto!H15","v":0},{"$f":"Presupuesto!C31","v":0},{"$f":"Presupuesto!D31","v":0},{"$f":"Presupuesto!E31","v":0},{"$f":"Presupuesto!F31","v":10},{"$f":"Presupuesto!G31","v":"No Aplica"},{"$f":"Presupuesto!H31","v":0},{"$f":"Presupuesto!C52","v":0},{"$f":"Presupuesto!D52","v":1},{"$f":"Presupuesto!E52","v":0},{"$f":"Presupuesto!F52","v":0},{"$f":"Presupuesto!G52","v":0},{"$f":"Presupuesto!H52","v":0},{"$f":"Presupuesto!I52","v":0},null,null,14,"Programa","DIS","Ingeniería Civil",19,null,null,null,"Categoría B",null,40,27,1,26,"ECO","GRUPO DE ESTUDIOS SOBRE DESIGUALDADES SOCIALES","COL0027367","C","https://scienti.minciencias.gov.co/gruplac/jsp/visualiza/visualizagr.jsp?nro=00000000000855","BB288:BB290",{"$f":"ROW()","v":32},{"$f":"MINA(IF(AQ32=$BA$4:$BA$394,$BD$4:$BD$394))","v":288},{"$f":"MAXA(IF(AQ32=$BA$4:$BA$394,$BD$4:$BD$394))","v":290},"ECO",null,null,"COL0050294","Economía política del conflicto",{"$f":"COUNTIF(BA$4:BA32,BA32)","v":1},{"$f":"ROW()","v":32},1,null,null,null,null,null,null,null,null,null,null,null,null,null,null,29,"Ingeniería y Tecnología-Ingeniería de los Materiales","Ingeniería y Tecnología","Ingeniería de los Materiales",29,null,null,null,null,null,null,null,null,null,null,null,null,null,null,30,304,"Producción resultado de actividades de apropiación social del conocimiento (ASC)","Nueva secuencia genética","Conjunto de información molecular que haya sido publicado en revista científica especializada y en una base de datos o repositorio de acceso público acorde con los parámetros del modelo de medición de grupos de investigación - Minciencias** (Tabla XVII ANEXO 1)","Nombre de la secuencia genética, fecha, mes y lugar de obtención, base de datos científica en la cual está incluida la nueva secuencia genética (nombre y url), e institución certificadora de la nueva secuencia genética, código de trazabilidad y autores debidamente registrados según la resolución para vinculación de personal vigente.",10,0,null,null,null,29,"General","Linea del Grupo Aliado 2","Pendiente Seleccionar linea de investacion Grupo de investigaciones Aliado 2",{"$f":"IF(AND(DC32>0,DD32=0),CX32,0)","v":0},{"$f":"LEN(General!$C$26)","v":0},{"$f":"LEN(General!$C$28)","v":0}]
[null,null,null,null,null,3,{"$f":"Presupuesto!I16","v":0},{"$f":"Presupuesto!E16","v":0},{"$f":"Presupuesto!F16","v":0},{"$f":"Presupuesto!G16","v":0},{"$f":"Presupuesto!H16","v":0},{"$f":"Presupuesto!C32","v":0},{"$f":"Presupuesto!D32","v":0},{"$f":"Presupuesto!E32","v":0},{"$f":"Presupuesto!F32","v":10},{"$f":"Presupuesto!G32","v":"No Aplica"},{"$f":"Presupuesto!H32","v":0},{"$f":"Presupuesto!C53","v":0},{"$f":"Presupuesto!D53","v":1},{"$f":"Presupuesto!E53","v":0},{"$f":"Presupuesto!F53","v":0},{"$f":"Presupuesto!G53","v":0},{"$f":"Presupuesto!H53","v":0},{"$f":"Presupuesto!I53","v":0},null,null,15,"Programa","DIS","Ingeniería Industrial",20,null,null,null,"Categoría C",null,64,28,1,27,"ECO","Grupo de Estudios Contemporáneos en Gestión y Organizaciones GECGO","COL0028767","A","https://scienti.minciencias.gov.co/gruplac/jsp/visualiza/visualizagr.jsp?nro=00000000001069","BB21:BB23",{"$f":"ROW()","v":33},{"$f":"MINA(IF(AQ33=$BA$4:$BA$394,$BD$4:$BD$394))","v":21},{"$f":"MAXA(IF(AQ33=$BA$4:$BA$394,$BD$4:$BD$394))","v":23},"ECO",null,null,"COL0050294","Economía, Gestión y Medio Ambiente",{"$f":"COUNTIF(BA$4:BA33,BA33)","v":2},{"$f":"ROW()","v":33},1,null,null,null,null,null,null,null,null,null,null,null,null,null,null,30,"Ingeniería y Tecnología-Ingeniería Ambiental","Ingeniería y Tecnología","Ingeniería Ambiental",30,null,null,null,null,null,null,null,null,null,null,null,null,null,null,31,401,"Formación de Recurso Humano (FRH)","Dirección o codirección de Tesis de doctorado","Dirección de tesis finalizada de Doctorado de estudiantes de programas de Doctorado de la UMNG, con temáticas asociadas a la línea de investigación a la que pertenece el proyecto.","Acta de designación, anteproyecto con código de trazabilidad y acta de acompañamiento final",0,0,25,null,null,30,"General","Selecion de Facultad","Pendiente seleccionar Facultad del lider del proyecto",{"$f":"IF(DC33=0,CX33,0)","v":30},{"$f":"LEN(General!$C$13)","v":0}]
[null,null,null,null,null,4,{"$f":"Presupuesto!I17","v":0},{"$f":"Presupuesto!E17","v":0},{"$f":"Presupuesto!F17","v":0},{"$f":"Presupuesto!G17","v":0},{"$f":"Presupuesto!H17","v":0},{"$f":"Presupuesto!C33","v":0},{"$f":"Presupuesto!D33","v":0},{"$f":"Presupuesto!E33","v":0},{"$f":"Presupuesto!F33","v":10},{"$f":"Presupuesto!G33","v":"No Aplica"},{"$f":"Presupuesto!H33","v":0},{"$f":"Presupuesto!C54","v":0},{"$f":"Presupuesto!D54","v":1},{"$f":"Presupuesto!E54","v":0},{"$f":"Presupuesto!F54","v":0},{"$f":"Presupuesto!G54","v":0},{"$f":"Presupuesto!H54","v":0},{"$f":"Presupuesto!I54","v":0},null,null,16,"Programa","DIS","Ingeniería Informática",21,null,null,null,"Categoría B",null,21,29,1,28,"ECO","GECS (Grupo de Estudios en Educación, Contabilidad y Sociedad)","COL0117722","B","https://scienti.minciencias.gov.co/gruplac/jsp/visualiza/visualizagr.jsp?nro=00000000011887","BB129:BB131",{"$f":"ROW()","v":34},{"$f":"MINA(IF(AQ34=$BA$4:$BA$394,$BD$4:$BD$394))","v":129},{"$f":"MAXA(IF(AQ34=$BA$4:$BA$394,$BD$4:$BD$394))","v":131},"ECO",null,null,"COL0049659","Actividad física, promoción de la salud y prevención de la enfermedad.",{"$f":"COUNTIF(BA$4:BA34,BA34)","v":1},{"$f":"ROW()","v":34},1,null,null,null,null,null,null,null,null,null,null,null,null,null,null,31,"Ingeniería y Tecnología-Biotecnología Industrial","Ingeniería y Tecnología","Biotecnología Industrial",31,null,null,null,null,null,null,null,null,null,null,null,null,null,null,32,402,"Formación de Recurso Humano (FRH)","Dirección o codirección de Trabajo de maestría","Dirección de trabajo de grado finalizado de estudiantes de programas de Maestría de la UMNG, con temáticas asociadas a línea de investigación a la que pertenece el proyecto","Acta de designación, anteproyecto con código de trazabilidad y acta de acompañamiento final",0,0,15,null,null,31,"General","Selecion de Programa","Pendiente seleccionar Programa del lider del proyecto",{"$f":"IF(DC34=0,CX34,0)","v":31},{"$f":"LEN(General!$H$13)","v":0}]
[null,null,null,null,null,5,{"$f":"Presupuesto!I18","v":0},{"$f":"Presupuesto!E18","v":0},{"$f":"Presupuesto!F18","v":0},{"$f":"Presupuesto!G18","v":0},{"$f":"Presupuesto!H18","v":0},{"$f":"Presupuesto!C34","v":0},{"$f":"Presupuesto!D34","v":0},{"$f":"Presupuesto!E34","v":0},{"$f":"Presupuesto!F34","v":10},{"$f":"Presupuesto!G34","v":"No Aplica"},{"$f":"Presupuesto!H34","v":0},{"$f":"Presupuesto!C55","v":0},{"$f":"Presupuesto!D55","v":1},{"$f":"Presupuesto!E55","v":0},{"$f":"Presupuesto!F55","v":0},{"$f":"Presupuesto!G55","v":0},{"$f":"Presupuesto!H55","v":0},{"$f":"Presupuesto!I55","v":0},null,null,16,"Programa","DIS","Relaciones Internacionales y Estudios Políticos","X",null,null,null,"Categoría C",null,53,30,1,29,"EES","Estudios Internacionales y Políticos","COL0066768","B","https://scienti.minciencias.gov.co/gruplac/jsp/visualiza/visualizagr.jsp?nro=00000000004270","BB68:BB73",{"$f":"ROW()","v":35},{"$f":"MINA(IF(AQ35=$BA$4:$BA$394,$BD$4:$BD$394))","v":68},{"$f":"MAXA(IF(AQ35=$BA$4:$BA$394,$BD$4:$BD$394))","v":73},"EES",null,null,"COL0049659","Medios de comunicación, educación y salud",{"$f":"COUNTIF(BA$4:BA35,BA35)","v":2},{"$f":"ROW()","v":35},1,null,null,null,null,null,null,null,null,null,null,null,null,null,null,32,"Ingeniería y Tecnología-Ingeniería Médica","Ingeniería y Tecnología","Ingeniería Médica",32,null,null,null,null,null,null,null,null,null,null,null,null,null,null,33,403,"Formación de Recurso Humano (FRH)","Jóven Investigador","Joven investigador vinculado por mínimo ocho meses según los criterios de la Resolución vigente  sobre vinculación de personal a los proyectos de investigación financiados o cofinanciados por la UMNG en los programas de CTeI.","Contrato OPS , informe de actividades final.",10,0,null,null,null,32,"General","Titulo No diligenciado","Título no esta diligenciado",{"$f":"IF(OR(DC35=1,DD35<5),CX35,0)","v":0},{"$f":"IF(General!$B$9=\"Formato: actualizado a 16 Feb 2022\",1,0)","v":0},{"$f":"LEN(General!$B$9)","v":34}]
[null,null,null,null,null,6,{"$f":"Presupuesto!I19","v":0},{"$f":"Presupuesto!E19","v":0},{"$f":"Presupuesto!F19","v":0},{"$f":"Presupuesto!G19","v":0},{"$f":"Presupuesto!H19","v":0},{"$f":"Presupuesto!C35","v":0},{"$f":"Presupuesto!D35","v":0},{"$f":"Presupuesto!E35","v":0},{"$f":"Presupuesto!F35","v":10},{"$f":"Presupuesto!G35","v":"No Aplica"},{"$f":"Presupuesto!H35","v":0},{"$f":"Presupuesto!C56","v":0},{"$f":"Presupuesto!D56","v":1},{"$f":"Presupuesto!E56","v":0},{"$f":"Presupuesto!F56","v":0},{"$f":"Presupuesto!G56","v":0},{"$f":"Presupuesto!H56","v":0},{"$f":"Presupuesto!I56","v":0},null,null,17,"Programa","DIS","Ingeniería Informática","X",null,null,null,"Categoría A1",null,9,31,{"$f":"COUNTIF($AN$4:$AN$816,AL36)","v":1},30,"EES","Sociedad, Estrategia y Seguridad","COL0066669","C","https://scienti.minciencias.gov.co/gruplac/jsp/visualiza/visualizagr.jsp?nro=00000000004263","BB74:BB78",{"$f":"ROW()","v":36},{"$f":"MINA(IF(AQ36=$BA$4:$BA$394,$BD$4:$BD$394))","v":74},{"$f":"MAXA(IF(AQ36=$BA$4:$BA$394,$BD$4:$BD$394))","v":78},"EES",null,null,"COL0049659","Salud Pública y Nutrición, Prevención de la Enfermedad y Promoción de la Salud",{"$f":"COUNTIF(BA$4:BA36,BA36)","v":3},{"$f":"ROW()","v":36},1,null,null,null,null,null,null,null,null,null,null,null,null,null,null,33,"Ciencias Agrícolas-Biotecnología Agrícola","Ciencias Agrícolas","Biotecnología Agrícola",33,null,null,null,null,null,null,null,null,null,null,null,null,null,null,34,404,"Formación de Recurso Humano (FRH)","Dirección o codirección de Trabajo de pregrado","Dirección de Trabajo de grado de estudiantes en programas de pregrado de la UMNG, con temáticas asociadas a línea de investigación a la que pertenece el proyecto.","Copia del acta sustentación del proyecto de grado",5,0,null,null,null,33]
[null,null,null,null,null,7,{"$f":"Presupuesto!I20","v":0},{"$f":"Presupuesto!E20","v":0},{"$f":"Presupuesto!F20","v":0},{"$f":"Presupuesto!G20","v":0},{"$f":"Presupuesto!H20","v":0},{"$f":"Presupuesto!C36","v":0},{"$f":"Presupuesto!D36","v":0},{"$f":"Presupuesto!E36","v":0},{"$f":"Presupuesto!F36","v":10},{"$f":"Presupuesto!G36","v":"No Aplica"},{"$f":"Presupuesto!H36","v":0},{"$f":"Presupuesto!C57","v":0},{"$f":"Presupuesto!D57","v":1},{"$f":"Presupuesto!E57","v":0},{"$f":"Presupuesto!F57","v":0},{"$f":"Presupuesto!G57","v":0},{"$f":"Presupuesto!H57","v":0},{"$f":"Presupuesto!I57","v":0},null,null,17,"Programa","DIS","Especialización en Alta Gerencia",54,null,null,null,"Categoría C",null,23,32,1,31,"HUM","LIDERAZGO","COL0015722","A1","https://scienti.minciencias.gov.co/gruplac/jsp/visualiza/visualizagr.jsp?nro=00000000000744","BB161:BB162",{"$f":"ROW()","v":37},{"$f":"MINA(IF(AQ37=$BA$4:$BA$394,$BD$4:$BD$394))","v":161},{"$f":"MAXA(IF(AQ37=$BA$4:$BA$394,$BD$4:$BD$394))","v":162},"HUM",null,null,"COL0036749","Accesibilidad",{"$f":"COUNTIF(BA$4:BA37,BA37)","v":1},{"$f":"ROW()","v":37},1,null,null,null,null,null,null,null,null,null,null,null,null,null,null,34,"Ciencias Agrícolas-Ciencias Veterinarias","Ciencias Agrícolas","Ciencias Veterinarias",34,null,null,null,null,null,null,null,null,null,null,null,null,null,null,35,405,"Formación de Recurso Humano (FRH)","Tutoría de un proyecto de iniciación científica","Tutoría de un proyecto de iniciación científica de estudiantes de la UMNG, con temáticas asociadas a línea de investigación a la que pertenece el proyecto.","Informe final y acta del Comité de investigaciones con el aval del cierre del PIC",5,0,null,null,null,34," "]
[null,null,null,null,null,8,{"$f":"Presupuesto!I21","v":0},{"$f":"Presupuesto!E21","v":0},{"$f":"Presupuesto!F21","v":0},{"$f":"Presupuesto!G21","v":0},{"$f":"Presupuesto!H21","v":0},{"$f":"Presupuesto!C37","v":0},{"$f":"Presupuesto!D37","v":0},{"$f":"Presupuesto!E37","v":0},{"$f":"Presupuesto!F37","v":10},{"$f":"Presupuesto!G37","v":"No Aplica"},{"$f":"Presupuesto!H37","v":0},{"$f":"Presupuesto!C58","v":0},{"$f":"Presupuesto!D58","v":1},{"$f":"Presupuesto!E58","v":0},{"$f":"Presupuesto!F58","v":0},{"$f":"Presupuesto!G58","v":0},{"$f":"Presupuesto!H58","v":0},{"$f":"Presupuesto!I58","v":0},null,null,18,"Programa","ECO","Administración de Empresas","X",null,null,null,"Categoría C",null,38,33,1,32,"HUM","HUMANITAS","COL0101099","A","https://scienti.minciencias.gov.co/gruplac/jsp/visualiza/visualizagr.jsp?nro=00000000010165","BB39:BB42",{"$f":"ROW()","v":38},{"$f":"MINA(IF(AQ38=$BA$4:$BA$394,$BD$4:$BD$394))","v":39},{"$f":"MAXA(IF(AQ38=$BA$4:$BA$394,$BD$4:$BD$394))","v":42},"HUM",null,null,"COL0036749","Multimedia Analítica",{"$f":"COUNTIF(BA$4:BA38,BA38)","v":2},{"$f":"ROW()","v":38},1,null,null,null,null,null,null,null,null,null,null,null,null,null,null,35,"Ciencias Agrícolas-Ciencias Animales y Lechería","Ciencias Agrícolas","Ciencias Animales y Lechería",35,null,null,null,null,null,null,null,null,null,null,null,null,null,null,36,501,"Gestión de la Investigación (GI)","Presentación de nuevo proyecto Externo Nacional","Nueva propuesta conducente al ingreso de recursos externos en efectivo a la UMNG, superiores a la contrapartida en especie comprometida por la UMNG","Carta de aval institucional, registro de sometimiento a la convocatoria externa o a la entidad financiadora o coordinadora de la convocatoria y listado de elegibles en el que está incluida la propuesta.",30,0,null,null,null,35," "]
[null,null,null,null,null,9,{"$f":"Presupuesto!I22","v":0},{"$f":"Presupuesto!E22","v":0},{"$f":"Presupuesto!F22","v":0},{"$f":"Presupuesto!G22","v":0},{"$f":"Presupuesto!H22","v":0},{"$f":"Presupuesto!C38","v":0},{"$f":"Presupuesto!D38","v":0},{"$f":"Presupuesto!E38","v":0},{"$f":"Presupuesto!F38","v":10},{"$f":"Presupuesto!G38","v":"No Aplica"},{"$f":"Presupuesto!H38","v":0},{"$f":"Presupuesto!C59","v":0},{"$f":"Presupuesto!D59","v":1},{"$f":"Presupuesto!E59","v":0},{"$f":"Presupuesto!F59","v":0},{"$f":"Presupuesto!G59","v":0},{"$f":"Presupuesto!H59","v":0},{"$f":"Presupuesto!I59","v":0},null,null,18,"Programa","ECO","Contaduría Pública","X",null,null,null,"Categoría A",null,50,34,1,33,"HUM","Cultura y Desarrollo Humano","COL0002896","A","https://scienti.minciencias.gov.co/gruplac/jsp/visualiza/visualizagr.jsp?nro=00000000000740","BB4:BB6",{"$f":"ROW()","v":39},{"$f":"MINA(IF(AQ39=$BA$4:$BA$394,$BD$4:$BD$394))","v":4},{"$f":"MAXA(IF(AQ39=$BA$4:$BA$394,$BD$4:$BD$394))","v":6},"HUM",null,null,"COL0101099","Educación y Sociedad",{"$f":"COUNTIF(BA$4:BA39,BA39)","v":1},{"$f":"ROW()","v":39},1,null,null,null,null,null,null,null,null,null,null,null,null,null,null,36,"Ciencias Agrícolas-Otras Ciencias Agrícolas","Ciencias Agrícolas","Otras Ciencias Agrícolas",36,null,null,null,null,null,null,null,null,null,null,null,null,null,null,37,502,"Gestión de la Investigación (GI)","Presentación de nuevo proyecto Externo Nacional 350","Nueva propuesta conducente a ingreso a la UMNG de recursos externos nacionales en efectivo, superiores a la contrapartida en especie comprometida por la UMNG por un valor mayor o igual a 350 SMMLV.","Carta de aval  institucional, registro de sometimiento a la convocatoria externa o a la entidad financiadora o coordinadora de la convocatoria y listado de elegibles en el que está incluida la propuesta.",20,0,null,null,null,36," "]
[null,null,null,null,null,10,{"$f":"Presupuesto!I23","v":0},{"$f":"Presupuesto!E23","v":0},{"$f":"Presupuesto!F23","v":0},{"$f":"Presupuesto!G23","v":0},{"$f":"Presupuesto!H23","v":0},{"$f":"Presupuesto!C39","v":0},{"$f":"Presupuesto!D39","v":0},{"$f":"Presupuesto!E39","v":0},{"$f":"Presupuesto!F39","v":10},{"$f":"Presupuesto!G39","v":"No Aplica"},{"$f":"Presupuesto!H39","v":0},{"$f":"Presupuesto!C60","v":0},{"$f":"Presupuesto!D60","v":1},{"$f":"Presupuesto!E60","v":0},{"$f":"Presupuesto!F60","v":0},{"$f":"Presupuesto!G60","v":0},{"$f":"Presupuesto!H60","v":0},{"$f":"Presupuesto!I60","v":0},null,null,18,"Programa","ECO","Economía","X",null,null,null,"Categoría B",null,5,35,1,34,"HUM","BioethicsGroup","COL0031824","A","https://scienti.minciencias.gov.co/gruplac/jsp/visualiza/visualizagr.jsp?nro=00000000001353","BB14:BB17",{"$f":"ROW()","v":40},{"$f":"MINA(IF(AQ40=$BA$4:$BA$394,$BD$4:$BD$394))","v":14},{"$f":"MAXA(IF(AQ40=$BA$4:$BA$394,$BD$4:$BD$394))","v":17},"HUM",null,null,"COL0101099","FILOSOFIA POLITICA Y REPONSABILIDAD SOCIAL",{"$f":"COUNTIF(BA$4:BA40,BA40)","v":2},{"$f":"ROW()","v":40},1,null,null,null,null,null,null,null,null,null,null,null,null,null,null,37,"Ciencias Agrícolas-Agricultura, Silvicultura y Pesca","Ciencias Agrícolas","Agricultura, Silvicultura y Pesca",37,null,null,null,null,null,null,null,null,null,null,null,null,null,null,38,503,"Gestión de la Investigación (GI)","Presentación de nuevo proyecto Externo internacional 350","Nueva propuesta conducente a ingreso a la UMNG de recursos externos Internacionales en efectivo, superiores a la contrapartida en especie comprometida por la UMNG por un valor mayor o igual a 350 SMMLV.","Carta de aval Institucional, registro de sometimiento a la convocatoria externa o a la entidad financiadora o coordinadora de la convocatoria y listado de elegibles en el que está incluida la propuesta.",30,0,null,null,null,37," "]
[null,null,null,null,null,11," "," "," "," "," ",{"$f":"Presupuesto!C40","v":0},{"$f":"Presupuesto!D40","v":0},{"$f":"Presupuesto!E40","v":0},{"$f":"Presupuesto!F40","v":10},{"$f":"Presupuesto!G40","v":"No Aplica"},{"$f":"Presupuesto!H40","v":0},{"$f":"Presupuesto!C61","v":0},{"$f":"Presupuesto!D61","v":1},{"$f":"Presupuesto!E61","v":0},{"$f":"Presupuesto!F61","v":0},{"$f":"Presupuesto!G61","v":0},{"$f":"Presupuesto!H61","v":0},{"$f":"Presupuesto!I61","v":0},null,null,18,"Programa","ECO","Tecnología en Contabilidad y Tributaria","X",null,null,null,"Categoría A",null,10,36,1,35,"ING","Grupo de Investigación en Multimedia -GIM-","COL0044859","A","https://scienti.minciencias.gov.co/gruplac/jsp/visualiza/visualizagr.jsp?nro=00000000002706","BB256:BB260",{"$f":"ROW()","v":41},{"$f":"MINA(IF(AQ41=$BA$4:$BA$394,$BD$4:$BD$394))","v":256},{"$f":"MAXA(IF(AQ41=$BA$4:$BA$394,$BD$4:$BD$394))","v":260},"ING",null,null,"COL0101099","HUMANIDADES, CULTURA Y UNIVERSIDAD",{"$f":"COUNTIF(BA$4:BA41,BA41)","v":3},{"$f":"ROW()","v":41},1,null,null,null,null,null,null,null,null,null,null,null,null,null,null,38,"Humanidades-Arte","Humanidades","Arte",38,null,null,null,null,null,null,null,null,null,null,null,null,null,null,39,504,"Gestión de la Investigación (GI)","Proyecto ejecutado con cooperación nacional.","Ejecución del proyecto, sometido a la presente convocatoria, en la modalidad de cooperación a través de convenio especial de cooperación o instrumento contractual  equivalente, con instituciones de carácter nacional que cumplan con el criterio de evaluación de colaboración externa, enunciado en los presentes términos de referencia.","Convenio perfeccionado,  actas de inicio y presupuestal firmadas.",5,0,null,null,null,38," "]
[null,null,null,null,null,12," "," "," "," "," ",{"$f":"Presupuesto!C41","v":0},{"$f":"Presupuesto!D41","v":0},{"$f":"Presupuesto!E41","v":0},{"$f":"Presupuesto!F41","v":10},{"$f":"Presupuesto!G41","v":"No Aplica"},{"$f":"Presupuesto!H41","v":0},{"$f":"Presupuesto!C62","v":0},{"$f":"Presupuesto!D62","v":1},{"$f":"Presupuesto!E62","v":0},{"$f":"Presupuesto!F62","v":0},{"$f":"Presupuesto!G62","v":0},{"$f":"Presupuesto!H62","v":0},{"$f":"Presupuesto!I62","v":0},null,null,18,"Programa","ECO","Maestría en Gestión de Organizaciones ",24,null,null,null,"Categoría A",null,14,37,1,36,"ING","GEOTECNIA","COL0005439","A","https://scienti.minciencias.gov.co/gruplac/jsp/visualiza/visualizagr.jsp?nro=00000000000739","BB163:BB167",{"$f":"ROW()","v":42},{"$f":"MINA(IF(AQ42=$BA$4:$BA$394,$BD$4:$BD$394))","v":163},{"$f":"MAXA(IF(AQ42=$BA$4:$BA$394,$BD$4:$BD$394))","v":167},"ING",null,null,"COL0101099","Liderazgo y gestión en educación.",{"$f":"COUNTIF(BA$4:BA42,BA42)","v":4},{"$f":"ROW()","v":42},1,null,null,null,null,null,null,null,null,null,null,null,null,null,null,39,"Humanidades-Otras Humanidades","Humanidades","Otras Humanidades",39,null,null,null,null,null,null,null,null,null,null,null,null,null,null,40,505,"Gestión de la Investigación (GI)","Proyecto ejecutado con cooperación internacional","Ejecución del proyecto, sometido a la presente convocatoria, en la modalidad de cooperación a través de convenio especial de cooperación o instrumento contractual equivalente, con instituciones de carácter internacional en la que mínimo una de ellas tiene domicilio en el exterior y que cumplan con el criterio de evaluación de colaboración externa, enunciado en los presentes términos de referencia.","Convenio perfeccionado con todas las instituciones participantes de la alianza,  actas de inicio y presupuestal firmadas.",20,0,null,null,null,39," "]
[null,null,null,null,null,13," "," "," "," "," ",{"$f":"Presupuesto!C42","v":0},{"$f":"Presupuesto!D42","v":0},{"$f":"Presupuesto!E42","v":0},{"$f":"Presupuesto!F42","v":10},{"$f":"Presupuesto!G42","v":"No Aplica"},{"$f":"Presupuesto!H42","v":0},{"$f":"Presupuesto!C63","v":0},{"$f":"Presupuesto!D63","v":1},{"$f":"Presupuesto!E63","v":0},{"$f":"Presupuesto!F63","v":0},{"$f":"Presupuesto!G63","v":0},{"$f":"Presupuesto!H63","v":0},{"$f":"Presupuesto!I63","v":0},null,null,19,"Programa","ECO","Especialización en Alta Gerencia",25,null,null,null,"Categoría B",null,16,38,1,37,"ING","TIGUM: Grupo de Investigacion en Telemedicina Universidad Militar","COL0052181","A1","https://scienti.minciencias.gov.co/gruplac/jsp/visualiza/visualizagr.jsp?nro=00000000003508","BB276:BB281",{"$f":"ROW()","v":43},{"$f":"MINA(IF(AQ43=$BA$4:$BA$394,$BD$4:$BD$394))","v":276},{"$f":"MAXA(IF(AQ43=$BA$4:$BA$394,$BD$4:$BD$394))","v":281},"ING",null,null,"COL0151789","Diseño de Producto",{"$f":"COUNTIF(BA$4:BA43,BA43)","v":1},{"$f":"ROW()","v":43},1,null,null,null,null,null,null,null,null,null,null,null,null,null,null,40,"Humanidades-Otras historias","Humanidades","Otras historias",40,null,null,null,null,null,null,null,null,null,null,null,null,null,null,41,506,"Gestión de la Investigación (GI)","Nuevo Proyecto cooperación internacional","Nuevo proyecto financiado con recursos externos internacionales desembolsados al Fondo Especial de Investigaciones.","Convenio o  contrato perfeccionado,  actas de inicio y presupuestal firmadas.",40,0,null,null,null,40]
[null,null,null,null,null,14," "," "," "," "," ",{"$f":"Presupuesto!C43","v":0},{"$f":"Presupuesto!D43","v":0},{"$f":"Presupuesto!E43","v":0},{"$f":"Presupuesto!F43","v":0},{"$f":"Presupuesto!G43","v":"No Aplica"},{"$f":"Presupuesto!H43","v":0},{"$f":"Presupuesto!C64","v":0},{"$f":"Presupuesto!D64","v":1},{"$f":"Presupuesto!E64","v":0},{"$f":"Presupuesto!F64","v":0},{"$f":"Presupuesto!G64","v":0},{"$f":"Presupuesto!H64","v":0},{"$f":"Presupuesto!I64","v":0},null,null,20,"Programa","ECO","Especialización en Administración Aeronáutica y Aeroespacial",26,null,null,null,"Categoría B",null,27,39,1,38,"ING","VOLTA - Grupo de Materiales, Corrosión, Degradación y Protección (GMCDP) ","COL0065804","A1","https://scienti.minciencias.gov.co/gruplac/jsp/visualiza/visualizagr.jsp?nro=00000000004193","BB7:BB9",{"$f":"ROW()","v":44},{"$f":"MINA(IF(AQ44=$BA$4:$BA$394,$BD$4:$BD$394))","v":7},{"$f":"MAXA(IF(AQ44=$BA$4:$BA$394,$BD$4:$BD$394))","v":9},"ING",null,null,"COL0151789","Ergonomía y Tecnología Biomédica",{"$f":"COUNTIF(BA$4:BA44,BA44)","v":2},{"$f":"ROW()","v":44},1,null,null,null,null,null,null,null,null,null,null,null,null,null,null,41,"Humanidades-Historia y Arqueología","Humanidades","Historia y Arqueología",41,null,null,null,null,null,null,null,null,null,null,null,null,null,null,42,507,"Gestión de la Investigación (GI)","Nuevo Proyecto cooperación nacional","Nuevo proyecto financiado con recursos externos nacionales desembolsados al Fondo Especial de Investigaciones.","Convenio o  contrato perfeccionado,  actas de inicio y presupuestal firmadas.",30,0,null,null,null,41]
[null,null,null,null,null,15," "," "," "," "," "," "," "," "," "," "," ",{"$f":"Presupuesto!C65","v":0},{"$f":"Presupuesto!D65","v":1},{"$f":"Presupuesto!E65","v":0},{"$f":"Presupuesto!F65","v":0},{"$f":"Presupuesto!G65","v":0},{"$f":"Presupuesto!H65","v":0},{"$f":"Presupuesto!I65","v":0},null,null,21,"Programa","ECO","Especialización en Control Interno",27,null,null,null,"Categoría C",null,29,40,1,39,"ING","PRODUCCION, INNOVACION Y TECNOLOGIA","COL0049999","B","https://scienti.minciencias.gov.co/gruplac/jsp/visualiza/visualizagr.jsp?nro=00000000003290","BB190:BB195",{"$f":"ROW()","v":45},{"$f":"MINA(IF(AQ45=$BA$4:$BA$394,$BD$4:$BD$394))","v":190},{"$f":"MAXA(IF(AQ45=$BA$4:$BA$394,$BD$4:$BD$394))","v":195},"ING",null,null,"COL0151789","Gestión de Procesos de Planeación y de Construcción.",{"$f":"COUNTIF(BA$4:BA45,BA45)","v":3},{"$f":"ROW()","v":45},1,null,null,null,null,null,null,null,null,null,null,null,null,null,null,42,"Humanidades-Idiomas y Literatura","Humanidades","Idiomas y Literatura",42,null,null,null,null,null,null,null,null,null,null,null,null,null,null,43,508,"Gestión de la Investigación (GI)","comercialización de propiedad Intelectual","Comercialización de activos de propiedad intelectual, generados en proyectos de Investigación, alto impacto, innovación o cofinanciados con recursos externos registrados en la Vicerrectoría de Investigaciones, mediante mecanismos de transferencia tecnológica conforme los parámetros establecidos por la Vicerrectoría de Investigaciones (licenciamiento, spin off, start up, joint venture).","Instrumento contractual perfeccionado tipo licenciamiento, joint Venture o denominación equivalente. Institución de spin off o startup de acuerdo previa validación de aspectos jurídicos, potencial y validación de mercado y propuesta de valor.",70,0,null,null,null,42]
[null,null,null,null,null,16," "," "," "," "," "," "," "," "," "," "," ",{"$f":"Presupuesto!C66","v":0},{"$f":"Presupuesto!D66","v":1},{"$f":"Presupuesto!E66","v":0},{"$f":"Presupuesto!F66","v":0},{"$f":"Presupuesto!G66","v":0},{"$f":"Presupuesto!H66","v":0},{"$f":"Presupuesto!I66","v":0},null,null,22,"Programa","ECO","Especialización en Gestión de Desarrollo Administrativo",28,null,null,null,"Categoría A",null,31,41,1,40,"ING","GIDAM","COL0116636","B","https://scienti.minciencias.gov.co/gruplac/jsp/visualiza/visualizagr.jsp?nro=00000000011773","BB91:BB95",{"$f":"ROW()","v":46},{"$f":"MINA(IF(AQ46=$BA$4:$BA$394,$BD$4:$BD$394))","v":91},{"$f":"MAXA(IF(AQ46=$BA$4:$BA$394,$BD$4:$BD$394))","v":95},"ING",null,null,"COL0151789","Gestión de Procesos, Proyectos, Seguridad y Medio Ambiente",{"$f":"COUNTIF(BA$4:BA46,BA46)","v":4},{"$f":"ROW()","v":46},1,null,null,null,null,null,null,null,null,null,null,null,null,null,null,null,null,null,null,null,null,null,null,null,null,null,null,null,null,null,null,null,null,null,44,509,"Gestión de la Investigación (GI)","Mejoramiento TRL","Mejoramiento del nivel de madurez tecnológica identificada por la División de Desarrollo tecnológico asociado a la valoración de la tecnología (vigilancia tecnológica e inteligencia competitiva, diagnósticos de propiedad intelectual, modelos de negocio u otros)","prototipo madurado en mínimo un nivel en la escala TRL comprometida o esperada, acompañado de: 1. Manual de funcionamiento según el formato establecido por VICEIN. 2.Registro fotográfico de los componentes del prototipo. 3.Registro fílmico sobre funcionamiento del prototipo.4.Soportes de pruebas y validación (según aplique).Adicionalmente, acompañado de estudio de vigilancia tecnológica e inteligencia competitiva.",30,0,null,null,null,43]
[null,null,null,null,null,17," "," "," "," "," "," "," "," "," "," "," ",{"$f":"Presupuesto!C67","v":0},{"$f":"Presupuesto!D67","v":1},{"$f":"Presupuesto!E67","v":0},{"$f":"Presupuesto!F67","v":0},{"$f":"Presupuesto!G67","v":0},{"$f":"Presupuesto!H67","v":0},{"$f":"Presupuesto!I67","v":0},null,null,23,"Programa","ECO","Especialización en Gerencia en Comercio Internacional",29,null,null,null,"Categoría A1",null,33,42,1,41,"ING","DAVINCI","COL0036025","A1","https://scienti.minciencias.gov.co/gruplac/jsp/visualiza/visualizagr.jsp?nro=00000000001843","BB10:BB13",{"$f":"ROW()","v":47},{"$f":"MINA(IF(AQ47=$BA$4:$BA$394,$BD$4:$BD$394))","v":10},{"$f":"MAXA(IF(AQ47=$BA$4:$BA$394,$BD$4:$BD$394))","v":13},"ING",null,null,"COL0151789","Procesos y Contaminación Ambiental",{"$f":"COUNTIF(BA$4:BA47,BA47)","v":5},{"$f":"ROW()","v":47},1,null,null,null,null,null,null,null,null,null,null,null,null,null,null,null,null,null,null,null,null,null,null,null,null,null,null,null,null,null,null,null,null,null,45,510,"Gestión de la Investigación (GI)","Transferencia de conocimiento ","Transferencia de conocimiento científico especializado y  novedoso, no disponible en el estado del arte, a actores externos de la Universidad mediada por acuerdos cesión o licenciamiento, las cuales pueden tener por objeto la formación de personas para incrementar sus capacidades investigadoras, innovadoras o de producción; actividades de innovación, generación de resultados económicos o; valor social.","Contrato de licenciamiento o cesión perfeccionado, así como el acta de implementación u hoja de ruta de las actividades de transferencia.",50,0,null,null,null,44]
[null,null,null,null,null,18," "," "," "," "," "," "," "," "," "," "," ",{"$f":"Presupuesto!C68","v":0},{"$f":"Presupuesto!D68","v":1},{"$f":"Presupuesto!E68","v":0},{"$f":"Presupuesto!F68","v":0},{"$f":"Presupuesto!G68","v":0},{"$f":"Presupuesto!H68","v":0},{"$f":"Presupuesto!I68","v":0},null,null,24,"Programa","ECO","Especialización en Finanzas y Administración Pública",30,null,null,null,"Categoría C",null,34,43,1,42,"ING","Estructuras y sísmica","COL0016999","A1","https://scienti.minciencias.gov.co/gruplac/jsp/visualiza/visualizagr.jsp?nro=00000000000737","BB113:BB117",{"$f":"ROW()","v":48},{"$f":"MINA(IF(AQ48=$BA$4:$BA$394,$BD$4:$BD$394))","v":113},{"$f":"MAXA(IF(AQ48=$BA$4:$BA$394,$BD$4:$BD$394))","v":117},"ING",null,null,"COL0151789","Sistemas Información e Interacción",{"$f":"COUNTIF(BA$4:BA48,BA48)","v":6},{"$f":"ROW()","v":48},1,null,null,null,null,null,null,null,null,null,null,null,null,null,null,null,null,null,null,null,null,null,null,null,null,null,null,null,null,null,null,null,null,null,46,null,null,null,null,null,null,null,null,null,null,45]
[null,null,null,null,null,19," "," "," "," "," "," "," "," "," "," "," ",{"$f":"Presupuesto!C69","v":0},{"$f":"Presupuesto!D69","v":1},{"$f":"Presupuesto!E69","v":0},{"$f":"Presupuesto!F69","v":0},{"$f":"Presupuesto!G69","v":0},{"$f":"Presupuesto!H69","v":0},{"$f":"Presupuesto!I69","v":0},null,null,25,"Programa","ECO","Especialización en Mercadeo de Servicios",31,null,null,null,"Categoría C",null,37,44,1,43,"ING","INGENIERÍA, GEOMÁTICA Y EDUCACIÓN (IGE)","COL0047566","B","https://scienti.minciencias.gov.co/gruplac/jsp/visualiza/visualizagr.jsp?nro=00000000003044","BB134:BB139",{"$f":"ROW()","v":49},{"$f":"MINA(IF(AQ49=$BA$4:$BA$394,$BD$4:$BD$394))","v":134},{"$f":"MAXA(IF(AQ49=$BA$4:$BA$394,$BD$4:$BD$394))","v":139},"ING",null,null,"COL0116538","Andrologia y Salud sexual",{"$f":"COUNTIF(BA$4:BA49,BA49)","v":1},{"$f":"ROW()","v":49},1,null,null,null,null,null,null,null,null,null,null,null,null,null,null,null,null,null,null,null,null,null,null,null,null,null,null,null,null,null,null,null,null,null,47,null,null,null,null,null,null,null,null,null,null,46]
[null,null,null,null,null,20," "," "," "," "," "," "," "," "," "," "," ",{"$f":"Presupuesto!C70","v":0},{"$f":"Presupuesto!D70","v":1},{"$f":"Presupuesto!E70","v":0},{"$f":"Presupuesto!F70","v":0},{"$f":"Presupuesto!G70","v":0},{"$f":"Presupuesto!H70","v":0},{"$f":"Presupuesto!I70","v":0},null,null,26,"Programa","ECO","Especialización en Revisoría Fiscal y Auditoría Internacional",32,null,null,null,"Categoría C",null,49,45,1,44,"ING","ACCEDER","COL0036749","C","https://scienti.minciencias.gov.co/gruplac/jsp/visualiza/visualizagr.jsp?nro=00000000012996","BB37:BB38",{"$f":"ROW()","v":50},{"$f":"MINA(IF(AQ50=$BA$4:$BA$394,$BD$4:$BD$394))","v":37},{"$f":"MAXA(IF(AQ50=$BA$4:$BA$394,$BD$4:$BD$394))","v":38},"ING",null,null,"COL0116538","Hiperplasia Prostatica",{"$f":"COUNTIF(BA$4:BA50,BA50)","v":2},{"$f":"ROW()","v":50},1,null,null,null,null,null,null,null,null,null,null,null,null,null,null,null,null,null,null,null,null,null,null,null,null,null,null,null,null,null,null,null,null,null,48,null,null,null,null,null,null,null,null,null,null,47]
[null,null,null,null,null,21," "," "," "," "," "," "," "," "," "," "," ",{"$f":"Presupuesto!C86","v":0},{"$f":"Presupuesto!D86","v":0},{"$f":"Presupuesto!E86","v":0},{"$f":"Presupuesto!F86","v":0},{"$f":"Presupuesto!G86","v":0},{"$f":"Presupuesto!H86","v":0},{"$f":"Presupuesto!I86","v":0},null,null,27,"Programa","EES","Relaciones Internacionales y Estudios Políticos",12,null,null,null,"Categoría A",null,52,46,1,45,"ING","Agua y Energía - AyE","COL0026486","A","https://scienti.minciencias.gov.co/gruplac/jsp/visualiza/visualizagr.jsp?nro=00000000000767","BB79:BB83",{"$f":"ROW()","v":51},{"$f":"MINA(IF(AQ51=$BA$4:$BA$394,$BD$4:$BD$394))","v":79},{"$f":"MAXA(IF(AQ51=$BA$4:$BA$394,$BD$4:$BD$394))","v":83},"ING",null,null,"COL0116538","Incontinencia Urinaria",{"$f":"COUNTIF(BA$4:BA51,BA51)","v":3},{"$f":"ROW()","v":51},1,null,null,null,null,null,null,null,null,null,null,null,null,null,null,null,null,null,null,null,null,null,null,null,null,null,null,null,null,null,null,null,null,null,49,null,null,null,null,null,null,null,null,null,null,48]
[null,null,null,null,null,22," "," "," "," "," "," "," "," "," "," "," ",null,null,null,null,null,null,null,null,null,28,"Programa","EES","Administración de la Seguridad y Salud Ocupacional",13,null,null,null,"Categoría A",null,54,47,1,46,"ING","GISSIC: Grupo de Investigacion en Seguridad y Sistemas de Comunicaciones","COL0052163","A","https://scienti.minciencias.gov.co/gruplac/jsp/visualiza/visualizagr.jsp?nro=00000000003506","BB96:BB100",{"$f":"ROW()","v":52},{"$f":"MINA(IF(AQ52=$BA$4:$BA$394,$BD$4:$BD$394))","v":96},{"$f":"MAXA(IF(AQ52=$BA$4:$BA$394,$BD$4:$BD$394))","v":100},"ING",null,null,"COL0116538","Litiasis y endourologia",{"$f":"COUNTIF(BA$4:BA52,BA52)","v":4},{"$f":"ROW()","v":52},1,null,null,null,null,null,null,null,null,null,null,null,null,null,null,null,null,null,null,null,null,null,null,null,null,null,null,null,null,null,null,null,null,null,50,null,null,null,null,null,null,null,null,null,null,49]
[null,null,null,null,null,null,null,null,null,null,null,null,null,null,null,null,null,null,null,null,null,null,null,null,null,null,31,"Programa","EES","Maestría en Relaciones y Negocios Internacionales",44,null,null,null,"No Reconocido",null,57,48,1,47,"ING","GAV","COL0068762","A","https://scienti.minciencias.gov.co/gruplac/jsp/visualiza/visualizagr.jsp?nro=00000000004391","BB239:BB241",{"$f":"ROW()","v":53},{"$f":"MINA(IF(AQ53=$BA$4:$BA$394,$BD$4:$BD$394))","v":239},{"$f":"MAXA(IF(AQ53=$BA$4:$BA$394,$BD$4:$BD$394))","v":241},"ING",null,null,"COL0116538","Oncologia Urologica",{"$f":"COUNTIF(BA$4:BA53,BA53)","v":5},{"$f":"ROW()","v":53},1,null,null,null,null,null,null,null,null,null,null,null,null,null,null,null,null,null,null,null,null,null,null,null,null,null,null,null,null,null,null,null,null,null,null,null,null,null,null,null,null,null,null,null,null,50]
[null,null,null,null,null,null,null,null,null,null,null,null,"Recopilación deTextos",null,null,null,null,null,null,null,null,null,null,null,null,null,32,"Programa","EES","Especialización en Administración de la Seguridad",45,null,null,null,"Categoría C",null,60,49,1,48,"ING","Energia alternativa, Centro Multidisciplinario de Investigación","COL0117052","C","https://scienti.minciencias.gov.co/gruplac/jsp/visualiza/visualizagr.jsp?nro=00000000011817","BB310:BB314",{"$f":"ROW()","v":54},{"$f":"MINA(IF(AQ54=$BA$4:$BA$394,$BD$4:$BD$394))","v":310},{"$f":"MAXA(IF(AQ54=$BA$4:$BA$394,$BD$4:$BD$394))","v":314},"ING",null,null,"COL0116538","Urologia Pediatrica",{"$f":"COUNTIF(BA$4:BA54,BA54)","v":6},{"$f":"ROW()","v":54},1,null,null,null,null,null,null,null,null,null,null,null,null,null,null,null,null,null,null,null,null,null,null,null,null,null,null,null,null,null,null,null,null,null,null,null,null,null,null,null,null,null,null,null,null,51]
[null,null,null,null,null,"No","Impacto","Categoria","Plazo"," "," ","No","No. Hoja","Hoja","Letra","No","Texto","Diferencia",null,null,null,null,null,null,null,null,33,"Programa","EES","Especialización en Alta Gerencia de la Seguridad y Defensa",46,null,null,null,"Categoría C",null,66,50,1,49,"ING","GI-iTEC - Grupo de Investigación e innovación Tecnológica en Electrónica y Comunicaciones","COL0143731","C","https://scienti.minciencias.gov.co/gruplac/jsp/visualiza/visualizagr.jsp?nro=00000000014576","BB84:BB86",{"$f":"ROW()","v":55},{"$f":"MINA(IF(AQ55=$BA$4:$BA$394,$BD$4:$BD$394))","v":84},{"$f":"MAXA(IF(AQ55=$BA$4:$BA$394,$BD$4:$BD$394))","v":86},"ING",null,null,"COL0149359","GESTION DE LA EDUCACION Y LA ACADEMIA",{"$f":"COUNTIF(BA$4:BA55,BA55)","v":1},{"$f":"ROW()","v":55},1,null,null,null,null,null,null,null,null,null,null,null,null,null,null,null,null,null,null,null,null,null,null,null,null,null,null,null,null,null,null,null,null,null,null,null,null,null,null,null,null,null,null,null,null,52]
[null,null,null,null,null,{"$f":"ROW()-55","v":1},{"$f":"CLEAN(TRIM(Impactos!C8))","v":"Impacto principal"},{"$f":"Impactos!F8","v":0},{"$f":"Impactos!#REF!","v":{"$error":"#REF!"}}," "," ",{"$f":"COUNTIF(N$56:N56,N56)","v":1},3,{"$f":"NbHoja(M56)","v":"Resumen"},"C",1,{"$f":"CLEAN(TRIM(INDIRECT($N56&\"!\"&$O56&(P56+R56),1)))","v":""},6,null,null,null,null,null,null,null,null,34,"Programa","HUM","Especialización en Docencia Universitaria",55,null,null,null,"Categoría C",null,70,51,1,50,"ING","LA TRAMOYA","COL0126777","NR","https://scienti.minciencias.gov.co/gruplac/jsp/visualiza/visualizagr.jsp?nro=00000000012813","BB242:BB247",{"$f":"ROW()","v":56},{"$f":"MINA(IF(AQ56=$BA$4:$BA$394,$BD$4:$BD$394))","v":242},{"$f":"MAXA(IF(AQ56=$BA$4:$BA$394,$BD$4:$BD$394))","v":247},"ING",null,null,"COL0149359","GESTION DE LA SALUD PUBLICA",{"$f":"COUNTIF(BA$4:BA56,BA56)","v":2},{"$f":"ROW()","v":56},1,null,null,null,null,null,null,null,null,null,null,null,null,null,null,null,null,null,null,null,null,null,null,null,null,null,null,null,null,null,null,null,null,null,null,null,null,null,null,null,null,null,null,null,null,53]
[null,null,null,null,null,{"$f":"ROW()-55","v":2},{"$f":"CLEAN(TRIM(Impactos!E9))","v":"Lineas de apropiación social"},{"$f":"Impactos!D9","v":0},{"$f":"Impactos!#REF!","v":{"$error":"#REF!"}}," "," ",{"$f":"COUNTIF(N$56:N57,N57)","v":2},3,{"$f":"NbHoja(M57)","v":"Resumen"},{"$f":"O56","v":"C"},{"$f":"P56+1","v":2},{"$f":"CLEAN(TRIM(INDIRECT($N57&\"!\"&$O57&(P57+R57),1)))","v":""},{"$f":"R56","v":6},null,null,null,null,null,null,null,null,34,"Programa","HUM","Maestría en Educación",55,null,null,null,"Categoría C",null,1,52,1,51,"ING","GREST","COL0151789","A","https://scienti.minciencias.gov.co/gruplac/jsp/visualiza/visualizagr.jsp?nro=00000000015386","BB43:BB48",{"$f":"ROW()","v":57},{"$f":"MINA(IF(AQ57=$BA$4:$BA$394,$BD$4:$BD$394))","v":43},{"$f":"MAXA(IF(AQ57=$BA$4:$BA$394,$BD$4:$BD$394))","v":48},"ING",null,null,"COL0149359","GESTIÓN DE LA ÉTICA Y EL CONOCIMIENTO",{"$f":"COUNTIF(BA$4:BA57,BA57)","v":3},{"$f":"ROW()","v":57},1,null,null,null,null,null,null,null,null,null,null,null,null,null,null,null,null,null,null,null,null,null,null,null,null,null,null,null,null,null,null,null,null,null,null,null,null,null,null,null,null,null,null,null,null,54]
[null,null,null,null,null,3,{"$f":"CLEAN(TRIM(Impactos!C13))","v":"Estado actual del SRL"},{"$f":"Impactos!F13","v":0},{"$f":"Impactos!G13","v":0}," "," ",{"$f":"COUNTIF(N$56:N58,N58)","v":3},3,"Resumen",{"$f":"O57","v":"C"},{"$f":"P57+1","v":3},"",{"$f":"R57","v":6},null,null,null,null,null,null,null,null,35,"Programa","HUM","Doctorado de Bioética",55,null,null,null,"No Reconocido",null,6,53,1,75,"ING","PROCESOS, OPERACIONES Y LOGISTICA (PROPYLOG)","COL0196753","C","https://scienti.minciencias.gov.co/gruplac/jsp/visualiza/visualizagr.jsp?nro=00000000019879",{"$f":"$AT$2&AV58&\":\"&$AT$2&AW58","v":"BB321:BB325"},{"$f":"ROW()","v":58},{"$f":"MINA(IF(AQ58=$BA$4:$BA$394,$BD$4:$BD$394))","v":321},{"$f":"MAXA(IF(AQ58=$BA$4:$BA$394,$BD$4:$BD$394))","v":325},{"$f":"AO58","v":"ING"},null,null,"COL0142331","Competitividad industrial",{"$f":"COUNTIF(BA$4:BA58,BA58)","v":1},{"$f":"ROW()","v":58},1,null,null,null,null,null,null,null,null,null,null,null,null,null,null,null,null,null,null,null,null,null,null,null,null,null,null,null,null,null,null,null,null,null,null,null,null,null,null,null,null,null,null,null,null,55]
[null,null,null,null,null,4,{"$f":"CLEAN(TRIM(Impactos!C10))","v":"."},{"$f":"Impactos!F10","v":0},{"$f":"Impactos!G10","v":0}," "," ",{"$f":"COUNTIF(N$56:N59,N59)","v":4},3,"Resumen","C",4,"",6,null,null,null,null,null,null,null,null,36,"Programa","ING","Ingeniería Ambiental",4,null,null,null,"Categoría C",null,7,54,1,76,"ING","Sistemas de Infraestructura de Ingeniería Civil","COL0196799","C","https://scienti.minciencias.gov.co/gruplac/jsp/visualiza/visualizagr.jsp?nro=00000000019883",{"$f":"$AT$2&AV59&\":\"&$AT$2&AW59","v":"BB326:BB329"},{"$f":"ROW()","v":59},{"$f":"MINA(IF(AQ59=$BA$4:$BA$394,$BD$4:$BD$394))","v":326},{"$f":"MAXA(IF(AQ59=$BA$4:$BA$394,$BD$4:$BD$394))","v":329},{"$f":"AO59","v":"ING"},null,null,"COL0142331","Innovación y educación en Ingenierìa",{"$f":"COUNTIF(BA$4:BA59,BA59)","v":2},{"$f":"ROW()","v":59},1,null,null,null,null,null,null,null,null,null,null,null,null,null,null,null,null,null,null,null,null,null,null,null,null,null,null,null,null,null,null,null,null,null,null,null,null,null,null,null,null,null,null,null,null,56]
[null,null,null,null,null,5,{"$f":"CLEAN(TRIM(Impactos!C14))","v":"SRL Comprometido al finalizar el proyecto"},{"$f":"Impactos!F14","v":0},{"$f":"Impactos!G14","v":0}," "," ",{"$f":"COUNTIF(N$56:N60,N60)","v":5},3,"Resumen","C",5,"",6,null,null,null,null,null,null,null,null,37,"Programa","ING","Ingeniería Biomédica",5,null,null,null,"Categoría C",null,15,55,1,65,"MED","Ingeniería de Procesos y Tecnologías Sostenibles","COL0194866","C","https://scienti.minciencias.gov.co/gruplac/jsp/visualiza/visualizagr.jsp?nro=00000000019690",{"$f":"$AT$2&AV60&\":\"&$AT$2&AW60","v":"BB318:BB320"},{"$f":"ROW()","v":60},{"$f":"MINA(IF(AQ60=$BA$4:$BA$394,$BD$4:$BD$394))","v":318},{"$f":"MAXA(IF(AQ60=$BA$4:$BA$394,$BD$4:$BD$394))","v":320},"ING",null,null,"COL0142331","Productividad industrial",{"$f":"COUNTIF(BA$4:BA60,BA60)","v":3},{"$f":"ROW()","v":60},1,null,null,null,null,null,null,null,null,null,null,null,null,null,null,null,null,null,null,null,null,null,null,null,null,null,null,null,null,null,null,null,null,null,null,null,null,null,null,null,null,null,null,null,null,57]
[null,null,null,null,null,6,{"$f":"CLEAN(TRIM(Impactos!C15))","v":""},{"$f":"Impactos!F15","v":0},{"$f":"Impactos!G15","v":0}," "," ",{"$f":"COUNTIF(N$56:N61,N61)","v":6},3,"Resumen","C",6,"",6,null,null,null,null,null,null,null,null,38,"Programa","ING","Ingeniería Civil",6,null,null,null,"No Reconocido",null,19,56,1,52,"MED","CATCH","COL0049659","NR","https://scienti.minciencias.gov.co/gruplac/jsp/visualiza/visualizagr.jsp?nro=00000000003253","BB34:BB36",{"$f":"ROW()","v":61},{"$f":"MINA(IF(AQ61=$BA$4:$BA$394,$BD$4:$BD$394))","v":34},{"$f":"MAXA(IF(AQ61=$BA$4:$BA$394,$BD$4:$BD$394))","v":36},"MED",null,null,"COL0134044","ORTOPEDIA INFANTIL",{"$f":"COUNTIF(BA$4:BA61,BA61)","v":1},{"$f":"ROW()","v":61},1,null,null,null,null,null,null,null,null,null,null,null,null,null,null,null,null,null,null,null,null,null,null,null,null,null,null,null,null,null,null,null,null,null,null,null,null,null,null,null,null,null,null,null,null,58]
[null,null,null,null,null,7,{"$f":"CLEAN(TRIM(Impactos!C18))","v":"Descripción de los Beneficiario(s) del impacto del proyecto"},{"$f":"Impactos!F18","v":0},{"$f":"Impactos!G18","v":0}," "," ",{"$f":"COUNTIF(N$56:N62,N62)","v":7},3,"Resumen","C",7,"",6,null,null,null,null,null,null,null,null,39,"Programa","ING","Ingeniería Industrial",7,null,null,null,"Categoría B",null,24,57,1,53,"MED","BONE","COL0047762","NR","https://scienti.minciencias.gov.co/gruplac/jsp/visualiza/visualizagr.jsp?nro=00000000003064","BB301:BB302",{"$f":"ROW()","v":62},{"$f":"MINA(IF(AQ62=$BA$4:$BA$394,$BD$4:$BD$394))","v":301},{"$f":"MAXA(IF(AQ62=$BA$4:$BA$394,$BD$4:$BD$394))","v":302},"MED",null,null,"COL0134044","PATOLOGIA DE CADERA",{"$f":"COUNTIF(BA$4:BA62,BA62)","v":2},{"$f":"ROW()","v":62},1,null,null,null,null,null,null,null,null,null,null,null,null,null,null,null,null,null,null,null,null,null,null,null,null,null,null,null,null,null,null,null,null,null,null,null,null,null,null,null,null,null,null,null,null,59]
[null,null,null,null,null,8,{"$f":"CLEAN(TRIM(Impactos!C19))","v":""},{"$f":"Impactos!F19","v":0},{"$f":"Impactos!G19","v":0}," "," ",{"$f":"COUNTIF(N$56:N63,N63)","v":8},3,"Resumen","C",8,"",6,null,null,null,null,null,null,null,null,40,"Programa","ING","Ingeniería en Mecatrónica",8,null,null,null,"Categoría C",null,25,58,1,54,"MED","Grupo de Psoriasis e Inmunodermatologia","COL0126015","C","https://scienti.minciencias.gov.co/gruplac/jsp/visualiza/visualizagr.jsp?nro=00000000012737","BB196:BB197",{"$f":"ROW()","v":63},{"$f":"MINA(IF(AQ63=$BA$4:$BA$394,$BD$4:$BD$394))","v":196},{"$f":"MAXA(IF(AQ63=$BA$4:$BA$394,$BD$4:$BD$394))","v":197},"MED",null,null,"COL0134044","PATOLOGIA DE COLUMNA, PELVIS Y ACETABULO",{"$f":"COUNTIF(BA$4:BA63,BA63)","v":3},{"$f":"ROW()","v":63},1]
[null,null,null,null,null,9,{"$f":"CLEAN(TRIM(Impactos!C20))","v":"Descripción del impacto esperado."},{"$f":"Impactos!F20","v":0},{"$f":"Impactos!G20","v":0}," "," ",{"$f":"COUNTIF(N$56:N64,N64)","v":9},3,"Resumen","C",9,"",6,null,null,null,null,null,null,null,null,41,"Programa","ING","Ingeniería en Multimedia",9,null,null,null,"Categoría C",null,35,59,1,55,"MED","ORTOPEDIA Y TRAUMATOLOGIA HMC UMNG","COL0134044","C","https://scienti.minciencias.gov.co/gruplac/jsp/visualiza/visualizagr.jsp?nro=00000000013608","BB61:BB67",{"$f":"ROW()","v":64},{"$f":"MINA(IF(AQ64=$BA$4:$BA$394,$BD$4:$BD$394))","v":61},{"$f":"MAXA(IF(AQ64=$BA$4:$BA$394,$BD$4:$BD$394))","v":67},{"$f":"AO64","v":"MED"},null,null,"COL0134044","PATOLOGIA DE MANO Y MIEMBRO SUPERIOR",{"$f":"COUNTIF(BA$4:BA64,BA64)","v":4},{"$f":"ROW()","v":64},1]
[null,null,null,null,null,10,{"$f":"CLEAN(TRIM(Impactos!C21))","v":""},{"$f":"Impactos!F21","v":0},{"$f":"Impactos!G21","v":0}," "," ",{"$f":"COUNTIF(N$56:N65,N65)","v":10},3,"Resumen",{"$f":"O64","v":"C"},10,"",{"$f":"R64","v":6},null,null,null,null,null,null,null,null,42,"Programa","ING","Ingenieria en Telecomunicaciones",10,null,null,null,"Categoría C",null,36,60,1,56,"MED","Salud y Comportamiento","COL0033239","NR","https://scienti.minciencias.gov.co/gruplac/jsp/visualiza/visualizagr.jsp?nro=00000000001536","BB298:BB300",{"$f":"ROW()","v":65},{"$f":"MINA(IF(AQ65=$BA$4:$BA$394,$BD$4:$BD$394))","v":298},{"$f":"MAXA(IF(AQ65=$BA$4:$BA$394,$BD$4:$BD$394))","v":300},"MED",null,null,"COL0134044","PATOLOGIA DE PIE Y TOBILLO",{"$f":"COUNTIF(BA$4:BA65,BA65)","v":5},{"$f":"ROW()","v":65},1]
[null,null,null,null,null,11,{"$f":"CLEAN(TRIM(Impactos!C16))","v":"Evolución del impacto alcanzado como resultado de proyectos anteriores"},{"$f":"Impactos!F16","v":0},{"$f":"Impactos!G16","v":0}," "," ",{"$f":"COUNTIF(N$56:N66,N66)","v":11},3,"Resumen","C",11,"",6,null,null,null,null,null,null,null,null,43,"Programa","ING","Tecnología en Electrónica y Comunicaciones",11,null,null,null,"Categoría C",null,45,61,1,57,"MED","GRUPO NEUROCIENCIAS HMC","COL0138698","C","https://scienti.minciencias.gov.co/gruplac/jsp/visualiza/visualizagr.jsp?nro=00000000014072","BB198:BB216",{"$f":"ROW()","v":66},{"$f":"MINA(IF(AQ66=$BA$4:$BA$394,$BD$4:$BD$394))","v":198},{"$f":"MAXA(IF(AQ66=$BA$4:$BA$394,$BD$4:$BD$394))","v":216},"MED",null,null,"COL0134044","PATOLOGIA DE RODILLA",{"$f":"COUNTIF(BA$4:BA66,BA66)","v":6},{"$f":"ROW()","v":66},1]
[null,null,null,null,null,12,{"$f":"CLEAN(TRIM(Impactos!C17))","v":""},{"$f":"Impactos!F17","v":0},{"$f":"Impactos!G17","v":0}," "," ",{"$f":"COUNTIF(N$56:N67,N67)","v":12},3,"Resumen","C",12,"",6,null,null,null,null,null,null,null,null,44,"Programa","ING","Maestría en Ingeniería Mecatrónica",34,null,null,null,"Categoría C",null,46,62,1,58,"MED","Grupo de Investigacion en Dermatologia HMC","COL0116439","C","https://scienti.minciencias.gov.co/gruplac/jsp/visualiza/visualizagr.jsp?nro=00000000011753","BB143:BB146",{"$f":"ROW()","v":67},{"$f":"MINA(IF(AQ67=$BA$4:$BA$394,$BD$4:$BD$394))","v":143},{"$f":"MAXA(IF(AQ67=$BA$4:$BA$394,$BD$4:$BD$394))","v":146},"MED",null,null,"COL0134044","TRAUMA Y FIJACION EXTERNA",{"$f":"COUNTIF(BA$4:BA67,BA67)","v":7},{"$f":"ROW()","v":67},1]
[null,null,null,null,null,13,{"$f":"CLEAN(TRIM(Impactos!C22))","v":""},{"$f":"Impactos!F22","v":0},{"$f":"Impactos!G22","v":0}," "," ",{"$f":"COUNTIF(N$56:N68,N68)","v":13},3,"Resumen","C",13,"",6,null,null,null,null,null,null,null,null,45,"Programa","ING","Maestría en Ingeniería Civil",35,null,null,null,"Categoría C",null,48,63,{"$f":"COUNTIF($AN$4:$AN$816,AL68)","v":1},59,"MED","Grupo de Investigación en Cirugía pediátrica y especialidades CIPEMIL","COL0194721","C","https://scienti.minciencias.gov.co/gruplac/jsp/visualiza/visualizagr.jsp?nro=00000000019676","BB155:BB160",{"$f":"ROW()","v":68},{"$f":"MINA(IF(AQ68=$BA$4:$BA$394,$BD$4:$BD$394))","v":155},{"$f":"MAXA(IF(AQ68=$BA$4:$BA$394,$BD$4:$BD$394))","v":160},"MED",null,null,"COL0066768","DERECHO DE LAS RELACIONES INTERNACIONALES",{"$f":"COUNTIF(BA$4:BA68,BA68)","v":1},{"$f":"ROW()","v":68},{"$f":"COUNTIF($AQ$3:$AQ$95,BA68)","v":1}]
[null,null,null,null,null,14,{"$f":"CLEAN(TRIM(Impactos!C23))","v":""},{"$f":"Impactos!F23","v":0},{"$f":"Impactos!G23","v":0}," "," ",{"$f":"COUNTIF(N$56:N69,N69)","v":14},3,"Resumen","C",14,"",6,null,null,null,null,null,null,null,null,46,"Programa","ING","Maestría en Logística Integral",36,null,null,null,"Categoría C",null,51,64,1,60,"MED","Grupo de Salud Oral y Cirugia Maxilofacial","COL0129689","C","https://scienti.minciencias.gov.co/gruplac/jsp/visualiza/visualizagr.jsp?nro=00000000013172","BB152:BB154",{"$f":"ROW()","v":69},{"$f":"MINA(IF(AQ69=$BA$4:$BA$394,$BD$4:$BD$394))","v":152},{"$f":"MAXA(IF(AQ69=$BA$4:$BA$394,$BD$4:$BD$394))","v":154},"MED",null,null,"COL0066768","ECONOMIA Y NEGOCIOS INTERNACIONALES",{"$f":"COUNTIF(BA$4:BA69,BA69)","v":2},{"$f":"ROW()","v":69},1]
[null,null,null,null,null,15,{"$f":"CLEAN(TRIM(Impactos!C24))","v":""},{"$f":"Impactos!F24","v":0},{"$f":"Impactos!G24","v":0}," "," ",{"$f":"COUNTIF(N$56:N70,N70)","v":15},3,"Resumen","C",15,"",6,null,null,null,null,null,null,null,null,47,"Programa","ING","Maestría en Gerencia de Proyectos",37,null,null,null,"No Reconocido",null,55,65,1,61,"MED","Kokhlias.","COL0125134","C","https://scienti.minciencias.gov.co/gruplac/jsp/visualiza/visualizagr.jsp?nro=00000000012649","BB106:BB112",{"$f":"ROW()","v":70},{"$f":"MINA(IF(AQ70=$BA$4:$BA$394,$BD$4:$BD$394))","v":106},{"$f":"MAXA(IF(AQ70=$BA$4:$BA$394,$BD$4:$BD$394))","v":112},"MED",null,null,"COL0066768","ESTUDIOS POLÍTICOS",{"$f":"COUNTIF(BA$4:BA70,BA70)","v":3},{"$f":"ROW()","v":70},1]
[null,null,null,null,null,16,{"$f":"CLEAN(TRIM(Impactos!C25))","v":""},{"$f":"Impactos!F25","v":0},{"$f":"Impactos!G25","v":0}," "," ",{"$f":"COUNTIF(N$56:N71,N71)","v":16},3,"Resumen","C",16,"",6,null,null,null,null,null,null,null,null,47,"Programa","ING","Maestría en Ingeniería Mecatrónica","x",null,null,null,"Categoría C",null,59,66,1,62,"MED","Grupo de Rehabilitacion HOMIC-UMNG","COL0120281","C","https://scienti.minciencias.gov.co/gruplac/jsp/visualiza/visualizagr.jsp?nro=00000000012152","BB217:BB222",{"$f":"ROW()","v":71},{"$f":"MINA(IF(AQ71=$BA$4:$BA$394,$BD$4:$BD$394))","v":217},{"$f":"MAXA(IF(AQ71=$BA$4:$BA$394,$BD$4:$BD$394))","v":222},"MED",null,null,"COL0066768","ESTUDIOS REGIONALES",{"$f":"COUNTIF(BA$4:BA71,BA71)","v":4},{"$f":"ROW()","v":71},1]
[null,null,null,null,null,17,{"$f":"CLEAN(TRIM(Impactos!C26))","v":""},{"$f":"Impactos!F26","v":0},{"$f":"Impactos!G26","v":0}," "," ",{"$f":"COUNTIF(N$56:N72,N72)","v":17},3,"Resumen","C",17,"Planteamiento y justificación de la propuesta.",6,null,null,null,null,null,null,null,null,48,"Programa","ING","Especialización en Geomática",38,null,null,null,"Categoría C",null,62,67,1,63,"MED","Grupo de Investigacion en Urologia HMC","COL0116538","C","https://scienti.minciencias.gov.co/gruplac/jsp/visualiza/visualizagr.jsp?nro=00000000011763","BB49:BB54",{"$f":"ROW()","v":72},{"$f":"MINA(IF(AQ72=$BA$4:$BA$394,$BD$4:$BD$394))","v":49},{"$f":"MAXA(IF(AQ72=$BA$4:$BA$394,$BD$4:$BD$394))","v":54},"MED",null,null,"COL0066768","HISTORIA INTERNACIONAL",{"$f":"COUNTIF(BA$4:BA72,BA72)","v":5},{"$f":"ROW()","v":72},1]
[null,null,null,null,null,18,{"$f":"CLEAN(TRIM(Impactos!C27))","v":""},{"$f":"Impactos!F27","v":0},{"$f":"Impactos!G27","v":0}," "," ",{"$f":"COUNTIF(N$56:N73,N73)","v":18},3,"Resumen","C",18,"",6,null,null,null,null,null,null,null,null,49,"Programa","ING","Especialización en Gerencia de la Calidad",39,null,null,null,"Categoría C",null,69,70,1,64,"MED","Epidemiología molecular de enfermedades endocrinas","COL0045848","C","https://scienti.minciencias.gov.co/gruplac/jsp/visualiza/visualizagr.jsp?nro=00000000002874","BB24:BB26",{"$f":"ROW()","v":73},{"$f":"MINA(IF(AQ73=$BA$4:$BA$394,$BD$4:$BD$394))","v":24},{"$f":"MAXA(IF(AQ73=$BA$4:$BA$394,$BD$4:$BD$394))","v":26},"MED",null,null,"COL0066768","RELACIONES INTERNACIONALES",{"$f":"COUNTIF(BA$4:BA73,BA73)","v":6},{"$f":"ROW()","v":73},1]
[null,null,null,null,null,19,{"$f":"CLEAN(TRIM(Impactos!C28))","v":""},{"$f":"Impactos!F28","v":0},{"$f":"Impactos!G28","v":0}," "," ",{"$f":"COUNTIF(N$56:N74,N74)","v":19},3,"Resumen","C",19,"",6,null,null,null,null,null,null,null,null,50,"Programa","ING","Especialización en Gerencia en Logística Integral",40,null,null,null,"Categoría A1",null,71,71,1,66,"MED","EDUMECIS","COL0152463","C","https://scienti.minciencias.gov.co/gruplac/jsp/visualiza/visualizagr.jsp?nro=00000000015421",{"$f":"$AT$2&AV74&\":\"&$AT$2&AW74","v":"BB172:BB175"},{"$f":"ROW()","v":74},{"$f":"MINA(IF(AQ74=$BA$4:$BA$394,$BD$4:$BD$394))","v":172},{"$f":"MAXA(IF(AQ74=$BA$4:$BA$394,$BD$4:$BD$394))","v":175},{"$f":"AO74","v":"MED"},null,null,"COL0066669","Estrategia y Seguridad",{"$f":"COUNTIF(BA$4:BA74,BA74)","v":1},{"$f":"ROW()","v":74},1]
[null,null,null,null,null,20,{"$f":"CLEAN(TRIM(Impactos!C29))","v":""},{"$f":"Impactos!F29","v":0},{"$f":"Impactos!G29","v":0}," "," ",{"$f":"COUNTIF(N$56:N75,N75)","v":20},3,"Resumen","C",20,"",6,null,null,null,null,null,null,null,null,51,"Programa","ING","Especialización en Gerencia Integral de Proyectos",41,null,null,null,"Categoría C",null,70,70,1,67,"MED","BioGenEtica & BioDerecho","COL0096032","NR","https://scienti.minciencias.gov.co/gruplac/jsp/visualiza/visualizagr.jsp?nro=00000000009651","BB176:BB178",{"$f":"ROW()","v":75},{"$f":"MINA(IF(AQ75=$BA$4:$BA$394,$BD$4:$BD$394))","v":176},{"$f":"MAXA(IF(AQ75=$BA$4:$BA$394,$BD$4:$BD$394))","v":178},"MED",null,null,"COL0066669","Paz y Posconflicto",{"$f":"COUNTIF(BA$4:BA75,BA75)","v":2},{"$f":"ROW()","v":75},1]
[null,null,null,null,null,null,null,null,null,null,null,{"$f":"COUNTIF(N$56:N76,N76)","v":21},3,"Resumen","C",21,"",6,null,null,null,null,null,null,null,null,52,"Programa","ING","Especialización en Ingeniería de Pavimentos",42,null,null,null,"No Reconocido",null,73,73,1,68,"MED","GAFRED","COL0149359","C","https://scienti.minciencias.gov.co/gruplac/jsp/visualiza/visualizagr.jsp?nro=00000000015141","BB55:BB57",{"$f":"ROW()","v":76},{"$f":"MINA(IF(AQ76=$BA$4:$BA$394,$BD$4:$BD$394))","v":55},{"$f":"MAXA(IF(AQ76=$BA$4:$BA$394,$BD$4:$BD$394))","v":57},"MED",null,null,"COL0066669","Seguridad Física",{"$f":"COUNTIF(BA$4:BA76,BA76)","v":3},{"$f":"ROW()","v":76},1]
[null,null,null,null,null,null,null,null,null,null,null,{"$f":"COUNTIF(N$56:N77,N77)","v":22},3,"Resumen","C",22,"",6,null,null,null,null,null,null,null,null,53,"Programa","ING","Especialización en Planeación Ambiental y Manejo Integral de los Recursos Naturales",43,null,null,null,"Categoría C",null,74,73,1,69,"MED","Grupo de inmunología Clínica Aplicada (GICA)","COL0152472","A1","https://scienti.minciencias.gov.co/gruplac/jsp/visualiza/visualizagr.jsp?nro=00000000015414","BB291:BB292",{"$f":"ROW()","v":77},{"$f":"MINA(IF(AQ77=$BA$4:$BA$394,$BD$4:$BD$394))","v":291},{"$f":"MAXA(IF(AQ77=$BA$4:$BA$394,$BD$4:$BD$394))","v":292},"MED",null,null,"COL0066669","Seguridad de Personas",{"$f":"COUNTIF(BA$4:BA77,BA77)","v":4},{"$f":"ROW()","v":77},1]
[null,null,"No","Nombre Inst","Grupo","Clasif","Investig","Presupuesto","Alcance","Link",null,{"$f":"COUNTIF(N$56:N78,N78)","v":23},3,"Resumen","C",23,"",6,null,null,null,null,null,null,null,null,53,"Programa","ING","Doctorado en Ciencias Aplicadas",43,null,null,null,"No Reconocido",null,75,75,1,70,"MED","Epidemiología y Salud Colectiva ","COL0152319","C","https://scienti.minciencias.gov.co/gruplac/jsp/visualiza/visualizagr.jsp?nro=00000000015438",{"$f":"$AT$2&AV78&\":\"&$AT$2&AW78","v":"BB27:BB31"},{"$f":"ROW()","v":78},{"$f":"MINA(IF(AQ78=$BA$4:$BA$394,$BD$4:$BD$394))","v":27},{"$f":"MAXA(IF(AQ78=$BA$4:$BA$394,$BD$4:$BD$394))","v":31},{"$f":"AO78","v":"MED"},null,null,"COL0066669","Seguridad y Salud en el Trabajo",{"$f":"COUNTIF(BA$4:BA78,BA78)","v":5},{"$f":"ROW()","v":78},1]
[null,null,1,{"$f":"General!C32","v":0},{"$f":"General!C33","v":0},{"$f":"General!I33","v":"NA"},{"$f":"General!C34","v":0},{"$f":"General!I34","v":0},{"$f":"General!G35","v":0},{"$f":"General!C36","v":0},null,{"$f":"COUNTIF(N$56:N79,N79)","v":24},3,"Resumen",{"$f":"O78","v":"C"},{"$f":"P78+1","v":24},"",{"$f":"R78","v":6},null,null,null,null,null,null,null,null,54,"Programa","MED","Medicina",14,null,null,null,"No Reconocido",null,76,76,1,73,"MED","Grupo de investigaciones sobre agentes radiológicos, biológicos y químicos","COL0191078","C","https://scienti.minciencias.gov.co/gruplac/jsp/visualiza/visualizagr.jsp?nro=00000000019309","BB316:BB317",{"$f":"ROW()","v":79},{"$f":"MINA(IF(AQ79=$BA$4:$BA$394,$BD$4:$BD$394))","v":316},{"$f":"MAXA(IF(AQ79=$BA$4:$BA$394,$BD$4:$BD$394))","v":317},"MED",null,null,"COL0026486","Biorefinerias",{"$f":"COUNTIF(BA$4:BA79,BA79)","v":1},{"$f":"ROW()","v":79},1]
[null,null,2,{"$f":"General!C38","v":0},{"$f":"General!C39","v":0},{"$f":"General!I39","v":0},{"$f":"General!C40","v":0},{"$f":"General!I40","v":0},{"$f":"General!G41","v":0},{"$f":"General!C42","v":0},null,{"$f":"COUNTIF(N$56:N80,N80)","v":25},3,"Resumen","C",25,"",6,null,null,null,null,null,null,null,null,55,"Programa","MED","Tecnología en Atención Prehospitalaria",15,null,null,null,"No Reconocido",null,77,77,1,74,"MED","Grupo de Investigación en Enfermedades Infecciosas Hospital Militar Central ","COL0175225","A1","https://scienti.minciencias.gov.co/gruplac/jsp/visualiza/visualizagr.jsp?nro=00000000017724",{"$f":"$AT$2&AV80&\":\"&$AT$2&AW80","v":"BB168:BB170"},{"$f":"ROW()","v":80},{"$f":"MINA(IF(AQ80=$BA$4:$BA$394,$BD$4:$BD$394))","v":168},{"$f":"MAXA(IF(AQ80=$BA$4:$BA$394,$BD$4:$BD$394))","v":170},"MED",null,null,"COL0026486","Ciudades Sostenibles",{"$f":"COUNTIF(BA$4:BA80,BA80)","v":2},{"$f":"ROW()","v":80},1]
[null,null,3,{"$f":"General!C44","v":0},{"$f":"General!C45","v":0},{"$f":"General!I45","v":0},{"$f":"General!C46","v":0},{"$f":"General!I46","v":0},{"$f":"General!G47","v":0},{"$f":"General!C48","v":0},null,{"$f":"COUNTIF(N$56:N81,N81)","v":26},3,"Resumen","C",26,"",6,null,null,null,null,null,null,null,null,1,"Tipo Proyecto","INV","Investigación Científica",{"$f":"AC81","v":"INV"},null,null,null,null,null,null,null,null,null,null,null,null,null,null,null,null,null,null,null,null,null,"COL0026486","Ingeniería Offshore.",{"$f":"COUNTIF(BA$4:BA81,BA81)","v":3},{"$f":"ROW()","v":81},1]
[null,null,null,null,null,null,null,null,null,null,null,{"$f":"COUNTIF(N$56:N82,N82)","v":27},3,"Resumen","C",27,"",6,null,null,null,null,null,null,null,null,2,"Tipo Proyecto","IMP","Alto Impacto","IMP",null,null,null,null,null,null,null,null,null,null,null,null,null,null,null,null,null,null,null,null,null,"COL0026486","Ingeniería de recursos hídricos y energéticos.",{"$f":"COUNTIF(BA$4:BA82,BA82)","v":4},{"$f":"ROW()","v":82},1]
[null,null,null,null,null,null,null,null,null,null,null,{"$f":"COUNTIF(N$56:N83,N83)","v":28},3,"Resumen","C",28,"",6,null,null,null,null,null,null,null,null,1,"Función","Investigador Principal","Investigador Principal o lider del proyecto","IP",null,null,null,null,null,null,null,null,null,null,null,null,null,null,null,null,null,null,null,null,null,"COL0026486","Procesos físico-químicos y de oxidación avanzada",{"$f":"COUNTIF(BA$4:BA83,BA83)","v":5},{"$f":"ROW()","v":83},1]
[null,null,null,null,null,null,null,null,null,null,null,{"$f":"COUNTIF(N$56:N84,N84)","v":29},3,"Resumen","C",29,"",6,null,null,null,null,null,null,null,null,2,"Función","Coinvestigador","Investigador que apoya al lider del proyecto","CO",null,null,null,null,null,null,null,null,null,null,null,null,null,null,null,null,null,null,null,null,null,"COL0143731","Electrónica y Telecomunicaciones en Salud",{"$f":"COUNTIF(BA$4:BA84,BA84)","v":1},{"$f":"ROW()","v":84},1]
[null,null,null,null,null,null,null,null,null,null,null,{"$f":"COUNTIF(N$56:N85,N85)","v":1},4,"Estado_del_arte",{"$f":"O84","v":"C"},{"$f":"P84+1","v":30},"Este es un título Inicial.",-23,null,null,null,null,null,null,null,null,3,"Función","Asistente OPS","Asistente de Investigacion contratado OPS","OPS",null,null,null,null,null,null,null,null,null,null,null,null,null,null,null,null,null,null,null,null,null,"COL0143731","Espectro Radioeléctrico",{"$f":"COUNTIF(BA$4:BA85,BA85)","v":2},{"$f":"ROW()","v":85},1]
[null,null,null,null,null,null,null,null,null,null,null,{"$f":"COUNTIF(N$56:N86,N86)","v":2},4,"Estado_del_arte",{"$f":"O85","v":"C"},{"$f":"P85+1","v":31},"",-23,null,null,null,null,null,null,null,null,4,"Función","Joven Investigador","Joven investigador UMNG o Colciencias","JV",null,null,null,null,null,null,null,null,null,null,null,null,null,null,null,null,null,null,null,null,null,"COL0143731","Sistemas virtuales de comunicación",{"$f":"COUNTIF(BA$4:BA86,BA86)","v":3},{"$f":"ROW()","v":86},1]
[null,null,null,null,null,null,null,null,null,null,null,{"$f":"COUNTIF(N$56:N87,N87)","v":3},4,"Estado_del_arte","C",32,"",-23,null,null,null,null,null,null,null,null,5,"Función","Asistente Graduado","Asistente Graduado para proyectos de alto impacto","AG",null,null,null,null,null,null,null,null,null,null,null,null,null,null,null,null,null,null,null,null,null,"COL0110436","Bioquímica",{"$f":"COUNTIF(BA$4:BA87,BA87)","v":1},{"$f":"ROW()","v":87},1]
[null,null,null,null,null,null,null,null,null,null,null,{"$f":"COUNTIF(N$56:N88,N88)","v":4},4,"Estado_del_arte","C",33,"",-23,null,null,null,null,null,null,null,null,6,"Función","Auxiliar de Investigación.","Estudiante apoya el proyecto","EST",null,null,null,null,null,null,null,null,null,null,null,null,null,null,null,null,null,null,null,null,null,"COL0110436","Química Ambiental",{"$f":"COUNTIF(BA$4:BA88,BA88)","v":2},{"$f":"ROW()","v":88},1]
[null,null,null,null,null,null,null,null,null,null,null,{"$f":"COUNTIF(N$56:N89,N89)","v":5},4,"Estado_del_arte","C",34,"",-23,null,null,null,null,null,null,null,null,7,"Función","Asesor","Asesor externo no vinculado a ninguna entidad","AR",null,null,null,null,null,null,null,null,null,null,"Grupo","No",null,null,null,null,null,null,null,null,null,"COL0110436","Química Inorgánica y Bioinorgánica",{"$f":"COUNTIF(BA$4:BA89,BA89)","v":3},{"$f":"ROW()","v":89},1]
[null,null,null,null,null,null,null,null,null,null,null,{"$f":"COUNTIF(N$56:N90,N90)","v":6},4,"Estado_del_arte","C",35,"",-23,null,null,null,null,null,null,null,null,1,"Vinculo","Doc. Carrera TC","Docente de Carrera Tiempo Completo","DTC",null,null,null,null,null,null,null,null,null,null,"Insight","COL0067371",null,null,null,null,null,null,null,null,null,"COL0110436","Química de coordinación y catálisis ambiental.",{"$f":"COUNTIF(BA$4:BA90,BA90)","v":4},{"$f":"ROW()","v":90},1]
[null,null,null,null,null,null,null,null,null,null,null,{"$f":"COUNTIF(N$56:N91,N91)","v":7},4,"Estado_del_arte","C",36,"",-23,null,null,null,null,null,null,null,null,2,"Vinculo","Doc. Carrera MT","Docente de Carrera Medio Tiempo","DMT",null,null,null,null,null,null,null,null,null,null,"Estadística, Control y Optimización","COL0136423G","NA",null,null,null,null,null,null,null,null,"COL0116636","Desarrollo de software y hardware embarcable",{"$f":"COUNTIF(BA$4:BA91,BA91)","v":1},{"$f":"ROW()","v":91},1]
[null,null,null,null,null,null,null,null,null,null,null,{"$f":"COUNTIF(N$56:N92,N92)","v":8},4,"Estado_del_arte","C",37,"",-23,null,null,null,null,null,null,null,null,3,"Vinculo","Doc. Ocasional","Docente de Ocasional","OCA",null,null,null,null,null,null,null,null,null,null,null,null,null,null,null,null,null,null,null,null,null,"COL0116636","Procesamiento digital de señales e imágenes",{"$f":"COUNTIF(BA$4:BA92,BA92)","v":2},{"$f":"ROW()","v":92},1]
[null,null,null,null,null,null,null,null,null,null,null,{"$f":"COUNTIF(N$56:N93,N93)","v":9},4,"Estado_del_arte","C",38,"",-23,null,null,null,null,null,null,null,null,4,"Vinculo","OPS - Prestación Servicios","Asistente de Investigacion contratado OPS","OPS",null,null,null,null,null,null,null,null,null,null,"ACCEDER",44,null,null,null,null,null,null,null,null,null,"COL0116636","Producción sostenible",{"$f":"COUNTIF(BA$4:BA93,BA93)","v":3},{"$f":"ROW()","v":93},1]
[null,null,null,null,null,null,null,null,null,null,null,{"$f":"COUNTIF(N$56:N94,N94)","v":10},4,"Estado_del_arte",{"$f":"O93","v":"C"},{"$f":"P93+1","v":39},"",-23,null,null,null,null,null,null,null,null,5,"Vinculo","Estudiante","Estudiante activo de pregrado o postgrado","EST",null,null,null,null,null,null,null,null,null,null,"Agrobiología de especies vegetales promisorias de clima frío",10,null,null,null,null,null,null,null,null,null,"COL0116636","Robótica móvil",{"$f":"COUNTIF(BA$4:BA94,BA94)","v":4},{"$f":"ROW()","v":94},1]
[null,null,null,null,null,null,null,null,null,null,null,{"$f":"COUNTIF(N$56:N95,N95)","v":11},4,"Estado_del_arte","C",40,"",-23,null,null,null,null,null,null,null,null,6,"Vinculo","Externo a la UMNG","Docentes Investigadores externos sin vinculo lavoral al U.","EXT",null,null,null,null,null,null,null,null,null,null,"Agua y Energía - AyE",45,null,null,null,null,null,null,null,null,null,"COL0116636","Sistemas de interacción humano-máquina con actuación convencional y no convencional",{"$f":"COUNTIF(BA$4:BA95,BA95)","v":5},{"$f":"ROW()","v":95},1]
[null,null,null,null,null,null,null,null,null,null,null,{"$f":"COUNTIF(N$56:N96,N96)","v":12},4,"Estado_del_arte","C",41,"",-23,null,null,null,null,null,null,null,null,1,"NBC",11,"Programas y certificaciones básicas",11,null,null,null,null,null,null,null,null,null,null,"BioethicsGroup",34,null,null,null,null,null,null,null,null,null,"COL0052163","Internet de las Cosas",{"$f":"COUNTIF(BA$4:BA96,BA96)","v":1},{"$f":"ROW()","v":96},1]
[null,null,null,null,null,null,null,null,null,null,null,{"$f":"COUNTIF(N$56:N97,N97)","v":13},4,"Estado_del_arte","C",42,"",-23,null,null,null,null,null,null,null,null,2,"NBC",21,"Alfabetización y aritmética elemental",21,null,null,null,null,null,null,null,null,null,null,"BioGenEtica & BioDerecho",67,null,null,null,null,null,null,null,null,null,"COL0052163","Procesamiento de Señales",{"$f":"COUNTIF(BA$4:BA97,BA97)","v":2},{"$f":"ROW()","v":97},1]
[null,null,null,null,null,null,null,null,null,null,null,{"$f":"COUNTIF(N$56:N98,N98)","v":14},4,"Estado_del_arte","C",43,"",-23,null,null,null,null,null,null,null,null,3,"NBC",31,"Competencias personales y desarrollo",31,null,null,null,null,null,null,null,null,null,null,"BONE",53,null,null,null,null,null,null,null,null,null,"COL0052163","Seguridad Informática",{"$f":"COUNTIF(BA$4:BA98,BA98)","v":3},{"$f":"ROW()","v":98},1]
[null,null,null,null,null,null,null,null,null,null,null,{"$f":"COUNTIF(N$56:N99,N99)","v":15},4,"Estado_del_arte","C",44,"",-23,null,null,null,null,null,null,null,null,4,"NBC",111,"Ciencias de la educación",111,null,null,null,null,null,null,null,null,null,null,"CATCH",52,null,null,null,null,null,null,null,null,null,"COL0052163","Sistemas bioinspirados",{"$f":"COUNTIF(BA$4:BA99,BA99)","v":4},{"$f":"ROW()","v":99},1]
[null,null,null,null,null,null,null,null,null,null,null,{"$f":"COUNTIF(N$56:N100,N100)","v":16},4,"Estado_del_arte","C",45,"",-23,null,null,null,null,null,null,null,null,5,"NBC",112,"Formación para docentes de educación pre-primaría",112,null,null,null,null,null,null,null,null,null,null,"Control Biológico UMNG",4,null,null,null,null,null,null,null,null,null,"COL0052163","Sistemas de comunicaciones",{"$f":"COUNTIF(BA$4:BA100,BA100)","v":5},{"$f":"ROW()","v":100},1]
[null,null,null,null,null,null,null,null,null,null,null,{"$f":"COUNTIF(N$56:N101,N101)","v":17},4,"Estado_del_arte","C",46,"",-23,null,null,null,null,null,null,null,null,6,"NBC",113,"Formación para docentes sin asignatura de especialización",113,null,null,null,null,null,null,null,null,null,null,"Cultura y Desarrollo Humano",33,null,null,null,null,null,null,null,null,null,"COL0013719","Biología y Epidemiología de hongos patógenos humanos.",{"$f":"COUNTIF(BA$4:BA101,BA101)","v":1},{"$f":"ROW()","v":101},1]
[null,null,null,null,null,null,null,null,null,null,null,{"$f":"COUNTIF(N$56:N102,N102)","v":18},4,"Estado_del_arte","C",47,"",-23,null,null,null,null,null,null,null,null,7,"NBC",114,"Formación para docentes con asignatura de especialización",114,null,null,null,null,null,null,null,null,null,null,"DAVINCI",41,null,null,null,null,null,null,null,null,null,"COL0013719","Diversidad, Ecología y Bioprospección",{"$f":"COUNTIF(BA$4:BA102,BA102)","v":2},{"$f":"ROW()","v":102},1]
[null,null,null,null,null,null,null,null,null,null,null,{"$f":"COUNTIF(N$56:N103,N103)","v":19},4,"Estado_del_arte","C",48,"",-23,null,null,null,null,null,null,null,null,8,"NBC",211,"Técnicas audiovisuales y producción para medios de comunicación",211,null,null,null,null,null,null,null,null,null,null,"DIVERSITAS",71,null,null,null,null,null,null,null,null,null,"COL0013719","Fitopatología",{"$f":"COUNTIF(BA$4:BA103,BA103)","v":3},{"$f":"ROW()","v":103},1]
[null,null,null,null,null,null,null,null,null,null,null,{"$f":"COUNTIF(N$56:N104,N104)","v":20},4,"Estado_del_arte","C",49,"",-23,null,null,null,null,null,null,null,null,9,"NBC",212,"Diseño industrial, de modas e interiores",212,null,null,null,null,null,null,null,null,null,null,"ECMU (Evaluacion en Competencias y Matemáticas Universitarias)",13,null,null,null,null,null,null,null,null,null,"COL0013719","Genómica y bioinformática",{"$f":"COUNTIF(BA$4:BA104,BA104)","v":4},{"$f":"ROW()","v":104},1]
[null,null,null,null,null,null,null,null,null,null,null,{"$f":"COUNTIF(N$56:N105,N105)","v":21},4,"Estado_del_arte","C",50,"",-23,null,null,null,null,null,null,null,null,10,"NBC",213,"Bellas artes",213,null,null,null,null,null,null,null,null,null,null,"EDUMECIS",66,null,null,null,null,null,null,null,null,null,"COL0013719","Susceptibilidad a Antifungícos",{"$f":"COUNTIF(BA$4:BA105,BA105)","v":5},{"$f":"ROW()","v":105},1]
[null,null,null,null,null,null,null,null,null,null,null,{"$f":"COUNTIF(N$56:N106,N106)","v":22},4,"Estado_del_arte","C",51,"",-23,null,null,null,null,null,null,null,null,11,"NBC",214,"Artesanías",214,null,null,null,null,null,null,null,null,null,null,"Energia alternativa, Centro Multidisciplinario de Investigación",48,null,null,null,null,null,null,null,null,null,"COL0125134","Ayudas Auditivas Implantables",{"$f":"COUNTIF(BA$4:BA106,BA106)","v":1},{"$f":"ROW()","v":106},1]
[null,null,null,null,null,null,null,null,null,null,null,{"$f":"COUNTIF(N$56:N107,N107)","v":23},4,"Estado_del_arte","C",52,"",-23,null,null,null,null,null,null,null,null,12,"NBC",215,"Música y artes escénicas",215,null,null,null,null,null,null,null,null,null,null,"Epidemiología molecular de enfermedades endocrinas",64,null,null,null,null,null,null,null,null,null,"COL0125134","Base de cráneo",{"$f":"COUNTIF(BA$4:BA107,BA107)","v":2},{"$f":"ROW()","v":107},1]
[null,null,null,null,null,null,null,null,null,null,null,{"$f":"COUNTIF(N$56:N108,N108)","v":24},4,"Estado_del_arte","C",53,"",-23,null,null,null,null,null,null,null,null,13,"NBC",221,"Religión y Teología",221,null,null,null,null,null,null,null,null,null,null,"Epidemiología y Salud Colectiva ",70,null,null,null,null,null,null,null,null,null,"COL0125134","Cáncer Laríngeo",{"$f":"COUNTIF(BA$4:BA108,BA108)","v":3},{"$f":"ROW()","v":108},1]
[null,null,null,null,null,null,null,null,null,null,null,{"$f":"COUNTIF(N$56:N109,N109)","v":25},4,"Estado_del_arte","C",54,"",-23,null,null,null,null,null,null,null,null,14,"NBC",222,"Historia y arqueología",222,null,null,null,null,null,null,null,null,null,null,"Estadística, Control y Optimización",7,null,null,null,null,null,null,null,null,null,"COL0125134","Enfermedad de Meniere",{"$f":"COUNTIF(BA$4:BA109,BA109)","v":4},{"$f":"ROW()","v":109},1]
[null,null,null,null,null,null,null,null,null,null,null,{"$f":"COUNTIF(N$56:N110,N110)","v":26},4,"Estado_del_arte","C",55,"",-23,null,null,null,null,null,null,null,null,15,"NBC",223,"Filosofía y ética",223,null,null,null,null,null,null,null,null,null,null,"Estructuras y sísmica",42,null,null,null,null,null,null,null,null,null,"COL0125134","Oído Crónico",{"$f":"COUNTIF(BA$4:BA110,BA110)","v":5},{"$f":"ROW()","v":110},1]
[null,null,null,null,null,null,null,null,null,null,null,{"$f":"COUNTIF(N$56:N111,N111)","v":27},4,"Estado_del_arte","C",56,"",-23,null,null,null,null,null,null,null,null,16,"NBC",231,"Adquisición del lenguaje",231,null,null,null,null,null,null,null,null,null,null,"Estudios Internacionales y Políticos",29,null,null,null,null,null,null,null,null,null,"COL0125134","Rinosinusitis Crónica",{"$f":"COUNTIF(BA$4:BA111,BA111)","v":6},{"$f":"ROW()","v":111},1]
[null,null,null,null,null,null,null,null,null,null,null,{"$f":"COUNTIF(N$56:N112,N112)","v":28},4,"Estado_del_arte","C",57,"",-23,null,null,null,null,null,null,null,null,17,"NBC",232,"Literatura y lingüística",232,null,null,null,null,null,null,null,null,null,null,"Fitopatologia molecular",6,null,null,null,null,null,null,null,null,null,"COL0125134","Trauma de guerra en Otorrinolaringología",{"$f":"COUNTIF(BA$4:BA112,BA112)","v":7},{"$f":"ROW()","v":112},1]
[null,null,null,null,null,null,null,null,null,null,null,{"$f":"COUNTIF(N$56:N113,N113)","v":29},4,"Estado_del_arte","C",58,"",-23,null,null,null,null,null,null,null,null,18,"NBC",311,"Economía",311,null,null,null,null,null,null,null,null,null,null,"Fitoplasmas y Virus",1,null,null,null,null,null,null,null,null,null,"COL0016999","Elementos de concreto y de mampostería",{"$f":"COUNTIF(BA$4:BA113,BA113)","v":1},{"$f":"ROW()","v":113},1]
[null,null,null,null,null,null,null,null,null,null,null,{"$f":"COUNTIF(N$56:N114,N114)","v":30},4,"Estado_del_arte","C",59,"",-23,null,null,null,null,null,null,null,null,19,"NBC",312,"Ciencias políticas y educación cívica",312,null,null,null,null,null,null,null,null,null,null,"GAFRED",68,null,null,null,null,null,null,null,null,null,"COL0016999","Instrumentación estructural y sensórica",{"$f":"COUNTIF(BA$4:BA114,BA114)","v":2},{"$f":"ROW()","v":114},1]
[null,null,null,null,null,null,null,null,null,null,null,{"$f":"COUNTIF(N$56:N115,N115)","v":31},4,"Estado_del_arte","C",60,"",-23,null,null,null,null,null,null,null,null,20,"NBC",313,"Psicología",313,null,null,null,null,null,null,null,null,null,null,"GAV",47,null,null,null,null,null,null,null,null,null,"COL0016999","Materiales alternativos para construcción",{"$f":"COUNTIF(BA$4:BA115,BA115)","v":3},{"$f":"ROW()","v":115},1]
[null,null,null,null,null,null,null,null,null,null,null,{"$f":"COUNTIF(N$56:N116,N116)","v":32},4,"Estado_del_arte","C",61,"",-23,null,null,null,null,null,null,null,null,21,"NBC",314,"Sociología y estudios culturales",314,null,null,null,null,null,null,null,null,null,null,"GECS (Grupo de Estudios en Educación, Contabilidad y Sociedad)",28,null,null,null,null,null,null,null,null,null,"COL0016999","Modelación Matemática",{"$f":"COUNTIF(BA$4:BA116,BA116)","v":4},{"$f":"ROW()","v":116},1]
[null,null,null,null,null,null,null,null,null,null,null,{"$f":"COUNTIF(N$56:N117,N117)","v":1},6,"Metodología",{"$f":"O116","v":"C"},{"$f":"P116+1","v":62},"",-55,null,null,null,null,null,null,null,null,22,"NBC",321,"Periodismo y reportajes",321,null,null,null,null,null,null,null,null,null,null,"GEOTECNIA",36,null,null,null,null,null,null,null,null,null,"COL0016999","Vulnerabilidad Sísmica",{"$f":"COUNTIF(BA$4:BA117,BA117)","v":5},{"$f":"ROW()","v":117},1]
[null,null,null,null,null,null,null,null,null,null,null,{"$f":"COUNTIF(N$56:N118,N118)","v":2},6,"Metodología",{"$f":"O117","v":"C"},{"$f":"P117+1","v":63},"",-55,null,null,null,null,null,null,null,null,23,"NBC",322,"Bibliotecología, información y archivología",322,null,null,null,null,null,null,null,null,null,null,"GIDAM",40,null,null,null,null,null,null,null,null,null,"COL0179618","Biochips",{"$f":"COUNTIF(BA$4:BA118,BA118)","v":1},{"$f":"ROW()","v":118},1]
[null,null,null,null,null,null,null,null,null,null,null,{"$f":"COUNTIF(N$56:N119,N119)","v":3},6,"Metodología","C",64,"",-55,null,null,null,null,null,null,null,null,24,"NBC",411,"Contabilidad e impuestos",411,null,null,null,null,null,null,null,null,null,null,"GI-iTEC - Grupo de Investigación e innovación Tecnológica en Electrónica y Comunicaciones",49,null,null,null,null,null,null,null,null,null,"COL0179618","Diseño y fabricación de sistemas para producción de nanomateriales",{"$f":"COUNTIF(BA$4:BA119,BA119)","v":2},{"$f":"ROW()","v":119},1]
[null,null,null,null,null,null,null,null,null,null,null,{"$f":"COUNTIF(N$56:N120,N120)","v":4},6,"Metodología","C",65,"",-55,null,null,null,null,null,null,null,null,25,"NBC",412,"Gestión financiera, administración bancaria y seguros",412,null,null,null,null,null,null,null,null,null,null,"GISSIC: Grupo de Investigacion en Seguridad y Sistemas de Comunicaciones",46,null,null,null,null,null,null,null,null,null,"COL0179618","Holografía digital",{"$f":"COUNTIF(BA$4:BA120,BA120)","v":3},{"$f":"ROW()","v":120},1]
[null,null,null,null,null,null,null,null,null,null,null,{"$f":"COUNTIF(N$56:N121,N121)","v":5},6,{"$f":"NbHoja(M121)","v":"Metodología"},"C",66,{"$f":"CLEAN(TRIM(INDIRECT($N121&\"!\"&$O121&(P121+R121),1)))","v":""},-55,null,null,null,null,null,null,null,null,26,"NBC",413,"Gestión y administración",413,null,null,null,null,null,null,null,null,null,null,"GREST",51,null,null,null,null,null,null,null,null,null,"COL0179618","Nanofotónica, sensórica y nanotecnología",{"$f":"COUNTIF(BA$4:BA121,BA121)","v":4},{"$f":"ROW()","v":121},1]
[null,null,null,null,null,null,null,null,null,null,null,{"$f":"COUNTIF(N$56:N122,N122)","v":6},6,"Metodología","C",67,"",-55,null,null,null,null,null,null,null,null,27,"NBC",414,"Mercadotecnia y publicidad",414,null,null,null,null,null,null,null,null,null,null,"Grupo de Derecho Privado",16,null,null,null,null,null,null,null,null,null,"COL0179618","Termo-electrónica",{"$f":"COUNTIF(BA$4:BA122,BA122)","v":5},{"$f":"ROW()","v":122},1]
[null,null,null,null,null,null,null,null,null,null,null,{"$f":"COUNTIF(N$56:N123,N123)","v":7},6,"Metodología","C",68,"",-55,null,null,null,null,null,null,null,null,28,"NBC",415,"Secretariado y trabajo de oficina",415,null,null,null,null,null,null,null,null,null,null,"Grupo de derecho público ",15,null,null,null,null,null,null,null,null,null,"COL0179618","Tomografia óptica coherente",{"$f":"COUNTIF(BA$4:BA123,BA123)","v":6},{"$f":"ROW()","v":123},1]
[null,null,null,null,null,null,null,null,null,null,null,{"$f":"COUNTIF(N$56:N124,N124)","v":8},6,"Metodología","C",69,"",-55,null,null,null,null,null,null,null,null,29,"NBC",416,"Ventas al por mayor y al por menor",416,null,null,null,null,null,null,null,null,null,null,"Grupo de Docencia e Investigación en Física",14,null,null,null,null,null,null,null,null,null,"COL0048492","Biología Molecular de organismos acuáticos, con énfasis en especies de interés comercial y amenazadas.",{"$f":"COUNTIF(BA$4:BA124,BA124)","v":1},{"$f":"ROW()","v":124},1]
[null,null,null,null,null,null,null,null,null,null,null,{"$f":"COUNTIF(N$56:N125,N125)","v":9},6,"Metodología","C",70,"",-55,null,null,null,null,null,null,null,null,30,"NBC",417,"Competencias laborales",417,null,null,null,null,null,null,null,null,null,null,"Grupo de Ecotoxicología, Evolución, Medio ambiente y conservación (E = mc2)",8,null,null,null,null,null,null,null,null,null,"COL0048492","DINÁMICA ECOLÓGICA DEL ZOOPLANCTON EN EL OCÉANO PACÍFICO COLOMBIANO. CRUCEROS 2007-2010 DE LA SERIE ERFEN (ESTUDIO REGIONAL DEL FENÓMENO EL NIÑO).",{"$f":"COUNTIF(BA$4:BA125,BA125)","v":2},{"$f":"ROW()","v":125},1]
[null,null,null,null,null,null,null,null,null,null,null,{"$f":"COUNTIF(N$56:N126,N126)","v":10},6,"Metodología","C",71,"",-55,null,null,null,null,null,null,null,null,31,"NBC",421,"Derecho",421,null,null,null,null,null,null,null,null,null,null,"Grupo de estudios contemporáneos en contabilidad, gestión y organizaciones - GECCGO",27,null,null,null,null,null,null,null,null,null,"COL0048492","Estudios Morfológicos, Tróficos, Ecológicos, Bióticos y Abióticos de Humedales Colombianos, con énfasis en la Sabana de Bogotá.",{"$f":"COUNTIF(BA$4:BA126,BA126)","v":3},{"$f":"ROW()","v":126},1]
[null,null,null,null,null,null,null,null,null,null,null,{"$f":"COUNTIF(N$56:N127,N127)","v":11},6,"Metodología","C",72,"",-55,null,null,null,null,null,null,null,null,32,"NBC",511,"Biología",511,null,null,null,null,null,null,null,null,null,null,"Grupo de Estudios en Ciencias Económicas - CIE",25,null,null,null,null,null,null,null,null,null,"COL0048492","Estudios moleculares, ecológicos, morfológicos, nutricionales, ontogénicos y de cultivo de organismos acuáticos.",{"$f":"COUNTIF(BA$4:BA127,BA127)","v":4},{"$f":"ROW()","v":127},1]
[null,null,null,null,null,null,null,null,null,null,null,{"$f":"COUNTIF(N$56:N128,N128)","v":12},6,"Metodología",{"$f":"O127","v":"C"},{"$f":"P127+1","v":73},"",-55,null,null,null,null,null,null,null,null,33,"NBC",512,"Bioquímica",512,null,null,null,null,null,null,null,null,null,null,"Grupo de Estudios Macroeconómicos",26,null,null,null,null,null,null,null,null,null,"COL0048492","Impacto antropogénico en ecosistemas acuáticos.",{"$f":"COUNTIF(BA$4:BA128,BA128)","v":5},{"$f":"ROW()","v":128},1]
[null,null,null,null,null,null,null,null,null,null,null,{"$f":"COUNTIF(N$56:N129,N129)","v":13},6,"Metodología","C",74,"",-55,null,null,null,null,null,null,null,null,34,"NBC",521,"Ciencias del medio ambiente",521,null,null,null,null,null,null,null,null,null,null,"Grupo de inmunología Clínica Aplicada (GICA)",69,null,null,null,null,null,null,null,null,null,"COL0117722","Estudios disciplinares en contabilidad auditoria, contabilidad de gestión y tributación.",{"$f":"COUNTIF(BA$4:BA129,BA129)","v":1},{"$f":"ROW()","v":129},1]
[null,null,null,null,null,null,null,null,null,null,null,{"$f":"COUNTIF(N$56:N130,N130)","v":14},6,"Metodología","C",75,"",-55,null,null,null,null,null,null,null,null,35,"NBC",522,"Medio ambiente natural y vida silvestre",522,null,null,null,null,null,null,null,null,null,null,"Grupo de investigación en Biodiversidad y ecología de abejas silvestres",2,null,null,null,null,null,null,null,null,null,"COL0117722","Estudios en educación en ciencias económicas",{"$f":"COUNTIF(BA$4:BA130,BA130)","v":2},{"$f":"ROW()","v":130},1]
[null,null,null,null,null,null,null,null,null,null,null,{"$f":"COUNTIF(N$56:N131,N131)","v":15},6,"Metodología","C",76,"",-55,null,null,null,null,null,null,null,null,36,"NBC",531,"Química",531,null,null,null,null,null,null,null,null,null,null,"Grupo de Investigación en Cirugía pediátrica y especialidades CIPEMIL",59,null,null,null,null,null,null,null,null,null,"COL0117722","Ética, transparencia y control social",{"$f":"COUNTIF(BA$4:BA131,BA131)","v":3},{"$f":"ROW()","v":131},1]
[null,null,null,null,null,null,null,null,null,null,null,{"$f":"COUNTIF(N$56:N132,N132)","v":16},6,"Metodología","C",77,"",-55,null,null,null,null,null,null,null,null,37,"NBC",532,"Ciencias de la tierra",532,null,null,null,null,null,null,null,null,null,null,"Grupo de Investigacion en Dermatologia HMC",58,null,null,null,null,null,null,null,null,null,"COL0128047","Derecho de la responsabilidad y de seguros",{"$f":"COUNTIF(BA$4:BA132,BA132)","v":1},{"$f":"ROW()","v":132},{"$f":"COUNTIF($AQ$3:$AQ$95,BA132)","v":1}]
[null,null,null,null,null,null,null,null,null,null,null,{"$f":"COUNTIF(N$56:N133,N133)","v":17},6,"Metodología","C",78,"",-55,null,null,null,null,null,null,null,null,38,"NBC",533,"Física",533,null,null,null,null,null,null,null,null,null,null,"Grupo de Investigación en Enfermedades Infecciosas Hospital Militar Central ",74,null,null,null,null,null,null,null,null,null,"COL0128047","Derecho económico y de los negocios.",{"$f":"COUNTIF(BA$4:BA133,BA133)","v":2},{"$f":"ROW()","v":133},1]
[null,null,null,null,null,null,null,null,null,null,null,{"$f":"COUNTIF(N$56:N134,N134)","v":18},6,"Metodología","C",79,"",-55,null,null,null,null,null,null,null,null,39,"NBC",541,"Matemáticas",541,null,null,null,null,null,null,null,null,null,null,"Grupo de Investigación en Hidrobiología Aplicada (HIDROBIA)",9,null,null,null,null,null,null,null,null,null,"COL0047566","EDUCACIÓN EN INGENIERÍA",{"$f":"COUNTIF(BA$4:BA134,BA134)","v":1},{"$f":"ROW()","v":134},1]
[null,null,null,null,null,null,null,null,null,null,null,{"$f":"COUNTIF(N$56:N135,N135)","v":19},6,"Metodología","C",80,"",-55,null,null,null,null,null,null,null,null,40,"NBC",542,"Estadística",542,null,null,null,null,null,null,null,null,null,null,"Grupo de Investigación en Multimedia -GIM-",35,null,null,null,null,null,null,null,null,null,"COL0047566","GEOMATICA",{"$f":"COUNTIF(BA$4:BA135,BA135)","v":2},{"$f":"ROW()","v":135},1]
[null,null,null,null,null,null,null,null,null,null,null,{"$f":"COUNTIF(N$56:N136,N136)","v":20},6,"Metodología","C",81,"",-55,null,null,null,null,null,null,null,null,41,"NBC",611,"Uso de computadores",611,null,null,null,null,null,null,null,null,null,null,"Grupo de investigación en química ambiental y tecnologías limpias - QUATELI",12,null,null,null,null,null,null,null,null,null,"COL0047566","GERENCIA DE PROYECTOS",{"$f":"COUNTIF(BA$4:BA136,BA136)","v":3},{"$f":"ROW()","v":136},1]
[null,null,null,null,null,null,null,null,null,null,null,{"$f":"COUNTIF(N$56:N137,N137)","v":21},6,"Metodología","C",82,"",-55,null,null,null,null,null,null,null,null,42,"NBC",612,"Diseño y administración de redes y bases de datos",612,null,null,null,null,null,null,null,null,null,null,"Grupo de Investigacion en Urologia HMC",63,null,null,null,null,null,null,null,null,null,"COL0047566","HIDROLOGÍA",{"$f":"COUNTIF(BA$4:BA137,BA137)","v":4},{"$f":"ROW()","v":137},1]
[null,null,null,null,null,null,null,null,null,null,null,{"$f":"COUNTIF(N$56:N138,N138)","v":22},6,"Metodología","C",83,"",-55,null,null,null,null,null,null,null,null,43,"NBC",613,"Desarrollo y análisis de software y aplicaciones",613,null,null,null,null,null,null,null,null,null,null,"Grupo de investigaciones sobre agentes radiológicos, biológicos y químicos",73,null,null,null,null,null,null,null,null,null,"COL0047566","PROCESOS ESTOCÁSTICOS",{"$f":"COUNTIF(BA$4:BA138,BA138)","v":5},{"$f":"ROW()","v":138},1]
[null,null,null,null,null,null,null,null,null,null,null,{"$f":"COUNTIF(N$56:N139,N139)","v":23},6,"Metodología","C",84,"",-55,null,null,null,null,null,null,null,null,44,"NBC",711,"Ingeniería y procesos químicos",711,null,null,null,null,null,null,null,null,null,null,"Grupo de Micología y Fitopatologia ",5,null,null,null,null,null,null,null,null,null,"COL0047566","PRODUCTIVIDAD E IMPACTO AMBIENTAL EN PROYECTOS DE INGENIERIA CIVIL (CONSTRUCCIÓN SOSTENIBLE)",{"$f":"COUNTIF(BA$4:BA139,BA139)","v":6},{"$f":"ROW()","v":139},1]
[null,null,null,null,null,null,null,null,null,null,null,{"$f":"COUNTIF(N$56:N140,N140)","v":24},6,"Metodología","C",85,"",-55,null,null,null,null,null,null,null,null,45,"NBC",712,"Tecnología de protección del medio ambiente",712,null,null,null,null,null,null,null,null,null,null,"Grupo de Psoriasis e Inmunodermatologia",54,null,null,null,null,null,null,null,null,null,"COL0066229","(EO) Estructuras Organizacionales",{"$f":"COUNTIF(BA$4:BA140,BA140)","v":1},{"$f":"ROW()","v":140},1]
[null,null,null,null,null,null,null,null,null,null,null,{"$f":"COUNTIF(N$56:N141,N141)","v":25},6,"Metodología","C",86,"",-55,null,null,null,null,null,null,null,null,46,"NBC",713,"Electricidad y energía",713,null,null,null,null,null,null,null,null,null,null,"Grupo de Rehabilitacion HOMIC-UMNG",62,null,null,null,null,null,null,null,null,null,"COL0066229","(PI) Procesos de Integración",{"$f":"COUNTIF(BA$4:BA141,BA141)","v":2},{"$f":"ROW()","v":141},1]
[null,null,null,null,null,null,null,null,null,null,null,{"$f":"COUNTIF(N$56:N142,N142)","v":26},6,"Metodología","C",87,"",-55,null,null,null,null,null,null,null,null,47,"NBC",714,"Electrónica y automatización",714,null,null,null,null,null,null,null,null,null,null,"Grupo de Salud Oral y Cirugia Maxilofacial",60,null,null,null,null,null,null,null,null,null,"COL0066229","(R) Regionalización",{"$f":"COUNTIF(BA$4:BA142,BA142)","v":3},{"$f":"ROW()","v":142},1]
[null,null,null,null,null,null,null,null,null,null,null,{"$f":"COUNTIF(N$56:N143,N143)","v":27},6,"Metodología","C",88,"",-55,null,null,null,null,null,null,null,null,48,"NBC",715,"Mecánica y profesiones afines a la metalistería",715,null,null,null,null,null,null,null,null,null,null,"Grupo Integrado de Investigaciones en Química Bioorgánica (InQuiBio)",11,null,null,null,null,null,null,null,null,null,"COL0116439","Cirugía Dermatologica",{"$f":"COUNTIF(BA$4:BA143,BA143)","v":1},{"$f":"ROW()","v":143},1]
[null,null,null,null,null,null,null,null,null,null,null,{"$f":"COUNTIF(N$56:N144,N144)","v":28},6,"Metodología","C",89,"",-55,null,null,null,null,null,null,null,null,49,"NBC",716,"Vehículos, barcos y aeronaves motorizadas",716,null,null,null,null,null,null,null,null,null,null,"GRUPO NEUROCIENCIAS HMC",57,null,null,null,null,null,null,null,null,null,"COL0116439","Dermatologia Pediatrica",{"$f":"COUNTIF(BA$4:BA144,BA144)","v":2},{"$f":"ROW()","v":144},1]
[null,null,null,null,null,null,null,null,null,null,null,{"$f":"COUNTIF(N$56:N145,N145)","v":29},6,"Metodología","C",90,"",-55,null,null,null,null,null,null,null,null,50,"NBC",721,"Procesamiento de alimentos",721,null,null,null,null,null,null,null,null,null,null,"HUMANITAS",32,null,null,null,null,null,null,null,null,null,"COL0116439","Fotobiologia y Fototerapia",{"$f":"COUNTIF(BA$4:BA145,BA145)","v":3},{"$f":"ROW()","v":145},1]
[null,null,null,null,null,null,null,null,null,null,null,{"$f":"COUNTIF(N$56:N146,N146)","v":30},6,"Metodología","C",91,"",-55,null,null,null,null,null,null,null,null,51,"NBC",722,"Materiales (vidrio, papel, plástico y madera)",722,null,null,null,null,null,null,null,null,null,null,"ICAAO: Inteligencia Computacional, Aprendizaje Automático y Optimización",77,null,null,null,null,null,null,null,null,null,"COL0116439","Leishmaniasis",{"$f":"COUNTIF(BA$4:BA146,BA146)","v":4},{"$f":"ROW()","v":146},1]
[null,null,null,null,null,null,null,null,null,null,null,{"$f":"COUNTIF(N$56:N147,N147)","v":31},6,"Metodología","C",92,"",-55,null,null,null,null,null,null,null,null,52,"NBC",723,"Producción textiles (ropa, calzado y artículos de cuero)",723,null,null,null,null,null,null,null,null,null,null,"INAMPE",24,null,null,null,null,null,null,null,null,null,"COL0039321","Analisis de Matrices",{"$f":"COUNTIF(BA$4:BA147,BA147)","v":1},{"$f":"ROW()","v":147},1]
[null,null,null,null,null,null,null,null,null,null,null,{"$f":"COUNTIF(N$56:N148,N148)","v":32},6,"Metodología","C",93,"",-55,null,null,null,null,null,null,null,null,53,"NBC",724,"Minería y extracción",724,null,null,null,null,null,null,null,null,null,null,"INCONDIS",19,null,null,null,null,null,null,null,null,null,"COL0039321","Filosofía de la Ciencia: Filosofía de la Física",{"$f":"COUNTIF(BA$4:BA148,BA148)","v":2},{"$f":"ROW()","v":148},1]
[null,null,null,null,null,null,null,null,null,null,null,{"$f":"COUNTIF(N$56:N149,N149)","v":33},6,"Metodología","C",94,"",-55,null,null,null,null,null,null,null,null,54,"NBC",731,"Arquitectura y urbanismo",731,null,null,null,null,null,null,null,null,null,null,"Ingeniería de Procesos y Tecnologías Sostenibles",65,null,null,null,null,null,null,null,null,null,"COL0039321","LEYES DE CONSERVACION HIPERBOLICA",{"$f":"COUNTIF(BA$4:BA149,BA149)","v":3},{"$f":"ROW()","v":149},1]
[null,null,null,null,null,null,null,null,null,null,null,{"$f":"COUNTIF(N$56:N150,N150)","v":34},6,"Metodología","C",95,"",-55,null,null,null,null,null,null,null,null,55,"NBC",732,"Construcción e ingeniería civil",732,null,null,null,null,null,null,null,null,null,null,"INGENIERÍA, GEOMÁTICA Y EDUCACIÓN (IGE)",43,null,null,null,null,null,null,null,null,null,"COL0039321","Matematicas aplicadas",{"$f":"COUNTIF(BA$4:BA150,BA150)","v":4},{"$f":"ROW()","v":150},1]
[null,null,null,null,null,null,null,null,null,null,null,{"$f":"COUNTIF(N$56:N151,N151)","v":1},12,"Bibliografía",{"$f":"O150","v":"C"},{"$f":"P150+1","v":96},"",-89,null,null,null,null,null,null,null,null,56,"NBC",811,"Producción agrícola y ganadera",811,null,null,null,null,null,null,null,null,null,null,"Kokhlias.",61,null,null,null,null,null,null,null,null,null,"COL0039321","Solución numérica de ecuaciones diferenciales parciales",{"$f":"COUNTIF(BA$4:BA151,BA151)","v":5},{"$f":"ROW()","v":151},1]
[null,null,null,null,null,null,null,null,null,null,null,{"$f":"COUNTIF(N$56:N152,N152)","v":2},12,"Bibliografía",{"$f":"O151","v":"C"},{"$f":"P151+1","v":97},"",-89,null,null,null,null,null,null,null,null,57,"NBC",812,"Horticultura",812,null,null,null,null,null,null,null,null,null,null,"LA TRAMOYA",50,null,null,null,null,null,null,null,null,null,"COL0129689","Cirugía Ortognática y Distracción Osteogénica",{"$f":"COUNTIF(BA$4:BA152,BA152)","v":1},{"$f":"ROW()","v":152},1]
[null,null,null,null,null,null,null,null,null,null,null,{"$f":"COUNTIF(N$56:N153,N153)","v":3},12,"Bibliografía","C",98,"",-89,null,null,null,null,null,null,null,null,58,"NBC",821,"Silvicultura",821,null,null,null,null,null,null,null,null,null,null,"LIDERAZGO",31,null,null,null,null,null,null,null,null,null,"COL0129689","Implantología y Cirugía Reconstructiva",{"$f":"COUNTIF(BA$4:BA153,BA153)","v":2},{"$f":"ROW()","v":153},1]
[null,null,null,null,null,null,null,null,null,null,null,{"$f":"COUNTIF(N$56:N154,N154)","v":4},12,"Bibliografía","C",99,"",-89,null,null,null,null,null,null,null,null,59,"NBC",831,"Pesca",831,null,null,null,null,null,null,null,null,null,null,"MATRIX",3,null,null,null,null,null,null,null,null,null,"COL0129689","Infecciones, Patología y Cirugía Dentoalveolar",{"$f":"COUNTIF(BA$4:BA154,BA154)","v":3},{"$f":"ROW()","v":154},1]
[null,null,null,null,null,null,null,null,null,null,null,{"$f":"COUNTIF(N$56:N155,N155)","v":5},12,"Bibliografía","C",100,"",-89,null,null,null,null,null,null,null,null,60,"NBC",841,"Veterinaria",841,null,null,null,null,null,null,null,null,null,null,"Medios, Mediaciones y Procesos en Educación a Distancia",21,null,null,null,null,null,null,null,null,null,"COL0194721","Cirugía Abdominal, Tórax y Mínimamente Invasiva",{"$f":"COUNTIF(BA$4:BA155,BA155)","v":1},{"$f":"ROW()","v":155},1]
[null,null,null,null,null,null,null,null,null,null,null,{"$f":"COUNTIF(N$56:N156,N156)","v":6},12,"Bibliografía","C",101,"",-89,null,null,null,null,null,null,null,null,61,"NBC",911,"Odontología",911,null,null,null,null,null,null,null,null,null,null,"Modelos de simulación ICDIST",23,null,null,null,null,null,null,null,null,null,"COL0194721","Cirugía Vascular",{"$f":"COUNTIF(BA$4:BA156,BA156)","v":2},{"$f":"ROW()","v":156},1]
[null,null,null,null,null,null,null,null,null,null,null,{"$f":"COUNTIF(N$56:N157,N157)","v":7},12,"Bibliografía","C",102,"",-89,null,null,null,null,null,null,null,null,62,"NBC",912,"Medicina",912,null,null,null,null,null,null,null,null,null,null,"Nanofab",72,null,null,null,null,null,null,null,null,null,"COL0194721","Congénitas",{"$f":"COUNTIF(BA$4:BA157,BA157)","v":3},{"$f":"ROW()","v":157},1]
[null,null,null,null,null,null,null,null,null,null,null,{"$f":"COUNTIF(N$56:N158,N158)","v":8},12,"Bibliografía","C",103,"",-89,null,null,null,null,null,null,null,null,63,"NBC",913,"Enfermería y partería",913,null,null,null,null,null,null,null,null,null,null,"ORTOPEDIA Y TRAUMATOLOGIA HMC UMNG",55,null,null,null,null,null,null,null,null,null,"COL0194721","Educación",{"$f":"COUNTIF(BA$4:BA158,BA158)","v":4},{"$f":"ROW()","v":158},1]
[null,null,null,null,null,null,null,null,null,null,null,{"$f":"COUNTIF(N$56:N159,N159)","v":9},12,"Bibliografía","C",104,"",-89,null,null,null,null,null,null,null,null,64,"NBC",914,"Tecnología de diagnóstico y tratamiento médico",914,null,null,null,null,null,null,null,null,null,null,"\"PYDES\" Pedagogía y didáctica en la educación superior",20,null,null,null,null,null,null,null,null,null,"COL0194721","Oncología",{"$f":"COUNTIF(BA$4:BA159,BA159)","v":5},{"$f":"ROW()","v":159},1]
[null,null,null,null,null,null,null,null,null,null,null,{"$f":"COUNTIF(N$56:N160,N160)","v":10},12,"Bibliografía","C",105,"",-89,null,null,null,null,null,null,null,null,65,"NBC",915,"Terapia y rehabilitación",915,null,null,null,null,null,null,null,null,null,null,"PIREO \"Procesos de Integración, Regionalización y Estructuras Organizacionales\"",22,null,null,null,null,null,null,null,null,null,"COL0194721","Trauma",{"$f":"COUNTIF(BA$4:BA160,BA160)","v":6},{"$f":"ROW()","v":160},1]
[null,null,null,null,null,null,null,null,null,null,null,{"$f":"COUNTIF(N$56:N161,N161)","v":11},12,"Bibliografía","C",106,"",-89,null,null,null,null,null,null,null,null,66,"NBC",916,"Farmacia",916,null,null,null,null,null,null,null,null,null,null,"PROCESOS, OPERACIONES Y LOGISTICA (PROPYLOG)",75,null,null,null,null,null,null,null,null,null,"COL0015722","Bioética",{"$f":"COUNTIF(BA$4:BA161,BA161)","v":1},{"$f":"ROW()","v":161},1]
[null,null,null,null,null,null,null,null,null,null,null,{"$f":"COUNTIF(N$56:N162,N162)","v":12},12,"Bibliografía","C",107,"",-89,null,null,null,null,null,null,null,null,67,"NBC",917,"Medicina y terapia tradicional y complementaria",917,null,null,null,null,null,null,null,null,null,null,"PRODUCCION, INNOVACION Y TECNOLOGIA",39,null,null,null,null,null,null,null,null,null,"COL0015722","Educación y tecnologías",{"$f":"COUNTIF(BA$4:BA162,BA162)","v":2},{"$f":"ROW()","v":162},1]
[null,null,null,null,null,null,null,null,null,null,null,{"$f":"COUNTIF(N$56:N163,N163)","v":13},12,"Bibliografía","C",108,"",-89,null,null,null,null,null,null,null,null,68,"NBC",921,"Asistencia a adultos mayores y discapacitados",921,null,null,null,null,null,null,null,null,null,null,"PROPPIO: Procesos organizacionales, programaticos y políticos para la promoción del desarrollo",18,null,null,null,null,null,null,null,null,null,"COL0005439","MODELACIÓN NUMÉRICA",{"$f":"COUNTIF(BA$4:BA163,BA163)","v":1},{"$f":"ROW()","v":163},1]
[null,null,null,null,null,null,null,null,null,null,null,{"$f":"COUNTIF(N$56:N164,N164)","v":14},12,"Bibliografía","C",109,"",-89,null,null,null,null,null,null,null,null,69,"NBC",922,"Asistencia a la infancia y servicios para jóvenes",922,null,null,null,null,null,null,null,null,null,null,"Red de estudios sociojurídicos comparados y políticas públicas",17,null,null,null,null,null,null,null,null,null,"COL0005439","ORDENACIÓN DEL TERRITORIO",{"$f":"COUNTIF(BA$4:BA164,BA164)","v":2},{"$f":"ROW()","v":164},1]
[null,null,null,null,null,null,null,null,null,null,null,{"$f":"COUNTIF(N$56:N165,N165)","v":15},12,"Bibliografía","C",110,"",-89,null,null,null,null,null,null,null,null,70,"NBC",923,"Trabajo social y orientación",923,null,null,null,null,null,null,null,null,null,null,"Salud y Comportamiento",56,null,null,null,null,null,null,null,null,null,"COL0005439","PAVIMENTOS",{"$f":"COUNTIF(BA$4:BA165,BA165)","v":3},{"$f":"ROW()","v":165},1]
[null,null,null,null,null,null,null,null,null,null,null,{"$f":"COUNTIF(N$56:N166,N166)","v":16},12,"Bibliografía","C",111,"",-89,null,null,null,null,null,null,null,null,71,"NBC",1011,"Servicios domésticos",1011,null,null,null,null,null,null,null,null,null,null,"Sistemas de Infraestructura de Ingeniería Civil",76,null,null,null,null,null,null,null,null,null,"COL0005439","SUELOS",{"$f":"COUNTIF(BA$4:BA166,BA166)","v":4},{"$f":"ROW()","v":166},1]
[null,null,null,null,null,null,null,null,null,null,null,{"$f":"COUNTIF(N$56:N167,N167)","v":17},12,"Bibliografía","C",112,"",-89,null,null,null,null,null,null,null,null,72,"NBC",1012,"Peluquería y tratamientos de belleza",1012,null,null,null,null,null,null,null,null,null,null,"Sociedad, Estrategia y Seguridad",30,null,null,null,null,null,null,null,null,null,"COL0005439","TRANSPORTES",{"$f":"COUNTIF(BA$4:BA167,BA167)","v":5},{"$f":"ROW()","v":167},1]
[null,null,null,null,null,null,null,null,null,null,null,{"$f":"COUNTIF(N$56:N168,N168)","v":18},12,"Bibliografía","C",113,"",-89,null,null,null,null,null,null,null,null,73,"NBC",1013,"Hotelería, restaurantes y servicios de banquetes",1013,null,null,null,null,null,null,null,null,null,null,"TIGUM: Grupo de Investigacion en Telemedicina Universidad Militar",37,null,null,null,null,null,null,null,null,null,"COL0175225","Efermedades Tropicales",{"$f":"COUNTIF(BA$4:BA168,BA168)","v":1},{"$f":"ROW()","v":168},1]
[null,null,null,null,null,null,null,null,null,null,null,{"$f":"COUNTIF(N$56:N169,N169)","v":19},12,"Bibliografía","C",114,"",-89,null,null,null,null,null,null,null,null,74,"NBC",1014,"Deportes",1014,null,null,null,null,null,null,null,null,null,null,"VOLTA - Grupo de Materiales, Corrosión, Degradación y Protección (GMCDP) ",38,null,null,null,null,null,null,null,null,null,"COL0175225","Enfermedades de Transmisión Sexual",{"$f":"COUNTIF(BA$4:BA169,BA169)","v":2},{"$f":"ROW()","v":169},1]
[null,null,null,null,null,null,null,null,null,null,null,{"$f":"COUNTIF(N$56:N170,N170)","v":20},12,"Bibliografía","C",115,"",-89,null,null,null,null,null,null,null,null,75,"NBC",1015,"Viajes, turismo y actividades recreativas",1015,null,null,null,null,null,null,null,null,null,null,null,null,null,null,null,null,null,null,null,null,null,"COL0175225","Infecciones Asociadas al Cuidado de la Salud",{"$f":"COUNTIF(BA$4:BA170,BA170)","v":3},{"$f":"ROW()","v":170},1]
[null,null,null,null,null,null,null,null,null,null,null,{"$f":"COUNTIF(N$56:N171,N171)","v":21},12,"Bibliografía","C",116,"",-89,null,null,null,null,null,null,null,null,76,"NBC",1021,"Saneamiento de la comunidad",1021,null,null,null,null,null,null,null,null,null,null,null,null,null,null,null,null,null,null,null,null,null,"COL0069296","Modelos de simulación",{"$f":"COUNTIF(BA$4:BA171,BA171)","v":1},{"$f":"ROW()","v":171},1]
[null,null,null,null,null,null,null,null,null,null,null,{"$f":"COUNTIF(N$56:N172,N172)","v":22},12,"Bibliografía","C",117,"",-89,null,null,null,null,null,null,null,null,77,"NBC",1022,"Salud y protección laboral",1022,null,null,null,null,null,null,null,null,null,null,null,null,null,null,null,null,null,null,null,null,null,"COL0152463","CURRÍCULO Y EVALUACIÓN",{"$f":"COUNTIF(BA$4:BA172,BA172)","v":1},{"$f":"ROW()","v":172},1]
[null,null,null,null,null,null,null,null,null,null,null,{"$f":"COUNTIF(N$56:N173,N173)","v":23},12,"Bibliografía","C",118,"",-89,null,null,null,null,null,null,null,null,78,"NBC",1031,"Educación militar y de defensa",1031,null,null,null,null,null,null,null,null,null,null,null,null,null,null,null,null,null,null,null,null,null,"COL0152463","DOCENCIA Y PEDAGOGÍA",{"$f":"COUNTIF(BA$4:BA173,BA173)","v":2},{"$f":"ROW()","v":173},1]
[null,null,null,null,null,null,null,null,null,null,null,{"$f":"COUNTIF(N$56:N174,N174)","v":24},12,"Bibliografía","C",119,"",-89,null,null,null,null,null,null,null,null,79,"NBC",1032,"Protección de las personas y de la propiedad",1032,null,null,null,null,null,null,null,null,null,null,null,null,null,null,null,null,null,null,null,null,null,"COL0152463","INVESTIGACIÓN CLINICA",{"$f":"COUNTIF(BA$4:BA174,BA174)","v":3},{"$f":"ROW()","v":174},1]
[null,null,null,null,null,null,null,null,null,null,null,{"$f":"COUNTIF(N$56:N175,N175)","v":25},12,"Bibliografía","C",120,"",-89,null,null,null,null,null,null,null,null,80,"NBC",1041,"Servicios de transporte",1041,null,null,null,null,null,null,null,null,null,null,null,null,null,null,null,null,null,null,null,null,null,"COL0152463","Proyección Social y contexto de formación en Salud Pública",{"$f":"COUNTIF(BA$4:BA175,BA175)","v":4},{"$f":"ROW()","v":175},1]
[null,null,null,null,null,null,null,null,null,null,null,null,null,null,null,null,null,null,null,null,null,null,null,null,null,null,1,"Nivel",1,"Postdoctorado",{"$f":"AC176","v":1},null,null,null,null,null,null,null,null,null,null,null,null,null,null,null,null,null,null,null,null,null,"COL0096032","Bioetica, Bioderecho, Biomedicina y Biotecnologia",{"$f":"COUNTIF(BA$4:BA176,BA176)","v":1},{"$f":"ROW()","v":176},1]
[null,null,null,null,null,null,null,null,null,null,null,null,null,null,null,null,null,null,null,null,null,null,null,null,null,null,2,"Nivel",2,"Doctorado",{"$f":"AC177","v":2},null,null,null,null,null,null,null,null,null,null,null,null,null,null,null,null,null,null,null,null,null,"COL0096032","Células Madre & Medicina Regenerativa",{"$f":"COUNTIF(BA$4:BA177,BA177)","v":2},{"$f":"ROW()","v":177},1]
[null,null,null,null,null,null,null,null,null,null,null,null,null,null,null,null,null,null,null,null,null,null,null,null,null,null,3,"Nivel",3,"Maestría",3,null,null,null,null,null,null,null,null,null,null,null,null,null,null,null,null,null,null,null,null,null,"COL0096032","Genética Humana",{"$f":"COUNTIF(BA$4:BA178,BA178)","v":3},{"$f":"ROW()","v":178},1]
[null,null,null,null,null,null,null,null,null,null,null,null,null,null,null,null,null,null,null,null,null,null,null,null,null,null,4,"Nivel",4,"Esp. universitaria",4,null,null,null,null,null,null,null,null,null,null,null,null,null,null,null,null,null,null,null,null,null,"COL0136423","Control óptimo estocástico",{"$f":"COUNTIF(BA$4:BA179,BA179)","v":1},{"$f":"ROW()","v":179},1]
[null,null,null,null,null,null,null,null,null,null,null,null,null,null,null,null,null,null,null,null,null,null,null,null,null,null,5,"Nivel",5,"Esp. Técnica Profesional",5,null,null,null,null,null,null,null,null,null,null,null,null,null,null,null,null,null,null,null,null,null,"COL0136423","Estadística Multivariada paramétrica y no paramétrica.",{"$f":"COUNTIF(BA$4:BA180,BA180)","v":2},{"$f":"ROW()","v":180},1]
[null,null,null,null,null,null,null,null,null,null,null,null,null,null,null,null,null,null,null,null,null,null,null,null,null,null,6,"Nivel",6,"Esp. Tecnológica",6,null,null,null,null,null,null,null,null,null,null,null,null,null,null,null,null,null,null,null,null,null,"COL0136423","Métodos estadísticos basados en grafos",{"$f":"COUNTIF(BA$4:BA181,BA181)","v":3},{"$f":"ROW()","v":181},1]
[null,null,null,null,null,null,null,null,null,null,null,null,null,null,null,null,null,null,null,null,null,null,null,null,null,null,7,"Nivel",7,"Universitario",7,null,null,null,null,null,null,null,null,null,null,null,null,null,null,null,null,null,null,null,null,null,"COL0136423","Optimizacion Semidefinida",{"$f":"COUNTIF(BA$4:BA182,BA182)","v":4},{"$f":"ROW()","v":182},1]
[null,null,null,null,null,null,null,null,null,null,null,null,null,null,null,null,null,null,null,null,null,null,null,null,null,null,8,"Nivel",8,"Tecnológico",8,null,null,null,null,null,null,null,null,null,null,null,null,null,null,null,null,null,null,null,null,null,"COL0136423","Optimización Numérica. Máquinas de Vectores de Soportes.",{"$f":"COUNTIF(BA$4:BA183,BA183)","v":5},{"$f":"ROW()","v":183},1]
[null,null,null,null,null,null,null,null,null,null,null,null,null,null,null,null,null,null,null,null,null,null,null,null,null,null,9,"Nivel",9,"Técnico profesional",9,null,null,null,null,null,null,null,null,null,null,null,null,null,null,null,null,null,null,null,null,null,"COL0067504","Gestión Tecnológica",{"$f":"COUNTIF(BA$4:BA184,BA184)","v":1},{"$f":"ROW()","v":184},1]
[null,null,null,null,null,null,null,null,null,null,null,null,null,null,null,null,null,null,null,null,null,null,null,null,null,null,10,"Nivel",10,"Estudiante pregrado",10,null,null,null,null,null,null,null,null,null,null,null,null,null,null,null,null,null,null,null,null,null,"COL0067504","Gestión del conocimiento",{"$f":"COUNTIF(BA$4:BA185,BA185)","v":2},{"$f":"ROW()","v":185},1]
[null,null,null,null,null,null,null,null,null,null,null,null,null,null,null,null,null,null,null,null,null,null,null,null,null,null,1,"A",100,"Puede aplicar al maximo de presupuesto dependiendo los puntos comprometidos",null,null,null,null,null,null,null,null,null,null,null,null,null,null,null,null,null,null,null,null,null,null,"COL0067504","Los Estilos de enseñanza y Aprendizaje",{"$f":"COUNTIF(BA$4:BA186,BA186)","v":3},{"$f":"ROW()","v":186},1]
[null,null,null,null,null,null,null,null,null,null,null,null,null,null,null,null,null,null,null,null,null,null,null,null,null,null,8,"A1",100,"Puede aplicar al maximo de presupuesto dependiendo los puntos comprometidos",null,null,null,null,null,null,null,null,null,null,null,null,null,null,null,null,null,null,null,null,null,null,"COL0067504","Mercadeo Cuántico",{"$f":"COUNTIF(BA$4:BA187,BA187)","v":4},{"$f":"ROW()","v":187},1]
[null,null,null,null,null,null,null,null,null,null,null,null,null,null,null,null,null,null,null,null,null,null,null,null,null,null,9,"B",100,"Puede aplicar al maximo de presupuesto dependiendo los puntos comprometidos",null,null,null,null,null,null,null,null,null,null,null,null,null,null,null,null,null,null,null,null,null,null,"COL0067504","Mineria Web",{"$f":"COUNTIF(BA$4:BA188,BA188)","v":5},{"$f":"ROW()","v":188},1]
[null,null,null,null,null,null,null,null,null,null,null,null,null,null,null,null,null,null,null,null,null,null,null,null,null,null,10,"C",100,"Puede aplicar al maximo de presupuesto dependiendo los puntos comprometidos",null,null,null,null,null,null,null,null,null,null,null,null,null,null,null,null,null,null,null,null,null,null,"COL0067504","Salud Pública, Bioética e Ingeniería",{"$f":"COUNTIF(BA$4:BA189,BA189)","v":6},{"$f":"ROW()","v":189},1]
[null,null,null,null,null,null,null,null,null,null,null,null,null,null,null,null,null,null,null,null,null,null,null,null,null,null,11,"D",50,"Puede aplicar hasta 50 millones de presupuesto dependiendo los puntos comprometidos",null,null,null,null,null,null,null,null,null,null,null,null,null,null,null,null,null,null,null,null,null,null,"COL0049999","Calidad y Gestión en la Educación",{"$f":"COUNTIF(BA$4:BA190,BA190)","v":1},{"$f":"ROW()","v":190},1]
[null,null,null,null,null,null,null,null,null,null,null,null,null,null,null,null,null,null,null,null,null,null,null,null,null,null,2,"R",25,"Puede aplicar hasta 25 millones de presupuesto dependiendo los puntos comprometidos",null,null,null,null,null,null,null,null,null,null,null,null,null,null,null,null,null,null,null,null,null,null,"COL0049999","Gestión y Proyectos",{"$f":"COUNTIF(BA$4:BA191,BA191)","v":2},{"$f":"ROW()","v":191},1]
[null,null,null,null,null,null,null,null,null,null,null,null,null,null,null,null,null,null,null,null,null,null,null,null,null,null,2,"NR",25,"Puede aplicar hasta 25 millones de presupuesto dependiendo los puntos comprometidos",null,null,null,null,null,null,null,null,null,null,null,null,null,null,null,null,null,null,null,null,null,null,"COL0049999","Innovación",{"$f":"COUNTIF(BA$4:BA192,BA192)","v":3},{"$f":"ROW()","v":192},1]
[null,null,null,null,null,null,null,null,null,null,null,null,null,null,null,null,null,null,null,null,null,null,null,null,null,null,12,"NA",25,"Puede aplicar hasta 25 millones de presupuesto dependiendo los puntos comprometidos",null,null,null,null,null,null,null,null,null,null,null,null,null,null,null,null,null,null,null,null,null,null,"COL0049999","Productividad",{"$f":"COUNTIF(BA$4:BA193,BA193)","v":4},{"$f":"ROW()","v":193},1]
[null,null,null,null,null,null,null,null,null,null,null,null,null,null,null,null,null,null,null,null,null,null,null,null,null,null,1,"Nivel_Inst",1,"Distrital",null,null,null,null,null,null,null,null,null,null,null,null,null,null,null,null,null,null,null,null,null,null,"COL0049999","Sostenibilidad y Medio Ambiente",{"$f":"COUNTIF(BA$4:BA194,BA194)","v":5},{"$f":"ROW()","v":194},1]
[null,null,null,null,null,null,null,null,null,null,null,null,null,null,null,null,null,null,null,null,null,null,null,null,null,null,2,"Nivel_Inst",2,"Nacional",null,null,null,null,null,null,null,null,null,null,null,null,null,null,null,null,null,null,null,null,null,null,"COL0049999","Tecnología",{"$f":"COUNTIF(BA$4:BA195,BA195)","v":6},{"$f":"ROW()","v":195},1]
[null,null,null,null,null,null,null,null,null,null,null,null,null,null,null,null,null,null,null,null,null,null,null,null,null,null,3,"Nivel_Inst",3,"Internacional",null,null,null,null,null,null,null,null,null,null,null,null,null,null,null,null,null,null,null,null,null,null,"COL0126015","INMUNODERMATOLOGIA",{"$f":"COUNTIF(BA$4:BA196,BA196)","v":1},{"$f":"ROW()","v":196},{"$f":"COUNTIF($AQ$3:$AQ$95,BA196)","v":1}]
[null,null,null,null,null,null,null,null,null,null,null,null,null,null,null,null,null,null,null,null,null,null,null,null,null,null,1,"Clas Prod","GNC","Productos de Generación de Nuevo Conocimiento (GNC) ",{"$f":"AA197","v":1},null,null,null,null,null,null,null,null,null,null,null,null,null,null,null,null,null,null,null,null,null,"COL0126015","PSORIASIS",{"$f":"COUNTIF(BA$4:BA197,BA197)","v":2},{"$f":"ROW()","v":197},1]
[null,null,null,null,null,null,null,null,null,null,null,null,null,null,null,null,null,null,null,null,null,null,null,null,null,null,2,"Clas Prod","DTI","Productos resultado de actividades de desarrollo tecnológico e innovación (DTI)",{"$f":"AA198","v":2},null,null,null,null,null,null,null,null,null,null,null,null,null,null,null,null,null,null,null,null,null,"COL0138698","BIOETICA",{"$f":"COUNTIF(BA$4:BA198,BA198)","v":1},{"$f":"ROW()","v":198},1]
[null,null,null,null,null,null,null,null,null,null,null,null,null,null,null,null,null,null,null,null,null,null,null,null,null,null,3,"Clas Prod","SAC","Socialización y Apropiación social del Conocimiento (SAC) ",3,null,null,null,null,null,null,null,null,null,null,null,null,null,null,null,null,null,null,null,null,null,"COL0138698","CEREBROVASCULAR",{"$f":"COUNTIF(BA$4:BA199,BA199)","v":2},{"$f":"ROW()","v":199},1]
[null,null,null,null,null,null,null,null,null,null,null,null,null,null,null,null,null,null,null,null,null,null,null,null,null,null,4,"Clas Prod","FRH","Formación de Recurso Humano (FRH) ",4,null,null,null,null,null,null,null,null,null,null,null,null,null,null,null,null,null,null,null,null,null,"COL0138698","DEMENCIAS",{"$f":"COUNTIF(BA$4:BA200,BA200)","v":3},{"$f":"ROW()","v":200},1]
[null,null,null,null,null,null,null,null,null,null,null,null,null,null,null,null,null,null,null,null,null,null,null,null,null,null,5,"Clas Prod","GI","Gestión de Investigación (GI) ",5,null,null,null,null,null,null,null,null,null,null,null,null,null,null,null,null,null,null,null,null,null,"COL0138698","DISTONIAS",{"$f":"COUNTIF(BA$4:BA201,BA201)","v":4},{"$f":"ROW()","v":201},1]
[null,null,null,null,null,null,null,null,null,null,null,null,null,null,null,null,null,null,null,null,null,null,null,null,null,null,null,null,null,null,null,null,null,null,null,null,null,null,null,null,null,null,null,null,null,null,null,null,null,null,null,null,"COL0138698","ENFERMEDADES HUERFANAS",{"$f":"COUNTIF(BA$4:BA202,BA202)","v":5},{"$f":"ROW()","v":202},1]
[null,null,null,null,null,null,null,null,null,null,null,null,null,null,null,null,null,null,null,null,null,null,null,null,null,null,null,null,null,null,null,null,null,null,null,null,null,null,null,null,null,null,null,null,null,null,null,null,null,null,null,null,"COL0138698","EPILEPSIA",{"$f":"COUNTIF(BA$4:BA203,BA203)","v":6},{"$f":"ROW()","v":203},1]
[null,null,null,null,null,null,null,null,null,null,null,null,null,null,null,null,null,null,null,null,null,null,null,null,null,null,null,null,null,null,null,null,null,null,null,null,null,null,null,null,null,null,null,null,null,null,null,null,null,null,null,null,"COL0138698","ESCLEROSIS MULTIPLE",{"$f":"COUNTIF(BA$4:BA204,BA204)","v":7},{"$f":"ROW()","v":204},1]
[null,null,null,null,null,null,null,null,null,null,null,null,null,null,null,null,null,null,null,null,null,null,null,null,null,null,null,null,null,null,null,null,null,null,null,null,null,null,null,null,null,null,null,null,null,null,null,null,null,null,null,null,"COL0138698","MOVIMIENTOS ANORMALES",{"$f":"COUNTIF(BA$4:BA205,BA205)","v":8},{"$f":"ROW()","v":205},1]
[null,null,null,null,null,null,null,null,null,null,null,null,null,null,null,null,null,null,null,null,null,null,null,null,null,null,null,null,null,null,null,null,null,null,null,null,null,null,null,null,null,null,null,null,null,null,null,null,null,null,null,null,"COL0138698","NEUROCIRUGÍA DE COLUMNA",{"$f":"COUNTIF(BA$4:BA206,BA206)","v":9},{"$f":"ROW()","v":206},1]
[null,null,null,null,null,null,null,null,null,null,null,null,null,null,null,null,null,null,null,null,null,null,null,null,null,null,null,null,null,null,null,null,null,null,null,null,null,null,null,null,null,null,null,null,null,null,null,null,null,null,null,null,"COL0138698","NEUROCIRUGÍA FUNCIONAL",{"$f":"COUNTIF(BA$4:BA207,BA207)","v":10},{"$f":"ROW()","v":207},1]
[null,null,null,null,null,null,null,null,null,null,null,null,null,null,null,null,null,null,null,null,null,null,null,null,null,null,null,null,null,null,null,null,null,null,null,null,null,null,null,null,null,null,null,null,null,null,null,null,null,null,null,null,"COL0138698","NEUROINFECCIONES",{"$f":"COUNTIF(BA$4:BA208,BA208)","v":11},{"$f":"ROW()","v":208},1]
[null,null,null,null,null,null,null,null,null,null,null,null,null,null,null,null,null,null,null,null,null,null,null,null,null,null,null,null,null,null,null,null,null,null,null,null,null,null,null,null,null,null,null,null,null,null,null,null,null,null,null,null,"COL0138698","NEUROMUSCULAR",{"$f":"COUNTIF(BA$4:BA209,BA209)","v":12},{"$f":"ROW()","v":209},1]
[null,null,null,null,null,null,null,null,null,null,null,null,null,null,null,null,null,null,null,null,null,null,null,null,null,null,null,null,null,null,null,null,null,null,null,null,null,null,null,null,null,null,null,null,null,null,null,null,null,null,null,null,"COL0138698","NEUROONCOLOGIA",{"$f":"COUNTIF(BA$4:BA210,BA210)","v":13},{"$f":"ROW()","v":210},1]
[null,null,null,null,null,null,null,null,null,null,null,null,null,null,null,null,null,null,null,null,null,null,null,null,null,null,null,null,null,null,null,null,null,null,null,null,null,null,null,null,null,null,null,null,null,null,null,null,null,null,null,null,"COL0138698","PARALISIS CEREBRAL",{"$f":"COUNTIF(BA$4:BA211,BA211)","v":14},{"$f":"ROW()","v":211},1]
[null,null,null,null,null,null,null,null,null,null,null,null,null,null,null,null,null,null,null,null,null,null,null,null,null,null,null,null,null,null,null,null,null,null,null,null,null,null,null,null,null,null,null,null,null,null,null,null,null,null,null,null,"COL0138698","RETARDO MENTAL",{"$f":"COUNTIF(BA$4:BA212,BA212)","v":15},{"$f":"ROW()","v":212},1]
[null,null,null,null,null,null,null,null,null,null,null,null,null,null,null,null,null,null,null,null,null,null,null,null,null,null,null,null,null,null,null,null,null,null,null,null,null,null,null,null,null,null,null,null,null,null,null,null,null,null,null,null,"COL0138698","SALUD MENTAL",{"$f":"COUNTIF(BA$4:BA213,BA213)","v":16},{"$f":"ROW()","v":213},1]
[null,null,null,null,null,null,null,null,null,null,null,null,null,null,null,null,null,null,null,null,null,null,null,null,null,null,null,null,null,null,null,null,null,null,null,null,null,null,null,null,null,null,null,null,null,null,null,null,null,null,null,null,"COL0138698","SUEÑO",{"$f":"COUNTIF(BA$4:BA214,BA214)","v":17},{"$f":"ROW()","v":214},1]
[null,null,null,null,null,null,null,null,null,null,null,null,null,null,null,null,null,null,null,null,null,null,null,null,null,null,null,null,null,null,null,null,null,null,null,null,null,null,null,null,null,null,null,null,null,null,null,null,null,null,null,null,"COL0138698","TRASTORNOS DEL NEURODESARROLLO",{"$f":"COUNTIF(BA$4:BA215,BA215)","v":18},{"$f":"ROW()","v":215},1]
[null,null,null,null,null,null,null,null,null,null,null,null,null,null,null,null,null,null,null,null,null,null,null,null,null,null,null,null,null,null,null,null,null,null,null,null,null,null,null,null,null,null,null,null,null,null,null,null,null,null,null,null,"COL0138698","TRAUMA DE CRÁNEO Y COLUMNA",{"$f":"COUNTIF(BA$4:BA216,BA216)","v":19},{"$f":"ROW()","v":216},1]
[null,null,null,null,null,null,null,null,null,null,null,null,null,null,null,null,null,null,null,null,null,null,null,null,null,null,null,null,null,null,null,null,null,null,null,null,null,null,null,null,null,null,null,null,null,null,null,null,null,null,null,null,"COL0120281","Medicina Electrodiagnostica",{"$f":"COUNTIF(BA$4:BA217,BA217)","v":1},{"$f":"ROW()","v":217},1]
[null,null,null,null,null,null,null,null,null,null,null,null,null,null,null,null,null,null,null,null,null,null,null,null,null,null,null,null,null,null,null,null,null,null,null,null,null,null,null,null,null,null,null,null,null,null,null,null,null,null,null,null,"COL0120281","Rehabilitacion Neurologica",{"$f":"COUNTIF(BA$4:BA218,BA218)","v":2},{"$f":"ROW()","v":218},1]
[null,null,null,null,null,null,null,null,null,null,null,null,null,null,null,null,null,null,null,null,null,null,null,null,null,null,null,null,null,null,null,null,null,null,null,null,null,null,null,null,null,null,null,null,null,null,null,null,null,null,null,null,"COL0120281","Rehabilitacion cardio-pulmonar",{"$f":"COUNTIF(BA$4:BA219,BA219)","v":3},{"$f":"ROW()","v":219},1]
[null,null,null,null,null,null,null,null,null,null,null,null,null,null,null,null,null,null,null,null,null,null,null,null,null,null,null,null,null,null,null,null,null,null,null,null,null,null,null,null,null,null,null,null,null,null,null,null,null,null,null,null,"COL0120281","Rehabilitacion musculo esqueletica",{"$f":"COUNTIF(BA$4:BA220,BA220)","v":4},{"$f":"ROW()","v":220},1]
[null,null,null,null,null,null,null,null,null,null,null,null,null,null,null,null,null,null,null,null,null,null,null,null,null,null,null,null,null,null,null,null,null,null,null,null,null,null,null,null,null,null,null,null,null,null,null,null,null,null,null,null,"COL0120281","Rehabilitación Infantil",{"$f":"COUNTIF(BA$4:BA221,BA221)","v":5},{"$f":"ROW()","v":221},1]
[null,null,null,null,null,null,null,null,null,null,null,null,null,null,null,null,null,null,null,null,null,null,null,null,null,null,null,null,null,null,null,null,null,null,null,null,null,null,null,null,null,null,null,null,null,null,null,null,null,null,null,null,"COL0120281","Robotica en Rehabilitación",{"$f":"COUNTIF(BA$4:BA222,BA222)","v":6},{"$f":"ROW()","v":222},1]
[null,null,null,null,null,null,null,null,null,null,null,null,null,null,null,null,null,null,null,null,null,null,null,null,null,null,null,null,null,null,null,null,null,null,null,null,null,null,null,null,null,null,null,null,null,null,null,null,null,null,null,null,"COL0138796","Docencia y Didactica de la Física Universitaria",{"$f":"COUNTIF(BA$4:BA223,BA223)","v":1},{"$f":"ROW()","v":223},1]
[null,null,null,null,null,null,null,null,null,null,null,null,null,null,null,null,null,null,null,null,null,null,null,null,null,null,null,null,null,null,null,null,null,null,null,null,null,null,null,null,null,null,null,null,null,null,null,null,null,null,null,null,"COL0138796","Física Computacional",{"$f":"COUNTIF(BA$4:BA224,BA224)","v":2},{"$f":"ROW()","v":224},1]
[null,null,null,null,null,null,null,null,null,null,null,null,null,null,null,null,null,null,null,null,null,null,null,null,null,null,null,null,null,null,null,null,null,null,null,null,null,null,null,null,null,null,null,null,null,null,null,null,null,null,null,null,"COL0138796","Magnetismo y Aplicaciones",{"$f":"COUNTIF(BA$4:BA225,BA225)","v":3},{"$f":"ROW()","v":225},1]
[null,null,null,null,null,null,null,null,null,null,null,null,null,null,null,null,null,null,null,null,null,null,null,null,null,null,null,null,null,null,null,null,null,null,null,null,null,null,null,null,null,null,null,null,null,null,null,null,null,null,null,null,"COL0138796","Nanotecnología y Sensórica",{"$f":"COUNTIF(BA$4:BA226,BA226)","v":4},{"$f":"ROW()","v":226},1]
[null,null,null,null,null,null,null,null,null,null,null,null,null,null,null,null,null,null,null,null,null,null,null,null,null,null,null,null,null,null,null,null,null,null,null,null,null,null,null,null,null,null,null,null,null,null,null,null,null,null,null,null,"COL0138796","Uso de radiación ionizante para la producción de imágenes médicas",{"$f":"COUNTIF(BA$4:BA227,BA227)","v":5},{"$f":"ROW()","v":227},1]
[null,null,null,null,null,null,null,null,null,null,null,null,null,null,null,null,null,null,null,null,null,null,null,null,null,null,null,null,null,null,null,null,null,null,null,null,null,null,null,null,null,null,null,null,null,null,null,null,null,null,null,null,"COL0032278","Biología y Ecología de plagas y enemigos naturales de cultivos de importancia económica",{"$f":"COUNTIF(BA$4:BA228,BA228)","v":1},{"$f":"ROW()","v":228},1]
[null,null,null,null,null,null,null,null,null,null,null,null,null,null,null,null,null,null,null,null,null,null,null,null,null,null,null,null,null,null,null,null,null,null,null,null,null,null,null,null,null,null,null,null,null,null,null,null,null,null,null,null,"COL0032278","Ecología Química y Redes Tróficas",{"$f":"COUNTIF(BA$4:BA229,BA229)","v":2},{"$f":"ROW()","v":229},1]
[null,null,null,null,null,null,null,null,null,null,null,null,null,null,null,null,null,null,null,null,null,null,null,null,null,null,null,null,null,null,null,null,null,null,null,null,null,null,null,null,null,null,null,null,null,null,null,null,null,null,null,null,"COL0032278","Generación de recomendaciones para el manejo integrado de plagas, mediante el diseño de modelos de simulación de agroecosistemas",{"$f":"COUNTIF(BA$4:BA230,BA230)","v":3},{"$f":"ROW()","v":230},1]
[null,null,null,null,null,null,null,null,null,null,null,null,null,null,null,null,null,null,null,null,null,null,null,null,null,null,null,null,null,null,null,null,null,null,null,null,null,null,null,null,null,null,null,null,null,null,null,null,null,null,null,null,"COL0031959","Análisis de redes de interacción planta-polinizador a partir de técnicas palinológicas",{"$f":"COUNTIF(BA$4:BA231,BA231)","v":1},{"$f":"ROW()","v":231},1]
[null,null,null,null,null,null,null,null,null,null,null,null,null,null,null,null,null,null,null,null,null,null,null,null,null,null,null,null,null,null,null,null,null,null,null,null,null,null,null,null,null,null,null,null,null,null,null,null,null,null,null,null,"COL0031959","Cría de especies del género Bombus para su utilización como polinizadores en cultivos de la sabana Cundi-boyacense.",{"$f":"COUNTIF(BA$4:BA232,BA232)","v":2},{"$f":"ROW()","v":232},1]
[null,null,null,null,null,null,null,null,null,null,null,null,null,null,null,null,null,null,null,null,null,null,null,null,null,null,null,null,null,null,null,null,null,null,null,null,null,null,null,null,null,null,null,null,null,null,null,null,null,null,null,null,"COL0031959","Diversidad, biología y taxonomia de polinizadores colombianos",{"$f":"COUNTIF(BA$4:BA233,BA233)","v":3},{"$f":"ROW()","v":233},1]
[null,null,null,null,null,null,null,null,null,null,null,null,null,null,null,null,null,null,null,null,null,null,null,null,null,null,null,null,null,null,null,null,null,null,null,null,null,null,null,null,null,null,null,null,null,null,null,null,null,null,null,null,"COL0031959","Ecología de la polinización: estudios del uso sostenible de especies de abejas silvestres como polinizadores de hortalizas y frutales",{"$f":"COUNTIF(BA$4:BA234,BA234)","v":4},{"$f":"ROW()","v":234},1]
[null,null,null,null,null,null,null,null,null,null,null,null,null,null,null,null,null,null,null,null,null,null,null,null,null,null,null,null,null,null,null,null,null,null,null,null,null,null,null,null,null,null,null,null,null,null,null,null,null,null,null,null,"COL0031959","Modelos biológicos y ecológicos de insectos benéficos",{"$f":"COUNTIF(BA$4:BA235,BA235)","v":5},{"$f":"ROW()","v":235},1]
[null,null,null,null,null,null,null,null,null,null,null,null,null,null,null,null,null,null,null,null,null,null,null,null,null,null,null,null,null,null,null,null,null,null,null,null,null,null,null,null,null,null,null,null,null,null,null,null,null,null,null,null,"COL0018448","Ambiente Virtuales de Aprendizaje",{"$f":"COUNTIF(BA$4:BA236,BA236)","v":1},{"$f":"ROW()","v":236},1]
[null,null,null,null,null,null,null,null,null,null,null,null,null,null,null,null,null,null,null,null,null,null,null,null,null,null,null,null,null,null,null,null,null,null,null,null,null,null,null,null,null,null,null,null,null,null,null,null,null,null,null,null,"COL0018448","Formación pedagógica y didáctica del docente",{"$f":"COUNTIF(BA$4:BA237,BA237)","v":2},{"$f":"ROW()","v":237},1]
[null,null,null,null,null,null,null,null,null,null,null,null,null,null,null,null,null,null,null,null,null,null,null,null,null,null,null,null,null,null,null,null,null,null,null,null,null,null,null,null,null,null,null,null,null,null,null,null,null,null,null,null,"COL0018448","Gestión del conocimiento y calidad de la educación superior",{"$f":"COUNTIF(BA$4:BA238,BA238)","v":3},{"$f":"ROW()","v":238},1]
[null,null,null,null,null,null,null,null,null,null,null,null,null,null,null,null,null,null,null,null,null,null,null,null,null,null,null,null,null,null,null,null,null,null,null,null,null,null,null,null,null,null,null,null,null,null,null,null,null,null,null,null,"COL0068762","Ingeniería Sostenible",{"$f":"COUNTIF(BA$4:BA239,BA239)","v":1},{"$f":"ROW()","v":239},1]
[null,null,null,null,null,null,null,null,null,null,null,null,null,null,null,null,null,null,null,null,null,null,null,null,null,null,null,null,null,null,null,null,null,null,null,null,null,null,null,null,null,null,null,null,null,null,null,null,null,null,null,null,"COL0068762","Inteligencia artificial y procesamiento de señales",{"$f":"COUNTIF(BA$4:BA240,BA240)","v":2},{"$f":"ROW()","v":240},1]
[null,null,null,null,null,null,null,null,null,null,null,null,null,null,null,null,null,null,null,null,null,null,null,null,null,null,null,null,null,null,null,null,null,null,null,null,null,null,null,null,null,null,null,null,null,null,null,null,null,null,null,null,"COL0068762","Tecnologías de la información y las comunicaciones (TIC)",{"$f":"COUNTIF(BA$4:BA241,BA241)","v":3},{"$f":"ROW()","v":241},1]
[null,null,null,null,null,null,null,null,null,null,null,null,null,null,null,null,null,null,null,null,null,null,null,null,null,null,null,null,null,null,null,null,null,null,null,null,null,null,null,null,null,null,null,null,null,null,null,null,null,null,null,null,"COL0126777","Animación 2D y 3D",{"$f":"COUNTIF(BA$4:BA242,BA242)","v":1},{"$f":"ROW()","v":242},1]
[null,null,null,null,null,null,null,null,null,null,null,null,null,null,null,null,null,null,null,null,null,null,null,null,null,null,null,null,null,null,null,null,null,null,null,null,null,null,null,null,null,null,null,null,null,null,null,null,null,null,null,null,"COL0126777","Audio y video",{"$f":"COUNTIF(BA$4:BA243,BA243)","v":2},{"$f":"ROW()","v":243},1]
[null,null,null,null,null,null,null,null,null,null,null,null,null,null,null,null,null,null,null,null,null,null,null,null,null,null,null,null,null,null,null,null,null,null,null,null,null,null,null,null,null,null,null,null,null,null,null,null,null,null,null,null,"COL0126777","Desarrollo Multimedia",{"$f":"COUNTIF(BA$4:BA244,BA244)","v":3},{"$f":"ROW()","v":244},1]
[null,null,null,null,null,null,null,null,null,null,null,null,null,null,null,null,null,null,null,null,null,null,null,null,null,null,null,null,null,null,null,null,null,null,null,null,null,null,null,null,null,null,null,null,null,null,null,null,null,null,null,null,"COL0126777","Museografía y Museología",{"$f":"COUNTIF(BA$4:BA245,BA245)","v":4},{"$f":"ROW()","v":245},1]
[null,null,null,null,null,null,null,null,null,null,null,null,null,null,null,null,null,null,null,null,null,null,null,null,null,null,null,null,null,null,null,null,null,null,null,null,null,null,null,null,null,null,null,null,null,null,null,null,null,null,null,null,"COL0126777","Narrativas digitales",{"$f":"COUNTIF(BA$4:BA246,BA246)","v":5},{"$f":"ROW()","v":246},1]
[null,null,null,null,null,null,null,null,null,null,null,null,null,null,null,null,null,null,null,null,null,null,null,null,null,null,null,null,null,null,null,null,null,null,null,null,null,null,null,null,null,null,null,null,null,null,null,null,null,null,null,null,"COL0126777","Patrimonio",{"$f":"COUNTIF(BA$4:BA247,BA247)","v":6},{"$f":"ROW()","v":247},1]
[null,null,null,null,null,null,null,null,null,null,null,null,null,null,null,null,null,null,null,null,null,null,null,null,null,null,null,null,null,null,null,null,null,null,null,null,null,null,null,null,null,null,null,null,null,null,null,null,null,"MED",null,null,"COL0110329","Didáctica de las matemáticas universitarias",{"$f":"COUNTIF(BA$4:BA248,BA248)","v":1},{"$f":"ROW()","v":248},1]
[null,null,null,null,null,null,null,null,null,null,null,null,null,null,null,null,null,null,null,null,null,null,null,null,null,null,null,null,null,null,null,null,null,null,null,null,null,null,null,null,null,null,null,null,null,null,null,null,null,"MED",null,null,"COL0110329","Diseño curricular y evaluación en matemáticas universitarias",{"$f":"COUNTIF(BA$4:BA249,BA249)","v":2},{"$f":"ROW()","v":249},1]
[null,null,null,null,null,null,null,null,null,null,null,null,null,null,null,null,null,null,null,null,null,null,null,null,null,null,null,null,null,null,null,null,null,null,null,null,null,null,null,null,null,null,null,null,null,null,null,null,null,null,null,null,"COL0110329","Herramientas virtuales y enseñanza de las matemáticas universitarias",{"$f":"COUNTIF(BA$4:BA250,BA250)","v":3},{"$f":"ROW()","v":250},1]
[null,null,null,null,null,null,null,null,null,null,null,null,null,null,null,null,null,null,null,null,null,null,null,null,null,null,null,null,null,null,null,null,null,null,null,null,null,null,null,null,null,null,null,null,null,null,null,null,null,null,null,null,"COL0038084","Acuaponía, recirculación e hidroponía",{"$f":"COUNTIF(BA$4:BA251,BA251)","v":1},{"$f":"ROW()","v":251},1]
[null,null,null,null,null,null,null,null,null,null,null,null,null,null,null,null,null,null,null,null,null,null,null,null,null,null,null,null,null,null,null,null,null,null,null,null,null,null,{"$f":"COUNTIF($AN$4:$AN$79,AL111)","v":0},"63n","MED",null,null,null,null,{"$f":"$AT$2&AV252&\":\"&$AT$2&AW252","v":"BB0:BB0"},{"$f":"ROW()","v":252},{"$f":"MINA(IF(AQ255=$BA$4:$BA$394,$BD$4:$BD$394))","v":0},{"$f":"MAXA(IF(AQ255=$BA$4:$BA$394,$BD$4:$BD$394))","v":0},null,null,null,"COL0038084","Biología evolutiva de animales",{"$f":"COUNTIF(BA$4:BA252,BA252)","v":2},{"$f":"ROW()","v":252},1]
[null,null,null,null,null,null,null,null,null,null,null,null,null,null,null,null,null,null,null,null,null,null,null,null,null,null,null,null,null,null,null,null,null,null,null,null,null,null,{"$f":"COUNTIF($AN$4:$AN$79,AL112)","v":0},"65n","MED",null,null,null,null,{"$f":"$AT$2&AV253&\":\"&$AT$2&AW253","v":"BB0:BB0"},{"$f":"ROW()","v":253},{"$f":"MINA(IF(AQ256=$BA$4:$BA$394,$BD$4:$BD$394))","v":0},{"$f":"MAXA(IF(AQ256=$BA$4:$BA$394,$BD$4:$BD$394))","v":0},null,null,null,"COL0038084","Ecotoxicología",{"$f":"COUNTIF(BA$4:BA253,BA253)","v":3},{"$f":"ROW()","v":253},1]
[null,null,null,null,null,null,null,null,null,null,null,null,null,null,null,null,null,null,null,null,null,null,null,null,null,null,null,null,null,null,null,null,null,null,null,null,null,null,null,null,null,null,null,null,null,null,null,null,null,null,null,null,"COL0038084","Energías alternas y recursos ambientales",{"$f":"COUNTIF(BA$4:BA254,BA254)","v":4},{"$f":"ROW()","v":254},1]
[null,null,null,null,null,null,null,null,null,null,null,null,null,null,null,null,null,null,null,null,null,null,null,null,null,null,null,null,null,null,null,null,null,null,null,null,null,null,null,null,null,"Grupo de Investigación en Farmacología, Toxicología y Terapéutica-UMNG","COL0114201","NA","https://scienti.minciencias.gov.co/gruplac/jsp/visualiza/visualizagr.jsp?nro=00000000011524",null,null,null,null,null,null,null,"COL0038084","modelamiento de especies bajo escenario de calentamiento global",{"$f":"COUNTIF(BA$4:BA255,BA255)","v":5},{"$f":"ROW()","v":255},1]
[null,null,null,null,null,null,null,null,null,null,null,null,null,null,null,null,null,null,null,null,null,null,null,null,null,null,null,null,null,null,null,null,null,null,null,null,null,null,null,null,null,"MEDICINA REGENERATIVA HMC UMNG","COL0125107","NA","https://scienti.minciencias.gov.co/gruplac/jsp/visualiza/visualizagr.jsp?nro=00000000012646",null,null,null,null,null,null,null,"COL0044859","Interacción Humano Computador",{"$f":"COUNTIF(BA$4:BA256,BA256)","v":1},{"$f":"ROW()","v":256},1]
[null,null,null,null,null,null,null,null,null,null,null,null,null,null,null,null,null,null,null,null,null,null,null,null,null,null,null,null,null,null,null,null,null,null,null,null,null,null,null,null,null,null,null,null,null,null,null,null,null,null,null,null,"COL0044859","Multimedia Educativa",{"$f":"COUNTIF(BA$4:BA257,BA257)","v":2},{"$f":"ROW()","v":257},1]
[null,null,null,null,null,null,null,null,null,null,null,null,null,null,null,null,null,null,null,null,null,null,null,null,null,null,null,null,null,null,null,null,null,null,null,null,null,null,null,null,null,null,null,null,null,null,null,null,null,null,null,null,"COL0044859","Procesamiento digital de imágenes y Visión por computador",{"$f":"COUNTIF(BA$4:BA258,BA258)","v":3},{"$f":"ROW()","v":258},1]
[null,null,null,null,null,null,null,null,null,null,null,null,null,null,null,null,null,null,null,null,null,null,null,null,null,null,null,null,null,null,null,null,null,null,null,null,null,null,null,null,null,null,null,null,null,null,null,null,null,null,null,null,"COL0044859","Sistemas Multimedia",{"$f":"COUNTIF(BA$4:BA259,BA259)","v":4},{"$f":"ROW()","v":259},1]
[null,null,null,null,null,null,null,null,null,null,null,null,null,null,null,null,null,null,null,null,null,null,null,null,null,null,null,null,null,null,null,null,null,null,null,null,null,null,null,null,null,null,null,null,null,null,null,null,null,null,null,null,"COL0044859","Visualización y Computación Gráfica",{"$f":"COUNTIF(BA$4:BA260,BA260)","v":5},{"$f":"ROW()","v":260},{"$f":"COUNTIF($AQ$3:$AQ$95,BA260)","v":1}]
[null,null,null,null,null,null,null,null,null,null,null,null,null,null,null,null,null,null,null,null,null,null,null,null,null,null,null,null,null,null,null,null,null,null,null,null,null,null,null,null,null,null,null,null,null,null,null,null,null,null,null,null,"COL0077707","(Eco)fisiología vegetal",{"$f":"COUNTIF(BA$4:BA261,BA261)","v":1},{"$f":"ROW()","v":261},1]
[null,null,null,null,null,null,null,null,null,null,null,null,null,null,null,null,null,null,null,null,null,null,null,null,null,null,null,null,null,null,null,null,null,null,null,null,null,null,null,null,null,null,null,null,null,null,null,null,null,null,null,null,"COL0077707","Bioprospección de Comunidades Vegetales",{"$f":"COUNTIF(BA$4:BA262,BA262)","v":2},{"$f":"ROW()","v":262},1]
[null,null,null,null,null,null,null,null,null,null,null,null,null,null,null,null,null,null,null,null,null,null,null,null,null,null,null,null,null,null,null,null,null,null,null,null,null,null,null,null,null,null,null,null,null,null,null,null,null,null,null,null,"COL0077707","Búsqueda Biodirigida y Síntesis de Sustancias Bioactivas",{"$f":"COUNTIF(BA$4:BA263,BA263)","v":3},{"$f":"ROW()","v":263},1]
[null,null,null,null,null,null,null,null,null,null,null,null,null,null,null,null,null,null,null,null,null,null,null,null,null,null,null,null,null,null,null,null,null,null,null,null,null,null,null,null,null,null,null,null,null,null,null,null,null,null,null,null,"COL0077707","Ecología Química y Redes Tróficas",{"$f":"COUNTIF(BA$4:BA264,BA264)","v":4},{"$f":"ROW()","v":264},1]
[null,null,null,null,null,null,null,null,null,null,null,null,null,null,null,null,null,null,null,null,null,null,null,null,null,null,null,null,null,null,null,null,null,null,null,null,null,null,null,null,null,null,null,null,null,null,null,null,null,null,null,null,"COL0077707","Fitoquímica Analítica",{"$f":"COUNTIF(BA$4:BA265,BA265)","v":5},{"$f":"ROW()","v":265},1]
[null,null,null,null,null,null,null,null,null,null,null,null,null,null,null,null,null,null,null,null,null,null,null,null,null,null,null,null,null,null,null,null,null,null,null,null,null,null,null,null,null,null,null,null,null,null,null,null,null,null,null,null,"COL0077707","Metabolómica | Fisiología Molecular | Ecología Metabólica | Respuestas Metabólicas",{"$f":"COUNTIF(BA$4:BA266,BA266)","v":6},{"$f":"ROW()","v":266},1]
[null,null,null,null,null,null,null,null,null,null,null,null,null,null,null,null,null,null,null,null,null,null,null,null,null,null,null,null,null,null,null,null,null,null,null,null,null,null,null,null,null,null,null,null,null,null,null,null,null,null,null,null,"COL0077707","Modelado Molecular, Bio- y Quimio-informática",{"$f":"COUNTIF(BA$4:BA267,BA267)","v":7},{"$f":"ROW()","v":267},1]
[null,null,null,null,null,null,null,null,null,null,null,null,null,null,null,null,null,null,null,null,null,null,null,null,null,null,null,null,null,null,null,null,null,null,null,null,null,null,null,null,null,null,null,null,null,null,null,null,null,null,null,null,"COL0077707","Química Ambiental",{"$f":"COUNTIF(BA$4:BA268,BA268)","v":8},{"$f":"ROW()","v":268},1]
[null,null,null,null,null,null,null,null,null,null,null,null,null,null,null,null,null,null,null,null,null,null,null,null,null,null,null,null,null,null,null,null,null,null,null,null,null,null,null,null,null,null,null,null,null,null,null,null,null,null,null,null,"COL0077707","Química Bioorgánica y Bioquímica",{"$f":"COUNTIF(BA$4:BA269,BA269)","v":9},{"$f":"ROW()","v":269},1]
[null,null,null,null,null,null,null,null,null,null,null,null,null,null,null,null,null,null,null,null,null,null,null,null,null,null,null,null,null,null,null,null,null,null,null,null,null,null,null,null,null,null,null,null,null,null,null,null,null,null,null,null,"COL0142449","CULTURA CONSTITUCIONAL, PAZ Y JUSTICIA TRANSICIONAL",{"$f":"COUNTIF(BA$4:BA270,BA270)","v":1},{"$f":"ROW()","v":270},1]
[null,null,null,null,null,null,null,null,null,null,null,null,null,null,null,null,null,null,null,null,null,null,null,null,null,null,null,null,null,null,null,null,null,null,null,null,null,null,null,null,null,null,null,null,null,null,null,null,null,null,null,null,"COL0142449","BIOÉTICA, DERECHOS HUMANOS Y EDUCACIÓN",{"$f":"COUNTIF(BA$4:BA271,BA271)","v":2},{"$f":"ROW()","v":271},1]
[null,null,null,null,null,null,null,null,null,null,null,null,null,null,null,null,null,null,null,null,null,null,null,null,null,null,null,null,null,null,null,null,null,null,null,null,null,null,null,null,null,null,null,null,null,null,null,null,null,null,null,null,"COL0142449","POLÍTICA CRIMINAL, DERECHO PENAL Y CRIMINOLOGÍA",{"$f":"COUNTIF(BA$4:BA272,BA272)","v":3},{"$f":"ROW()","v":272},1]
[null,null,null,null,null,null,null,null,null,null,null,null,null,null,null,null,null,null,null,null,null,null,null,null,null,null,null,null,null,null,null,null,null,null,null,null,null,null,null,null,null,null,null,null,null,null,null,null,null,null,null,null,"COL0142449","POLÍTICAS PÚBLICAS, DERECHO ADMINISTRATIVO Y DESARROLLO",{"$f":"COUNTIF(BA$4:BA273,BA273)","v":4},{"$f":"ROW()","v":273},1]
[null,null,null,null,null,null,null,null,null,null,null,null,null,null,null,null,null,null,null,null,null,null,null,null,null,null,null,null,null,null,null,null,null,null,null,null,null,null,null,null,null,null,null,null,null,null,null,null,null,null,null,null,"COL0142449","PROPIEDAD INTELECTUAL Y TRANSFERENCIA TECNOLÓGICA",{"$f":"COUNTIF(BA$4:BA274,BA274)","v":5},{"$f":"ROW()","v":274},1]
[null,null,null,null,null,null,null,null,null,null,null,null,null,null,null,null,null,null,null,null,null,null,null,null,null,null,null,null,null,null,null,null,null,null,null,null,null,null,null,null,null,null,null,null,null,null,null,null,null,null,null,null,"COL0142449","SOCIOLOGÍA JURÍDICA, DERECHO PÚBLICO Y TEORÍA JURÍDICA",{"$f":"COUNTIF(BA$4:BA275,BA275)","v":6},{"$f":"ROW()","v":275},1]
[null,null,null,null,null,null,null,null,null,null,null,null,null,null,null,null,null,null,null,null,null,null,null,null,null,null,null,null,null,null,null,null,null,null,null,null,null,null,null,null,null,null,null,null,null,null,null,null,null,null,null,null,"COL0052181","Big Data Analytics",{"$f":"COUNTIF(BA$4:BA276,BA276)","v":1},{"$f":"ROW()","v":276},1]
[null,null,null,null,null,null,null,null,null,null,null,null,null,null,null,null,null,null,null,null,null,null,null,null,null,null,null,null,null,null,null,null,null,null,null,null,null,null,null,null,null,null,null,null,null,null,null,null,null,null,null,null,"COL0052181","Biomecánica e Ingeniería de Rehabilitación",{"$f":"COUNTIF(BA$4:BA277,BA277)","v":2},{"$f":"ROW()","v":277},1]
[null,null,null,null,null,null,null,null,null,null,null,null,null,null,null,null,null,null,null,null,null,null,null,null,null,null,null,null,null,null,null,null,null,null,null,null,null,null,null,null,null,null,null,null,null,null,null,null,null,null,null,null,"COL0052181","Educación, Gestión y Ecosistemas",{"$f":"COUNTIF(BA$4:BA278,BA278)","v":3},{"$f":"ROW()","v":278},1]
[null,null,null,null,null,null,null,null,null,null,null,null,null,null,null,null,null,null,null,null,null,null,null,null,null,null,null,null,null,null,null,null,null,null,null,null,null,null,null,null,null,null,null,null,null,null,null,null,null,null,null,null,"COL0052181","Procesamiento de señales, datos, imagen y video",{"$f":"COUNTIF(BA$4:BA279,BA279)","v":4},{"$f":"ROW()","v":279},1]
[null,null,null,null,null,null,null,null,null,null,null,null,null,null,null,null,null,null,null,null,null,null,null,null,null,null,null,null,null,null,null,null,null,null,null,null,null,null,null,null,null,null,null,null,null,null,null,null,null,null,null,null,"COL0052181","Tele-cardiología y prevención",{"$f":"COUNTIF(BA$4:BA280,BA280)","v":5},{"$f":"ROW()","v":280},1]
[null,null,null,null,null,null,null,null,null,null,null,null,null,null,null,null,null,null,null,null,null,null,null,null,null,null,null,null,null,null,null,null,null,null,null,null,null,null,null,null,null,null,null,null,null,null,null,null,null,null,null,null,"COL0052181","Telemetría (IoT-Routing)",{"$f":"COUNTIF(BA$4:BA281,BA281)","v":6},{"$f":"ROW()","v":281},1]
[null,null,null,null,null,null,null,null,null,null,null,null,null,null,null,null,null,null,null,null,null,null,null,null,null,null,null,null,null,null,null,null,null,null,null,null,null,null,null,null,null,null,null,null,null,null,null,null,null,null,null,null,"COL0178619","Administración, conservación, y manejo de Recursos Naturales Renovables",{"$f":"COUNTIF(BA$4:BA282,BA282)","v":1},{"$f":"ROW()","v":282},1]
[null,null,null,null,null,null,null,null,null,null,null,null,null,null,null,null,null,null,null,null,null,null,null,null,null,null,null,null,null,null,null,null,null,null,null,null,null,null,null,null,null,null,null,null,null,null,null,null,null,null,null,null,"COL0178619","Bioinnovación y educación",{"$f":"COUNTIF(BA$4:BA283,BA283)","v":2},{"$f":"ROW()","v":283},1]
[null,null,null,null,null,null,null,null,null,null,null,null,null,null,null,null,null,null,null,null,null,null,null,null,null,null,null,null,null,null,null,null,null,null,null,null,null,null,null,null,null,null,null,null,null,null,null,null,null,null,null,null,"COL0178619","Biología de poblaciones y evolutiva de plantas, animales y microorganismos",{"$f":"COUNTIF(BA$4:BA284,BA284)","v":3},{"$f":"ROW()","v":284},1]
[null,null,null,null,null,null,null,null,null,null,null,null,null,null,null,null,null,null,null,null,null,null,null,null,null,null,null,null,null,null,null,null,null,null,null,null,null,null,null,null,null,null,null,null,null,null,null,null,null,null,null,null,"COL0178619","Ecofisiología vegetal, animal y microbiana",{"$f":"COUNTIF(BA$4:BA285,BA285)","v":4},{"$f":"ROW()","v":285},1]
[null,null,null,null,null,null,null,null,null,null,null,null,null,null,null,null,null,null,null,null,null,null,null,null,null,null,null,null,null,null,null,null,null,null,null,null,null,null,null,null,null,null,null,null,null,null,null,null,null,null,null,null,"COL0178619","Servicios ecosistèmicos",{"$f":"COUNTIF(BA$4:BA286,BA286)","v":5},{"$f":"ROW()","v":286},1]
[null,null,null,null,null,null,null,null,null,null,null,null,null,null,null,null,null,null,null,null,null,null,null,null,null,null,null,null,null,null,null,null,null,null,null,null,null,null,null,null,null,null,null,null,null,null,null,null,null,null,null,null,"COL0178619","Variabilidad y Cambio climático",{"$f":"COUNTIF(BA$4:BA287,BA287)","v":6},{"$f":"ROW()","v":287},1]
[null,null,null,null,null,null,null,null,null,null,null,null,null,null,null,null,null,null,null,null,null,null,null,null,null,null,null,null,null,null,null,null,null,null,null,null,null,null,null,null,null,null,null,null,null,null,null,null,null,null,null,null,"COL0027367","Estudios de migración y desigualdades poblacionales",{"$f":"COUNTIF(BA$4:BA288,BA288)","v":1},{"$f":"ROW()","v":288},1]
[null,null,null,null,null,null,null,null,null,null,null,null,null,null,null,null,null,null,null,null,null,null,null,null,null,null,null,null,null,null,null,null,null,null,null,null,null,null,null,null,null,null,null,null,null,null,null,null,null,null,null,null,"COL0027367","Estudios en desarrollo social y sostenibilidad",{"$f":"COUNTIF(BA$4:BA289,BA289)","v":2},{"$f":"ROW()","v":289},1]
[null,null,null,null,null,null,null,null,null,null,null,null,null,null,null,null,null,null,null,null,null,null,null,null,null,null,null,null,null,null,null,null,null,null,null,null,null,null,null,null,null,null,null,null,null,null,null,null,null,null,null,null,"COL0027367","Estudios sobre desigualdades educativas",{"$f":"COUNTIF(BA$4:BA290,BA290)","v":3},{"$f":"ROW()","v":290},1]
[null,null,null,null,null,null,null,null,null,null,null,null,null,null,null,null,null,null,null,null,null,null,null,null,null,null,null,null,null,null,null,null,null,null,null,null,null,null,null,null,null,null,null,null,null,null,null,null,null,null,null,null,"COL0152472","Autoinmunidad y Artritis Reumatoide",{"$f":"COUNTIF(BA$4:BA291,BA291)","v":1},{"$f":"ROW()","v":291},1]
[null,null,null,null,null,null,null,null,null,null,null,null,null,null,null,null,null,null,null,null,null,null,null,null,null,null,null,null,null,null,null,null,null,null,null,null,null,null,null,null,null,null,null,null,null,null,null,null,null,null,null,null,"COL0152472","Espondiloartritis Axial y Artritis Psoriásica",{"$f":"COUNTIF(BA$4:BA292,BA292)","v":2},{"$f":"ROW()","v":292},1]
[null,null,null,null,null,null,null,null,null,null,null,null,null,null,null,null,null,null,null,null,null,null,null,null,null,null,null,null,null,null,null,null,null,null,null,null,null,null,null,null,null,null,null,null,null,null,null,null,null,null,null,null,"COL0028918","Constitución, Derecho Público y Estado",{"$f":"COUNTIF(BA$4:BA293,BA293)","v":1},{"$f":"ROW()","v":293},1]
[null,null,null,null,null,null,null,null,null,null,null,null,null,null,null,null,null,null,null,null,null,null,null,null,null,null,null,null,null,null,null,null,null,null,null,null,null,null,null,null,null,null,null,null,null,null,null,null,null,null,null,null,"COL0028918","Derecho Historia y Filosofía",{"$f":"COUNTIF(BA$4:BA294,BA294)","v":2},{"$f":"ROW()","v":294},1]
[null,null,null,null,null,null,null,null,null,null,null,null,null,null,null,null,null,null,null,null,null,null,null,null,null,null,null,null,null,null,null,null,null,null,null,null,null,null,null,null,null,null,null,null,null,null,null,null,null,null,null,null,"COL0028918","Derecho Internacional, Derechos Humanos, Derecho Internacional Humanitario",{"$f":"COUNTIF(BA$4:BA295,BA295)","v":3},{"$f":"ROW()","v":295},1]
[null,null,null,null,null,null,null,null,null,null,null,null,null,null,null,null,null,null,null,null,null,null,null,null,null,null,null,null,null,null,null,null,null,null,null,null,null,null,null,null,null,null,null,null,null,null,null,null,null,null,null,null,"COL0028918","Derecho Penal y Justicia Militar",{"$f":"COUNTIF(BA$4:BA296,BA296)","v":4},{"$f":"ROW()","v":296},1]
[null,null,null,null,null,null,null,null,null,null,null,null,null,null,null,null,null,null,null,null,null,null,null,null,null,null,null,null,null,null,null,null,null,null,null,null,null,null,null,null,null,null,null,null,null,null,null,null,null,null,null,null,"COL0028918","Derecho, Educación y Sociedad",{"$f":"COUNTIF(BA$4:BA297,BA297)","v":5},{"$f":"ROW()","v":297},1]
[null,null,null,null,null,null,null,null,null,null,null,null,null,null,null,null,null,null,null,null,null,null,null,null,null,null,null,null,null,null,null,null,null,null,null,null,null,null,null,null,null,null,null,null,null,null,null,null,null,null,null,null,"COL0033239","Prevención de la enfermedad y promoción de la salud",{"$f":"COUNTIF(BA$4:BA298,BA298)","v":1},{"$f":"ROW()","v":298},1]
[null,null,null,null,null,null,null,null,null,null,null,null,null,null,null,null,null,null,null,null,null,null,null,null,null,null,null,null,null,null,null,null,null,null,null,null,null,null,null,null,null,null,null,null,null,null,null,null,null,null,null,null,"COL0033239","Salud Mental y Calidad de Vida",{"$f":"COUNTIF(BA$4:BA299,BA299)","v":2},{"$f":"ROW()","v":299},1]
[null,null,null,null,null,null,null,null,null,null,null,null,null,null,null,null,null,null,null,null,null,null,null,null,null,null,null,null,null,null,null,null,null,null,null,null,null,null,null,null,null,null,null,null,null,null,null,null,null,null,null,null,"COL0033239","Salud Sexual y Reproductiva",{"$f":"COUNTIF(BA$4:BA300,BA300)","v":3},{"$f":"ROW()","v":300},1]
[null,null,null,null,null,null,null,null,null,null,null,null,null,null,null,null,null,null,null,null,null,null,null,null,null,null,null,null,null,null,null,null,null,null,null,null,null,null,null,null,null,null,null,null,null,null,null,null,null,null,null,null,"COL0047762","Desarrollo de modelos de ingeniería de tejido humano",{"$f":"COUNTIF(BA$4:BA301,BA301)","v":1},{"$f":"ROW()","v":301},1]
[null,null,null,null,null,null,null,null,null,null,null,null,null,null,null,null,null,null,null,null,null,null,null,null,null,null,null,null,null,null,null,null,null,null,null,null,null,null,null,null,null,null,null,null,null,null,null,null,null,null,null,null,"COL0047762","Metabolismo Oseo - Bone Metabolism",{"$f":"COUNTIF(BA$4:BA302,BA302)","v":2},{"$f":"ROW()","v":302},1]
[null,null,null,null,null,null,null,null,null,null,null,null,null,null,null,null,null,null,null,null,null,null,null,null,null,null,null,null,null,null,null,null,null,null,null,null,null,null,null,null,null,null,null,null,null,null,null,null,null,null,null,null,"COL0062704","Procesos Organizacionales (Prospectiva de las Organizaciones), Programáticos y Políticos para la Promoción del Desarrollo.",{"$f":"COUNTIF(BA$4:BA303,BA303)","v":1},{"$f":"ROW()","v":303},1]
[null,null,null,null,null,null,null,null,null,null,null,null,null,null,null,null,null,null,null,null,null,null,null,null,null,null,null,null,null,null,null,null,null,null,null,null,null,null,null,null,null,null,null,null,null,null,null,null,null,null,null,null,"COL0062704","Prospectiva de las Organizaciones",{"$f":"COUNTIF(BA$4:BA304,BA304)","v":2},{"$f":"ROW()","v":304},1]
[null,null,null,null,null,null,null,null,null,null,null,null,null,null,null,null,null,null,null,null,null,null,null,null,null,null,null,null,null,null,null,null,null,null,null,null,null,null,null,null,null,null,null,null,null,null,null,null,null,null,null,null,"COL0062704","Responsabilidad Ambiental",{"$f":"COUNTIF(BA$4:BA305,BA305)","v":3},{"$f":"ROW()","v":305},1]
[null,null,null,null,null,null,null,null,null,null,null,null,null,null,null,null,null,null,null,null,null,null,null,null,null,null,null,null,null,null,null,null,null,null,null,null,null,null,null,null,null,null,null,null,null,null,null,null,null,null,null,null,"COL0062704","Responsabilidad Social Empresarial",{"$f":"COUNTIF(BA$4:BA306,BA306)","v":4},{"$f":"ROW()","v":306},1]
[null,null,null,null,null,null,null,null,null,null,null,null,null,null,null,null,null,null,null,null,null,null,null,null,null,null,null,null,null,null,null,null,null,null,null,null,null,null,null,null,null,null,null,null,null,null,null,null,null,null,null,null,"COL0077814","Producción Hortícola Limpia",{"$f":"COUNTIF(BA$4:BA307,BA307)","v":1},{"$f":"ROW()","v":307},1]
[null,null,null,null,null,null,null,null,null,null,null,null,null,null,null,null,null,null,null,null,null,null,null,null,null,null,null,null,null,null,null,null,null,null,null,null,null,null,null,null,null,null,null,null,null,null,null,null,null,null,null,null,"COL0028687","Fitoplasmas",{"$f":"COUNTIF(BA$4:BA308,BA308)","v":1},{"$f":"ROW()","v":308},1]
[null,null,null,null,null,null,null,null,null,null,null,null,null,null,null,null,null,null,null,null,null,null,null,null,null,null,null,null,null,null,null,null,null,null,null,null,null,null,null,null,null,null,null,null,null,null,null,null,null,null,null,null,"COL0028687","Virus",{"$f":"COUNTIF(BA$4:BA309,BA309)","v":2},{"$f":"ROW()","v":309},1]
[null,null,null,null,null,null,null,null,null,null,null,null,null,null,null,null,null,null,null,null,null,null,null,null,null,null,null,null,null,null,null,null,null,null,null,null,null,null,null,null,null,null,null,null,null,null,null,null,null,null,null,null,"COL0117052","Ambiental",{"$f":"COUNTIF(BA$4:BA310,BA310)","v":1},{"$f":"ROW()","v":310},1]
[null,null,null,null,null,null,null,null,null,null,null,null,null,null,null,null,null,null,null,null,null,null,null,null,null,null,null,null,null,null,null,null,null,null,null,null,null,null,null,null,null,null,null,null,null,null,null,null,null,null,null,null,"COL0117052","Arte y Tecnología",{"$f":"COUNTIF(BA$4:BA311,BA311)","v":2},{"$f":"ROW()","v":311},1]
[null,null,null,null,null,null,null,null,null,null,null,null,null,null,null,null,null,null,null,null,null,null,null,null,null,null,null,null,null,null,null,null,null,null,null,null,null,null,null,null,null,null,null,null,null,null,null,null,null,null,null,null,"COL0117052","Energía",{"$f":"COUNTIF(BA$4:BA312,BA312)","v":3},{"$f":"ROW()","v":312},1]
[null,null,null,null,null,null,null,null,null,null,null,null,null,null,null,null,null,null,null,null,null,null,null,null,null,null,null,null,null,null,null,null,null,null,null,null,null,null,null,null,null,null,null,null,null,null,null,null,null,null,null,null,"COL0117052","Gestión e Innovación",{"$f":"COUNTIF(BA$4:BA313,BA313)","v":4},{"$f":"ROW()","v":313},1]
[null,null,null,null,null,null,null,null,null,null,null,null,null,null,null,null,null,null,null,null,null,null,null,null,null,null,null,null,null,null,null,null,null,null,null,null,null,null,null,null,null,null,null,null,null,null,null,null,null,null,null,null,"COL0117052","Materiales",{"$f":"COUNTIF(BA$4:BA314,BA314)","v":5},{"$f":"ROW()","v":314},1]
[null,null,null,null,null,null,null,null,null,null,null,null,null,null,null,null,null,null,null,null,null,null,null,null,null,null,null,null,null,null,null,null,null,null,null,null,null,null,null,null,null,null,null,null,null,null,null,null,null,null,null,null,"COL0127649","Lìnea en Contabilidad Integral",{"$f":"COUNTIF(BA$4:BA315,BA315)","v":1},{"$f":"ROW()","v":315},1]
[null,null,null,null,null,null,null,null,null,null,null,null,null,null,null,null,null,null,null,null,null,null,null,null,null,null,null,null,null,null,null,null,null,null,null,null,null,null,null,null,null,null,null,null,null,null,null,null,null,null,null,null,"COL0191078","Enfermedades agudas y cronicas por exposición a agentes químicos y radiológicos",{"$f":"COUNTIF(BA$4:BA316,BA316)","v":1},{"$f":"ROW()","v":316},1]
[null,null,null,null,null,null,null,null,null,null,null,null,null,null,null,null,null,null,null,null,null,null,null,null,null,null,null,null,null,null,null,null,null,null,null,null,null,null,null,null,null,null,null,null,null,null,null,null,null,null,null,null,"COL0191078","TOXINOLOGÍA",{"$f":"COUNTIF(BA$4:BA317,BA317)","v":2},{"$f":"ROW()","v":317},1]
[null,null,null,null,null,null,null,null,null,null,null,null,null,null,null,null,null,null,null,null,null,null,null,null,null,null,null,null,null,null,null,null,null,null,null,null,null,null,null,null,null,null,null,null,null,null,null,null,null,null,null,null,"COL0194866","Bioprocesos",{"$f":"COUNTIF(BA$4:BA318,BA318)","v":1},{"$f":"ROW()","v":318},1]
[null,null,null,null,null,null,null,null,null,null,null,null,null,null,null,null,null,null,null,null,null,null,null,null,null,null,null,null,null,null,null,null,null,null,null,null,null,null,null,null,null,null,null,null,null,null,null,null,null,null,null,null,"COL0194866","Ingeniería de procesos, modelación y optimización de instalaciones para la recuperación de recursos del agua",{"$f":"COUNTIF(BA$4:BA319,BA319)","v":2},{"$f":"ROW()","v":319},1]
[null,null,null,null,null,null,null,null,null,null,null,null,null,null,null,null,null,null,null,null,null,null,null,null,null,null,null,null,null,null,null,null,null,null,null,null,null,null,null,null,null,null,null,null,null,null,null,null,null,null,null,null,"COL0194866","Química del agua, microcontaminantes emergentes y prioritarios",{"$f":"COUNTIF(BA$4:BA320,BA320)","v":3},{"$f":"ROW()","v":320},1]
[null,null,null,null,null,null,null,null,null,null,null,null,null,null,null,null,null,null,null,null,null,null,null,null,null,null,null,null,null,null,null,null,null,null,null,null,null,null,null,null,null,null,null,null,null,null,null,null,null,null,null,null,"COL0196753","Gerencia de proyectos en Ingeniería",{"$f":"COUNTIF(BA$4:BA321,BA321)","v":1},{"$f":"ROW()","v":321},1]
[null,null,null,null,null,null,null,null,null,null,null,null,null,null,null,null,null,null,null,null,null,null,null,null,null,null,null,null,null,null,null,null,null,null,null,null,null,null,null,null,null,null,null,null,null,null,null,null,null,null,null,null,"COL0196753","Gestión de organizaciones y creación de valor",{"$f":"COUNTIF(BA$4:BA322,BA322)","v":2},{"$f":"ROW()","v":322},1]
[null,null,null,null,null,null,null,null,null,null,null,null,null,null,null,null,null,null,null,null,null,null,null,null,null,null,null,null,null,null,null,null,null,null,null,null,null,null,null,null,null,null,null,null,null,null,null,null,null,null,null,null,"COL0196753","Logística en empresas y cadena de suministro",{"$f":"COUNTIF(BA$4:BA323,BA323)","v":3},{"$f":"ROW()","v":323},1]
[null,null,null,null,null,null,null,null,null,null,null,null,null,null,null,null,null,null,null,null,null,null,null,null,null,null,null,null,null,null,null,null,null,null,null,null,null,null,null,null,null,null,null,null,null,null,null,null,null,null,null,null,"COL0196753","Procesos empresariales sustentables",{"$f":"COUNTIF(BA$4:BA324,BA324)","v":4},{"$f":"ROW()","v":324},{"$f":"COUNTIF($AQ$3:$AQ$95,BA324)","v":1}]
[null,null,null,null,null,null,null,null,null,null,null,null,null,null,null,null,null,null,null,null,null,null,null,null,null,null,null,null,null,null,null,null,null,null,null,null,null,null,null,null,null,null,null,null,null,null,null,null,null,null,null,null,"COL0196753","Producción y mejoramiento de procesos",{"$f":"COUNTIF(BA$4:BA325,BA325)","v":5},{"$f":"ROW()","v":325},1]
[null,null,null,null,null,null,null,null,null,null,null,null,null,null,null,null,null,null,null,null,null,null,null,null,null,null,null,null,null,null,null,null,null,null,null,null,null,null,null,null,null,null,null,null,null,null,null,null,null,null,null,null,"COL0196799","Desarrollo y renovación de infraestructura",{"$f":"COUNTIF(BA$4:BA326,BA326)","v":1},{"$f":"ROW()","v":326},1]
[null,null,null,null,null,null,null,null,null,null,null,null,null,null,null,null,null,null,null,null,null,null,null,null,null,null,null,null,null,null,null,null,null,null,null,null,null,null,null,null,null,null,null,null,null,null,null,null,null,null,null,null,"COL0196799","Geomecánica computacional",{"$f":"COUNTIF(BA$4:BA327,BA327)","v":2},{"$f":"ROW()","v":327},1]
[null,null,null,null,null,null,null,null,null,null,null,null,null,null,null,null,null,null,null,null,null,null,null,null,null,null,null,null,null,null,null,null,null,null,null,null,null,null,null,null,null,null,null,null,null,null,null,null,null,null,null,null,"COL0196799","Ingeniería estructural",{"$f":"COUNTIF(BA$4:BA328,BA328)","v":3},{"$f":"ROW()","v":328},1]
[null,null,null,null,null,null,null,null,null,null,null,null,null,null,null,null,null,null,null,null,null,null,null,null,null,null,null,null,null,null,null,null,null,null,null,null,null,null,null,null,null,null,null,null,null,null,null,null,null,null,null,null,"COL0196799","Materiales simples y compuestos",{"$f":"COUNTIF(BA$4:BA329,BA329)","v":4},{"$f":"ROW()","v":329},1]
[null,null,null,null,null,null,null,null,null,null,null,null,null,null,null,null,null,null,null,null,null,null,null,null,null,null,null,null,null,null,null,null,null,null,null,null,null,null,null,null,null,null,null,null,null,null,null,null,null,null,null,null,"COL0169362","Aprendizaje Automático",{"$f":"COUNTIF(BA$4:BA330,BA330)","v":1},{"$f":"ROW()","v":330},1]
[null,null,null,null,null,null,null,null,null,null,null,null,null,null,null,null,null,null,null,null,null,null,null,null,null,null,null,null,null,null,null,null,null,null,null,null,null,null,null,null,null,null,null,null,null,null,null,null,null,null,null,null,"COL0169362","Herramientas computacionales para el análisis de datos",{"$f":"COUNTIF(BA$4:BA331,BA331)","v":2},{"$f":"ROW()","v":331},1]
[null,null,null,null,null,null,null,null,null,null,null,null,null,null,null,null,null,null,null,null,null,null,null,null,null,null,null,null,null,null,null,null,null,null,null,null,null,null,null,null,null,null,null,null,null,null,null,null,null,null,null,null,"COL0169362","Inteligencia Computacional",{"$f":"COUNTIF(BA$4:BA332,BA332)","v":3},{"$f":"ROW()","v":332},1]
[null,null,null,null,null,null,null,null,null,null,null,null,null,null,null,null,null,null,null,null,null,null,null,null,null,null,null,null,null,null,null,null,null,null,null,null,null,null,null,null,null,null,null,null,null,null,null,null,null,null,null,null,"COL0169362","Optimización",{"$f":"COUNTIF(BA$4:BA333,BA333)","v":4},{"$f":"ROW()","v":333},1]
[]
[]
[]
[]
[]
[]
[]
[]
[]
[]
[]
[]
[]
[]
[]
[]
[]
[]
[]
[]
[]
[]
[]
[]
[]
[]
[]
[]
[]
[]
[]
[]
[]
[]
[]
[]
[]
[]
[]
[]
[]
[]
[]
[]
[]
[]
[]
[]
[]
[]
[]
[]
[]
[]
[]
[]
[]
[]
[]
[]
[]
[]
[]
[]
[]
[]
[]
[]
[]
[]
[]
[]
[]
[]
[]
[]
[]
[]
[]
[]
[]
[]
[]
[]
[]
[]
[]
[]
[]
[]
[]
[]
[]
[]
[]
[]
[]
[]
[]
[]
[]
[]
[]
[]
[]
[]
[]
[]
[]
[]
[]
[]
[]
[]
[]
[]
[]
[]
[]
[]
[]
[]
[]
[]
[]
[]
[]
[]
[]
[]
[]
[]
[]
[]
[]
[]
[]
[]
[]
[]
[]
[]
[]
[]
[]
[]
[]
[]
[]
[]
[]
[]
[]
[]
[]
[]
[]
[]
[]
[]
[]
[]
[]
[]
[]
[]
[]
[]
[]
[]
[]
[]
[]
[]
[]
[]
[]
[]
[]
[]
[]
[]
[]
[]
[]
[]
[]
[]
[]
[]
[]
[]
[]
[]
[]
[]
[]
[]
[]
[]
[]
[]
[]
[]
[]
[]
[]
[]
[]
[]
[]
[]
[]
[]
[]
[]
[]
[]
[]
[]
[]
[]
[]
[]
[]
[]
[]
[]
[]
[]
[]
[]
[]
[]
[]
[]
[]
[]
[]
[]
[]
[]
[]
[]
[]
[]
[]
[]
[]
[]
[]
[]
[]
[]
[]
[]
[]
[]
[]
[]
[]
[]
[]
[]
[]
[]
[]
[]
[]
[]
[]
[]
[]
[]
[]
[]
[]
[]
[]
[]
[]
[]
[]
[]
[]
[]
[]
[]
[]
[]
[]
[]
[]
[]
[]
[]
[]
[]
[]
[]
[]
[]
[]
[]
[]
[]
[]
[]
[]
[]
[]
[]
[]
[]
[]
[]
[]
[]
[]
[]
[]
[]
[]
[]
[]
[]
[]
[]
[]
[]
[]
[]
[]
[]
[]
[]
[]
[]
[]
[]
[]
[]
[]
[]
[]
[]
[]
[]
[]
[]
[]
[]
[]
[]
[]
[]
[]
[]
[]
[]
[]
[]
[]
[]
[]
[]
[]
[]
[]
[]
[]
[]
[]
[]
[]
[]
[]
[]
[]
[]
[]
[]
[]
[]
[]
[]
[]
[]
[]
[]
[]
[]
[]
[]
[]
[]
[]
[]
[]
[]
[]
[]
[]
[]
[]
[]
[]
[]
[]
[]
[]
[]
[]
[]
[]
[]
[]
[]
[]
[]
[]
[]
[]
[]
[]
[]
[]
[]
[]
[]
[]
[]
[]
[]
[]
[]
[]
[]
[]
[]
[]
[]
[]
[]
[]
[]
[]
[]
[]
[]
[]
[]
[]
[]
[]
[]
[]
[]
[]
[]
[]
[]
[]
[]
[]
[]
[]
[]
[]
[]
[]
[]
[]
[]
[]
[]
[]
[]
[]
[]
[]
[]
[]
[]
[]
[]
[]
[]
[]
[]
[]
[]
[]
[]
[]
[]
[]
[]
[]
[]
[]
[]
[]
[]
[]
[]
[]
[]
[]
[]
[]
[]
[]
[]
[]
[]
[]
[]
[]
[]
[]
[]
[]
[]
[]
[]
[]
[]
[]
[]
[]
[]
[]
[]
[]
[]
[]
[]
[]
[]
[]
[]
[]
[]
[]
[]
[]
[]
[]
[]
[]
[]
[]
[]
[]
[]
[]
[]
[]
[]
[]
[]
[]
[]
[]
[]
[]
[]
[]
[]
[]
[]
[]
[]
[]
[]
[]
[]
[]
[]
[]
[]
[]
[]
[]
[]
[]
[]
[]
[]
[]
[]
[]
[]
[]
[]
[]
[]
[]
[]
[]
[]
[]
[]
[]
[]
[]
[]
[]
[]
[]
[]
[]
[]
[]
[]
[]
[]
[]
[]
[]
[]
[]
[]
[]
[]
[]
[]
[]
[]
[]
[]
[]
[]
[]
[]
[]
[]
[]
[]
[]
[]
[]
[]
[]
[]
[]
[]
[]
[]
[]
[]
[]
[]
[]
[]
[]
[]
[]
[]
[]
[]
[]
[]
[]
[]
[]
[]
[]
[]
[]
[]
[]
[]
[]
[]
[]
[]
[]
[]
[]
[]
[]
[]
[]
[]
[]
[]
[]
[]
[]
[]
[]
[]
[]
[]
[]
[]
[]
[]
[]
[]
[]
[]
[]
[]
[]
[]
[]
[]
[]
[]
[]
[]
[]
[]
[]
[]
[]
[]
[]
[]
[]
[]
[]
[]
[]
[]
[]
[]
[]
[]
[]
[]
[]
[]
[]
[]
[]
[]
[]
[]
[]
[]
[]
[]
[]
[]
[]
[]
[]
[]
[]
[]
[]
[]
[]
[]
[]
[]
[]
[]
[]
[]
[]
[]
[]
[]
[]
[]
[]
[]
[]
[]
[]
[]
[]
[]
[]
[]
[]
[]
[]
[]
[]
[]
[]
[]
[]
[]
[]
[]
[]
[]
[]
[]
[]
[]
[]
[]
[]
[]
[]
[]
[]
[]
[]
[]
[]
[]
[]
[]
[]
[]
[]
[]
[]
[]
[]
[]
[]
[]
[]
[]
[]
[]
[]
[]
[]
[]
[]
[]
[]
[]
[]
[]
[]
[]
[]
[]
[]
[]
[]
[]
[]
[]
[]
[]
[]
[]
[]
[]
[]
[]
[]
[]
[]
[]
[]
[]
[]
[]
[]
[]
[]
[]
[]
[]
[]
[]
[]
[]
[]
[]
[]
[]
[]
[]
[]
[]
[]
[]
[]
[]
[]
[]
[]
[]
[]
[]
[]
[]
[]
[]
[]
[]
[]
[]
[]
[]
[]
[]
[]
[]
[]
[]
[]
[]
[]
[]
[]
[]
[]
[]
[]
[]
[]
[]
[]
[]
[]
[]
[]
[]
[]
[]
[]
[]
[]
[]
[]
[]
[]
[]
[]
[]
[]
[]
[]
[]
[]
[]
[]
[]
[]
[]
[]
[]
[]
[]
[]
[]
[]
[]
[]
[]
[]
[]
[]
[]
[]
[]
[]
[]
[]
[]
[]
[]
[]
[]
[]
[]
[]
[]
[]
[]
[]
[]
[]
[]
[]
[]
[]
[]
[]
[]
[]
[]
[]
[]
[]
[]
[]
[]
[]
[]
[]
[]
[]
[]
[]
[]
[]
[]
[]
[]
[]
[]
[]
[]
[]
[]
[]
[]
[]
[]
[]
[]
[]
[]
[]
[]
[]
[]
[]
[]
[]
[]
[]
[]
[]
[]
[]
[]
[]
[]
[]
[]
[]
[]
[]
[]
[]
[]
[]
[]
[]
[]
[]
[]
[]
[]
[]
[]
[]
[]
[]
[]
[]
[]
[]
[]
[]
[]
[]
[]
[]
[]
[]
[]
[]
[]
[]
[]
[]
[]
[]
[]
[]
[]
[]
[]
[]
[]
[]
[]
[]
[]
[]
[]
[]
[]
[]
[]
[]
[]
[]
[]
[]
[]
[]
[]
[]
[]
[]
[]
[]
[]
[]
[]
[]
[]
[]
[]
[]
[]
[]
[]
[]
[]
[]
[]
[]
[]
[]
[]
[]
[]
[]
[]
[]
[]
[]
[]
[]
[]
[]
[]
[]
[]
[]
[]
[]
[]
[]
[]
[]
[]
[]
[]
[]
[]
[]
[]
[]
[]
[]
[]
[]
[]
[]
[]
[]
[]
[]
[]
[]
[]
[]
[]
[]
[]
[]
[]
[]
[]
[]
[]
[]
[]
[]
[]
[]
[]
[]
[]
[]
[]
[]
[]
[]
[]
[]
[]
[]
[]
[]
[]
[]
[]
[]
[]
[]
[]
[]
[]
[]
[]
[]
[]
[]
[]
[]
[]
[]
[]
[]
[]
[]
[]
[]
[]
[]
[]
[]
[]
[]
[]
[]
[]
[]
[]
[]
[]
[]
[]
[]
[]
[]
[]
[]
[]
[]
[]
[]
[]
[]
[]
[]
[]
[]
[]
[]
[]
[]
[]
[]
[]
[]
[]
[]
[]
[]
[]
[]
[]
[]
[]
[]
[]
[]
[]
[]
[]
[]
[]
[]
[]
[]
[]
[]
[]
[]
[]
[]
[]
[]
[]
[]
[]
[]
[]
[]
[]
[]
[]
[]
[]
[]
[]
[]
[]
[]
[]
[]
[]
[]
[]
[]
[]
[]
[]
[]
[]
[]
[]
[]
[]
[]
[]
[]
[]
[]
[]
[]
[]
[]
[]
[]
[]
[]
[]
[]
[]
[]
[]
[]
[]
[]
[]
[]
[]
[]
[]
[]
[]
[]
[]
[]
[]
[]
[]
[]
[]
[]
[]
[]
[]
[]
[]
[]
[]
[]
[]
[]
[]
[]
[]
[]
[]
[]
[]
[]
[]
[]
[]
[]
[]
[]
[]
[]
[]
[]
[]
[]
[]
[]
[]
[]
[]
[]
[]
[]
[]
[]
[]
[]
[]
[]
[]
[]
[]
[]
[]
[]
[]
[]
[]
[]
[]
[]
[]
[]
[]
[]
[]
[]
[]
[]
[]
[]
[]
[]
[]
[]
[]
[]
[]
[]
[]
[]
[]
[]
[]
[]
[]
[]
[]
[]
[]
[]
[]
[]
[]
[]
[]
[]
[]
[]
[]
[]
[]
[]
[]
[]
[]
[]
[]
[]
[]
[]
[]
[]
[]
[]
[]
[]
[]
[]
[]
[]
[]
[]
[]
[]
[]
[]
[]
[]
[]
[]
[]
[]
[]
[]
[]
[]
[]
[]
[]
[]
[]
[]
[]
[]
[]
[]
[]
[]
[]
[]
[]
[]
[]
[]
[]
[]
[]
[]
[]
[]
[]
[]
[]
[]
[]
[]
[]
[]
[]
[]
[]
[]
[]
[]
[]
[]
[]
[]
[]
[]
[]
[]
[]
[]
[]
[]
[]
[]
[]
[]
[]
[]
[]
[]
[]
[]
[]
[]
[]
[]
[]
[]
[]
[]
[]
[]
[]
[]
[]
[]
[]
[]
[]
[]
[]
[]
[]
[]
[]
[]
[]
[]
[]
[]
[]
[]
[]
[]
[]
[]
[]
[]
[]
[]
[]
[]
[]
[]
[]
[]
[]
[]
[]
[]
[]
[]
[]
[]
[]
[]
[]
[]
[]
[]
[]
[]
[]
[]
[]
[]
[]
[]
[]
[]
[]
[]
[]
[]
[]
[]
[]
[]
[]
[]
[]
[]
[]
[]
[]
[]
[]
[]
[]
[]
[]
[]
[]
[]
[]
[]
[]
[]
[]
[]
[]
[]
[]
[]
[]
[]
[]
[]
[]
[]
[]
[]
[]
[]
[]
[]
[]
[]
[]
[]
[]
[]
[]
[]
[]
[]
[null,null,null,null,null,null,null,null,null,null,null,null,null,null,null,null,null,null,null,null,null,null,null,null,null,null,null,null,null,null,null,null,null,null,null,null,null,null,null,null,null,null,null,null,null,null,null,null,null,null,null,null,null,null,null,null,null,null,null,null,null,null,null,null,null,null,null,null,null,null,null,null,null,null,null,null,null,null,null,null,null,null,null,null,null,null,null,null,null,null,null,null,null,null,null,null,null,null,null,null,null,null,null,null,null,null,null,null,null,null,null,null,null,null,null,null,null,null,null,null,null,null,null,null,null,null,null,null,null,null,null,null,null,null,null,null,null,null,null,null,null,null,null,null,null,null,null,null,null,null,null,null,null,null,null,null,null,null,null,null,null,null,null,null,null,null,null,null,null,null,null,null,null,null,null,null,null,null,null,null,null,null,null,null,null,null,null,null,null,null,null,null,null,null,null,null,null,null,null,null,null,null,null,null,null,null,null,null,null,null,null,null,null,null,null,null,null,null,null,null,null,null,null,null,null,null,null,null,null,null,null,null,null,null,null,null,null,null,null,null,null,null,null,null,null,null,null,null,null,null,null,null,null,null,null,null,null,null,null,null,null,null,null,null,null,null,null,null,null,null,null,null,null,null,null,null,null,null,null,null,null,null,null,null,null,null,null,null,null,null,null,null,null,null,null,null,null,null,null,null,null,null,null,null,null,null,null,null,null,null,null,null,null,null,null,null,null,null,null,null,null,null,null,null,null,null,null,null,null,null,null,null,null,null,null,null,null,null,null,null,null,null,null,null,null,null,null,null,null,null,null,null,null,null,null,null,null,null,null,null,null,null,null,null,null,null,null,null,null,null,null,null,null,null,null,null,null,null,null,null,null,null,null,null,null,null,null,null,null,null,null,null,null,null,null,null,null,null,null,null,null,null,null,null,null,null,null,null,null,null,null,null,null,null,null,null,null,null,null,null,null,null,null,null,null,null,null,null,null,null,null,null,null,null,null,null,null,null,null,null,null,null,null,null,null,null,null,null,null,null,null,null,null,null,null,null,null,null,null,null,null,null,null,null,null,null,null,null,null,null,null,null,null,null,null,null,null,null,null,null,null,null,null,null,null,null,null,null,null,null,null,null,null,null,null,null,null,null,null,null,null,null,null,null,null,null,null,null,null,null,null,null,null,null,null,null,null,null,null,null,null,null,null,null,null,null,null,null,null,null,null,null,null,null,null,null,null,null,null,null,null,null,null,null,null,null,null,null,null,null,null,null,null,null,null,null,null,null,null,null,null,null,null,null,null,null,null,null,null,null,null,null,null,null,null,null,null,null,null,null,null,null,null,null,null,null,null,null,null,null,null,null,null,null,null,null,null,null,null,null,null,null,null,null,null,null,null,null,null,null,null,null,null,null,null,null,null,null,null,null,null,null,null,null,null,null,null,null,null,null,null,null,null,null,null,null,null,null,null,null,null,null,null,null,null,null,"Luis.chirivi"]
[null,null,null,null,null,null,null,null,null,null,null,null,null,null,null,null,null,null,null,null,null,null,null,null,null,null,null,null,null,null,null,null,null,null,null,null,null,null,null,null,null,null,null,null,null,null,null,null,null,null,null,null,null,null,null,null,null,null,null,null,null,null,null,null,null,null,null,null,null,null,null,null,null,null,null,null,null,null,null,null,null,null,null,null,null,null,null,null,null,null,null,null,null,null,null,null,null,null,null,null,null,null,null,null,null,null,null,null,null,null,null,null,null,null,null,null,null,null,null,null,null,null,null,null,null,null,null,null,null,null,null,null,null,null,null,null,null,null,null,null,null,null,null,null,null,null,null,null,null,null,null,null,null,null,null,null,null,null,null,null,null,null,null,null,null,null,null,null,null,null,null,null,null,null,null,null,null,null,null,null,null,null,null,null,null,null,null,null,null,null,null,null,null,null,null,null,null,null,null,null,null,null,null,null,null,null,null,null,null,null,null,null,null,null,null,null,null,null,null,null,null,null,null,null,null,null,null,null,null,null,null,null,null,null,null,null,null,null,null,null,null,null,null,null,null,null,null,null,null,null,null,null,null,null,null,null,null,null,null,null,null,null,null,null,null,null,null,null,null,null,null,null,null,null,null,null,null,null,null,null,null,null,null,null,null,null,null,null,null,null,null,null,null,null,null,null,null,null,null,null,null,null,null,null,null,null,null,null,null,null,null,null,null,null,null,null,null,null,null,null,null,null,null,null,null,null,null,null,null,null,null,null,null,null,null,null,null,null,null,null,null,null,null,null,null,null,null,null,null,null,null,null,null,null,null,null,null,null,null,null,null,null,null,null,null,null,null,null,null,null,null,null,null,null,null,null,null,null,null,null,null,null,null,null,null,null,null,null,null,null,null,null,null,null,null,null,null,null,null,null,null,null,null,null,null,null,null,null,null,null,null,null,null,null,null,null,null,null,null,null,null,null,null,null,null,null,null,null,null,null,null,null,null,null,null,null,null,null,null,null,null,null,null,null,null,null,null,null,null,null,null,null,null,null,null,null,null,null,null,null,null,null,null,null,null,null,null,null,null,null,null,null,null,null,null,null,null,null,null,null,null,null,null,null,null,null,null,null,null,null,null,null,null,null,null,null,null,null,null,null,null,null,null,null,null,null,null,null,null,null,null,null,null,null,null,null,null,null,null,null,null,null,null,null,null,null,null,null,null,null,null,null,null,null,null,null,null,null,null,null,null,null,null,null,null,null,null,null,null,null,null,null,null,null,null,null,null,null,null,null,null,null,null,null,null,null,null,null,null,null,null,null,null,null,null,null,null,null,null,null,null,null,null,null,null,null,null,null,null,null,null,null,null,null,null,null,null,null,null,null,null,null,null,null,null,null,null,null,null,null,null,null,null,null,null,null,null,null,null,null,null,null,null,null,null,null,null,null,null,null,null,null,null,null,null,null,null,null,null,null,null,null,null,null,null,null,"Luis.chirivi"]

{"sheet":"General","index":1,"n_rows":86,"n_cols":28,"rows_kept":86,"cut":false,"hidden":false,"merged":[[40,7,40,8],[38,2,38,6],[39,2,39,6],[13,2,13,5],[13,7,13,8],[27,2,27,8],[33,2,33,6],[35,2,35,8],[37,2,37,8],[25,2,25,8],[19,2,19,8],[23,2,23,8],[58,1,58,8],[43,2,43,8],[47,2,47,8],[44,2,44,6],[45,2,45,6],[46,7,46,8],[41,2,41,8],[31,2,31,8],[32,2,32,6],[34,7,34,8],[1,1,2,6],[12,2,12,5],[12,7,12,8],[8,1,8,8],[9,2,9,5],[9,7,9,8],[6,2,6,5],[6,7,6,8],[10,2,10,5],[10,7,10,8],[17,2,17,8],[21,2,21,8]]}
[null,null,null,null,null,null,null,{"$f":"IFERROR(VLOOKUP($C$7,Dt!AD81:AE82,2,0),\"INV\")","v":"INV"},{"$f":"IFERROR(VLOOKUP($C$13,Dt!$AC$6:$AD$13,2,0),\"NT\")","v":"NT"},null,null,null,null,null,null,null,null,null,null,null,null,null,null,"Número de Paginas del documento final , se puede ajustar."]
[null,"PRESENTACIÓN DE PROYECTOS \nDE INVESTIGACIÓN",null,null,null,null,null,"Fecha de Emisión: 2019/03/18","IN-IV-F-14",null,null,null,null,null,null,null,null,null,".",null,null,null,null,11,null,null,"NN","No. Grupo"]
[null,null,null,null,null,null,null,"Revisión N°:\n4",{"$f":"\"Página \"&A1&\" de \"&Dt_TPG","v":"Página  de 11"},null,null,null,null,null,null,null,null,null,"Documento de Prueba 06 Marzo 2018",null,null,null,null,null,null,null,44,{"$f":"VLOOKUP($AA3,Dt!$AN$3:$AR$179,3,0)","v":"ACCEDER"}]
[null,null,null,null,null,null,null,null,null,null,null,null,null,null,null,null,null,null,null,null,null,null,null,null,null,null,10,{"$f":"VLOOKUP($AA4,Dt!$AN$3:$AR$179,3,0)","v":"Agrobiología de especies vegetales promisorias de clima frío"}]
["1.-","Información general del proyecto.",null,null,null,null,null,null,{"$f":"\"Vrs.- \"&TEXT(DAY($U$5),\"00\")&\".\"&(TEXT(MONTH($U$5),\"00\"))&U7&\"b\"","v":"Vrs.- 03.05b"},null,null,null,null,null,null,null,null,null,"Fecha Actualización ",null,{"$f":"I63","v":"2022-05-03"},null,null,"Hoy es ",null,null,45,{"$f":"VLOOKUP($AA5,Dt!$AN$3:$AR$179,3,0)","v":"Agua y Energía - AyE"}]
[null,null,null,null,null,null,null,null,null,null,null,null,null,null,null,null,null,null,null,null,null,null,null,null,null,null,34,{"$f":"VLOOKUP($AA6,Dt!$AN$3:$AR$179,3,0)","v":"BioethicsGroup"}]
[null,"Convocatoria:","Investigación Científica",null,null,null,"Código o Radicado",null,null,null,null,null,null,null,null,null,null,null,null,null,"",null,null,{"$f":"NOW()","v":"2022-05-04T14:54:41.550"},null,null,67,{"$f":"VLOOKUP($AA7,Dt!$AN$3:$AR$179,3,0)","v":"BioGenEtica & BioDerecho"}]
[null,null,null,null,null,null,null,null,null,null,null,null,null,null,null,null,null,null,null,null,null,null,null,null,null,null,53,{"$f":"VLOOKUP($AA8,Dt!$AN$3:$AR$179,3,0)","v":"BONE"}]
[null,"Formato: actualizado a 08 Abr 2022",null,null,null,null,null,null,null,null,null,null,null,null,null,null,null,null,{"$f":"Cel_Fac","v":"NT"},null,null,null,null,null,null,null,52,{"$f":"VLOOKUP($AA9,Dt!$AN$3:$AR$179,3,0)","v":"CATCH"}]
[null,"Líder: ","Luis Alexander Chirivi",null,null,null,"Teléfonos :",null,null,null,null,null,null,null,null,null,null,null,null,null,null,null,null,"2019-03-18",null,null,4,{"$f":"VLOOKUP($AA10,Dt!$AN$3:$AR$179,3,0)","v":"Control Biológico UMNG"}]
[null,"Correo:",null,null,null,null," Sede:",null,null,null,null,null,null,null,null,null,null,null,null,null,null,null,null,null,null,null,33,{"$f":"VLOOKUP($AA11,Dt!$AN$3:$AR$179,3,0)","v":"Cultura y Desarrollo Humano"}]
[null,"Este proyecto es continuación de un proyecto anterior",null,null,null,"No","El proyecto tiene o ha tenido financiación",null,"No",null,null,null,null,null,null,null,null,null,null,null,null,null,null,null,null,null,41,{"$f":"VLOOKUP($AA12,Dt!$AN$3:$AR$179,3,0)","v":"DAVINCI"}]
[null,"Facultad del Líder investigador",null,null,null,null,"Programa del Líder investigador",null,null,null,null,"Clasificación Grupo Máximo",null,null,null,null,null,null,null,null,null,null,null,null,null,null,71,{"$f":"VLOOKUP($AA13,Dt!$AN$3:$AR$179,3,0)","v":"DIVERSITAS"}]
[null,"Palabras Clave",null,null,null,null,"Áreas Colciencias",null,null,null,null,null,null,null,null,null,null,null,null,null,null,null,null,42796,null,null,13,{"$f":"VLOOKUP($AA14,Dt!$AN$3:$AR$179,3,0)","v":"ECMU (Evaluacion en Competencias y Matemáticas Universitarias)"}]
[null,null,null,null,null,null,null,null,null,null,null,null,null,null,null,null,null,null,2,null,null,null,null,null,null,null,66,{"$f":"VLOOKUP($AA15,Dt!$AN$3:$AR$179,3,0)","v":"EDUMECIS"}]
["2.-",{"$f":"Q72","v":"Información de Grupos de Investigación UMNG asociados al proyecto"},null,null,null,null,null,null,null,null,null,null,null,null,null,null,null,null,null,null,null,null,null,null,null,null,48,{"$f":"VLOOKUP($AA16,Dt!$AN$3:$AR$179,3,0)","v":"Energia alternativa, Centro Multidisciplinario de Investigación"}]
[null,null,null,null,null,null,null,null,null,null,null,null,null,null,null,null,null,null,null,null,null,null,null,null,null,null,64,{"$f":"VLOOKUP($AA17,Dt!$AN$3:$AR$179,3,0)","v":"Epidemiología molecular de enfermedades endocrinas"}]
[null,"Grupo Principal",null,null,null,null,null,null,null,null,null,{"$f":"IFERROR(VLOOKUP($C18,Dt!$AP$3:$AQ$79,2,0),0)","v":0},null,null,null,null,null,null,null,null,null,null,null,null,null,null,70,{"$f":"VLOOKUP($AA18,Dt!$AN$3:$AR$179,3,0)","v":"Epidemiología y Salud Colectiva "}]
[null,"Enlace Minciencias:",{"$f":"IFERROR(VLOOKUP(L18,Dt!$AQ$3:$AS$79,3,0),\"\")","v":""},null,null,null,null,null,{"$f":"IFERROR(VLOOKUP(L18,Dt!$AQ$3:$AS$79,2,0),\"\")","v":""},null,null,{"$f":"COUNTIF($O$7:$O$9,I19)","v":3},null,null,null,null,null,null,null,null,null,null,null,null,null,null,7,{"$f":"VLOOKUP($AA19,Dt!$AN$3:$AR$179,3,0)","v":"Estadística, Control y Optimización"}]
[null,"Líneas",null,null,null,null,null,null,null,null,null,{"$f":"IFERROR(\"DT!\"&VLOOKUP($C18,Dt!$AP$3:$AT$79,5,0),0)","v":0},null,null,null,null,null,null,null,null,null,null,null,null,null,null,42,{"$f":"VLOOKUP($AA20,Dt!$AN$3:$AR$179,3,0)","v":"Estructuras y sísmica"}]
[null,null,null,null,null,null,null,null,null,null,null,null,null,null,null,null,null,null,null,null,null,null,null,null,null,null,29,{"$f":"VLOOKUP($AA21,Dt!$AN$3:$AR$179,3,0)","v":"Estudios Internacionales y Políticos"}]
[{"$f":"IFERROR(VLOOKUP(D22,Dt!$AP$3:$AU$79,5,0),\"\")","v":""},"Grupo Aliado 1",null,null,null,null,null,null,null,null,null,{"$f":"IFERROR(VLOOKUP($C22,Dt!$AP$3:$AQ$79,2,0),0)","v":0},null,null,null,null,null,null,null,null,null,null,null,null,null,null,6,{"$f":"VLOOKUP($AA22,Dt!$AN$3:$AR$179,3,0)","v":"Fitopatologia molecular"}]
[null,{"$f":"B19","v":"Enlace Minciencias:"},{"$f":"IFERROR(VLOOKUP(L22,Dt!$AQ$3:$AS$79,3,0),\"\")","v":""},null,null,null,null,null,{"$f":"IFERROR(VLOOKUP(L22,Dt!$AQ$3:$AS$79,2,0),\"\")","v":""},null,null,null,null,null,null,null,null,null,null,null,null,null,null,null,null,null,1,{"$f":"VLOOKUP($AA23,Dt!$AN$3:$AR$179,3,0)","v":"Fitoplasmas y Virus"}]
[{"$f":"IFERROR(VLOOKUP($C24,Dt!$BB$3:$BD$286,3,0),\"\")","v":""},"Líneas",null,null,null,null,null,null,null,null,null,{"$f":"IFERROR(\"DT!\"&VLOOKUP($C22,Dt!$AP$3:$AT$79,5,0),0)","v":0},null,null,null,null,null,null,null,null,null,null,null,null,null,null,68,{"$f":"VLOOKUP($AA24,Dt!$AN$3:$AR$179,3,0)","v":"GAFRED"}]
[null,null,null,null,null,null,null,null,null,null,null,null,null,null,null,null,null,null,null,null,null,null,null,null,null,null,47,{"$f":"VLOOKUP($AA25,Dt!$AN$3:$AR$179,3,0)","v":"GAV"}]
[null,"Grupo Aliado 2",null,null,null,null,null,null,null,null,null,{"$f":"IFERROR(VLOOKUP($C26,Dt!$AP$3:$AQ$79,2,0),0)","v":0},null,null,null,null,null,null,null,null,null,null,null,null,null,null,28,{"$f":"VLOOKUP($AA26,Dt!$AN$3:$AR$179,3,0)","v":"GECS (Grupo de Estudios en Educación, Contabilidad y Sociedad)"}]
[null,{"$f":"B23","v":"Enlace Minciencias:"},{"$f":"IFERROR(VLOOKUP(L26,Dt!$AQ$3:$AS$79,3,0),\"\")","v":""},null,null,null,null,null,{"$f":"IFERROR(VLOOKUP(L26,Dt!$AQ$3:$AS$79,2,0),\"\")","v":""},null,null,null,null,null,null,null,null,null,null,null,null,null,null,null,null,null,36,{"$f":"VLOOKUP($AA27,Dt!$AN$3:$AR$179,3,0)","v":"GEOTECNIA"}]
[null,"Líneas",null,null,null,null,null,null,null,null,null,{"$f":"IFERROR(\"DT!\"&VLOOKUP($C26,Dt!$AP$3:$AT$79,5,0),0)","v":0},null,null,null,null,null,null,null,null,null,null,null,null,null,null,40,{"$f":"VLOOKUP($AA28,Dt!$AN$3:$AR$179,3,0)","v":"GIDAM"}]
[null,null,null,null,null,null,null,null,null,null,null,null,null,null,null,null,null,null,null,null,null,null,null,null,null,null,49,{"$f":"VLOOKUP($AA29,Dt!$AN$3:$AR$179,3,0)","v":"GI-iTEC - Grupo de Investigación e innovación Tecnológica en Electrónica y Comunicaciones"}]
["3.-","Instituciones Externas participantes.",null,null,null,null,null,"No. de Instituciones: -->",0,null,null,null,null,null,null,null,null,null,null,null,null,null,null,null,null,null,46,{"$f":"VLOOKUP($AA30,Dt!$AN$3:$AR$179,3,0)","v":"GISSIC: Grupo de Investigacion en Seguridad y Sistemas de Comunicaciones"}]
[null,null,"s",null,null,null,null,null,null,null,null,null,null,null,null,null,null,null,null,null,null,null,null,null,null,null,51,{"$f":"VLOOKUP($AA31,Dt!$AN$3:$AR$179,3,0)","v":"GREST"}]
[null,"Nombre 1",null,null,null,null,null,null,null,null,null,null,null,null,null,null,null,null,null,null,null,null,null,null,null,null,16,{"$f":"VLOOKUP($AA32,Dt!$AN$3:$AR$179,3,0)","v":"Grupo de Derecho Privado"}]
[null,"Grupo 1",null,null,null,null,null,"Clasificación","NA",null,null,null,null,null,null,null,null,null,null,null,null,null,null,null,null,null,15,{"$f":"VLOOKUP($AA33,Dt!$AN$3:$AR$179,3,0)","v":"Grupo de derecho público "}]
[null,"Investigadores",null,null,null,null,null,"Presupuesto en \nplan de compras:",null,null,null,null,null,null,null,null,null,null,null,null,null,null,null,null,null,null,14,{"$f":"VLOOKUP($AA34,Dt!$AN$3:$AR$179,3,0)","v":"Grupo de Docencia e Investigación en Física"}]
[null," Nivel o alcance institucional de la entidad externa es :",null,null,null,null,null,{"$f":"$M$57","v":"."},null,null,null,null,null,null,null,null,null,null,null,null,null,null,null,null,null,null,8,{"$f":"VLOOKUP($AA35,Dt!$AN$3:$AR$179,3,0)","v":"Grupo de Ecotoxicología, Evolución, Medio ambiente y conservación (E = mc2)"}]
[null,{"$f":"B19","v":"Enlace Minciencias:"},null,null,null,null,null,null,null,null,null,{"$f":"IFERROR(SEARCH(M36,C36,1),0)","v":0},"http://scienti.colciencias.gov.co:8085",null,null,null,null,null,null,null,null,null,null,null,null,null,27,{"$f":"VLOOKUP($AA36,Dt!$AN$3:$AR$179,3,0)","v":"Grupo de Estudios Contemporáneos en Gestión y Organizaciones GECGO"}]
[null,null,null,null,null,null,null,null,null,null,null,null,null,null,null,null,null,null,null,null,null,null,null,null,null,null,25,{"$f":"VLOOKUP($AA37,Dt!$AN$3:$AR$179,3,0)","v":"Grupo de Estudios en Ciencias Económicas - CIE"}]
[null,"Nombre 2",null,null,null,null,null,null,null,null,null,null,null,null,null,null,null,null,null,null,null,null,null,null,null,null,26,{"$f":"VLOOKUP($AA38,Dt!$AN$3:$AR$179,3,0)","v":"GRUPO DE ESTUDIOS SOBRE DESIGUALDADES SOCIALES"}]
[null,"Grupo 2",null,null,null,null,null,"Clasificación",null,null,null,null,null,null,null,null,null,null,null,null,null,null,null,null,null,null,69,{"$f":"VLOOKUP($AA39,Dt!$AN$3:$AR$179,3,0)","v":"Grupo de inmunología Clínica Aplicada (GICA)"}]
[null,"Investigadores",null,null,null,null,null,"Presupuesto en \nplan de compras:",null,null,null,null,null,null,null,null,null,null,null,null,null,null,null,null,null,null,2,{"$f":"VLOOKUP($AA40,Dt!$AN$3:$AR$179,3,0)","v":"Grupo de investigación en Biodiversidad y ecología de abejas silvestres"}]
[null," Nivel o alcance institucional de la entidad externa es :",null,null,null,null,null,{"$f":"IF(I40>0,$M$57,\".\")","v":"."},null,null,null,null,null,null,null,null,null,null,null,null,null,null,null,null,null,null,59,{"$f":"VLOOKUP($AA41,Dt!$AN$3:$AR$179,3,0)","v":"Grupo de Investigación en Cirugía pediátrica y especialidades CIPEMIL"}]
[null,{"$f":"B36","v":"Enlace Minciencias:"},null,null,null,null,null,null,null,null,null,{"$f":"IFERROR(SEARCH(M42,C42,1),0)","v":0},"http://scienti.colciencias.gov.co:8085",null,null,null,null,null,null,null,null,null,null,null,null,null,58,{"$f":"VLOOKUP($AA42,Dt!$AN$3:$AR$179,3,0)","v":"Grupo de Investigacion en Dermatologia HMC"}]
[null,null,null,null,null,null,null,null,null,null,null,null,null,null,null,null,null,null,null,null,null,null,null,null,null,null,74,{"$f":"VLOOKUP($AA43,Dt!$AN$3:$AR$179,3,0)","v":"Grupo de Investigación en Enfermedades Infecciosas Hospital Militar Central "}]
[null,"Nombre3",null,null,null,null,null,null,null,null,null,null,null,null,null,null,null,null,null,null,null,null,null,null,null,null,9,{"$f":"VLOOKUP($AA44,Dt!$AN$3:$AR$179,3,0)","v":"Grupo de Investigación en Hidrobiología Aplicada (HIDROBIA)"}]
[null,"Grupo 3",null,null,null,null,null,"Clasificación",null,null,null,null,null,null,null,null,null,null,null,null,null,null,null,null,null,null,35,{"$f":"VLOOKUP($AA45,Dt!$AN$3:$AR$179,3,0)","v":"Grupo de Investigación en Multimedia -GIM-"}]
[null,"Investigadores",null,null,null,null,null,"Presupuesto en \nplan de compras:",null,null,null,null,null,null,null,null,null,null,null,null,null,null,null,null,null,null,12,{"$f":"VLOOKUP($AA46,Dt!$AN$3:$AR$179,3,0)","v":"Grupo de investigación en química ambiental y tecnologías limpias - QUATELI"}]
[null," Nivel o alcance institucional de la entidad externa es :",null,null,null,null,null,{"$f":"IF(I46>0,$M$57,\".\")","v":"."},null,null,null,null,null,null,null,null,null,null,null,null,null,null,null,null,null,null,63,{"$f":"VLOOKUP($AA47,Dt!$AN$3:$AR$179,3,0)","v":"Grupo de Investigacion en Urologia HMC"}]
[null,{"$f":"B42","v":"Enlace Minciencias:"},null,null,null,null,null,null,null,null,null,{"$f":"IFERROR(SEARCH(M48,C48,1),0)","v":0},"http://scienti.colciencias.gov.co:8085",null,null,null,null,null,null,null,null,null,null,null,null,null,73,{"$f":"VLOOKUP($AA48,Dt!$AN$3:$AR$179,3,0)","v":"Grupo de investigaciones sobre agentes radiológicos, biológicos y químicos"}]
[null,null,null,null,null,null,null,null,null,null,null,null,null,null,null,null,null,null,null,null,null,null,null,null,null,null,5,{"$f":"VLOOKUP($AA49,Dt!$AN$3:$AR$179,3,0)","v":"Grupo de Micología y Fitopatologia "}]
[null,"Datos comprometidos.",null,null,null,null,null,null,null,null,null,null,null,null,null,null,null,null,null,null,null,null,null,null,null,null,54,{"$f":"VLOOKUP($AA50,Dt!$AN$3:$AR$179,3,0)","v":"Grupo de Psoriasis e Inmunodermatologia"}]
[null,null,null,null,null,null,null,null,null,null,null,null,null,null,null,null,null,null,null,null,null,null,null,null,null,null,62,{"$f":"VLOOKUP($AA51,Dt!$AN$3:$AR$179,3,0)","v":"Grupo de Rehabilitacion HOMIC-UMNG"}]
[null,"Productividad  comprometida",null,{"$f":"IF(K52>0,\"Error revice productos \",V_Max)","v":0},null,"$ Vicein:",{"$f":"IF(D52>0,Presupuesto!F141,0)","v":0},null,{"$f":"\"Limite de \"&Presupuesto!O2 &\" millones.\"","v":"Limite de 15 millones."},null,{"$f":"IF(Productos!P54>0,1,0)","v":0},null,null,null,null,null,null,null,null,null,null,null,null,null,null,null,60,{"$f":"VLOOKUP($AA52,Dt!$AN$3:$AR$179,3,0)","v":"Grupo de Salud Oral y Cirugia Maxilofacial"}]
[null,null,null,null,null,null,null,null,null,null,null,null,null,null,null,null,null,null,null,null,null,null,null,null,null,null,11,{"$f":"VLOOKUP($AA53,Dt!$AN$3:$AR$179,3,0)","v":"Grupo Integrado de Investigaciones en Química Bioorgánica (InQuiBio)"}]
[null,null,null,null,null,null,null,null,null,null,null,null,null,null,null,null,null,null,null,null,null,null,null,null,null,null,57,{"$f":"VLOOKUP($AA54,Dt!$AN$3:$AR$179,3,0)","v":"GRUPO NEUROCIENCIAS HMC"}]
[null,"* Las áreas sombreadas de color azul no son editables ",null,null,null,null,null,null,null,null,null,{"$f":"SUM(I34,I40,I46)","v":0},"<-- Sumatoria Presupuesto de entidades externas en Pg. General",null,null,null,null,null,null,null,null,null,null,null,null,null,32,{"$f":"VLOOKUP($AA55,Dt!$AN$3:$AR$179,3,0)","v":"HUMANITAS"}]
[null,null,null,null,null,null,null,null,null,null,null,{"$f":"Presupuesto!H141","v":0},"<-- Sumatoria Presupuesto de entidades externas en Pg. Presupuesto",null,null,null,null,null,null,null,null,null,null,null,null,null,77,{"$f":"VLOOKUP($AA56,Dt!$AN$3:$AR$179,3,0)","v":"ICAAO: Inteligencia Computacional, Aprendizaje Automático y Optimización"}]
[null,"Observaciones o recomendaciones (no valida para calificación de Propuesta):",null,null,null,null,null,null,null,null,null,{"$f":"L55-L56","v":0},{"$f":"IF(L57=0,\".\",\"   Pendiente validar dif. $\"&TEXT(L57,\"###.###.###\"))","v":"."},null,null,null,null,null,null,null,null,null,null,null,null,null,24,{"$f":"VLOOKUP($AA57,Dt!$AN$3:$AR$179,3,0)","v":"INAMPE"}]
[null,null,null,null,null,null,null,null,null,null,null,null,null,null,null,null,null,null,null,null,null,null,null,null,null,null,19,{"$f":"VLOOKUP($AA58,Dt!$AN$3:$AR$179,3,0)","v":"INCONDIS"}]
[null,null,null,null,null,null,null,null,null,null,null,null,null,null,null,null,null,null,null,null,null,null,null,null,null,null,65,{"$f":"VLOOKUP($AA59,Dt!$AN$3:$AR$179,3,0)","v":"Ingeniería de Procesos y Tecnologías Sostenibles"}]
[null,null,null,null,null,null,null,null,null,null,null,null,null,null,null,null,null,null,null,null,null,null,null,null,null,null,43,{"$f":"VLOOKUP($AA60,Dt!$AN$3:$AR$179,3,0)","v":"INGENIERÍA, GEOMÁTICA Y EDUCACIÓN (IGE)"}]
[null,"Calificación del formato",null,null,null,null,null,null,null,null,null,null,null,null,null,null,null,null,null,null,null,null,null,null,null,null,61,{"$f":"VLOOKUP($AA61,Dt!$AN$3:$AR$179,3,0)","v":"Kokhlias."}]
[null,null,null,null,null,null,null,null,null,null,null,null,null,null,null,null,null,null,null,null,null,null,null,null,null,null,50,{"$f":"VLOOKUP($AA62,Dt!$AN$3:$AR$179,3,0)","v":"LA TRAMOYA"}]
[null,"Observaciones : Ajustes y actualizaciones realizadas al formato.",null,null,null,null,null,null,{"$f":"MAX(I65:I204)","v":"2022-05-03"},null,null,"Pts. Prueba",10,null,{"$f":"IF(N67>2,O67,\"\") & IF(N68>2,\"; \"&O68,\"\")& IF(N66>2,\"; \"&O66,\"\")","v":""},null,null,null,null,null,null,null,null,null,null,null,31,{"$f":"VLOOKUP($AA63,Dt!$AN$3:$AR$179,3,0)","v":"LIDERAZGO"}]
[null,null,null,null,null,null,null,null,null,null,null,null,null,null,null,null,null,null,null,null,null,null,null,null,null,null,3,{"$f":"VLOOKUP($AA64,Dt!$AN$3:$AR$179,3,0)","v":"MATRIX"}]
[null,"No","Actualización, ajustes y cambios.",null,null,null,null,null,"Fecha",null,null,null,{"$f":"I30","v":0},null,null,null,null,null,null,null,null,null,null,null,null,null,21,{"$f":"VLOOKUP($AA65,Dt!$AN$3:$AR$179,3,0)","v":"Medios, Mediaciones y Procesos en Educación a Distancia"}]
[null,{"$f":"ROW()-63","v":3},"Publicacion Base",null,null,null,null,null,"2022-02-16",null,null,null,3,{"$f":"LEN(O66)","v":0},{"$f":"CLEAN(C44)","v":""},null,null,null,null,null,null,null,null,null,null,null,23,{"$f":"VLOOKUP($AA66,Dt!$AN$3:$AR$179,3,0)","v":"Modelos de simulación ICDIST"}]
[null,{"$f":"ROW()-63","v":4},"Ajustes revision  de topes presupuestales., externos y limite de puntos.",null,null,null,null,null,"2022-02-17",null,null,null,2,{"$f":"LEN(O67)","v":0},{"$f":"CLEAN(C38)","v":""},null,null,null,null,null,null,null,null,null,null,null,72,{"$f":"VLOOKUP($AA67,Dt!$AN$3:$AR$179,3,0)","v":"Nanofab"}]
[null,5,"Ajuste de clasificaciones de grupos con documento preliminar de la  894 2021",null,null,null,null,null,"2022-02-23",null,null,null,1,{"$f":"LEN(O68)","v":0},{"$f":"CLEAN(C32)","v":""},null,null,null,null,null,null,null,null,null,null,null,55,{"$f":"VLOOKUP($AA68,Dt!$AN$3:$AR$179,3,0)","v":"ORTOPEDIA Y TRAUMATOLOGIA HMC UMNG"}]
[null,6,"Ajuste de codigós de clasificación de los productos   .",null,null,null,null,null,"2022-02-28",null,null,null,null,null,null,null,null,null,null,null,null,null,null,null,null,null,20,{"$f":"VLOOKUP($AA69,Dt!$AN$3:$AR$179,3,0)","v":"\"PYDES\" Pedagogía y didáctica en la educación superior"}]
[null,7,"Ajustes en productividad: Eliminados productos IDs: 115 a 118, 401 y 402",null,null,null,null,null,"2022-03-08",null,null,null,null,null,null,null,null,null,null,null,null,null,null,null,null,null,22,{"$f":"VLOOKUP($AA70,Dt!$AN$3:$AR$179,3,0)","v":"PIREO \"Procesos de Integración, Regionalización y Estructuras Organizacionales\""}]
[null,8,"Ajuste intervalo de meses para externos de 4 a 12 meses ",null,null,null,null,null,"2022-03-08",null,null,null,null,null,null,null,null,null,null,null,null,null,null,null,null,null,75,{"$f":"VLOOKUP($AA71,Dt!$AN$3:$AR$179,3,0)","v":"PROCESOS, OPERACIONES Y LOGISTICA (PROPYLOG)"}]
[null,9,"Ajuste condición de salida de campo",null,null,null,null,null,"2022-03-31",null,null,null,null,{"$f":"$H$1","v":"INV"},null,null,{"$f":"IF(Q73=1,Q74,IF(N72=\"IMP\",Q75,Q74))","v":"Información de Grupos de Investigación UMNG asociados al proyecto"},null,null,null,null,null,null,null,null,null,39,{"$f":"VLOOKUP($AA72,Dt!$AN$3:$AR$179,3,0)","v":"PRODUCCION, INNOVACION Y TECNOLOGIA"}]
[null,10,"Ajuste de factor de 3.0 para auxiiar de pregrado",null,null,null,null,null,"2022-03-31",null,null,null,"A1",{"$f":"COUNTIF($I$19:$I$27,M73)","v":0},{"$f":"SUM(N73:N76)","v":0},null,{"$f":"IF(O73>0,1,0)","v":0},null,null,null,null,null,null,null,null,null,18,{"$f":"VLOOKUP($AA73,Dt!$AN$3:$AR$179,3,0)","v":"PROPPIO: Procesos organizacionales, programaticos y políticos para la promoción del desarrollo"}]
[null,11,"Ajuste de nombres de los grupos de ECO   ",null,null,null,null,null,"2022-04-08",null,null,null,"A",{"$f":"COUNTIF($I$19:$I$27,M74)","v":0},null,null,"Información de Grupos de Investigación UMNG asociados al proyecto",null,null,null,null,null,null,null,null,null,17,{"$f":"VLOOKUP($AA74,Dt!$AN$3:$AR$179,3,0)","v":"Red de estudios sociojurídicos comparados y políticas públicas"}]
[null,12,"Ajuste  de topes maximos en el presupuesto",null,null,null,null,null,"2022-05-03",null,null,null,"B",{"$f":"COUNTIF($I$19:$I$27,M75)","v":0},null,null,"Grupos de investigación, para IMP necesita un grupo clasificado en C por lo menos",null,null,null,null,null,null,null,null,null,56,{"$f":"VLOOKUP($AA75,Dt!$AN$3:$AR$179,3,0)","v":"Salud y Comportamiento"}]
[null,13,0,null,null,null,null,null,null,null,null,null,"C",{"$f":"COUNTIF($I$19:$I$27,M76)","v":0},null,null,null,null,null,null,null,null,null,null,null,null,76,{"$f":"VLOOKUP($AA76,Dt!$AN$3:$AR$179,3,0)","v":"Sistemas de Infraestructura de Ingeniería Civil"}]
[null,14,0,null,null,null,null,null,null,null,null,null,"R",0,null,null,null,null,null,null,null,null,null,null,null,null,30,{"$f":"VLOOKUP($AA77,Dt!$AN$3:$AR$179,3,0)","v":"Sociedad, Estrategia y Seguridad"}]
[null,15,0,null,null,null,null,null,null,null,null,null,"NR",0,null,null,{"$f":"Dt!DE1","v":"Error 031.- en : [General] Pendiente seleccionar Programa del lider del proyecto"},null,null,null,null,null,null,null,null,null,37,{"$f":"VLOOKUP($AA78,Dt!$AN$3:$AR$179,3,0)","v":"TIGUM: Grupo de Investigacion en Telemedicina Universidad Militar"}]
[null,16,0,null,null,null,null,null,null,null,null,null,"NA",0,null,null,null,null,null,null,null,null,null,null,null,null,38,{"$f":"VLOOKUP($AA79,Dt!$AN$3:$AR$179,3,0)","v":"VOLTA - Grupo de Materiales, Corrosión, Degradación y Protección (GMCDP) "}]
[null,17,0]
[null,18,0]
[null,19,0]
[null,20,0]
[null,21,0]
[null,{"$f":"ROW()-49","v":36}]
[null,{"$f":"ROW()-49","v":37}]

{"sheet":"Resumen","index":2,"n_rows":55,"n_cols":18,"rows_kept":55,"cut":false,"hidden":false,"merged":[[25,2,25,4],[1,2,2,2],[6,2,6,4],[24,2,24,4],[18,2,18,4],[17,2,17,4],[11,2,11,4],[10,2,10,4],[9,2,9,4],[8,2,8,4],[7,2,7,4],[12,2,12,4],[13,2,13,4],[14,2,14,4],[43,2,43,4],[26,2,26,4],[27,2,27,4],[28,2,28,4],[29,2,29,4],[41,3,41,4],[40,3,40,4],[38,2,38,4],[30,2,30,4],[31,2,31,4],[32,2,32,4],[33,2,33,4]]}
[2,null,null,null,null,null,"*Pueden  Ocultar las Filas que no se utilicen.",null,null,null,null,null,null,null,null,null,null,"https://www.ealde.es/niveles-riesgo-niveles-control/"]
[null,null,{"$f":"General!B2","v":"PRESENTACIÓN DE PROYECTOS \nDE INVESTIGACIÓN"},{"$f":"General!$H$2","v":"Fecha de Emisión: 2019/03/18"},{"$f":"General!$I$2","v":"IN-IV-F-14"},null,{"$f":"SUM(G7:G19)","v":0},"<=== N° palabras en total"]
[null,null,null,{"$f":"General!$H$3","v":"Revisión N°:\n4"},{"$f":"\"Página \"&A1&\" de \"&Dt_TPG","v":"Página 2 de 11"},null,"Palabras","Largo L"]
[]
["4.-","#","Resumen de la propuesta .",null,null,null,{"$f":"SUM(G6:G20)","v":0},{"$f":"SUM(H6:H20)","v":0}]
[null,{"$f":"VLOOKUP(NbHoja(),DT_Errores,3,0)","v":"Error : 015.- No tiene la productividad mínima requerida para la convcocatoria INV de 20 Puntos."}]
[null,{"$f":"ROW()-6","v":1},null,null,null,null,{"$f":"IF(C7=\"\",0,LEN(TRIM(C7))-LEN(SUBSTITUTE(TRIM(C7),\" \",\"\"))+1)","v":0},{"$f":"LEN(C7)","v":0}]
[null,{"$f":"ROW()-6","v":2},null,null,null,null,{"$f":"IF(C8=\"\",0,LEN(TRIM(C8))-LEN(SUBSTITUTE(TRIM(C8),\" \",\"\"))+1)","v":0},{"$f":"LEN(C8)","v":0}]
[null,3,null,null,null,null,{"$f":"IF(C9=\"\",0,LEN(TRIM(C9))-LEN(SUBSTITUTE(TRIM(C9),\" \",\"\"))+1)","v":0},{"$f":"LEN(C9)","v":0}]
[null,4,null,null,null,null,0,0]
[null,5,null,null,null,null,0,0]
[null,6,null,null,null,null,0,0]
[null,7,null,null,null,null,0,0]
[null,8,null,null,null,null,0,0]
[null,9,null,null,null,null,0,0,null,null,{"$f":"Fx_Nhjs()","v":2}]
[null,10,null,null,null,null,0,0]
[null,11,null,null,null,null,0,0]
[null,12,null,null,null,null,0,0]
[null,13,null,null,null,null,{"$f":"IF(C19=\"\",0,LEN(TRIM(C19))-LEN(SUBSTITUTE(TRIM(C19),\" \",\"\"))+1)","v":0},{"$f":"LEN(C19)","v":0}]
[]
[]
[]
["5.-","#","Planteamiento y justificación de la propuesta.",null,null,null,{"$f":"SUM(G24:G34)","v":0},"<=== Palabras en total"]
[null,null,null,null,null,null,{"$f":"IF(C24=\"\",0,LEN(TRIM(C24))-LEN(SUBSTITUTE(TRIM(C24),\" \",\"\"))+1)","v":0}]
[null,{"$f":"ROW()-19","v":6},null,null,null,null,0]
[null,{"$f":"ROW()-19","v":7},null,null,null,null,0]
[null,8,null,null,null,null,0]
[null,9,null,null,null,null,0]
[null,10,null,null,null,null,0]
[null,11,null,null,null,null,0]
[null,12,null,null,null,null,0]
[null,13,null,null,null,null,0]
[null,14,null,null,null,null,0]
[null,15,null,null,null,null,0]
[null,null,null,null,null,null,0,null,null,null,"Si hay duas en riesgos (Ir al documento)"]
["5.b-","#","Tipos y probabilidad de ocurrencia de riesgos.",null,null,null,{"$f":"SUM(G37:G316)","v":13},"<=== Palabras en total",null,null,"http://www.umng.edu.co/gestion-de-riesgos-institucional"]
[null,null,null,null,null,null,0]
[null,null,"Identificación general del riesgo .       Max 100 palabras",null,null,null,{"$f":"IF(C40=\"\",0,LEN(TRIM(C40))-LEN(SUBSTITUTE(TRIM(C40),\" \",\"\"))+1)","v":0},null,null,null,"Identificacion","Impacto","Probabilidad"]
[null,null,null,null,null,null,null,null,null,1,null,"Catastrofico","Casi seguro"]
[null,null,null,null,null,null,null,null,null,2,null,"Mayor ","Probable"]
[null,null,"Probabilidad ","Probable",null,null,null,null,null,3,null,"Moderado","Posible"]
[null,null,"Impacto","Insignificante",null,null,null,null,null,4,null,"Menor ","Improbable"]
[null,null,"Acciones de control, detección, mitigación o corrección.",null,null,null,null,null,null,5,null,"Insignificante","Rara vez"]
[null,null,null,null,null,null,null,null,null,6]
[null,null,null,null,null,null,null,null,null,7]
[null,null,null,null,null,null,null,null,null,8]
[]
[]
[]
[]
[]
[null,null,null,null,null,null,{"$f":"IF(C52=\"\",0,LEN(TRIM(C52))-LEN(SUBSTITUTE(TRIM(C52),\" \",\"\"))+1)","v":0}]
[null,null,null,null,null,null,{"$f":"IF(C53=\"\",0,LEN(TRIM(C53))-LEN(SUBSTITUTE(TRIM(C53),\" \",\"\"))+1)","v":0}]
[null,null,null,null,null,null,{"$f":"IF(C54=\"\",0,LEN(TRIM(C54))-LEN(SUBSTITUTE(TRIM(C54),\" \",\"\"))+1)","v":0}]
[null,null,"*Pueden  Ocultar las Filas que no se utilicen ( Favor no eliminar filas).",null,null,null,{"$f":"IF(C55=\"\",0,LEN(TRIM(C55))-LEN(SUBSTITUTE(TRIM(C55),\" \",\"\"))+1)","v":13}]

{"sheet":"Estado_del_arte","index":3,"n_rows":91,"n_cols":8,"rows_kept":91,"cut":false,"hidden":false,"merged":[[84,2,84,4],[85,2,85,4],[86,2,86,4],[87,2,87,4],[68,2,68,4],[69,2,69,4],[70,2,70,4],[71,2,71,4],[72,2,72,4],[78,2,78,4],[79,2,79,4],[80,2,80,4],[81,2,81,4],[83,2,83,4],[82,2,82,4],[73,2,73,4],[74,2,74,4],[75,2,75,4],[76,2,76,4],[77,2,77,4],[64,2,64,4],[1,2,2,2],[59,2,59,4],[60,2,60,4],[61,2,61,4],[62,2,62,4],[18,2,18,4],[19,2,19,4],[20,2,20,4],[21,2,21,4],[51,2,51,4],[52,2,52,4],[12,2,12,4],[13,2,13,4],[14,2,14,4],[15,2,15,4],[44,2,44,4],[63,2,63,4],[53,2,53,4],[54,2,54,4],[55,2,55,4],[56,2,56,4],[57,2,57,4],[58,2,58,4],[50,2,50,4],[11,2,11,4],[6,2,6,4],[7,2,7,4],[8,2,8,4],[9,2,9,4],[10,2,10,4],[16,2,16,4],[17,2,17,4],[38,2,38,4],[46,2,46,4],[39,2,39,4],[40,2,40,4],[41,2,41,4],[42,2,42,4],[27,2,27,4],[22,2,22,4],[23,2,23,4],[24,2,24,4],[25,2,25,4],[26,2,26,4],[34,2,34,4],[28,2,28,4],[29,2,29,4],[30,2,30,4],[45,2,45,4],[31,2,31,4],[43,2,43,4],[35,2,35,4],[36,2,36,4],[37,2,37,4],[32,2,32,4],[33,2,33,4]]}
[3,null,null,null,null,null,"*Pueden  Ocultar las Filas que no se utilicen."]
[null,null,{"$f":"General!B2","v":"PRESENTACIÓN DE PROYECTOS \nDE INVESTIGACIÓN"},{"$f":"General!$H$2","v":"Fecha de Emisión: 2019/03/18"},{"$f":"General!$I$2","v":"IN-IV-F-14"}]
[null,null,null,{"$f":"General!$H$3","v":"Revisión N°:\n4"},{"$f":"\"Página \"&A1&\" de \"&Dt_TPG","v":"Página 3 de 11"},null,{"$f":"SUM(G7:G3551)","v":46},"<== Total de palabras"]
[]
["6.-","#","Estado del arte de la propuesta o  antecedentes.",null,null,null,"Largo"]
[]
[null,{"$f":"ROW()-6","v":1},"Este es un título  Inicial.",null,null,null,{"$f":"IF(C7=\"\",0,LEN(TRIM(C7))-LEN(SUBSTITUTE(TRIM(C7),\" \",\"\"))+1)","v":5}]
[null,{"$f":"ROW()-6","v":2},null,null,null,null,{"$f":"IF(C8=\"\",0,LEN(TRIM(C8))-LEN(SUBSTITUTE(TRIM(C8),\" \",\"\"))+1)","v":0}]
[null,3,null,null,null,null,0]
[null,4,null,null,null,null,0]
[null,5,null,null,null,null,0]
[null,6,null,null,null,null,0]
[null,7,null,null,null,null,0]
[null,8,null,null,null,null,0]
[null,9,null,null,null,null,0]
[null,10,null,null,null,null,0]
[null,11,null,null,null,null,0]
[null,12,null,null,null,null,0]
[null,13,null,null,null,null,0]
[null,14,null,null,null,null,0]
[null,15,null,null,null,null,0]
[null,16,null,null,null,null,0]
[null,17,null,null,null,null,0]
[null,18,null,null,null,null,0]
[null,19,null,null,null,null,0]
[null,20,null,null,null,null,{"$f":"IF(C26=\"\",0,LEN(TRIM(C26))-LEN(SUBSTITUTE(TRIM(C26),\" \",\"\"))+1)","v":0}]
[null,21,null,null,null,null,0]
[null,22,null,null,null,null,0]
[null,23,null,null,null,null,0]
[null,24,null,null,null,null,0]
[null,25,null,null,null,null,0]
[null,26,null,null,null,null,0]
[null,27,null,null,null,null,0]
[null,28,null,null,null,null,0]
[null,29,null,null,null,null,0]
[null,30,null,null,null,null,0]
[null,31,null,null,null,null,0]
[null,32,null,null,null,null,0]
[null,33,null,null,null,null,0]
[null,34,null,null,null,null,0]
[null,35,null,null,null,null,0]
[null,36,null,null,null,null,0]
[null,37,null,null,null,null,0]
[null,38,null,null,null,null,0]
[null,39,null,null,null,null,{"$f":"IF(C45=\"\",0,LEN(TRIM(C45))-LEN(SUBSTITUTE(TRIM(C45),\" \",\"\"))+1)","v":0}]
[null,40,null,null,null,null,{"$f":"IF(C46=\"\",0,LEN(TRIM(C46))-LEN(SUBSTITUTE(TRIM(C46),\" \",\"\"))+1)","v":0}]
[null,41,null,null,null,null,{"$f":"IF(C47=\"\",0,LEN(TRIM(C47))-LEN(SUBSTITUTE(TRIM(C47),\" \",\"\"))+1)","v":0}]
[]
["6.b-","#","Marco Teórico o conceptual",null,null,null,"Largo"]
[]
[null,{"$f":"ROW()-6","v":45},"Este es un título  Inicial.",null,null,null,{"$f":"IF(C51=\"\",0,LEN(TRIM(C51))-LEN(SUBSTITUTE(TRIM(C51),\" \",\"\"))+1)","v":5}]
[null,46,null,null,null,null,{"$f":"IF(C52=\"\",0,LEN(TRIM(C52))-LEN(SUBSTITUTE(TRIM(C52),\" \",\"\"))+1)","v":0}]
[null,47,null,null,null,null,{"$f":"IF(C53=\"\",0,LEN(TRIM(C53))-LEN(SUBSTITUTE(TRIM(C53),\" \",\"\"))+1)","v":0}]
[null,48,null,null,null,null,{"$f":"IF(C54=\"\",0,LEN(TRIM(C54))-LEN(SUBSTITUTE(TRIM(C54),\" \",\"\"))+1)","v":0}]
[null,49,null,null,null,null,{"$f":"IF(C55=\"\",0,LEN(TRIM(C55))-LEN(SUBSTITUTE(TRIM(C55),\" \",\"\"))+1)","v":0}]
[null,50,null,null,null,null,0]
[null,51,null,null,null,null,0]
[null,52,null,null,null,null,0]
[null,53,null,null,null,null,0]
[null,54,null,null,null,null,0]
[null,55,null,null,null,null,0]
[null,56,null,null,null,null,0]
[null,57,null,null,null,null,0]
[null,58,null,null,null,null,0]
[null,59,null,null,null,null,0]
[]
["6.c-","#","Descripción de prototipo (Aplica para proyectos de Investigación aplicada y desarrollo tecnológico)",null,null,null,"Largo"]
[]
[null,{"$f":"ROW()-ROW($B$68)","v":1},"Nombre tecnológico y descripción del desarrollo Tecnológico",null,null,null,{"$f":"IF(C69=\"\",0,LEN(TRIM(C69))-LEN(SUBSTITUTE(TRIM(C69),\" \",\"\"))+1)","v":7}]
[null,{"$f":"ROW()-ROW($B$68)","v":2},null,null,null,null,0]
[null,3,null,null,null,null,0]
[null,4,null,null,null,null,0]
[null,5,null,null,null,null,0]
[null,{"$f":"ROW()-ROW($B$68)","v":6},"Describa el actual nivel de madurez tecnológica.",null,null,null,7]
[null,{"$f":"ROW()-ROW($B$68)","v":7},null,null,null,null,0]
[null,8,null,null,null,null,0]
[null,9,null,null,null,null,0]
[null,10,null,null,null,null,0]
[null,11,"Describa el nivel de madurez tecnológica a escalar.",null,null,null,{"$f":"IF(C79=\"\",0,LEN(TRIM(C79))-LEN(SUBSTITUTE(TRIM(C79),\" \",\"\"))+1)","v":8}]
[null,12,null,null,null,null,0]
[null,13,null,null,null,null,0]
[null,14,null,null,null,null,0]
[null,15,null,null,null,null,{"$f":"IF(C84=\"\",0,LEN(TRIM(C84))-LEN(SUBSTITUTE(TRIM(C84),\" \",\"\"))+1)","v":14}]
[null,16,"Indique si su desarrollo tecnológico es susceptible o cuenta con protección mediante propiedad intelectual.",null,null,null,{"$f":"IF(C83=\"\",0,LEN(TRIM(C83))-LEN(SUBSTITUTE(TRIM(C83),\" \",\"\"))+1)","v":0}]
[null,17,null,null,null,null,{"$f":"IF(C85=\"\",0,LEN(TRIM(C85))-LEN(SUBSTITUTE(TRIM(C85),\" \",\"\"))+1)","v":0}]
[null,18,null,null,null,null,{"$f":"IF(C86=\"\",0,LEN(TRIM(C86))-LEN(SUBSTITUTE(TRIM(C86),\" \",\"\"))+1)","v":0}]
[null,19,null,null,null,null,{"$f":"IF(C87=\"\",0,LEN(TRIM(C87))-LEN(SUBSTITUTE(TRIM(C87),\" \",\"\"))+1)","v":0}]
[null,20,null,null,null,null,{"$f":"IF(C88=\"\",0,LEN(TRIM(C88))-LEN(SUBSTITUTE(TRIM(C88),\" \",\"\"))+1)","v":0}]
[]
[]
[null,"*Pueden  Ocultar las Filas que no se utilicen ( Favor no eliminar filas)."]

{"sheet":"Objetivos","index":4,"n_rows":31,"n_cols":10,"rows_kept":31,"cut":false,"hidden":false,"merged":[[18,2,18,4],[17,2,17,4],[22,2,22,4],[21,2,21,4],[20,2,20,4],[19,2,19,4],[1,1,2,2],[7,2,7,4],[8,2,8,4],[9,2,9,4],[10,2,10,4],[6,1,6,4],[11,2,11,4],[13,2,13,4],[14,2,14,4],[15,2,15,4],[16,2,16,4],[12,2,12,4]]}
[4]
[null,{"$f":"General!B2","v":"PRESENTACIÓN DE PROYECTOS \nDE INVESTIGACIÓN"},null,{"$f":"General!$H$2","v":"Fecha de Emisión: 2019/03/18"},{"$f":"General!$I$2","v":"IN-IV-F-14"}]
[null,null,null,{"$f":"General!$H$3","v":"Revisión N°:\n4"},{"$f":"\"Página \"&A1&\" de \"&Dt_TPG","v":"Página 4 de 11"},null,{"$f":"COUNTIF(G8:G23,\">\" &1)","v":0},"<== Total de palabras"]
[]
["7.-","Objetivos de la propuesta.",null,null,null,null,"Largo"]
[]
[null,"*El especio del Item (0) Cero es para definir el objetivo general los demás corresponden a objetivos especificos "]
[null,{"$f":"ROW()-8","v":0},null,null,null,null,{"$f":"LEN(C8)","v":0}]
[null,{"$f":"ROW()-8","v":1},null,null,null,null,{"$f":"LEN(C9)","v":0}]
[null,2,null,null,null,null,0]
[null,3,null,null,null,null,0]
[null,4,null,null,null,null,0]
[null,5,null,null,null,null,0]
[null,6,null,null,null,null,0]
[null,7,null,null,null,null,0]
[null,8,null,null,null,null,0]
[null,9,null,null,null,null,{"$f":"IF(C17=\"\",0,LEN(TRIM(C17))-LEN(SUBSTITUTE(TRIM(C17),\" \",\"\"))+1)","v":0}]
[null,10,null,null,null,null,0]
[null,11,null,null,null,null,0]
[null,12,null,null,null,null,0]
[null,13,null,null,null,null,0]
[null,14,null,null,null,null,0]
[null,15,null,null,null,null,0]
[]
[null,null,null,null,null,null,null,null,null,{"$f":"VLOOKUP(\"Objetivos\",DT_Errores,3,0)","v":"Error : 022.- Objetivo gereral pendiente de diligenciar"}]
[]
[]
[]
[]
[]
[null,"*Pueden  Ocultar las Filas que no se utilicen ( Favor no eliminar filas)."]

{"sheet":"Metodología","index":5,"n_rows":41,"n_cols":8,"rows_kept":41,"cut":false,"hidden":false,"merged":[[34,2,34,4],[1,2,2,2],[28,2,28,4],[29,2,29,4],[30,2,30,4],[31,2,31,4],[12,2,12,4],[13,2,13,4],[14,2,14,4],[15,2,15,4],[16,2,16,4],[17,2,17,4],[6,2,6,4],[7,2,7,4],[8,2,8,4],[9,2,9,4],[10,2,10,4],[11,2,11,4],[18,2,18,4],[19,2,19,4],[20,2,20,4],[21,2,21,4],[22,2,22,4],[23,2,23,4],[24,2,24,4],[33,2,33,4],[32,2,32,4],[27,2,27,4],[26,2,26,4],[25,2,25,4]]}
[5,null,null,null,null,null,"*Pueden  Ocultar las Filas que no se utilicen."]
[null,null,{"$f":"General!B2","v":"PRESENTACIÓN DE PROYECTOS \nDE INVESTIGACIÓN"},{"$f":"General!$H$2","v":"Fecha de Emisión: 2019/03/18"},{"$f":"General!$I$2","v":"IN-IV-F-14"}]
[null,null,null,{"$f":"General!$H$3","v":"Revisión N°:\n4"},{"$f":"\"Página \"&A1&\" de \"&Dt_TPG","v":"Página 5 de 11"},null,{"$f":"SUM(G7:G3501)","v":0},"<== Total de palabras"]
[]
["8.-","#","Metodología de la propuesta.",null,null,null,"Largo"]
[]
[null,{"$f":"ROW()-6","v":1},null,null,null,null,{"$f":"IF(C7=\"\",0,LEN(TRIM(C7))-LEN(SUBSTITUTE(TRIM(C7),\" \",\"\"))+1)","v":0}]
[null,{"$f":"ROW()-6","v":2},null,null,null,null,{"$f":"IF(C8=\"\",0,LEN(TRIM(C8))-LEN(SUBSTITUTE(TRIM(C8),\" \",\"\"))+1)","v":0}]
[null,3,null,null,null,null,0]
[null,4,null,null,null,null,0]
[null,5,null,null,null,null,0]
[null,6,null,null,null,null,0]
[null,7,null,null,null,null,0]
[null,8,null,null,null,null,0]
[null,9,null,null,null,null,0]
[null,10,null,null,null,null,0]
[null,11,null,null,null,null,0]
[null,12,null,null,null,null,0]
[null,13,null,null,null,null,0]
[null,14,null,null,null,null,0]
[null,15,null,null,null,null,0]
[null,16,null,null,null,null,{"$f":"IF(C22=\"\",0,LEN(TRIM(C22))-LEN(SUBSTITUTE(TRIM(C22),\" \",\"\"))+1)","v":0}]
[null,17,null,null,null,null,0]
[null,18,null,null,null,null,0]
[null,19,null,null,null,null,0]
[null,20,null,null,null,null,0]
[null,21,null,null,null,null,0]
[null,22,null,null,null,null,0]
[null,23,null,null,null,null,0]
[null,24,null,null,null,null,0]
[null,25,null,null,null,null,0]
[null,26,null,null,null,null,0]
[null,27,null,null,null,null,0]
[null,28,null,null,null,null,0]
[null,29,null,null,null,null,0]
[]
[]
[]
[]
[]
[null,"*Pueden  Ocultar las Filas que no se utilicen. No eliminar filas."]

{"sheet":"Etica","index":6,"n_rows":71,"n_cols":17,"rows_kept":71,"cut":false,"hidden":false,"merged":[[67,2,67,4],[1,2,2,2],[6,2,6,3],[27,2,27,3],[40,2,40,3],[47,2,47,3],[41,2,41,3],[43,2,43,3],[45,2,45,3],[10,2,10,4],[12,2,12,4],[14,2,14,4],[16,2,16,4],[18,2,18,4],[20,2,20,4],[22,2,22,4],[24,2,24,4],[19,2,19,3],[21,2,21,3],[8,2,8,4],[52,2,52,3],[25,2,25,3],[28,2,28,3],[30,2,30,3],[32,2,32,3],[36,2,36,3],[38,2,38,3],[26,2,26,4],[29,2,29,4],[31,2,31,4],[33,2,33,4],[35,2,35,4],[7,2,7,3],[11,2,11,3],[13,2,13,3],[15,2,15,3],[17,2,17,3],[54,2,54,4],[56,2,56,4],[58,2,58,4],[60,2,60,4],[64,2,64,3],[62,2,62,4],[23,2,23,4],[65,2,65,4],[37,2,37,4],[39,2,39,4],[42,2,42,4],[44,2,44,4],[46,2,46,4],[61,2,61,3],[48,2,48,3],[50,2,50,3],[53,2,53,3],[55,2,55,3],[57,2,57,3],[59,2,59,3],[49,2,49,4],[51,2,51,4]]}
[5,null,null,null,null,null,"*Pueden  Ocultar las Filas que no se utilicen."]
[null,null,{"$f":"General!B2","v":"PRESENTACIÓN DE PROYECTOS \nDE INVESTIGACIÓN"},{"$f":"General!$H$2","v":"Fecha de Emisión: 2019/03/18"},{"$f":"General!$I$2","v":"IN-IV-F-14"},null,null,null,null,"Detalles:"]
[null,null,null,{"$f":"General!$H$3","v":"Revisión N°:\n4"},{"$f":"\"Página \"&A1&\" de \"&Dt_TPG","v":"Página 5 de 11"},null,{"$f":"SUM(G5:G3524)","v":445},"<== Total de palabras"]
[]
[null,null,{"$f":"$Q$13","v":"."}]
["8b.-",0,"Consideraciones e implicaciones éticas de la investigación, bioética e integridad científica",null,"( Si  / No  )",null,"Palabras",null,null,null,null,null,"Validaciones"]
[null,1,"Proyecto de investigación en CTeI que  involucra seres humanos",null,"No",null,{"$f":"IF(C7=\"\",0,LEN(TRIM(C7))-LEN(SUBSTITUTE(TRIM(C7),\" \",\"\"))+1)","v":9},{"$f":"I7-J7","v":0},{"$f":"IF(OR(E7=\"No\",E7=0),0,1)","v":0},{"$f":"MAX(I8:I23)","v":0},null,1,{"$f":"VLOOKUP($L7,$B$6:$J$68,7,0)","v":0},"CTeI que  involucra seres humanos",null,{"$f":"LEN(N7)","v":33},{"$f":"IF(M7=0,\"\",N7&\"; \")","v":""}]
[null,"1.1","¿Utiliza información exclusiva o reservada por parte de terceros y prevé su forma de acceso?",null,"No",null,{"$f":"IF(C8=\"\",0,LEN(TRIM(C8))-LEN(SUBSTITUTE(TRIM(C8),\" \",\"\"))+1)","v":15},null,{"$f":"IF(OR(E8=\"No\",E8=0),0,1)","v":0},null,null,2,0,"CTeI involucra animales",null,23,""]
[null,null,{"$f":"$J$2","v":"Detalles:"},null,null,null,1,null,{"$f":"IF(OR(E9=\"No\",E9=0),0,1)","v":0},null,null,3,0,"CTeI involucra fuentes documentales",null,35,""]
[null,"1.2","¿Utiliza información exclusiva o reservada por parte de terceros y prevé su forma de acceso?",null,"No",null,15,null,0,null,null,4,0,"CTeI involucra el ambiente",null,26,""]
[null,null,{"$f":"$J$2","v":"Detalles:"},null,null,null,1,null,0,null,null,5,0,"Aspectos de Integridad científica",null,33,""]
[null,"1.3","¿Utiliza datos personales?",null,"No",null,3,null,0,null,null,6,0,"otras razones que ameritan la revisión ",null,39,""]
[null,null,{"$f":"$J$2","v":"Detalles:"},null,null,null,1,null,0,null,null,null,{"$f":"LEN(N13)","v":0},{"$f":"Q7&Q8&Q9&Q10&Q11&Q12","v":""},null,null,{"$f":"IF(M13>0,\"Error, revisar el ítem: \"&N13,\".\")","v":"."}]
[null,"1.4","¿utiliza información confidencial?",null,"No",null,3,null,0]
[null,null,{"$f":"$J$2","v":"Detalles:"},null,null,null,1,null,0]
[null,"1.5","¿Requiere consentimiento informado?",null,"No",null,3,null,0]
[null,null,{"$f":"$J$2","v":"Detalles:"},null,null,null,1,null,0]
[null,"1.6","¿indica un modelo de recopilación y conservación de información?",null,"No",null,9,null,0]
[null,null,{"$f":"$J$2","v":"Detalles:"},null,null,null,1,null,0]
[null,"1.7","¿Es una investigación con comunidades vulnerables (indígenas, afrodescendientes, menores  o personal subordinado, entre otros)?",null,"No",null,14,null,0]
[null,null,{"$f":"$J$2","v":"Detalles:"},null,null,null,1,null,0]
[null,"1.8","¿Se evidencia conocimiento previo sobre aspectos políticos, económicos sociales y culturales de las comunidades indígenas?",null,"No",null,15,null,0]
[null,null,{"$f":"$J$2","v":"Detalles:"},null,null,null,1,null,0]
[null,"1.9","¿Realiza intervención a través cuestionarios, medicamentos, rutinas, modificación de actividades o estilo de vida?",null,null,null,14,null,0]
[null,null,{"$f":"$J$2","v":"Detalles:"},null,null,null,1,null,0]
[null,"1.10","¿incluye modelos de consentimiento informado, uso de datos personales u otro?",null,"No",null,11,null,0]
[null,null,{"$f":"$J$2","v":"Detalles:"},null,null,null,1,null,0]
[null,2,"Proyecto de investigación en CTeI involucra animales",null,"No",null,7,{"$f":"I28-J28","v":0},0,{"$f":"MAX(I29:I40)","v":0}]
[null,"2.1","¿Incluye un protocolo de investigación en animales?",null,"No",null,7,null,0]
[null,null,{"$f":"$J$2","v":"Detalles:"},null,null,null,1,null,0]
[null,"2.2","¿Incluye un protocolo de manipulación de recursos biológicos?",null,"No",null,8,null,0]
[null,null,{"$f":"$J$2","v":"Detalles:"},null,null,null,1,null,0]
[null,"2.3","¿Incluye un protocolo de manejo y disposición de sustancias peligrosas, agentes infecciosos y desechos?",null,"No",null,14,null,0]
[null,null,{"$f":"$J$2","v":"Detalles:"},null,null,null,1,null,0]
[null,"2.4","¿hay caracterización de los animales de experimentación criterios de selección de la especie?",null,"No",null,13,null,0]
[null,null,{"$f":"$J$2","v":"Detalles:"},null,null,null,1,null,0]
[null,"2.5","¿se prevé formación previa al equipo de laboratorio por parte del investigador sobre el cuidado permanente del animal y experimentación?",null,"No",null,20,null,0]
[null,null,{"$f":"$J$2","v":"Detalles:"},null,null,null,1,null,0]
[null,"2.6","¿se prevé declaración previa del origen y estado de los animales para experimentación?",null,"No",null,13,null,0]
[null,null,{"$f":"$J$2","v":"Detalles:"},null,null,null,1,null,0]
[null,3,"El proyecto de investigación en CTeI involucra fuentes documentales",null,"No",null,9,{"$f":"I41-J41","v":0},0,{"$f":"MAX(I42:I47)","v":0}]
[null,"3.1","¿hace referencia a la anonimización de datos?",null,"No",null,7,null,0]
[null,null,{"$f":"$J$2","v":"Detalles:"},null,null,null,1,null,0]
[null,"3.2","¿prevé conservación de datos de consulta?",null,"No",null,6,null,0]
[null,null,{"$f":"$J$2","v":"Detalles:"},null,null,null,1,null,0]
[null,"3.3","¿se identifica objetivamente que las bases de consulta de acceso abierto pueden ser calificadas de tal manera?",null,"No",null,17,null,0]
[null,null,{"$f":"$J$2","v":"Detalles:"},null,null,null,1,null,0]
[null,4,"Proyecto de investigación en CTeI involucra el ambiente",null,"No",null,8,{"$f":"I48-J48","v":0},0,{"$f":"MAX(I49:I52)","v":0}]
[null,"4.1","¿requiere permisos o licencias ambientales como recolección de especímenes, colecciones biológicas, manipulación o movilización de recursos bilógicas?",null,"No",null,17,null,0]
[null,null,{"$f":"$J$2","v":"Detalles:"},null,null,null,1,null,0]
[null,"4.2","¿requiere uso de recursos genéticos?",null,"No",null,5,null,0]
[null,null,{"$f":"$J$2","v":"Detalles:"},null,null,null,1,null,0]
[null,5,"Aspectos de Integridad científica",null,"No",null,4,{"$f":"I53-J53","v":0},0,{"$f":"MAX(I54:I64)","v":0}]
[null,"5.1","¿Podría darse un conflicto de interés no declarado entre quienes participan en el proyecto y/o las instituciones coejecutoras y/o las instancias de aprobación y seguimiento?",null,"No",null,25,null,0]
[null,null,{"$f":"$J$2","v":"Detalles:"},null,null,null,1,null,0]
[null,"5.2","¿Hay indicios de que se han fabricado o plagiado datos en la investigación?",null,"No",null,13,null,0]
[null,null,{"$f":"$J$2","v":"Detalles:"},null,null,null,1,null,0]
[null,"5.3","¿se presume que se incluye personal vinculado al proyecto que objetivamente podría no aportar técnica ni intelectualmente al proyecto?",null,"No",null,19,null,0]
[null,null,{"$f":"$J$2","v":"Detalles:"},null,null,null,1,null,0]
[null,"5.4","¿se estima que los recursos y tiempos de dedicación solicitados exceden lo necesario para financiación del proyecto o se prevé que los productos son escasos ante las capacidades y alcance de la propuesta?",null,"No",null,33,null,0]
[null,null,{"$f":"$J$2","v":"Detalles:"},null,null,null,1,null,0]
[null,"5.5","¿Podría darse un conflicto de interés no declarado entre quienes participan en el proyecto y/o las instituciones coejecutoras y/o las instancias de aprobación y seguimiento?",null,"No",null,25,null,0]
[null,null,{"$f":"$J$2","v":"Detalles:"},null,null,null,1,null,0]
[null,null,null,null,"No",null,0,null,0]
[null,6,"Existen otras razones que ameritan la revisión por parte del comité de ética de la investigación (indique cuales).",null,"No",null,18,{"$f":"I65-J65","v":0},0,{"$f":"SUM(I66:I68)","v":0}]
[null,"6.1",{"$f":"$J$2","v":"Detalles:"},null,null,null,1,null,0]
[null,null,"Especificaciones de ética de la investigación, bioética e integridad científica que deban ser ampliadas en detalle (indique cuales).",null,"No",null,18,null,0]
[null,"6.1",{"$f":"$J$2","v":"Detalles:"},null,null,null,{"$f":"IF(C68=\"\",0,LEN(TRIM(C68))-LEN(SUBSTITUTE(TRIM(C68),\" \",\"\"))+1)","v":1},null,0]
[null,null,null,null,null,null,null,null,0]
[null,null,null,null,null,null,{"$f":"IF(C70=\"\",0,LEN(TRIM(C70))-LEN(SUBSTITUTE(TRIM(C70),\" \",\"\"))+1)","v":0},null,0]
[null,null,null,null,null,null,{"$f":"IF(C71=\"\",0,LEN(TRIM(C71))-LEN(SUBSTITUTE(TRIM(C71),\" \",\"\"))+1)","v":0}]

{"sheet":"Cronograma","index":7,"n_rows":51,"n_cols":14,"rows_kept":51,"cut":false,"hidden":false,"merged":[[1,1,2,2]]}
[6,null,null,null,null,null,null,null,"*Pueden  Ocultar las Filas que no se utilicen.",null,null,{"$f":"(\"* Actualmente tiene \"&G7&\" meses de ejecución no superar los \"& G5&\" meses.\")","v":"* Actualmente tiene 0 meses de ejecución no superar los 12 meses."}]
[null,{"$f":"General!B2","v":"PRESENTACIÓN DE PROYECTOS \nDE INVESTIGACIÓN"},null,{"$f":"General!$H$2","v":"Fecha de Emisión: 2019/03/18"},{"$f":"General!$I$2","v":"IN-IV-F-14"}]
[null,null,null,{"$f":"General!$H$3","v":"Revisión N°:\n4"},{"$f":"\"Página \"&A1&\" de \"&Dt_TPG","v":"Página 6 de 11"}]
[null,null,null,null,null,null,null,null,null,null,null,null,null,0]
["9.-","Cronograma de actividades a desarrollar",null,null,{"$f":"Integrantes!J6","v":12},null,{"$f":"E5","v":12},"Meses Maximo","Palabras",null,null,null,null,0]
[null,null,null,null,null,null,null,null,null,null,null,null,null,0]
[null,"No","Descripción básica de la actividad","Mes de Inicio","Duración en mes",null,{"$f":"MAX(G8:G27)","v":0},"Meses de ejecición actuales",{"$f":"SUM(I8:I27)","v":4},"<== Total de palabras",null,null,null,0]
[null,{"$f":"ROW()-7","v":1},"zdsak",null,null,null,{"$f":"SUM(D8:E8)","v":0},null,{"$f":"IF(C8=\"\",0,LEN(TRIM(C8))-LEN(SUBSTITUTE(TRIM(C8),\" \",\"\"))+1)","v":1},null,null,null,null,0]
[null,{"$f":"ROW()-7","v":2},"sadsa",null,null,null,{"$f":"SUM(D9:E9)","v":0},null,{"$f":"IF(C9=\"\",0,LEN(TRIM(C9))-LEN(SUBSTITUTE(TRIM(C9),\" \",\"\"))+1)","v":1},null,null,null,null,0]
[null,3,"sadsad dsada",null,null,null,0,null,2,null,null,null,null,0]
[null,4,null,null,null,null,0,null,0,null,null,null,null,0]
[null,5,null,null,null,null,0,null,0,null,null,null,null,0]
[null,6,null,null,null,null,0,null,0,null,null,null,null,0]
[null,7,null,null,null,null,0,null,0,null,null,null,null,0]
[null,8,null,null,null,null,0,null,0,null,null,null,null,0]
[null,9,null,null,null,null,0,null,0,null,null,null,null,0]
[null,10,null,null,null,null,0,null,0,null,null,null,null,0]
[null,11,null,null,null,null,0,null,0,null,null,null,null,0]
[null,12,null,null,null,null,0,null,0,null,null,null,null,0]
[null,13,null,null,null,null,0,null,0,null,null,null,null,0]
[null,14,null,null,null,null,0,null,0,null,null,null,null,0]
[null,15,null,null,null,null,0,null,0,null,null,null,null,0]
[null,16,null,null,null,null,0,null,0,null,null,null,null,0]
[null,17,null,null,null,null,0,null,0,null,null,null,null,0]
[null,18,null,null,null,null,0,null,0,null,null,null,null,0]
[null,19,null,null,null,null,0,null,0,null,null,null,null,0]
[null,20,null,null,null,null,0,null,0,null,null,null,null,0]
[null,null,null,null,null,null,null,null,null,null,null,null,null,0]
[null,null,{"$f":"IF(G7>G5,L1,\".\")","v":"."},null,null,null,null,null,null,null,null,null,null,0]
[null,null,null,null,null,null,null,null,null,null,null,null,null,0]
[null,null,null,null,null,null,null,null,null,null,null,null,null,0]
[null,null,null,null,null,null,null,null,null,null,null,null,null,0]
[null,"*Pueden  Ocultar las Filas que no se utilicen. No eliminen filas",null,null,null,null,null,null,null,null,null,null,null,0]
[null,null,null,null,null,null,null,null,null,null,null,null,null,0]
[null,null,null,null,null,null,null,null,null,null,null,null,null,0]
[null,null,null,null,null,null,null,null,null,null,null,null,null,0]
[null,null,null,null,null,null,null,null,null,null,null,null,null,0]
[null,null,null,null,null,null,null,null,null,null,null,null,null,0]
[null,null,null,null,null,null,null,null,null,null,null,null,null,0]
[null,null,null,null,null,null,null,null,null,null,null,null,null,0]
[null,null,null,null,null,null,null,null,null,null,null,null,null,0]
[null,null,null,null,null,null,null,null,null,null,null,null,null,0]
[null,null,null,null,null,null,null,null,null,null,null,null,null,0]
[null,null,null,null,null,null,null,null,null,null,null,null,null,0]
[null,null,null,null,null,null,null,null,null,null,null,null,null,0]
[null,null,null,null,null,null,null,null,null,null,null,null,null,0]
[null,null,null,null,null,null,null,null,null,null,null,null,null,0]
[null,null,null,null,null,null,null,null,null,null,null,null,null,0]
[null,null,null,null,null,null,null,null,null,null,null,null,null,0]
[null,null,null,null,null,null,null,null,null,null,null,null,null,0]
[null,null,null,null,null,null,null,null,null,null,null,null,null,0]

{"sheet":"Integrantes","index":8,"n_rows":55,"n_cols":29,"rows_kept":55,"cut":false,"hidden":false,"merged":[[25,5,25,7],[29,5,29,7],[33,5,33,7],[24,1,27,1],[26,3,26,7],[28,1,31,1],[30,3,30,7],[32,1,35,1],[27,3,27,7],[31,3,31,7],[35,3,35,7],[13,5,13,7],[21,5,21,7],[17,5,17,7],[8,1,11,1],[12,1,15,1],[14,3,14,7],[16,1,19,1],[18,3,18,7],[20,1,23,1],[22,3,22,7],[11,3,11,7],[15,3,15,7],[19,3,19,7],[23,3,23,7],[2,1,3,4],[2,6,2,7],[3,6,3,7],[9,5,9,7],[10,3,10,7],[44,1,47,1],[46,3,46,7],[34,3,34,7],[36,1,39,1],[38,3,38,7],[40,1,43,1],[42,3,42,7],[41,5,41,7],[45,5,45,7],[37,5,37,7],[39,3,39,7],[43,3,43,7],[47,3,47,7]]}
[8]
[]
[null,{"$f":"Productos!B2","v":"PRESENTACIÓN DE PROYECTOS \nDE INVESTIGACIÓN"},null,null,null,{"$f":"General!$H$2","v":"Fecha de Emisión: 2019/03/18"},"IN-IV-F-14",null,null,null,null,null,"Ok","Puntos","IP Max","IP Min","CO Max","CO Min","CR",null,null,null,{"$f":"VLOOKUP(\"Integrantes\",DT_Errores,3,0)","v":" "}]
[null,null,null,null,null,{"$f":"General!$H$3","v":"Revisión N°:\n4"},{"$f":"\"Página \"&A1&\" de \"&Dt_TPG","v":"Página 8 de 11"},{"$f":"\"Página \"&A2&\" de \"&Dt_TPG","v":"Página  de 11"},null,20,null,null,1,0,{"$f":"VLOOKUP($M$4,$M$8:$T$23,3,0)","v":8},{"$f":"VLOOKUP($M$4,$M$8:$T$23,4,0)","v":3},{"$f":"VLOOKUP($M$4,$M$8:$T$23,5,0)","v":4},{"$f":"VLOOKUP($M$4,$M$8:$T$23,6,0)","v":2},{"$f":"VLOOKUP($M$4,$M$8:$T$23,2,0)","v":20}]
[null,null,null,null,null,null,null,null,null,null,null,null,null,0]
["11.-","Investigadores Integrantes del proyecto.",null,null,null,{"$f":"Cel_TP","v":"INV"},{"$f":"Cel_Fac","v":"NT"},{"$f":"V_Max","v":0},null,{"$f":"IF(F6=\"INV\",12,24)","v":12},null,null,null,0,null,null,null,null,null,null,null,null,"* Cuadro para tener relación entre Fincion y Tipo de Vinculo"]
[null,null,null,null,null,null,null,null,null,null,null,null,null,0]
[null,"No","Identificacion","Nombres","Apellidos","Nivel Academico","Mes","Horas",null,"Max","Min",null,"Ok",0,"IP Max","IP Min","CO Max","CO Min",{"$f":"H6","v":0},null,null,null,"Funcion ","y","Vinculo","Mes","Fila","Hay","Hrs"]
[null,1,null,"Luis Alexander","Chirivi",null,{"$f":"J6","v":12},null,null,{"$f":"O4","v":8},{"$f":"P4","v":3},{"$f":"IF(OR(H9>J9,H9<K9),1,0)","v":1},{"$f":"IF(SUM(M10:M23)=0,1,IF(N9=S9,1,0))","v":1},20,8,3,4,2,{"$f":"INT(S8/20)*20","v":0},null,null,null,"Investigador Principal",{"$f":"$X$8&\"9:\"&$X$8&\"10\"","v":"y9:y10"},"Doc. Carrera TC",{"$f":"G9","v":12},{"$f":"ROW()","v":9},{"$f":"COUNTIFS($D$9:$D$47,$W9,$E$9:$E$47,$Y9)","v":0},{"$f":"SUMIFS($S$30:$S$42,$T$30:$T$42,$W9,$U$30:$U$42,$Y9)","v":0}]
[null,null,"Funcion :","Investigador Principal",null,null,null,null,null,{"$f":"IFERROR(VLOOKUP($F10,V_IdNBC,2,0),0)","v":0},null,"Doc. Carrera MT",{"$f":"IF(N10=S10,1,0)","v":0},{"$f":"N9+20","v":40},12,6,6,3,{"$f":"INT(S9/20)*20","v":0},null,null,null,"Investigador Principal",{"$f":"$X$8&\"9:\"&$X$8&\"10\"","v":"y9:y10"},"Doc. Carrera MT",{"$f":"Z9","v":12},{"$f":"ROW()","v":10},0,{"$f":"SUMIFS($S$30:$S$42,$T$30:$T$42,$W10,$U$30:$U$42,$Y10)","v":0}]
[null,null,"CvLac:",null,null,null,null,null,null,{"$f":"IF($D10=$W$20,20,IFERROR(VLOOKUP($E10,$Y$8:$Z$21,2,0),$G$9))","v":12},{"$f":"IF($D10=$W$11,IF($E10=$Y$13,10,12),0)","v":0},null,0,{"$f":"N10+20","v":60},16,10,8,5,0,null,null,null,"Coinvestigador",{"$f":"$X$8&\"11:\"&$X$8&\"14\"","v":"y11:y14"},"Doc. Carrera TC",{"$f":"Z10","v":12},{"$f":"ROW()","v":11},0,0]
[null,null,"Contribuciones"," ",null,null,null,null,null,null,null,null,0,80,20,14,10,7,0,null,null,null,"Coinvestigador",{"$f":"$X$8&\"11:\"&$X$8&\"14\"","v":"y11:y14"},"Doc. Carrera MT",{"$f":"Z11","v":12},{"$f":"ROW()","v":12},0,0]
[null,2,null,null,null,null,12,null,null,{"$f":"IF($E14=$Y$16,IF($D14=$W$16,0,40),IF($D14=\"Coinvestigador\",J$9/2,40))","v":40},{"$f":"IF(E14=$Y$14,0,IF($D14=\"Coinvestigador\",$R$4,0))","v":0},{"$f":"IF(OR(H13>J13,H13<K13),1,0)","v":0},0,100,{"$f":"O12","v":20},{"$f":"P12","v":14},{"$f":"Q12","v":10},{"$f":"R12","v":7},0,null,null,null,"Coinvestigador",{"$f":"$X$8&\"11:\"&$X$8&\"14\"","v":"y11:y14"},"Doc. Ocasional",10,{"$f":"ROW()","v":13},0,0]
[null,{"$f":"+B13","v":2},"Funcion :",null,null,null,null,null,null,{"$f":"IFERROR(VLOOKUP($F14,V_IdNBC,2,0),0)","v":0},{"$f":"IF($D14=$K$10,\"Ok\",\"\")","v":"Ok"},null,0,120,{"$f":"O13","v":20},14,10,7,0,null,null,null,"Coinvestigador",{"$f":"$X$8&\"11:\"&$X$8&\"14\"","v":"y11:y14"},"Externo a la UMNG",{"$f":"Z12","v":12},{"$f":"ROW()","v":14},0,0]
[null,{"$f":"+B14","v":2},"CvLac:",null,null,null,null,null,null,{"$f":"IF($D14=$W$20,20,IFERROR(VLOOKUP($E14,$Y$8:$Z$21,2,0),$G$9))","v":12},{"$f":"IF($D14=$W$11,IF($E14=$Y$13,10,IF($E14=Y$14,4,12)),0)","v":0},null,0,140,20,14,10,7,0,null,null,null,"Coinvestigador",{"$f":"$X$8&\"11:\"&$X$8&\"14\"","v":"y11:y14"},null,{"$f":"Z13","v":10},{"$f":"ROW()","v":15},{"$f":"COUNTIFS($D$9:$D$47,$W15)-SUM(AB11:AB14)","v":0},0]
[null,null,{"$f":"C12","v":"Contribuciones"},null,null,null,null,null,null,null,null,null,0,160,20,14,10,7,0,null,null,null,"Asesor",{"$f":"$X$8&AA16&\":\"&$X$8&AA16","v":"y16:y16"},"Externo a la UMNG",{"$f":"Z14","v":12},{"$f":"ROW()","v":16},0,0]
[null,{"$f":"B13+1","v":3},null,null,null,null,null,null,null,{"$f":"IF($E18=$Y$16,IF($D18=$W$16,0,40),IF($D18=\"Coinvestigador\",J$9/2,40))","v":40},{"$f":"IF(E18=$Y$14,0,IF($D18=\"Coinvestigador\",$R$4,0))","v":0},{"$f":"IF(OR(H17>J17,H17<K17),1,0)","v":0},0,180,20,14,10,7,0,null,null,null,"Asistente OPS","y17:y17","OPS - Prestación Servicios",10,{"$f":"ROW()","v":17},0,0]
[null,{"$f":"+B17","v":3},"Funcion :",null,null,null,null,null,null,{"$f":"IFERROR(VLOOKUP($F18,V_IdNBC,2,0),0)","v":0},{"$f":"IF($D18=$K$10,\"Ok\",\"\")","v":"Ok"},null,0,200,20,14,10,7,0,null,null,null,"Auxiliar de Investigación.","y18:y18","Estímulo a estudiante",10,{"$f":"ROW()","v":18},0,0]
[null,{"$f":"+B18","v":3},"CvLac:",null,null,null,null,null,null,{"$f":"IF($D18=$W$20,20,IFERROR(VLOOKUP($E18,$Y$8:$Z$21,2,0),$G$9))","v":12},{"$f":"IF($D18=$W$11,IF($E18=$Y$13,10,IF($E18=Y$14,4,12)),0)","v":0},null,0,{"$f":"N18+20","v":220},20,14,10,7,{"$f":"INT(S18/20)*20","v":0},null,null,null,"Joven Investigador","y19:y19","OPS - Prestación Servicios",10,{"$f":"ROW()","v":19},0,0]
[null,null,{"$f":"C16","v":"Contribuciones"},null,null,null,null,null,null,null,null,null,0,240,20,14,10,7,{"$f":"INT(S19/20)*20","v":0},null,null,null,"Asistente Graduado","y20:y20","Estímulo a estudiante",10,{"$f":"ROW()","v":20},0,0]
[null,{"$f":"B17+1","v":4},null,null,null,null,null,null,null,{"$f":"IF($E22=$Y$16,IF($D22=$W$16,0,40),IF($D22=\"Coinvestigador\",J$9/2,40))","v":40},{"$f":"IF(E22=$Y$14,0,IF($D22=\"Coinvestigador\",$R$4,0))","v":0},{"$f":"IF(OR(H21>J21,H21<K21),1,0)","v":0},0,260,20,14,10,7,{"$f":"INT(S20/20)*20","v":0},null,null,null,"Estudiante","y21:y21","Auxiliar  de Investigación",10,{"$f":"ROW()","v":21},0,0]
[null,{"$f":"+B21","v":4},"Funcion :",null,null,null,null,null,null,{"$f":"IFERROR(VLOOKUP($F22,V_IdNBC,2,0),0)","v":0},{"$f":"IF($D22=$K$10,\"Ok\",\"\")","v":"Ok"},null,0,280,20,14,10,7,{"$f":"INT(S21/20)*20","v":0}]
[null,{"$f":"+B22","v":4},"CvLac:",null,null,null,null,null,null,{"$f":"IF($D22=$W$20,20,IFERROR(VLOOKUP($E22,$Y$8:$Z$21,2,0),$G$9))","v":12},{"$f":"IF($D22=$W$11,IF($E22=$Y$13,10,IF($E22=Y$14,4,12)),0)","v":0},null,0,300,20,14,10,7,{"$f":"INT(S22/20)*20","v":0}]
[null,null,{"$f":"C20","v":"Contribuciones"},null,null,null,null,null,null,null,null,null,null,null,null,null,null,null,null,null,null,null,"Coinvestigador",null,null,null,null,{"$f":"SUM(AB11:AB13,AB15)","v":0}]
[null,{"$f":"B21+1","v":5},null,null,null,null,null,null,null,{"$f":"IF($E26=$Y$16,IF($D26=$W$16,0,40),IF($D26=\"Coinvestigador\",J$9/2,40))","v":40},{"$f":"IF(E26=$Y$14,0,IF($D26=\"Coinvestigador\",$R$4,0))","v":0},{"$f":"IF(OR(H25>J25,H25<K25),1,0)","v":0},{"$f":"IF(OR(I25>K25,I25<L25),1,0)","v":0},1,1,1,1,0,0]
[null,{"$f":"+B25","v":5},"Funcion :",null,null,null,null,null,null,{"$f":"IFERROR(VLOOKUP($F26,V_IdNBC,2,0),0)","v":0},{"$f":"IF($D26=$K$10,\"Ok\",\"\")","v":"Ok"}]
[null,{"$f":"+B26","v":5},"CvLac:",null,null,null,null,null,null,{"$f":"IF($D26=$W$20,20,IFERROR(VLOOKUP($E26,$Y$8:$Z$21,2,0),$G$9))","v":12},{"$f":"IF($D26=$W$11,IF($E26=$Y$13,10,IF($E26=Y$14,4,12)),0)","v":0},null,"Validacion de registros"]
[null,null,{"$f":"C24","v":"Contribuciones"}]
[null,{"$f":"B25+1","v":6},null,null,null,null,null,null,null,{"$f":"IF($E30=$Y$16,IF($D30=$W$16,0,40),IF($D30=\"Coinvestigador\",J$9/2,40))","v":40},{"$f":"IF(E30=$Y$14,0,IF($D30=\"Coinvestigador\",$R$4,0))","v":0},null,5,"C","D","E","F","G","H","D","E","F","D","D",{"$f":"SUM(Y31:Y42)","v":0}]
[null,{"$f":"+B29","v":6},"Funcion :",null,null,null,null,null,null,{"$f":"IFERROR(VLOOKUP($F30,V_IdNBC,2,0),0)","v":0},{"$f":"IF($D30=$K$10,\"Ok\",\"\")","v":"Ok"},null,null,{"$f":"C8","v":"Identificacion"},{"$f":"D8","v":"Nombres"},"Apellidos","Nivel Academico","Mes","Horas","Tipo","Vinculo","NBC","Cvlac","contribucion","Validacion hrs Externos"]
[null,{"$f":"+B30","v":6},"CvLac:",null,null,null,null,null,null,{"$f":"IF($D30=$W$20,20,IFERROR(VLOOKUP($E30,$Y$8:$Z$21,2,0),$G$9))","v":12},{"$f":"IF($D30=$W$11,IF($E30=$Y$13,10,IF($E30=Y$14,4,12)),0)","v":0},null,1,{"$f":"CLEAN(INDIRECT(N$29&($M31*4)+$M$29,1))","v":""},{"$f":"CLEAN(INDIRECT(O$29&($M31*4)+$M$29,1))","v":"Luis Alexander"},{"$f":"CLEAN(INDIRECT(P$29&($M31*4)+$M$29,1))","v":"Chirivi"},{"$f":"CLEAN(INDIRECT(Q$29&($M31*4)+$M$29,1))","v":""},{"$f":"CLEAN(ABS(INDIRECT(R$29&($M31*4)+$M$29,1)))","v":"12"},{"$f":"ABS(INDIRECT(S$29&($M31*4)+$M$29,1))","v":0},{"$f":"CLEAN(INDIRECT(T$29&($M31*4)+$M$29+1,1))","v":"Investigador Principal"},{"$f":"CLEAN(INDIRECT(U$29&($M31*4)+$M$29+1,1))","v":""},{"$f":"CLEAN(INDIRECT(V$29&($M31*4)+$M$29+1,1))","v":""},{"$f":"CLEAN(INDIRECT(W$29&($M31*4)+$M$29+2,1))","v":""},{"$f":"CLEAN(INDIRECT(X$29&($M31*4)+$M$29+3,1))","v":" "},{"$f":"IF(AND($T31=$W$14,$U31=$Y$14,$S31<5),1,0)","v":0}]
[null,null,{"$f":"C28","v":"Contribuciones"},null,null,null,null,null,null,null,null,null,2,{"$f":"CLEAN(INDIRECT(N$29&($M32*4)+$M$29,1))","v":""},{"$f":"CLEAN(INDIRECT(O$29&($M32*4)+$M$29,1))","v":""},{"$f":"CLEAN(INDIRECT(P$29&($M32*4)+$M$29,1))","v":""},{"$f":"CLEAN(INDIRECT(Q$29&($M32*4)+$M$29,1))","v":""},{"$f":"CLEAN(ABS(INDIRECT(R$29&($M32*4)+$M$29,1)))","v":"12"},{"$f":"ABS(INDIRECT(S$29&($M32*4)+$M$29,1))","v":0},{"$f":"CLEAN(INDIRECT(T$29&($M32*4)+$M$29+1,1))","v":""},{"$f":"CLEAN(INDIRECT(U$29&($M32*4)+$M$29+1,1))","v":""},{"$f":"CLEAN(INDIRECT(V$29&($M32*4)+$M$29+1,1))","v":""},{"$f":"CLEAN(INDIRECT(W$29&($M32*4)+$M$29+2,1))","v":""},{"$f":"CLEAN(INDIRECT(X$29&($M32*4)+$M$29+3,1))","v":""},{"$f":"IF(AND($T32=$W$14,$U32=$Y$14,$S32<=4),1,0)","v":0}]
[null,{"$f":"B29+1","v":7},null,null,null,null,null,null,null,{"$f":"IF($E34=$Y$16,IF($D34=$W$16,0,40),IF($D34=\"Coinvestigador\",J$9/2,40))","v":40},{"$f":"IF(E34=$Y$14,0,IF($D34=\"Coinvestigador\",$R$4,0))","v":0},null,3,{"$f":"CLEAN(INDIRECT(N$29&($M33*4)+$M$29,1))","v":""},{"$f":"CLEAN(INDIRECT(O$29&($M33*4)+$M$29,1))","v":""},{"$f":"CLEAN(INDIRECT(P$29&($M33*4)+$M$29,1))","v":""},{"$f":"CLEAN(INDIRECT(Q$29&($M33*4)+$M$29,1))","v":""},{"$f":"CLEAN(ABS(INDIRECT(R$29&($M33*4)+$M$29,1)))","v":"0"},{"$f":"ABS(INDIRECT(S$29&($M33*4)+$M$29,1))","v":0},{"$f":"CLEAN(INDIRECT(T$29&($M33*4)+$M$29+1,1))","v":""},{"$f":"CLEAN(INDIRECT(U$29&($M33*4)+$M$29+1,1))","v":""},{"$f":"CLEAN(INDIRECT(V$29&($M33*4)+$M$29+1,1))","v":""},{"$f":"CLEAN(INDIRECT(W$29&($M33*4)+$M$29+2,1))","v":""},{"$f":"CLEAN(INDIRECT(X$29&($M33*4)+$M$29+3,1))","v":""},{"$f":"IF(AND($T33=$W$14,$U33=$Y$14,$S33<=4),1,0)","v":0}]
[null,{"$f":"+B33","v":7},"Funcion :",null,null,null,null,null,null,{"$f":"IFERROR(VLOOKUP($F34,V_IdNBC,2,0),0)","v":0},{"$f":"IF($D34=$K$10,\"Ok\",\"\")","v":"Ok"},null,4,{"$f":"CLEAN(INDIRECT(N$29&($M34*4)+$M$29,1))","v":""},{"$f":"CLEAN(INDIRECT(O$29&($M34*4)+$M$29,1))","v":""},{"$f":"CLEAN(INDIRECT(P$29&($M34*4)+$M$29,1))","v":""},{"$f":"CLEAN(INDIRECT(Q$29&($M34*4)+$M$29,1))","v":""},{"$f":"CLEAN(ABS(INDIRECT(R$29&($M34*4)+$M$29,1)))","v":"0"},{"$f":"ABS(INDIRECT(S$29&($M34*4)+$M$29,1))","v":0},{"$f":"CLEAN(INDIRECT(T$29&($M34*4)+$M$29+1,1))","v":""},{"$f":"CLEAN(INDIRECT(U$29&($M34*4)+$M$29+1,1))","v":""},{"$f":"CLEAN(INDIRECT(V$29&($M34*4)+$M$29+1,1))","v":""},{"$f":"CLEAN(INDIRECT(W$29&($M34*4)+$M$29+2,1))","v":""},{"$f":"CLEAN(INDIRECT(X$29&($M34*4)+$M$29+3,1))","v":""},{"$f":"IF(AND($T34=$W$14,$U34=$Y$14,$S34<5),1,0)","v":0}]
[null,{"$f":"+B34","v":7},"CvLac:",null,null,null,null,null,null,{"$f":"IF($D34=$W$20,20,IFERROR(VLOOKUP($E34,$Y$8:$Z$21,2,0),$G$9))","v":12},{"$f":"IF($D34=$W$11,IF($E34=$Y$13,10,IF($E34=Y$14,4,12)),0)","v":0},null,5,{"$f":"CLEAN(INDIRECT(N$29&($M35*4)+$M$29,1))","v":""},{"$f":"CLEAN(INDIRECT(O$29&($M35*4)+$M$29,1))","v":""},{"$f":"CLEAN(INDIRECT(P$29&($M35*4)+$M$29,1))","v":""},{"$f":"CLEAN(INDIRECT(Q$29&($M35*4)+$M$29,1))","v":""},{"$f":"CLEAN(ABS(INDIRECT(R$29&($M35*4)+$M$29,1)))","v":"0"},{"$f":"ABS(INDIRECT(S$29&($M35*4)+$M$29,1))","v":0},{"$f":"CLEAN(INDIRECT(T$29&($M35*4)+$M$29+1,1))","v":""},{"$f":"CLEAN(INDIRECT(U$29&($M35*4)+$M$29+1,1))","v":""},{"$f":"CLEAN(INDIRECT(V$29&($M35*4)+$M$29+1,1))","v":""},{"$f":"CLEAN(INDIRECT(W$29&($M35*4)+$M$29+2,1))","v":""},{"$f":"CLEAN(INDIRECT(X$29&($M35*4)+$M$29+3,1))","v":""},0]
[null,null,{"$f":"C32","v":"Contribuciones"},null,null,null,null,null,null,null,null,null,6,{"$f":"CLEAN(INDIRECT(N$29&($M36*4)+$M$29,1))","v":""},{"$f":"CLEAN(INDIRECT(O$29&($M36*4)+$M$29,1))","v":""},{"$f":"CLEAN(INDIRECT(P$29&($M36*4)+$M$29,1))","v":""},{"$f":"CLEAN(INDIRECT(Q$29&($M36*4)+$M$29,1))","v":""},{"$f":"CLEAN(ABS(INDIRECT(R$29&($M36*4)+$M$29,1)))","v":"0"},{"$f":"ABS(INDIRECT(S$29&($M36*4)+$M$29,1))","v":0},{"$f":"CLEAN(INDIRECT(T$29&($M36*4)+$M$29+1,1))","v":""},{"$f":"CLEAN(INDIRECT(U$29&($M36*4)+$M$29+1,1))","v":""},{"$f":"CLEAN(INDIRECT(V$29&($M36*4)+$M$29+1,1))","v":""},{"$f":"CLEAN(INDIRECT(W$29&($M36*4)+$M$29+2,1))","v":""},{"$f":"CLEAN(INDIRECT(X$29&($M36*4)+$M$29+3,1))","v":""},0]
[null,{"$f":"B33+1","v":8},null,null,null,null,null,null,null,{"$f":"IF($E38=$Y$16,IF($D38=$W$16,0,40),IF($D38=\"Coinvestigador\",J$9/2,40))","v":40},{"$f":"IF(E38=$Y$14,0,IF($D38=\"Coinvestigador\",$R$4,0))","v":0},null,7,{"$f":"CLEAN(INDIRECT(N$29&($M37*4)+$M$29,1))","v":""},{"$f":"CLEAN(INDIRECT(O$29&($M37*4)+$M$29,1))","v":""},{"$f":"CLEAN(INDIRECT(P$29&($M37*4)+$M$29,1))","v":""},{"$f":"CLEAN(INDIRECT(Q$29&($M37*4)+$M$29,1))","v":""},{"$f":"CLEAN(ABS(INDIRECT(R$29&($M37*4)+$M$29,1)))","v":"0"},{"$f":"ABS(INDIRECT(S$29&($M37*4)+$M$29,1))","v":0},{"$f":"CLEAN(INDIRECT(T$29&($M37*4)+$M$29+1,1))","v":""},{"$f":"CLEAN(INDIRECT(U$29&($M37*4)+$M$29+1,1))","v":""},{"$f":"CLEAN(INDIRECT(V$29&($M37*4)+$M$29+1,1))","v":""},{"$f":"CLEAN(INDIRECT(W$29&($M37*4)+$M$29+2,1))","v":""},{"$f":"CLEAN(INDIRECT(X$29&($M37*4)+$M$29+3,1))","v":""},0]
[null,{"$f":"+B37","v":8},"Funcion :",null,null,null,null,null,null,{"$f":"IFERROR(VLOOKUP($F38,V_IdNBC,2,0),0)","v":0},{"$f":"IF($D38=$K$10,\"Ok\",\"\")","v":"Ok"},null,8,{"$f":"CLEAN(INDIRECT(N$29&($M38*4)+$M$29,1))","v":""},{"$f":"CLEAN(INDIRECT(O$29&($M38*4)+$M$29,1))","v":""},{"$f":"CLEAN(INDIRECT(P$29&($M38*4)+$M$29,1))","v":""},{"$f":"CLEAN(INDIRECT(Q$29&($M38*4)+$M$29,1))","v":""},{"$f":"CLEAN(ABS(INDIRECT(R$29&($M38*4)+$M$29,1)))","v":"0"},{"$f":"ABS(INDIRECT(S$29&($M38*4)+$M$29,1))","v":0},{"$f":"CLEAN(INDIRECT(T$29&($M38*4)+$M$29+1,1))","v":""},{"$f":"CLEAN(INDIRECT(U$29&($M38*4)+$M$29+1,1))","v":""},{"$f":"CLEAN(INDIRECT(V$29&($M38*4)+$M$29+1,1))","v":""},{"$f":"CLEAN(INDIRECT(W$29&($M38*4)+$M$29+2,1))","v":""},{"$f":"CLEAN(INDIRECT(X$29&($M38*4)+$M$29+3,1))","v":""},0]
[null,{"$f":"+B38","v":8},"CvLac:",null,null,null,null,null,null,{"$f":"IF($D38=$W$20,20,IFERROR(VLOOKUP($E38,$Y$8:$Z$21,2,0),$G$9))","v":12},{"$f":"IF($D38=$W$11,IF($E38=$Y$13,10,IF($E38=Y$14,4,12)),0)","v":0},null,9,{"$f":"CLEAN(INDIRECT(N$29&($M39*4)+$M$29,1))","v":""},{"$f":"CLEAN(INDIRECT(O$29&($M39*4)+$M$29,1))","v":""},{"$f":"CLEAN(INDIRECT(P$29&($M39*4)+$M$29,1))","v":""},{"$f":"CLEAN(INDIRECT(Q$29&($M39*4)+$M$29,1))","v":""},{"$f":"CLEAN(ABS(INDIRECT(R$29&($M39*4)+$M$29,1)))","v":"0"},{"$f":"ABS(INDIRECT(S$29&($M39*4)+$M$29,1))","v":0},{"$f":"CLEAN(INDIRECT(T$29&($M39*4)+$M$29+1,1))","v":""},{"$f":"CLEAN(INDIRECT(U$29&($M39*4)+$M$29+1,1))","v":""},{"$f":"CLEAN(INDIRECT(V$29&($M39*4)+$M$29+1,1))","v":""},{"$f":"CLEAN(INDIRECT(W$29&($M39*4)+$M$29+2,1))","v":""},{"$f":"CLEAN(INDIRECT(X$29&($M39*4)+$M$29+3,1))","v":""},0]
[null,null,{"$f":"C36","v":"Contribuciones"},null,null,null,null,null,null,null,null,null,10,{"$f":"CLEAN(INDIRECT(N$29&($M40*4)+$M$29,1))","v":""},{"$f":"CLEAN(INDIRECT(O$29&($M40*4)+$M$29,1))","v":""},{"$f":"CLEAN(INDIRECT(P$29&($M40*4)+$M$29,1))","v":""},{"$f":"CLEAN(INDIRECT(Q$29&($M40*4)+$M$29,1))","v":""},{"$f":"CLEAN(ABS(INDIRECT(R$29&($M40*4)+$M$29,1)))","v":"0"},{"$f":"ABS(INDIRECT(S$29&($M40*4)+$M$29,1))","v":0},{"$f":"CLEAN(INDIRECT(T$29&($M40*4)+$M$29+1,1))","v":""},{"$f":"CLEAN(INDIRECT(U$29&($M40*4)+$M$29+1,1))","v":""},{"$f":"CLEAN(INDIRECT(V$29&($M40*4)+$M$29+1,1))","v":""},{"$f":"CLEAN(INDIRECT(W$29&($M40*4)+$M$29+2,1))","v":""},{"$f":"CLEAN(INDIRECT(X$29&($M40*4)+$M$29+3,1))","v":""},0]
[null,{"$f":"B37+1","v":9},null,null,null,null,null,null,null,{"$f":"IF($E42=$Y$16,IF($D42=$W$16,0,40),IF($D42=\"Coinvestigador\",J$9/2,40))","v":40},{"$f":"IF(E42=$Y$14,0,IF($D42=\"Coinvestigador\",$R$4,0))","v":0},null,11,{"$f":"CLEAN(INDIRECT(N$29&($M41*4)+$M$29,1))","v":""},{"$f":"CLEAN(INDIRECT(O$29&($M41*4)+$M$29,1))","v":""},{"$f":"CLEAN(INDIRECT(P$29&($M41*4)+$M$29,1))","v":""},{"$f":"CLEAN(INDIRECT(Q$29&($M41*4)+$M$29,1))","v":""},{"$f":"CLEAN(ABS(INDIRECT(R$29&($M41*4)+$M$29,1)))","v":"0"},{"$f":"ABS(INDIRECT(S$29&($M41*4)+$M$29,1))","v":0},{"$f":"CLEAN(INDIRECT(T$29&($M41*4)+$M$29+1,1))","v":""},{"$f":"CLEAN(INDIRECT(U$29&($M41*4)+$M$29+1,1))","v":""},{"$f":"CLEAN(INDIRECT(V$29&($M41*4)+$M$29+1,1))","v":""},{"$f":"CLEAN(INDIRECT(W$29&($M41*4)+$M$29+2,1))","v":""},{"$f":"CLEAN(INDIRECT(X$29&($M41*4)+$M$29+3,1))","v":""},0]
[null,{"$f":"+B41","v":9},"Funcion :",null,null,null,null,null,null,{"$f":"IFERROR(VLOOKUP($F42,V_IdNBC,2,0),0)","v":0},{"$f":"IF($D42=$K$10,\"Ok\",\"\")","v":"Ok"},null,12,{"$f":"CLEAN(INDIRECT(N$29&($M42*4)+$M$29,1))","v":""},{"$f":"CLEAN(INDIRECT(O$29&($M42*4)+$M$29,1))","v":""},{"$f":"CLEAN(INDIRECT(P$29&($M42*4)+$M$29,1))","v":""},{"$f":"CLEAN(INDIRECT(Q$29&($M42*4)+$M$29,1))","v":""},{"$f":"CLEAN(ABS(INDIRECT(R$29&($M42*4)+$M$29,1)))","v":"0"},{"$f":"ABS(INDIRECT(S$29&($M42*4)+$M$29,1))","v":0},{"$f":"CLEAN(INDIRECT(T$29&($M42*4)+$M$29+1,1))","v":""},{"$f":"CLEAN(INDIRECT(U$29&($M42*4)+$M$29+1,1))","v":""},{"$f":"CLEAN(INDIRECT(V$29&($M42*4)+$M$29+1,1))","v":""},{"$f":"CLEAN(INDIRECT(W$29&($M42*4)+$M$29+2,1))","v":""},{"$f":"CLEAN(INDIRECT(X$29&($M42*4)+$M$29+3,1))","v":""},0]
[null,{"$f":"+B42","v":9},"CvLac:",null,null,null,null,null,null,{"$f":"IF($D42=$W$20,20,IFERROR(VLOOKUP($E42,$Y$8:$Z$21,2,0),$G$9))","v":12},{"$f":"IF($D42=$W$11,IF($E42=$Y$13,10,IF($E42=Y$14,4,12)),0)","v":0},null,null,{"$f":"CLEAN(INDIRECT(N$29&($M43*4)+$M$29,1))","v":""},{"$f":"CLEAN(INDIRECT(O$29&($M43*4)+$M$29,1))","v":""},{"$f":"CLEAN(INDIRECT(P$29&($M43*4)+$M$29,1))","v":""},{"$f":"CLEAN(INDIRECT(Q$29&($M43*4)+$M$29,1))","v":""},{"$f":"CLEAN(INDIRECT(R$29&($M43*4)+$M$29,1))","v":""}]
[null,null,{"$f":"C40","v":"Contribuciones"}]
[null,{"$f":"B41+1","v":10},null,null,null,null,null,null,null,{"$f":"IF($E46=$Y$16,IF($D46=$W$16,0,40),IF($D46=\"Coinvestigador\",J$9/2,40))","v":40},{"$f":"IF(E46=$Y$14,0,IF($D46=\"Coinvestigador\",$R$4,0))","v":0}]
[null,{"$f":"+B45","v":10},"Funcion :",null,null,null,null,null,null,{"$f":"IFERROR(VLOOKUP($F46,V_IdNBC,2,0),0)","v":0},{"$f":"IF($D46=$K$10,\"Ok\",\"\")","v":"Ok"},null,null,null,null,null,null,null,{"$f":"SUMIF($T$30:$T$42,$T46,$S$30:$S$42)","v":0},"Investigador Principal"]
[null,{"$f":"+B46","v":10},"CvLac:",null,null,null,null,null,null,{"$f":"IF($D46=$W$20,20,IFERROR(VLOOKUP($E46,$Y$8:$Z$21,2,0),$G$9))","v":12},{"$f":"IF($D46=$W$11,IF($E46=$Y$13,10,IF($E46=Y$14,4,12)),0)","v":0},null,null,null,null,null,null,null,{"$f":"SUMIF($T$30:$T$42,$T47,$S$30:$S$42)","v":0},"Coinvestigador"]
[null,null,{"$f":"C44","v":"Contribuciones"},null,null,null,null,null,null,null,null,null,null,null,null,null,null,null,0,"Asesor"]
[null,null,null,null,null,null,null,null,null,null,null,null,null,null,null,null,null,null,0,"Asistente OPS"]
[null,null,null,null,null,null,null,null,null,null,null,null,null,null,null,null,null,null,0,"Auxiliar de Investigación."]
[null,null,null,null,null,null,null,null,null,null,null,null,null,null,null,null,null,null,0,"Joven Investigador"]
[null,null,null,null,null,null,null,null,null,null,null,null,null,null,null,null,null,null,0,"Asistente Graduado"]
[null,null,null,null,null,null,null,null,null,null,null,null,null,null,null,null,null,null,0,"Estudiante"]
[]
[null,null,null,null,null,null,null,null,null,null,null,null,null,null,null,null,null,null,{"$f":"SUM(S46:S53)","v":0},"integrantes"]

{"sheet":"Productos","index":9,"n_rows":51,"n_cols":22,"rows_kept":51,"cut":false,"hidden":false,"merged":[[1,1,2,5]]}
[7,null,null,null,null,null,null,null,null,null,null,null,null,null,null,null,{"$f":"Presupuesto!O6","v":15000000}]
[null,{"$f":"Cronograma!B2","v":"PRESENTACIÓN DE PROYECTOS \nDE INVESTIGACIÓN"},null,null,null,null,{"$f":"General!$H$2","v":"Fecha de Emisión: 2019/03/18"},{"$f":"General!$I$2","v":"IN-IV-F-14"},null,null,null,null,null,null,{"$f":"VLOOKUP(\"Productos\",DT_Errores,3,0)","v":"Error : 015.- No tiene la productividad mínima requerida para la convcocatoria INV de 20 Puntos."}]
[null,null,null,null,null,null,{"$f":"General!$H$3","v":"Revisión N°:\n4"},{"$f":"\"Página \"&A1&\" de \"&Dt_TPG","v":"Página 7 de 11"},{"$f":"IF(H5=\"INV\",4,5)","v":4},null,"N",null,"Abreviatura","IdClase","INV","IMP","Clase ","Tipo de Productos","Indicadores","o","Ok","IdClase"]
[null,null,null,null,null,null,{"$f":"IF(H5=\"INV\",3,4)","v":3},null,null,null,1,{"$f":"ABS(LEFT(M4,3))","v":101},{"$f":"IFERROR(V4&\"- \"&VLOOKUP($K4,Dt_prod2,5,0),\"-\")","v":"101- Artículo en revista en Cuartil 1 (Q1) del SJR (Scimago) o del JCR (Clarivate). "},{"$f":"IFERROR(VLOOKUP(ABS(LEFT(L4)),Dt_ClasProd,3,0),\"-\")","v":"GNC"},{"$f":"IFERROR(VLOOKUP($K4,Dt_prod2,7,0),\"-\")","v":40},{"$f":"IFERROR(VLOOKUP($K4,Dt_prod2,8,0),\"-\")","v":0},{"$f":"IFERROR(Z4&\"- \"&VLOOKUP($K4,Dt_prod2,3,0),\"-\")","v":"- Productos de Generación de Nuevo Conocimiento (GNC)"},{"$f":"IFERROR(VLOOKUP($K4,Dt_prod2,4,0),\"-\")","v":"Artículos en Revistas Científicas no incluidas en las listas de revistas depredadoras (ejemplo Beall-list)"},{"$f":"IFERROR(VLOOKUP($K4,Dt_prod2,6,0),\"-\")","v":"Copia del sometimiento y copia del artículo enviado a la revista"},0,{"$f":"SUMIFS($F$8:$F$28,$I$8:$I$28,L4)","v":0},{"$f":"IFERROR(VLOOKUP($K4,Dt_prod2,2,0),0)","v":101}]
["10.-","Productividad comprometida",null,null,null,"Tipo de proyecto:",null,{"$f":"General!$H$1","v":"INV"},null,null,2,{"$f":"ABS(LEFT(M5,3))","v":102},"102- Artículo en revista en Cuartil 2 (Q2) del SJR (Scimago) o del JCR (Clarivate). ","GNC",30,0,"- Productos de Generación de Nuevo Conocimiento (GNC)","Artículos en Revistas Científicas no incluidas en las listas de revistas depredadoras (ejemplo Beall-list)","Copia del sometimiento y copia del artículo enviado a la revista",0,0,102]
[null,null,"Selección de topes comprometidos",null,null,null,null,null,null,null,3,103,"103- Artículo en revista en Cuartil 3 (Q3) del SJR (Scimago) o del JCR (Clarivate) o clasificada en B en Publindex. ","GNC",20,0,"- Productos de Generación de Nuevo Conocimiento (GNC)","Artículos en Revistas Científicas no incluidas en las listas de revistas depredadoras (ejemplo Beall-list)","Copia del sometimiento y copia del artículo enviado a la revista",0,0,103]
[null,"N°","Resultado/Producto esperado","Descripción o detalles del producto esperado","Indicador","Cantidad","Total de puntos","Beneficiario",null,null,4,104,"104- Artículo en revista en Cuartil 4 (Q4) del SJR (Scopus) o del JCR (Web of Science) o clasificada en C en Publindex. ","GNC",10,0,"- Productos de Generación de Nuevo Conocimiento (GNC)","Artículos en Revistas Científicas no incluidas en las listas de revistas depredadoras (ejemplo Beall-list)","Copia del sometimiento y copia del artículo enviado a la revista",0,0,104]
[null,{"$f":"ROW()-7","v":1},null,null,{"$f":"IFERROR(CLEAN(VLOOKUP($I8,$L$3:$V$51,8,0)),\"\")","v":""},1,{"$f":"IFERROR($F8*VLOOKUP(ABS(LEFT($C8,3)),$L$3:$V$51,$I$3,0),0)","v":0},null,{"$f":"IFERROR(ABS(LEFT(C8,3)),0)","v":0},null,5,105,"105- Artículo D de acuerdo con las especificaciones del Documento conceptual de la Convocatoria 833 de 2018 de Minciencias. ","GNC",7,0,"- Productos de Generación de Nuevo Conocimiento (GNC)","Artículos en Revistas Científicas no incluidas en las listas de revistas depredadoras (ejemplo Beall-list)","Copia del sometimiento y copia del artículo enviado a la revista",0,0,105]
[null,{"$f":"ROW()-7","v":2},null,null,"",1,0,null,{"$f":"IFERROR(ABS(LEFT(C9,3)),0)","v":0},null,6,109,"109- Libro resultado de investigación en colección indexada en Scopus Books o indizado en el Book Citation Index (Clarivate)","GNC",60,0,"- Productos de Generación de Nuevo Conocimiento (GNC)","Libro de Investigación","Copia del sometimiento  ante editorial y copia completa del proyecto del libro.",0,0,109]
[null,3,null,null,"",1,0,null,0,null,7,110,"110- Libro resultado de investigación sometido por la Editorial Neogranadina o libro resultado de investigación que cumpla con lo especificado por Minciencias en el Documento Conceptual de la Convocatoria 833 de 2018.","GNC",30,0,"- Productos de Generación de Nuevo Conocimiento (GNC)","Libro de Investigación","Copia del sometimiento  ante editorial y copia completa del proyecto del libro.",0,0,110]
[null,4,null,null,"",1,0,null,0,null,8,111,"111- Capítulo incluido en libro resultado de investigación dentro de una colección indexada Scopus Books o indizado en el Book Citation Index (Clarivate)","GNC",20,0,"- Productos de Generación de Nuevo Conocimiento (GNC)","Capítulo de Libro de Investigación","Copia del sometimiento ante editorial Neogranadina o editorial externa (copia del proyecto editorial de libro en el que se incluiría el capítulo y del aval de la Editorial sobre ese proyecto) y copia del capítulo de libro enviado a la editorial",0,0,111]
[null,5,null,null,"",1,0,null,0,null,9,112,"112- Capítulo en libro de la Editorial Neogranadina o un capítulo en libro resultado de investigación que cumpla con lo especificado por Minciencias en el Documento Conceptual de la Convocatoria 833 de 2018.","GNC",20,0,"- Productos de Generación de Nuevo Conocimiento (GNC)","Capítulo de Libro de Investigación","Copia del sometimiento ante editorial Neogranadina o editorial externa (copia del proyecto editorial de libro en el que se incluiría el capítulo y del aval de la Editorial sobre ese proyecto) y copia del capítulo de libro enviado a la editorial",0,0,112]
[null,6,null,null,"",1,0,null,0,null,10,113,"113- Publicación en gaceta de variedades vegetales protegidas o equivalente con estado de admisión respaldada por un concepto favorable de potencial de mercado o con valor real o potencial de contribución a la seguridad alimentaria.","GNC",60,0,"- Productos de Generación de Nuevo Conocimiento (GNC)","Variedad vegetal o nueva raza animal","Documento en el que se describa la variedad vegetal obtenida con nombre, tipo de ciclo (corto o largo), fecha, cód. de trazabilidad  y autores debidamente registrados según  Res. De vinculación vigente. Publicación en gaceta o equivalente, con estado de admisión de la solicitud de certificado de obtentor del ICA",0,0,113]
[null,7,null,null,"",1,0,null,0,null,11,114,"114- Nota Científica Impresa o electrónica sometida en revista indexada del SJR (Scimago) o del JCR (Clarivate) que cumpla con lo especificado por Minciencias en el Documento Conceptual de la Convocatoria 833 de 2018","GNC",10,0,"- Productos de Generación de Nuevo Conocimiento (GNC)","Nota científica","Copia del sometimiento y copia de la nota científica enviada a la revista",0,0,114]
[null,8,null,null,"",1,0,null,0,null,16,201,"201- Software aprobado para registro ante la DNDA, de acuerdo con procedimientos establecidos por la UMNG.","DTI",10,0,"- Productos resultado de actividades de desarrollo tecnológico e innovación (DTI)","Software","Soporte logico registre el aval para el software que incluya : Manual técnico,  Manual de usuario todos con la inclucion código  de trazabilidad, ",0,0,201]
[null,9,null,null,"",1,0,null,0,null,17,202,"202- Esquema de trazado de circuito integrado registrado ante la SIC a través de acto administrativo que resuelva la concesión favorable.","DTI",10,0,"- Productos resultado de actividades de desarrollo tecnológico e innovación (DTI)","Esquema trazado","Documento en el que se describa el esquema de trazado de circuito integrado obtenido con nombre, autor, fecha, cód. de trazabilidad  y autores debidamente registrados según  Res. vigente, Acto administrativo de la Superintendencia de Industria y Comercio que resuelva la concesión favorable.",0,0,202]
[null,10,null,null,"",1,0,null,0,null,18,203,"203- Regulaciones, normas, reglamentos o legislaciones implementadas internacionalmente, acorde con parámetros de Minciencias. ","DTI",20,0,"- Productos resultado de actividades de desarrollo tecnológico e innovación (DTI)","Normas Internacionales","\"Documento en el que se describa la regulación, norma, reglamento o legislación+CR10 obtenido con nombre, autor, fecha, cód. de trazabilidad  y autores debidamente registrados según  Res. vigente\" ,\"Certificado de la entidad o institución que emitió el producto, indicando la participación en su construcción de todos o de alguno de los integrantes del proyecto, título, país, ciudad, fecha de  publicación / implementación, tipo de regulación, ámbito.",0,0,203]
[null,11,null,null,"",1,0,null,0,null,19,204,"204- Regulaciones, normas, reglamentos o legislaciones implementadas nacionalmente (no institucional), acorde con parámetros de Minciencias.","DTI",10,0,"- Productos resultado de actividades de desarrollo tecnológico e innovación (DTI)","Normas Nacionales","\"Documento en el que se describa la regulación, norma, reglamento o legislación+CR10 obtenido con nombre, autor, fecha, cód. de trazabilidad  y autores debidamente registrados según  Res. vigente\" ,\"Certificado de la entidad o institución que emitió el producto, indicando la participación en su construcción de todos o de alguno de los integrantes del proyecto, título, país, ciudad, fecha de  publicación / implementación, tipo de regulación, ámbito.",0,0,204]
[null,12,null,null,"",1,0,null,0,null,20,205,"205- Nuevo registro científico - Incluido en sistemas de información científica con las especificaciones del Documento conceptual de la Convocatoria 833 de 2018 de Minciencias.","DTI",15,0,"- Productos resultado de actividades de desarrollo tecnológico e innovación (DTI)","Nuevo registro cientifico","Copia de la Inclusión del nuevo registro científico en el sistema de información científico, matriz con la relación de conjunto de metadatos publicado, y URL de acceso.",0,0,205]
[null,13,null,null,"",1,0,null,0,null,21,207,"207- Productos o procesos tecnológicos usualmente no patentables (Prototipo) - Estado de desarrollo TRL4 - Validación a nivel de laboratorio.","DTI",10,0,"- Productos resultado de actividades de desarrollo tecnológico e innovación (DTI)","Prototipo TRL4","Prototipo madurado en mínimo TRL 4 Validado por DDTI o Ente externo especializado y acompañado de: 1. Manual de funcionamiento según el formato establecido por VICEIN. 2.Registro fotográfico de los componentes del prototipo. 3.Registro fílmico sobre funcionamiento del prototipo.4.Soportes de pruebas y validación (según aplique)",0,0,207]
[null,14,null,null,"",1,0,null,0,null,22,208,"208- Productos o procesos tecnológicos (Prototipo) - Estado de desarrollo TRL5 - validación de componentes en entorno relevante.","DTI",13,0,"- Productos resultado de actividades de desarrollo tecnológico e innovación (DTI)","Prototipo TRL5","Prototipo madurado en mínimo un nivel en la escala TRL comprometida o esperada, Validado por DDTI o Ente externo especializado y acompañado de: 1. Manual de funcionamiento según el formato establecido por VICEIN. 2.Registro fotográfico de los componentes del prototipo. 3.Registro fílmico sobre funcionamiento del prototipo. 4.Soportes de pruebas y validación (según aplique).  ",0,0,208]
[null,15,null,null,"",1,0,null,0,null,23,209,"209- Productos o procesos tecnológicos (Prototipo) - Estado de desarrollo TRL6 - Validación de sistema o subsistema en entorno relevante","DTI",16,0,"- Productos resultado de actividades de desarrollo tecnológico e innovación (DTI)","Prototipo TRL6","Prototipo madurado en mínimo un nivel en la escala TRL comprometida o esperada, Validado por DDTI o Ente externo especializado y acompañado de: 1. Manual de funcionamiento según el formato establecido por VICEIN. 2.Registro fotográfico de los componentes del prototipo. 3.Registro fílmico sobre funcionamiento del prototipo. 4.Soportes de pruebas y validación (según aplique).  ",0,0,209]
[null,16,null,null,"",1,0,null,0,null,24,210,"210- Productos o procesos tecnológicos (Prototipo) - Estado de desarrollo TRL7 - Validación en entorno real.","DTI",19,0,"- Productos resultado de actividades de desarrollo tecnológico e innovación (DTI)","Prototipo TRL7","Prototipo madurado en mínimo un nivel en la escala TRL comprometida o esperada, Validado por DDTI o Ente externo especializado y acompañado de: 1. Manual de funcionamiento según el formato establecido por VICEIN. 2.Registro fotográfico de los componentes del prototipo. 3.Registro fílmico sobre funcionamiento del prototipo. 4.Soportes de pruebas y validación (según aplique).  ",0,0,210]
[null,17,null,null,"",1,0,null,0,null,25,211,"211- Productos o procesos tecnológicos (Prototipo) - Estado de desarrollo TRL8 - Validación completa y certificacion en entorno real.","DTI",22,0,"- Productos resultado de actividades de desarrollo tecnológico e innovación (DTI)","Prototipo TRL8","Prototipo madurado en mínimo un nivel en la escala TRL comprometida o esperada, Validado por DDTI o Ente externo especializado y acompañado de: 1. Manual de funcionamiento según el formato establecido por VICEIN. 2.Registro fotográfico de los componentes del prototipo. 3.Registro fílmico sobre funcionamiento del prototipo. 4.Soportes de pruebas y validación (según aplique).  ",0,0,211]
[null,18,null,null,"",1,0,null,0,null,26,212,"212- Productos o procesos tecnológicos (Prototipo) - Estado de desarrollo TRL9 - Prueba exitosa en entorno real.","DTI",25,0,"- Productos resultado de actividades de desarrollo tecnológico e innovación (DTI)","Prototipo TRL9","Prototipo madurado en mínimo un nivel en la escala TRL comprometida o esperada, Validado por DDTI o Ente externo especializado y acompañado de: 1. Manual de funcionamiento según el formato establecido por VICEIN. 2.Registro fotográfico de los componentes del prototipo. 3.Registro fílmico sobre funcionamiento del prototipo. 4.Soportes de pruebas y validación (según aplique).  ",0,0,212]
[null,19,null,null,"",1,0,null,0,null,27,301,"301- Ponencia en evento Internacional de acuerdo con los requisitos de la resolución vigente de movilidad.","SAC",10,0,"- Producción resultado de actividades de apropiación social del conocimiento (ASC)","Circulación de conocimiento especializado","Certificado de ponente, trabajo presentado en el evento que será publicado en memorias con ISSN o ISBN, cód. de trazabilidad y autores debidamente registrados según  Res. De movilidad Vigente.",0,0,301]
[null,20,null,null,"",1,0,null,0,null,28,302,"302- Ponencia en evento nacional de acuerdo con los requisitos de la resolución vigente de movilidad.","SAC",5,0,"- Producción resultado de actividades de apropiación social del conocimiento (ASC)","Circulación de conocimiento especializado","Certificado de ponente, trabajo presentado en el evento que será publicado en memorias con ISSN o ISBN, cód. de trazabilidad y autores debidamente registrados según  Res. De movilidad Vigente.",0,0,302]
[null,null,null,null,null,null,null,null,null,null,29,303,"303- Participación ciudadana en CTeI acorde con parámetros del modelo de medición de grupos de investigación- Minciencias** (Tabla XIV ANEXO 1)","SAC",5,0,"- Producción resultado de actividades de apropiación social del conocimiento (ASC)","Participación ciudadana en CTeI","Constancia de participación emitida por la comunidad o comunidades indicando que fueron incluidos en el proyecto/espacio/evento de CTI, con título del proyecto o nombre del espacio/evento, fecha de inicio, investigadores participantes, cód. de trazabilidad, nombre de la comunidad o comunidades participantes y otras instituciones o entidades vinculadas al proyecto/ espacio/evento de CTI.",0,0,303]
[null,"T",{"$f":"\"En el caso de aprobacion se liquidara el proyecto con  \"&V_Max&\" Pts.\"","v":"En el caso de aprobacion se liquidara el proyecto con  0 Pts."},null,null,{"$f":"SUM(F7:F27)","v":20},{"$f":"INT(SUM(G7:G27))","v":0},null,null,null,30,304,"304- Conjunto de información molecular que haya sido publicado en revista científica especializada y en una base de datos o repositorio de acceso público acorde con los parámetros del modelo de medición de grupos de investigación - Minciencias** (Tabla XVII ANEXO 1)","SAC",10,0,"- Producción resultado de actividades de apropiación social del conocimiento (ASC)","Nueva secuencia genética","Nombre de la secuencia genética, fecha, mes y lugar de obtención, base de datos científica en la cual está incluida la nueva secuencia genética (nombre y url), e institución certificadora de la nueva secuencia genética, código de trazabilidad y autores debidamente registrados según la resolución para vinculación de personal vigente.",0,0,304]
[null,null,null,null,null,null,null,null,null,null,33,403,"403- Joven investigador vinculado por mínimo ocho meses según los criterios de la Resolución vigente  sobre vinculación de personal a los proyectos de investigación financiados o cofinanciados por la UMNG en los programas de CTeI.","FRH",10,0,"- Formación de Recurso Humano (FRH)","Jóven Investigador","Contrato OPS , informe de actividades final.",0,0,403]
[null,null,null,null,null,null,null,null,null,null,34,404,"404- Dirección de Trabajo de grado de estudiantes en programas de pregrado de la UMNG, con temáticas asociadas a línea de investigación a la que pertenece el proyecto.","FRH",5,0,"- Formación de Recurso Humano (FRH)","Dirección o codirección de Trabajo de pregrado","Copia del acta sustentación del proyecto de grado",0,0,404]
[null,"N","Sigla","Clase ",null,null,null,"No",null,null,35,405,"405- Tutoría de un proyecto de iniciación científica de estudiantes de la UMNG, con temáticas asociadas a línea de investigación a la que pertenece el proyecto.","FRH",5,0,"- Formación de Recurso Humano (FRH)","Tutoría de un proyecto de iniciación científica","Informe final y acta del Comité de investigaciones con el aval del cierre del PIC",0,0,405]
["GNC",1,"Productos de Generación de Nuevo Conocimiento (GNC) ",null,null,null,null,{"$f":"SUMIFS($U$3:$U$51,$N$3:$N$51,$A33)","v":0},null,null,36,501,"501- Nueva propuesta conducente al ingreso de recursos externos en efectivo a la UMNG, superiores a la contrapartida en especie comprometida por la UMNG","GI",30,0,"- Gestión de la Investigación (GI)","Presentación de nuevo proyecto Externo Nacional","Carta de aval institucional, registro de sometimiento a la convocatoria externa o a la entidad financiadora o coordinadora de la convocatoria y listado de elegibles en el que está incluida la propuesta.",0,0,501]
["FRH",2,"Formación de Recurso Humano (FRH) ",null,null,null,null,{"$f":"SUMIFS($U$3:$U$51,$N$3:$N$51,$A34)","v":0},null,null,37,502,"502- Nueva propuesta conducente a ingreso a la UMNG de recursos externos nacionales en efectivo, superiores a la contrapartida en especie comprometida por la UMNG por un valor mayor o igual a 350 SMMLV.","GI",20,0,"- Gestión de la Investigación (GI)","Presentación de nuevo proyecto Externo Nacional 350","Carta de aval  institucional, registro de sometimiento a la convocatoria externa o a la entidad financiadora o coordinadora de la convocatoria y listado de elegibles en el que está incluida la propuesta.",0,0,502]
["SAC",3,"Socialización y Apropiación social del Conocimiento (SAC) ",null,null,null,null,{"$f":"SUMIFS($U$3:$U$51,$N$3:$N$51,$A35)","v":0},null,null,38,503,"503- Nueva propuesta conducente a ingreso a la UMNG de recursos externos Internacionales en efectivo, superiores a la contrapartida en especie comprometida por la UMNG por un valor mayor o igual a 350 SMMLV.","GI",30,0,"- Gestión de la Investigación (GI)","Presentación de nuevo proyecto Externo internacional 350","Carta de aval Institucional, registro de sometimiento a la convocatoria externa o a la entidad financiadora o coordinadora de la convocatoria y listado de elegibles en el que está incluida la propuesta.",0,0,503]
["DTI",4,"Productos resultado de actividades de desarrollo tecnológico e innovación (DTI)",null,null,null,null,0,null,null,39,504,"504- Ejecución del proyecto, sometido a la presente convocatoria, en la modalidad de cooperación a través de convenio especial de cooperación o instrumento contractual  equivalente, con instituciones de carácter nacional que cumplan con el criterio de evaluación de colaboración externa, enunciado en los presentes términos de referencia.","GI",5,0,"- Gestión de la Investigación (GI)","Proyecto ejecutado con cooperación nacional.","Convenio perfeccionado,  actas de inicio y presupuestal firmadas.",0,0,504]
["GI",5,"Gestión de Investigación (GI) ",null,null,null,null,0,null,null,40,{"$f":"ABS(LEFT(M37,3))","v":505},"505- Ejecución del proyecto, sometido a la presente convocatoria, en la modalidad de cooperación a través de convenio especial de cooperación o instrumento contractual equivalente, con instituciones de carácter internacional en la que mínimo una de ellas tiene domicilio en el exterior y que cumplan con el criterio de evaluación de colaboración externa, enunciado en los presentes términos de referencia.","GI",20,0,"- Gestión de la Investigación (GI)","Proyecto ejecutado con cooperación internacional","Convenio perfeccionado con todas las instituciones participantes de la alianza,  actas de inicio y presupuestal firmadas.",0,0,505]
[null,null,null,null,null,null,null,{"$f":"SUM(H33:H37)","v":0},null,null,41,506,"506- Nuevo proyecto financiado con recursos externos internacionales desembolsados al Fondo Especial de Investigaciones.","GI",40,0,"- Gestión de la Investigación (GI)","Nuevo Proyecto cooperación internacional","Convenio o  contrato perfeccionado,  actas de inicio y presupuestal firmadas.",0,0,506]
[null,null,null,null,null,null,null,null,null,null,42,507,"507- Nuevo proyecto financiado con recursos externos nacionales desembolsados al Fondo Especial de Investigaciones.","GI",30,0,"- Gestión de la Investigación (GI)","Nuevo Proyecto cooperación nacional","Convenio o  contrato perfeccionado,  actas de inicio y presupuestal firmadas.",0,0,507]
[null,null,null,null,null,null,null,null,null,null,43,508,"508- Comercialización de activos de propiedad intelectual, generados en proyectos de Investigación, alto impacto, innovación o cofinanciados con recursos externos registrados en la Vicerrectoría de Investigaciones, mediante mecanismos de transferencia tecnológica conforme los parámetros establecidos por la Vicerrectoría de Investigaciones (licenciamiento, spin off, start up, joint venture).","GI",70,0,"- Gestión de la Investigación (GI)","comercialización de propiedad Intelectual","Instrumento contractual perfeccionado tipo licenciamiento, joint Venture o denominación equivalente. Institución de spin off o startup de acuerdo previa validación de aspectos jurídicos, potencial y validación de mercado y propuesta de valor.",0,0,508]
[null,null,null,null,null,null,null,null,null,null,44,509,"509- Mejoramiento del nivel de madurez tecnológica identificada por la División de Desarrollo tecnológico asociado a la valoración de la tecnología (vigilancia tecnológica e inteligencia competitiva, diagnósticos de propiedad intelectual, modelos de negocio u otros)","GI",30,0,"- Gestión de la Investigación (GI)","Mejoramiento TRL","prototipo madurado en mínimo un nivel en la escala TRL comprometida o esperada, acompañado de: 1. Manual de funcionamiento según el formato establecido por VICEIN. 2.Registro fotográfico de los componentes del prototipo. 3.Registro fílmico sobre funcionamiento del prototipo.4.Soportes de pruebas y validación (según aplique).Adicionalmente, acompañado de estudio de vigilancia tecnológica e inteligencia competitiva.",0,0,509]
[null,null,null,null,null,null,null,null,null,null,45,{"$f":"ABS(LEFT(M42,3))","v":510},"510- Transferencia de conocimiento científico especializado y  novedoso, no disponible en el estado del arte, a actores externos de la Universidad mediada por acuerdos cesión o licenciamiento, las cuales pueden tener por objeto la formación de personas para incrementar sus capacidades investigadoras, innovadoras o de producción; actividades de innovación, generación de resultados económicos o; valor social.","GI",50,0,"- Gestión de la Investigación (GI)","Transferencia de conocimiento ","Contrato de licenciamiento o cesión perfeccionado, así como el acta de implementación u hoja de ruta de las actividades de transferencia.",0,0,510]
[null,null,null,null,null,null,null,null,null,null,0,{"$f":"IFERROR(ABS(LEFT(M43,3)),\"\")","v":""},"-","-","-","-","-","-","-",0,{"$f":"SUMIFS($F$8:$F$28,$I$8:$I$28,L43)","v":0},0]
[null,null,null,null,null,null,null,null,null,null,0,{"$f":"IFERROR(ABS(LEFT(M44,3)),\"\")","v":""},"-","-","-","-","-","-","-",0,{"$f":"SUMIFS($F$8:$F$28,$I$8:$I$28,L44)","v":0},0]
[null,null,null,null,null,null,null,null,null,null,0,"","-","-","-","-","-","-","-",0,0,0]
[null,null,null,null,null,null,null,null,null,null,0,"","-","-","-","-","-","-","-",0,0,0]
[null,null,null,null,null,null,null,null,null,null,0,"","-","-","-","-","-","-","-",0,0,0]
[null,null,null,null,null,null,null,null,null,null,0,"","-","-","-","-","-","-","-",0,0,0]
[null,null,null,null,null,null,null,null,null,null,0,"","-","-","-","-","-","-","-",0,0,0]
[null,null,null,null,null,null,null,null,null,null,0,"","-","-","-","-","-","-","-",0,0,0]
[null,null,null,null,null,null,null,null,null,null,0,"","-","-","-","-","-","-","-",0,0,0]

{"sheet":"Presupuesto","index":10,"n_rows":153,"n_cols":29,"rows_kept":153,"cut":false,"hidden":false,"merged":[[130,1,132,1],[144,4,145,8],[142,4,142,8],[144,3,145,3],[109,1,111,1],[112,1,114,1],[115,1,117,1],[118,1,120,1],[124,1,126,1],[121,1,123,1],[127,1,129,1],[94,1,96,1],[97,1,99,1],[100,1,102,1],[103,1,105,1],[106,1,108,1],[2,1,3,6],[49,4,49,5],[50,4,50,5],[69,4,69,5],[68,4,68,5],[6,3,6,8],[7,3,7,5],[7,7,7,8],[51,4,51,5],[52,4,52,5],[53,4,53,5],[54,4,54,5],[55,4,55,5],[56,4,56,5],[57,4,57,5],[58,4,58,5],[59,4,59,5],[60,4,60,5],[61,4,61,5],[67,4,67,5],[62,4,62,5],[63,4,63,5],[64,4,64,5],[65,4,65,5],[66,4,66,5],[70,4,70,5],[71,4,71,5],[72,4,72,5],[73,4,73,5],[74,4,74,5],[75,4,75,5],[76,4,76,5],[77,4,77,5],[78,4,78,5],[79,4,79,5],[80,4,80,5],[81,4,81,5],[82,4,82,5],[83,4,83,5],[84,4,84,5]]}
[9,null,null,null,null,null,null,null,null,null,null,null,null,null,null,null,null,null,"Tabla de Topes",null,null,"Validación",{"$f":"IF(P2=\"INV\",2,3)","v":2},null,"Productividad Vs Presupuesto"]
[null,null,null,null,null,null,null,null,null,null,null,null,"1.-> Limite presupuestal",{"$f":"IF(MIN(N6:P6)<1, 15000000,MIN(N6:P6))","v":15000000},{"$f":"N2/M6","v":15},{"$f":"H10","v":"INV"},null,"Clasif","INV","IMP",null,{"$f":"General!I19","v":""},{"$f":"IFERROR(VLOOKUP($V2,$R$2:$T$9,W$1,0),0)","v":0},null,{"$f":"INT(W8/10)*10","v":0},"Pts","$$$$"]
[null,{"$f":"Integrantes!B3","v":"PRESENTACIÓN DE PROYECTOS \nDE INVESTIGACIÓN"},null,null,null,null,null,{"$f":"General!$H$2","v":"Fecha de Emisión: 2019/03/18"},{"$f":"General!$I$2","v":"IN-IV-F-14"},null,null,null,null,"Limite Grupo","Limite Producto","Limite Convo",null,"A",70,0,null,{"$f":"General!I23","v":""},{"$f":"IFERROR(VLOOKUP($V3,$R$2:$T$9,W$1,0),0)","v":0},null,{"$f":"IF($Y$2>Z3,0,1)","v":1},39,15]
[null,null,null,null,null,null,null,{"$f":"General!$H$3","v":"Revisión N°:\n4"},{"$f":"\"Página \"&$A$1&\" de \"&Dt_TPG","v":"Página 9 de 11"},null,null,null,"Mayor Grupo",{"$f":"MAX($W$2:$W$5)","v":0},{"$f":"VLOOKUP(1,$Y$2:$AA$10,3,0)","v":15},{"$f":"IF(H10=\"IMP\",200,70)","v":70},null,"A1",70,0,null,{"$f":"General!I27","v":""},0,null,{"$f":"IF($Y$2>Z4,0,1)","v":1},49,30]
[null,null,null,null,null,null,null,null,null,null,null,null,null,null,null,null,null,"B",60,0,null,null,0,null,1,59,50]
[null,null,null,null,null,null,null,null,null,null,null,null,1000000,{"$f":"N4*M6","v":0},{"$f":"M6*O4","v":15000000},{"$f":"M6*P4","v":70000000},null,"C",50,0,null,null,null,null,1,79,60]
[null,"T","Título de la Propuesta :",{"$f":"General!B9","v":"Formato: actualizado a 08 Abr 2022"},null,null,null,null,null,null,null,null,null,null,null,null,null,"R",30,0,null,null,null,null,1,80,70]
[null,"L","Líder responsable",{"$f":"General!C10","v":"Luis Alexander Chirivi"},null,null,"Código VICEIN:",{"$f":"CLEAN(General!H7)","v":""},null,null,null,null,null,null,null,null,null,"NR",15,0,null,"Pts",{"$f":"V_Max","v":0},null,{"$f":"IF($Y$2<Z8,0,1)","v":0},90,70]
[null,null,null,null,null,null,null,null,null,null,null,null,null,null,null,null,null,"NA",0,0]
["12.-","Presupuesto rubro personal asocidado a la propuesta",null,null,null,null,{"$f":"V_Max","v":0},{"$f":"Cel_TP","v":"INV"},{"$f":"Gp_Max","v":0}]
[null,null,null,null,null,null,null,null,"1,67…"]
[null,"a.","Personal de planta o ocasional que integra al proyecto de investigación.",null,null,null,null,"Valores de Contrapartida."]
[{"$f":"ROW()","v":13},"N°","Sueldo Neto","Factor ","Tipo de Vinculo UMNG","Numero de meses ","Número Horas / Semanal","Valor Final","Identificación",4,null,"*tabla de consolidacion por año para proyectos IMP"]
[null,{"$f":"ROW()-$A$13","v":1},null,{"$f":"I11","v":"1,67…"},{"$f":"INDIRECT($I$24&\"E\"&$J14+1,1)","v":0},{"$f":"INDIRECT($I$24&\"G\"&$J14,1)","v":12},{"$f":"INDIRECT($I$24&\"H\"&$J14,1)","v":0},{"$f":"IFERROR(INT(((C14*F14)/40)*G14*$I$11),0)","v":0},{"$f":"INDIRECT($I$24&\"C\"&$J14,1)","v":0},9,null,0,"Tipo Vinculo UMNG","Año1","Año2",null,"Validación Presupuestal"]
[null,{"$f":"ROW()-$A$13","v":2},null,{"$f":"D14","v":"1,67…"},0,12,0,{"$f":"IFERROR(INT(((C15*F15)/40)*G15*$I$11),0)","v":0},0,{"$f":"J14+$J$13","v":13},null,1,"Doc. Carrera TC",{"$f":"(SUMIF($E$14:$E$23,$M15,$H$14:$H$23)/2)","v":0},{"$f":"N15","v":0},null,{"$f":"\"Validación de \"&M38","v":"Validación de (Au.) -Auxiliar Pregrado"},null,"Ajustado por adenda no 2"]
[null,3,null,{"$f":"D15","v":"1,67…"},0,0,0,0,0,{"$f":"J15+$J$13","v":17},null,2,"Doc. Carrera MT",{"$f":"(SUMIF($E$14:$E$23,$M16,$H$14:$H$23)/2)","v":0},{"$f":"N16","v":0},null,"Parte","Cntidad","por uno solo","Debe ser","Error de Asistente"]
[null,4,null,"1,67…",0,0,0,0,0,21,null,3,"Doc. Ocasional",{"$f":"SUMIF($E$14:$E$23,$M17,$H$14:$H$23)","v":0},0,null,"No de AU Preg",{"$f":"COUNTIF($E$29:$E$44,$M$38)","v":0},null,1,0,null,null,25,0.1,null,0.05]
[null,5,null,"1,67…",0,0,0,0,0,25,null,1,"Contrapartida Facultad  IMP:",{"$f":"SUM(N15:N17)","v":0},{"$f":"SUM(O15:O17)","v":0},null,"No Horas",{"$f":"SUMIF($E$29:$E$43,$M$38,G29:G43)","v":0},{"$f":"IFERROR(R18/R17,0)","v":0},20,{"$f":"IF(S18<=T18,0,1)","v":0},null,null,50,0.1,null,0.1]
[null,6,null,"1,67…",0,0,0,0,0,29,null,2,"Contrapartida Facultad  INV:",{"$f":"SUM(N15:O17)","v":0},null,null,"No Meses",{"$f":"SUMIF($E$29:$E$43,$M$38,F29:F43)","v":0},{"$f":"IFERROR(R19/R17,0)","v":0},6,{"$f":"IF(S19=T19,0,1)","v":1},null,null,75,0.1,null,0.15]
[null,7,null,"1,67…",0,0,0,0,0,33,null,null,null,null,null,null,null,null,null,"Si  es Mas de 1 tiene problema en Auxiliar de pregrado --->>",{"$f":"SUM(U17:U19)","v":1},null,null,100,0.1,null,0.15]
[null,8,null,"1,67…",0,0,0,0,0,37,null,null,null,null,null,null,"Estiimulo a estudiantes",null,{"$f":"INT(N2/1000000)","v":15},{"$f":"SUM(R36:R40)","v":0},{"$f":"T21/N2","v":0},null,null,250,0.1,null,0.15]
[null,9,null,"1,67…",0,0,0,0,0,41,null,null,null,null,null,null,"Limite inferior de estimulo a estudiantes",null,null,{"$f":"(S21*1000000)*U22","v":1350000},0.09]
[null,10,null,"1,67…",0,0,0,0,0,45,null,null,null,null,null,null,null,null,null,{"$f":"ABS(T22-T21)","v":1350000}]
[null,null,"Sumatoria del calculo de personal de planta \"Valor contrapartida Facultades\":Diligenciado VICEIN",null,null,null,null,{"$f":"IFERROR(INT(SUBTOTAL(109,H14:H23)),0)","v":0},"Integrantes!",null,null,null,"Incremento al salario"]
[null,null,null,null,null,null,null,null,null,null,null,null,0,null,null,{"$f":"(J26/6)/6","v":0}]
[null,"b. ","Asistentes externos o temporales contratados OPS y Estimulo Estudiantes.",null,null,null,null,null,null,null,{"$f":"IFERROR(VLOOKUP($E26,Dt_OPS,3,0)/10,0)","v":0},null,"Valor SMLV","Max Mes"]
[null,">","Salario  Mínimo Legal Vigente (SMIV) : ",null,null,1000000,null,null,null,null,null,null,{"$f":"F27*(1+M25)","v":1000000},{"$f":"INT(Integrantes!J6/10)*10","v":10}]
[]
[{"$f":"ROW()","v":29},"No","Valor mensual","Factor Salarial","Tipo de vinculación",{"$f":"\"Numero de meses\"","v":"Numero de meses"},"Número Horas / Semanal","Valor total","Valores  de entidades externas","Máximos","(Au.) ","No","Tipo","Valor total del contrato (10 mes)","SMMLV por 10 Meses","Valor mes contrato","Hay","Hay en $",null,null,null,"Valor mes contrato",null,"Va desde hasta","Salarios Minimos",null,"Figuras","arranca desde","Maximo Factor"]
[null,{"$f":"ROW()-$A$29","v":1},{"$f":"IFERROR(H30/F30,0)","v":0},{"$f":"IFERROR(VLOOKUP($E30,Dt_OPS,3,0)/10,0)","v":0},null,10,"No Aplica",{"$f":"INT(IF($E30=$M$38,J30,$F$27*D30*F30))","v":0},null,{"$f":"IF($E30=$M$38,K30,IFERROR(VLOOKUP($E30,$M$29:$O$40,2,0),0)*IF($H$10=\"IMP\",2,1))","v":0},{"$f":"IFERROR(IF(FIND($K$29,$E30,1)=1,VLOOKUP($E30,$M$38:$AC$40,2,0),0),0)/IF($E30=$M$38,10,1)","v":0},1,"(A.I.) -Técnico",{"$f":"$M$27*O30","v":10000000},10,{"$f":"N30/10","v":1000000},{"$f":"COUNTIF($E$29:$E$44,$M30)","v":0},{"$f":"SUMIF($E$30:$E$44,$M30,$H$30:$H$44)","v":0},null,null,null,1475434,null,{"$f":"\"Y\"&ROW()","v":"Y30"},6,null,{"$f":"E30","v":0},{"$f":"IFERROR(VLOOKUP($AA30,$M$29:$S$40,7,0)/10,0)","v":0},{"$f":"IFERROR(VLOOKUP($AA30,$M$29:$R$40,3,0)/IF($AA30=$M$38,6,10),0)","v":0}]
[null,{"$f":"ROW()-$A$29","v":2},{"$f":"IFERROR(H31/F31,0)","v":0},0,null,10,"No Aplica",{"$f":"INT(IF($E31=$M$38,J31,$F$27*D31*F31))","v":0},null,{"$f":"IF($E31=$M$38,K31,IFERROR(VLOOKUP($E31,$M$29:$O$40,2,0),0)*IF($H$10=\"IMP\",2,1))","v":0},{"$f":"IFERROR(IF(FIND($K$29,$E31,1)=1,VLOOKUP($E31,$M$38:$AC$40,2,0),0),0)/IF($E31=$M$38,10,1)","v":0},2,"(A.I.) -Profesional",15000000,15,1500000,0,0,null,null,null,2582009.5,null,{"$f":"\"Y\"&ROW()","v":"Y31"},{"$f":"Y30-0.5","v":5.5},null,{"$f":"E31","v":0},{"$f":"IFERROR(VLOOKUP($AA31,$M$29:$S$40,7,0)/10,0)","v":0},{"$f":"IFERROR(VLOOKUP($AA31,$M$29:$R$40,3,0)/IF($AA31=$M$38,6,10),0)","v":0}]
[null,3,0,0,null,10,"No Aplica",0,null,0,0,3,"(A.I.) -Profesional especilizado",18000000,18,1800000,0,0,null,null,null,2950868,null,"Y32",{"$f":"Y31-0.5","v":5},null,0,0,0]
[null,4,0,0,null,10,"No Aplica",0,null,0,0,4,"(A.I.) -Profesional magister",20000000,20,2000000,0,0,null,null,null,3319726.5,null,"Y33",4.5,null,0,0,0]
[null,5,0,0,null,10,"No Aplica",0,null,0,0,5,"(A.I.) -Profesional doctorado",30000000,30,3000000,0,0,null,null,null,4057443.5,null,"Y34",4,null,0,0,0]
[null,6,0,0,null,10,"No Aplica",0,null,0,0,6,"(J.I)  -Joven investigador",20000000,20,2000000,0,0,null,null,null,2582009.5,null,"Y35",3.5,null,0,0,0]
[null,7,0,0,null,10,"No Aplica",0,null,0,0,7,"(A.G) -Asistente graduado Mg.",25000000,25,2500000,0,0,null,null,null,3688585,null,"Y36",3,null,0,0,0]
[null,8,0,0,null,10,"No Aplica",0,null,0,0,8,"(A.G) -Asistente graduado Dr.",45000000,45,4500000,0,0,null,null,null,5164019,null,"Y37",2.5,null,0,0,0]
[null,9,0,0,null,10,"No Aplica",0,null,0,0,9,"(Au.) -Auxiliar Pregrado",30000000,30,{"$f":"F27*3","v":3000000},0,0,null,null,null,"NA",null,"Y38",2,null,0,0,0]
[null,10,0,0,null,10,"No Aplica",0,null,0,0,10,"(Au.) -Auxiliar Postgrado Mg.",15000000,15,{"$f":"N39/5","v":3000000},0,0,null,null,null,"NA",null,"Y39",1.5,null,{"$f":"E39","v":0},0,0]
[null,11,0,0,null,10,"No Aplica",0,null,0,0,11,"(Au.) -Auxiliar Postgrado Dr.",25000000,25,{"$f":"N40/5","v":5000000},0,0,null,null,null,"NA",null,"Y40",1,null,{"$f":"E40","v":0},0,0]
[null,12,0,0,null,10,"No Aplica",0,null,0,0,null,null,"Salario 12 meses",null,null,null,null,null,null,null,null,null,"Y41",0.5,null,{"$f":"E41","v":0},0,0]
[null,13,0,0,null,10,"No Aplica",0,null,0,0,null,null,null,null,null,null,null,null,null,null,null,null,null,null,null,{"$f":"E42","v":0},0,0]
[null,14,0,0,null,0,"No Aplica",0,null,0,0,null,"Joven investigador Colciencias",{"$f":"M27*3*12","v":36000000},null,null,null,null,null,null,null,null,null,null,null,null,{"$f":"E43","v":0},0,0]
[null,{"$f":"14-COUNTIF(E30:E43,\"\")","v":0},"Sumatoria del cálculo de OPS  \"Valor financiado Vicein\" en rubro de (Personal):",null,null,null,{"$f":"IF(H44>N2,\"Esta superando el total de presupuesto\",\"\")","v":""},{"$f":"IFERROR(INT(SUM(H30:H43)),0)","v":0},0,{"$f":"IFERROR(VLOOKUP($E44,$M$29:$O$40,2,0),0)*IF($H$10=\"IMP\",2,1)","v":0}]
[null,null,null,null,null,null,null,null,null,null,null,null,{"$f":"VLOOKUP(\"Presupuesto\",DT_Errores,3,0)","v":"Error : 004.- No cumple mínimo exigido para el rubro de estímulo a estudiantes. Pendiente asignar al rubro $ 1.350.000"}]
["13.-","Presupuesto detalle de Plan de compras general   .- La siguiente tabla debe diligenciarse manualmente ya que no arrastra informacion de  otros campos"]
[]
[null,{"$f":"IFERROR(\"Nota : \"&VLOOKUP(I10,Dt_Limite,3,0),\" \")","v":" "},null,null,null,null,null,null,null,null,null,null,null,"Total Solicitado :===>",null,{"$f":"IF(G87=0,P50,G87)","v":15000000}]
[null,null,null,null,null,null,null,null,null,null,null,"Consulte sobre los items"]
[{"$f":"ROW()","v":50},"No","Rubro / Destino","Año de Vigencia","Descripción (Entidad- ",null,"Finaciación Vicein $",{"$f":"G94","v":"$ Contrapartida Facultad"},"Contrapartida Otros $",null,null,"No","Nombre Rubro","Rubro","Limite%",{"$f":"N2","v":15000000},"Solicitado $Vicein","Limites de topes"]
[null,{"$f":"ROW()-$A$50","v":1},"Personal",1,"Contrapartida definida por VICEIN (No Habilitado)",null,0,{"$f":"IF(H10=\"INV\",N19,N18)","v":0},null,null,null,{"$f":"ROW()-50","v":1},"Personal",611401,1,{"$f":"SUMIF($C$50:$C$86,$M51,$G$50:$G$86)","v":0},{"$f":"P51/$P$50","v":0},{"$f":"($P$50/100)*O51*100","v":15000000}]
[null,{"$f":"ROW()-$A$50","v":2},null,1,null,null,null,null,null,null,null,{"$f":"ROW()-50","v":2},"Equipos",632,0.15,0,{"$f":"P52/$P$48","v":0},{"$f":"($P$48/100)*O52*100","v":2250000}]
[null,3,null,1,null,null,null,null,null,null,null,3,"Equipos en proceso",632,1,0,0,15000000]
[null,4,null,1,null,null,null,null,null,null,null,4,"Software",612102,1,0,0,15000000]
[null,5,null,1,null,null,null,null,null,null,null,5,"Materiales",612101,1,0,0,15000000]
[null,6,null,1,null,null,null,null,null,null,null,6,"Materiales (Papelería)",612101,0.01,0,{"$f":"P56/$P$48","v":0},{"$f":"($P$48/100)*O56*100","v":150000}]
[null,7,null,1,null,null,null,null,null,null,null,7,"Salidas de Campo",612104,0.1,0,{"$f":"P57/$P$48","v":0},1500000]
[null,8,null,1,null,null,null,null,null,null,null,8,"Servicios Técnicos",612103,1,0,0,15000000]
[null,9,null,1,null,null,null,null,null,null,null,9,"Recursos Biblograficos",633,1,0,0,15000000]
[null,10,null,1,null,null,null,null,null,null,null,10,"Estímulo a estudiantes Pregrado","Pendiente",1,0,{"$f":"P60/$P$48","v":0},{"$f":"($P$48/100)*O60*100","v":15000000}]
[null,11,null,1,null,null,null,null,null,null,null,11,"Estímulo a estudiantes Posgrado","Pendiente",1,0,0,15000000]
[null,12,null,1,null,null,null,null,null,null,null,12,"Movilidad",635020,0.05,0,{"$f":"P62/$P$48","v":0},{"$f":"($P$48/100)*O62*100","v":750000}]
[null,13,null,1,null,null,null,null,null,null,null,13,"Licencias por suscripción","Pendiente",1,0,0,15000000]
[null,14,null,1,null,null,null,null,null,null,null,14,"Viajes",null,null,null,0]
[null,15,null,1,null,null,null,null,null,null,null,15,"Mantenimiento",null,null,null,0]
[null,16,null,1,null,null,null,null,null,null,null,16,"Administración",null,null,null,0]
[null,17,null,1,null,null,null,null,null,null,null,17,"Construcciones",null,null,null,0]
[null,18,null,1,null,null,null,null,null,null,null,18,"Otros Gastos",null,null,null,0]
[null,19,null,1,null,null,null,null,null,null,null,null,"Si cambio"]
[null,20,null,1]
[null,21,null,1]
[null,22,null,1]
[null,23,null,1,null,null,null,null,null,null,null,"Cuadro de Validaciones Prespuestales"]
[null,24,null,1,null,null,null,null,null,null,null,"c","Descripcion","Descrip 2","Detalles","Valor 1","Valor 2"]
[null,25,null,1,null,null,null,null,null,null,null,"1A","Personal de estimulo a estudiantes",null,"Sumatoria :=>",{"$f":"SUM(P60:P61)","v":0},{"$f":"P75/P76","v":0}]
[null,26,null,1,null,null,null,null,null,null,null,"1B","Personal de estimulo a estudiantes",null,"Minimo por tope",{"$f":"N2*0.09","v":1350000},{"$f":"P76-P75","v":1350000}]
[null,27,null,1,null,null,null,null,null,null,null,"2a","Diferencias personal OPS o Contratos y plan compras",null,"se debe cargar todo",{"$f":"INT(H44)","v":0},{"$f":"INT(SUM(P51,P60:P61))","v":0},{"$f":"P77-Q77","v":0}]
[null,28,null,1,null,null,null,null,null,null,null,"3a","Maximo en Equipos",null,null,{"$f":"P52-R52","v":-2250000},{"$f":"Q52","v":0}]
[null,29,null,1,null,null,null,null,null,null,null,"4a","Maximo en Papaleria",null,null,{"$f":"P56-R56","v":-150000},{"$f":"Q56","v":0}]
[null,30,null,1,null,null,null,null,null,null,null,"5a","Maximo en salida de campo",null,null,{"$f":"P57-R57","v":-1500000},{"$f":"Q57","v":0}]
[null,31,null,1,null,null,null,null,null,null,null,"6a","Maximo en Movilidad",null,null,{"$f":"P62-R62","v":-750000},{"$f":"Q62","v":0}]
[null,32,null,1,null,null,null,null,null,null,null,"7a","Diferencia entre Pregrado - y Postgrado",null,null,{"$f":"SUM(R39:R40)","v":0},{"$f":"P61","v":0}]
[null,33,null,1]
[null,34,null,1]
[null,35,null,1]
[]
[null,null,"Sumatoria general de plan de compras :",null,null,{"$f":"SUM(G87:I87)","v":0},{"$f":"SUM(G88:G89)","v":0},{"$f":"SUM(H88:H89)","v":0},{"$f":"SUM(I88:I89)","v":0}]
[null,null,null,1,{"$f":"\"Total Presupuesto Año 1 \"&IF(H10=\"IMP\",\"IMP\",\"\")&\":\"","v":"Total Presupuesto Año 1 :"},null,{"$f":"IF(Cel_TP=\"IMP\",SUMIF($D$51:$D$86,$D88,G$51:G$86),SUM(G$51:G$86))-S74","v":0},{"$f":"SUMIF($D$51:$D$86,$D88,H$51:H$86)","v":0},{"$f":"SUMIF($D$51:$D$86,$D88,I$51:I$86)","v":0}]
[null,null,null,2,"Total Presupuesto Año 2 (IMP) :",null,{"$f":"IF(H10=\"INV\",0,SUMIF($D$51:$D$86,$D89,G$51:G$86))","v":0},{"$f":"IF(H10=\"INV\",0,SUMIF($D$51:$D$86,$D89,H$51:H$86))","v":0},{"$f":"IF(H10=\"INV\",0,SUMIF($D$51:$D$86,$D89,I$51:I$86))","v":0}]
[null,null,"Firma :_______________",null,{"$f":"IF(G90>0,\"Presupuesto por definir.\",\" Error  - Supero el presupuesto en : \")","v":"Presupuesto por definir."},null,{"$f":"E141-G87","v":15000000}]
[null,null,null,{"$f":"IF(H10=\"INV\",1,2)","v":1},"Límite de presupuesto VICEIN por año :",null,{"$f":"IFERROR(IF($H$10=\"IMP\",$P$6/2,$N$2),\"0\")","v":15000000}]
[]
[]
[null,"No","Rubro","%","Porcentaje","$ Financiación solicitada a VICEIN","$ Contrapartida Facultad","$ Contrapartida Externa","$ Total Rubro",0]
[null,1,{"$f":"C97","v":"Personal"},{"$f":"IFERROR(F95/F97,0)","v":0},{"$f":"D95","v":0},{"$f":"SUMIFS(G$50:G$86,$C$50:$C$86,$C95,$D$50:$D$86,$J95)","v":0},0,0,{"$f":"SUM(F95:H95)","v":0},1,{"$f":"IFERROR(VLOOKUP($B93,$L$50:$Q$68,4,0),0)","v":0}]
[null,1,{"$f":"C97","v":"Personal"},{"$f":"IFERROR(F95/F97,0)","v":0},0,0,0,0,0,2,null,null,null,null,null,null,null,null,null,{"$f":"SUM(I141)","v":0},{"$f":"S96-T96","v":0}]
[null,1,{"$f":"M51","v":"Personal"},{"$f":"IFERROR(VLOOKUP($B97,Dt_TblaPresu,6,0),0)","v":0},0,{"$f":"SUM(F95:F96)","v":0},{"$f":"SUM(G95:G96)","v":0},{"$f":"SUM(H95:H96)","v":0},0,3,{"$f":"IFERROR(VLOOKUP($B95,$L$50:$Q$68,4,0),0)","v":1}]
[null,{"$f":"B95+1","v":2},{"$f":"C100","v":"Equipos"},{"$f":"IFERROR(F98/F100,0)","v":0},0,{"$f":"SUMIFS(G$50:G$86,$C$50:$C$86,$C98,$D$50:$D$86,$J98)","v":0},0,0,0,{"$f":"J95","v":1},{"$f":"IFERROR(VLOOKUP($B96,$L$50:$Q$68,4,0),0)","v":1}]
[null,{"$f":"B96+1","v":2},{"$f":"C100","v":"Equipos"},{"$f":"IFERROR(F98/F100,0)","v":0},0,0,0,0,0,{"$f":"J96","v":2},1]
[null,2,{"$f":"M52","v":"Equipos"},{"$f":"IFERROR(VLOOKUP($B100,$L$50:$Q$68,6,0),0)","v":0},0,{"$f":"SUM(F98:F99)","v":0},{"$f":"SUM(G98:G99)","v":0},{"$f":"SUM(H98:H99)","v":0},0,{"$f":"J97","v":3},0.15]
[null,3,{"$f":"C103","v":"Equipos en proceso"},{"$f":"IFERROR(F101/F103,0)","v":0},0,{"$f":"SUMIFS(G$50:G$86,$C$50:$C$86,$C101,$D$50:$D$86,$J101)","v":0},0,0,0,1,0.15]
[null,3,{"$f":"C103","v":"Equipos en proceso"},{"$f":"IFERROR(F101/F103,0)","v":0},0,0,0,0,0,2,0.15]
[null,3,{"$f":"M53","v":"Equipos en proceso"},{"$f":"IFERROR(VLOOKUP($B103,$L$50:$Q$68,6,0),0)","v":0},0,{"$f":"SUM(F101:F102)","v":0},{"$f":"SUM(G101:G102)","v":0},{"$f":"SUM(H101:H102)","v":0},0,3,1]
[null,4,{"$f":"C106","v":"Software"},{"$f":"IFERROR(F104/F106,0)","v":0},0,{"$f":"SUMIFS(G$50:G$86,$C$50:$C$86,$C104,$D$50:$D$86,$J104)","v":0},0,0,0,1,1]
[null,4,{"$f":"C106","v":"Software"},{"$f":"IFERROR(F104/F106,0)","v":0},0,0,0,0,0,2,1]
[null,4,{"$f":"M54","v":"Software"},{"$f":"IFERROR(VLOOKUP($B106,$L$50:$Q$68,6,0),0)","v":0},0,{"$f":"SUM(F104:F105)","v":0},{"$f":"SUM(G104:G105)","v":0},{"$f":"SUM(H104:H105)","v":0},0,3,1]
[null,5,{"$f":"C109","v":"Materiales"},{"$f":"IFERROR(F107/F109,0)","v":0},0,{"$f":"SUMIFS(G$50:G$86,$C$50:$C$86,$C107,$D$50:$D$86,$J107)","v":0},0,0,0,1,1]
[null,5,{"$f":"C109","v":"Materiales"},{"$f":"IFERROR(F107/F109,0)","v":0},0,0,0,0,0,2,1]
[null,5,{"$f":"M55","v":"Materiales"},{"$f":"IFERROR(VLOOKUP($B109,$L$50:$Q$68,6,0),0)","v":0},0,{"$f":"SUM(F107:F108)","v":0},{"$f":"SUM(G107:G108)","v":0},{"$f":"SUM(H107:H108)","v":0},0,3,1]
[null,6,{"$f":"C112","v":"Materiales (Papelería)"},{"$f":"IFERROR(F110/F112,0)","v":0},0,{"$f":"SUMIFS(G$50:G$86,$C$50:$C$86,$C110,$D$50:$D$86,$J110)","v":0},0,0,0,1,1]
[null,6,{"$f":"C112","v":"Materiales (Papelería)"},{"$f":"IFERROR(F110/F112,0)","v":0},0,0,0,0,0,2,1]
[null,6,{"$f":"M56","v":"Materiales (Papelería)"},{"$f":"IFERROR(VLOOKUP($B112,$L$50:$Q$68,6,0),0)","v":0},0,{"$f":"SUM(F110:F111)","v":0},{"$f":"SUM(G110:G111)","v":0},{"$f":"SUM(H110:H111)","v":0},0,3,0.01]
[null,7,{"$f":"C115","v":"Salidas de Campo"},{"$f":"IFERROR(F113/F115,0)","v":0},0,{"$f":"SUMIFS(G$50:G$86,$C$50:$C$86,$C113,$D$50:$D$86,$J113)","v":0},0,0,0,1,0.01]
[null,7,{"$f":"C115","v":"Salidas de Campo"},{"$f":"IFERROR(F113/F115,0)","v":0},0,0,0,0,0,2,0.01]
[null,7,{"$f":"M57","v":"Salidas de Campo"},{"$f":"IFERROR(VLOOKUP($B115,$L$50:$Q$68,6,0),0)","v":0},0,{"$f":"SUM(F113:F114)","v":0},{"$f":"SUM(G113:G114)","v":0},{"$f":"SUM(H113:H114)","v":0},0,3,0.1]
[null,8,{"$f":"C118","v":"Servicios Técnicos"},{"$f":"IFERROR(F116/F118,0)","v":0},0,{"$f":"SUMIFS(G$50:G$86,$C$50:$C$86,$C116,$D$50:$D$86,$J116)","v":0},0,0,0,1,0.1]
[null,8,{"$f":"C118","v":"Servicios Técnicos"},{"$f":"IFERROR(F116/F118,0)","v":0},0,0,0,0,0,2,0.1,null,"La siguiente tabla de plan de compras debe diligenciarse manualmente ya que no arrastra informacion de otros campos exceptuando la parte de contrapartida"]
[null,8,{"$f":"M58","v":"Servicios Técnicos"},{"$f":"IFERROR(VLOOKUP($B118,$L$50:$Q$68,6,0),0)","v":0},0,{"$f":"SUM(F116:F117)","v":0},{"$f":"SUM(G116:G117)","v":0},{"$f":"SUM(H116:H117)","v":0},0,3,1]
[null,9,{"$f":"C121","v":"Recursos Biblograficos"},{"$f":"IFERROR(F119/F121,0)","v":0},0,{"$f":"SUMIFS(G$50:G$86,$C$50:$C$86,$C119,$D$50:$D$86,$J119)","v":0},0,0,0,1,1]
[null,9,{"$f":"C121","v":"Recursos Biblograficos"},{"$f":"IFERROR(F119/F121,0)","v":0},0,0,0,0,0,2,1]
[null,9,{"$f":"M59","v":"Recursos Biblograficos"},{"$f":"IFERROR(VLOOKUP($B121,$L$50:$Q$68,6,0),0)","v":0},0,{"$f":"SUM(F119:F120)","v":0},{"$f":"SUM(G119:G120)","v":0},{"$f":"SUM(H119:H120)","v":0},0,3,1]
[null,10,{"$f":"C124","v":"Estímulo a estudiantes Pregrado"},{"$f":"IFERROR(F122/F124,0)","v":0},{"$f":"D122","v":0},{"$f":"SUMIFS(G$50:G$86,$C$50:$C$86,$C122,$D$50:$D$86,$J122)","v":0},0,0,{"$f":"SUM(F122:H122)","v":0},{"$f":"J119","v":1},1]
[null,10,{"$f":"C124","v":"Estímulo a estudiantes Pregrado"},{"$f":"IFERROR(F122/F124,0)","v":0},0,0,0,0,{"$f":"SUM(F123:H123)","v":0},2,1]
[null,10,{"$f":"M60","v":"Estímulo a estudiantes Pregrado"},{"$f":"IFERROR(VLOOKUP($B122,$L$50:$Q$68,6,0),0)","v":0},{"$f":"D124","v":0},{"$f":"SUM(F122:F123)","v":0},{"$f":"SUM(G122:G123)","v":0},{"$f":"SUM(H122:H123)","v":0},{"$f":"SUM(F124:H124)","v":0},3,1]
[null,11,{"$f":"C127","v":"Estímulo a estudiantes Posgrado"},{"$f":"IFERROR(F125/F127,0)","v":0},0,{"$f":"SUMIFS(G$50:G$86,$C$50:$C$86,$C125,$D$50:$D$86,$J125)","v":0},0,0,0,1,1]
[null,11,{"$f":"C127","v":"Estímulo a estudiantes Posgrado"},{"$f":"IFERROR(F125/F127,0)","v":0},0,0,0,0,0,2,1]
[null,11,{"$f":"M61","v":"Estímulo a estudiantes Posgrado"},{"$f":"IFERROR(VLOOKUP($B125,$L$50:$Q$68,6,0),0)","v":0},{"$f":"D127","v":0},{"$f":"SUM(F125:F126)","v":0},{"$f":"SUM(G125:G126)","v":0},{"$f":"SUM(H125:H126)","v":0},0,3,1]
[null,12,{"$f":"C130","v":"Movilidad"},{"$f":"IFERROR(VLOOKUP($B126,$L$50:$Q$68,6,0),0)","v":0},0,{"$f":"SUMIFS(G$50:G$86,$C$50:$C$86,$C128,$D$50:$D$86,$J128)","v":0},0,0,{"$f":"SUM(F128:H128)","v":0},{"$f":"J119","v":1},1]
[null,11,{"$f":"C130","v":"Movilidad"},0,0,0,0,0,{"$f":"SUM(F129:H129)","v":0},2,1]
[null,11,{"$f":"M62","v":"Movilidad"},0,{"$f":"D130","v":0},{"$f":"SUM(F128:F129)","v":0},{"$f":"SUM(G128:G129)","v":0},{"$f":"SUM(H128:H129)","v":0},{"$f":"SUM(F130:H130)","v":0},3,0.05]
[null,13,{"$f":"C133","v":"Licencias por suscripción"},0,0,{"$f":"SUMIFS(G$50:G$86,$C$50:$C$86,$C131,$D$50:$D$86,$J131)","v":0},0,0,0,1,1]
[null,12,{"$f":"C133","v":"Licencias por suscripción"},0,0,0,0,0,0,2,1]
[null,12,{"$f":"M63","v":"Licencias por suscripción"},0,0,{"$f":"SUM(F131:F132)","v":0},{"$f":"SUM(G131:G132)","v":0},{"$f":"SUM(H131:H132)","v":0},0,3,1]
[null,13,"Viajes",null,null,{"$f":"SUMIFS(G$50:G$86,$C$50:$C$86,$C134,$D$50:$D$86,$J134)","v":0},{"$f":"SUMIFS(H$50:H$86,$C$50:$C$86,$C134)","v":0},{"$f":"SUMIFS(I$50:I$86,$C$50:$C$86,$C134)","v":0},0,{"$f":"J133","v":3}]
[null,14,"Mantenimiento",null,null,{"$f":"SUMIFS(G$50:G$86,$C$50:$C$86,$C135,$D$50:$D$86,$J135)","v":0},{"$f":"SUMIFS(H$50:H$86,$C$50:$C$86,$C135)","v":0},0,0,{"$f":"J134","v":3}]
[null,15,"Administración",null,null,{"$f":"SUMIFS(G$50:G$86,$C$50:$C$86,$C136,$D$50:$D$86,$J136)","v":0},0,0,0,{"$f":"J135","v":3}]
[null,16,"Construcciones",null,null,{"$f":"SUMIFS(G$50:G$86,$C$50:$C$86,$C137,$D$50:$D$86,$J137)","v":0},0,0,0,{"$f":"J136","v":3}]
[null,17,"Otros Gastos",null,null,{"$f":"SUMIFS(G$50:G$86,$C$50:$C$86,$C138,$D$50:$D$86,$J138)","v":0},0,0,0,{"$f":"J137","v":3}]
[null,"T1","$ Total General (Año 1)",null,null,{"$f":"SUMIFS(F$95:F$138,$J$95:$J$138,$J139)","v":0},{"$f":"SUMIFS(G$95:G$138,$J$95:$J$138,$J139)+SUM(G134:G138)","v":0},{"$f":"SUMIFS(H$95:H$138,$J$95:$J$138,$J139)","v":0},0,1]
[null,"T2","$ Total General (Año 2)",null,null,{"$f":"SUMIFS(F$95:F$138,$J$95:$J$138,$J140)","v":0},{"$f":"SUMIFS(G$95:G$138,$J$95:$J$138,$J140)","v":0},{"$f":"SUMIFS(H$95:H$138,$J$95:$J$138,$J140)","v":0},0,2]
[null,"T3",{"$f":"\"TotalesPlan compras  -  (máximo):\"","v":"TotalesPlan compras  -  (máximo):"},null,{"$f":"N2","v":15000000},{"$f":"SUMIFS(F$95:F$138,$J$95:$J$138,$J141)","v":0},{"$f":"SUMIFS(G$95:G$138,$J$95:$J$138,$J141)","v":0},{"$f":"SUMIFS(H$95:H$138,$J$95:$J$138,$J141)","v":0},0,3]
[]
[null,"Nombre Institución Externa :",null,null,{"$f":"IF(General!I30>0,CLEAN(K143),\" \")","v":" "},null,null,null,null,{"$f":"General!I30","v":0},{"$f":"General!O63","v":""}]
[]
[null,null,null,"Propuesta:",{"$f":"D7","v":"Formato: actualizado a 08 Abr 2022"}]
[]
[null,null,"Firma de responsable"]
[]
[]
[]
[]
[null,null,"*Pueden  Ocultar las Filas que no se utilicen ( Favor no eliminar filas)."]
[null,null,"** en el caso de necesitar mas filas en el plan de compras (Comunicarse con la VICEIN para que se pueda realizar el ajuste)"]

{"sheet":"Bibliografía","index":11,"n_rows":39,"n_cols":8,"rows_kept":39,"cut":false,"hidden":false,"merged":[[34,2,34,4],[23,2,23,4],[24,2,24,4],[25,2,25,4],[26,2,26,4],[27,2,27,4],[28,2,28,4],[29,2,29,4],[30,2,30,4],[31,2,31,4],[32,2,32,4],[33,2,33,4],[22,2,22,4],[11,2,11,4],[12,2,12,4],[13,2,13,4],[14,2,14,4],[15,2,15,4],[16,2,16,4],[17,2,17,4],[18,2,18,4],[19,2,19,4],[20,2,20,4],[21,2,21,4],[10,2,10,4],[1,2,2,2],[6,2,6,4],[7,2,7,4],[8,2,8,4],[9,2,9,4]]}
[12,null,null,null,null,null,"*Pueden  Ocultar las Filas que no se utilicen."]
[null,null,{"$f":"General!B2","v":"PRESENTACIÓN DE PROYECTOS \nDE INVESTIGACIÓN"},{"$f":"General!$H$2","v":"Fecha de Emisión: 2019/03/18"},{"$f":"General!$I$2","v":"IN-IV-F-14"}]
[null,null,null,{"$f":"General!$H$3","v":"Revisión N°:\n4"},{"$f":"\"Página \"&$A$1&\" de \"&Dt_TPG","v":"Página 12 de 11"},null,{"$f":"SUM(G7:G3500)","v":0},"<== Total de palabras"]
[]
["15.-","#","Bibliografía de la propuesta.",null,null,null,"Largo"]
[]
[null,{"$f":"ROW()-6","v":1},null,null,null,null,{"$f":"IF(C7=\"\",0,LEN(TRIM(C7))-LEN(SUBSTITUTE(TRIM(C7),\" \",\"\"))+1)","v":0}]
[null,{"$f":"ROW()-6","v":2},null,null,null,null,{"$f":"IF(C8=\"\",0,LEN(TRIM(C8))-LEN(SUBSTITUTE(TRIM(C8),\" \",\"\"))+1)","v":0}]
[null,3,null,null,null,null,0]
[null,4,null,null,null,null,0]
[null,5,null,null,null,null,0]
[null,6,null,null,null,null,0]
[null,7,null,null,null,null,0]
[null,8,null,null,null,null,0]
[null,9,null,null,null,null,0]
[null,10,null,null,null,null,0]
[null,11,null,null,null,null,0]
[null,12,null,null,null,null,0]
[null,13,null,null,null,null,0]
[null,14,null,null,null,null,0]
[null,15,null,null,null,null,0]
[null,16,null,null,null,null,0]
[null,17,null,null,null,null,0]
[null,18,null,null,null,null,0]
[null,19,null,null,null,null,0]
[null,20,null,null,null,null,0]
[null,21,null,null,null,null,0]
[null,22,null,null,null,null,0]
[null,23,null,null,null,null,0]
[null,24,null,null,null,null,0]
[null,25,null,null,null,null,0]
[null,26,null,null,null,null,0]
[null,27,null,null,null,null,0]
[null,28,null,null,null,null,0]
[null,29,null,null,null,null,0]
[]
[]
[]
[null,"*Pueden  Ocultar las Filas que no se utilicen ( Favor no eliminar filas)."]

{"sheet":"Impactos","index":12,"n_rows":30,"n_cols":15,"rows_kept":30,"cut":false,"hidden":false,"merged":[[17,2,17,6],[18,2,18,6],[8,5,8,6],[22,2,22,6],[19,2,19,6],[20,2,20,6],[15,2,15,6],[16,2,16,6],[21,2,21,6],[1,2,2,4],[13,2,13,3],[13,4,13,6],[12,2,12,3],[12,4,12,6],[7,5,7,6],[11,2,11,6],[9,2,9,6]]}
[10,null,null,null,null,null,null,null,"*Pueden  Ocultar las Filas que no se utilicen."]
[null,null,{"$f":"General!B2","v":"PRESENTACIÓN DE PROYECTOS \nDE INVESTIGACIÓN"},null,null,{"$f":"General!$H$2","v":"Fecha de Emisión: 2019/03/18"},{"$f":"General!$I$2","v":"IN-IV-F-14"},null,null,"Palabras Minimas"]
[null,null,null,null,null,{"$f":"General!$H$3","v":"Revisión N°:\n4"},{"$f":"\"Página \"&$A$1&\" de \"&Dt_TPG","v":"Página 10 de 11"},null,{"$f":"SUM(I7:I3502)","v":48},"<== Total de palabras",null,null,"Tipo de Impacto (Objetivos de Desarrollo Sostenible): Link Presione",null,{"$f":"COUNTIF(N17:N25,0)","v":9}]
[]
["14.-","#","Impactos asociados a la propuesta.",null,null,null,null,null,"Largo"]
[null,null,null,null,null,null,null,null,null,null,null,null,"Esplicaciones"]
[null,"N°","Describa  en detalle el impacto a desarrollar en el proyecto",null,null,null,null,null,{"$f":"IF(C7=\"\",0,LEN(TRIM(C7))-LEN(SUBSTITUTE(TRIM(C7),\" \",\"\"))+1)","v":10}]
[null,{"$f":"ROW()-7","v":1},"Impacto principal",null,"Principal objetivo de desarrollo sostenible:",null,null,null,{"$f":"IF(C8=\"\",0,LEN(TRIM(C8))-LEN(SUBSTITUTE(TRIM(C8),\" \",\"\"))+1)","v":2},null,null,null,"Transferencia e intercambio de conocimiento","Promover el desarrollo de iniciativas de extensión y transferencia del conocimiento científico y tecnológico que permitan su efectiva integración a contextos locales y sociales específicos, contribuyendo a su desarrollo."]
[null,{"$f":"ROW()-7","v":2},"Alcance",null,"Lineas de apropiación social",null,null,null,{"$f":"IF(E9=\"\",0,LEN(TRIM(E9))-LEN(SUBSTITUTE(TRIM(E9),\" \",\"\"))+1)","v":4},null,null,null,"Gestión del conocimiento para la apropiación","Incentivar el desarrollo de mecanismos de formación y medición para construir conocimiento acerca de las diversas formas en que el conocimiento científico tecnológico es apropiado en la sociedad colombiana, por los diversos grupos e individuos que la componen"]
[null,{"$f":"ROW()-7","v":3},{"$f":"IFERROR(M13,\".\")","v":"."},null,null,null,null,null,{"$f":"IF(C10=\"\",0,LEN(TRIM(C10))-LEN(SUBSTITUTE(TRIM(C10),\" \",\"\"))+1)","v":1},null,null,null,"Participación ciudadana en CTeI","Fomentar la participación ciudadana en la construcción de política pública en CTI, fortaleciendo las capacidades de la sociedad para tomar decisiones que contribuyan a la resolución de conflictos que involucran conocimientos científico-tecnológicos."]
[null,null,null,null,null,null,null,null,null,null,null,null,"Comunicación del conocimiento","Favorecer el desarrollo de proyectos de comunicación reflexivos y contextualizados para la comprensión, el diálogo y la formación de opinión sobre las relaciones ciencia, tecnología, innovación y sociedad."]
[null,".","Evaluación de nivel adaptibilidad social del impacto SRL (Societal Readiness Levels )"]
[null,{"$f":"ROW()-9","v":4},"Estado actual del SRL",null,null,null,null,null,{"$f":"IF(C13=\"\",0,LEN(TRIM(C13))-LEN(SUBSTITUTE(TRIM(C13),\" \",\"\"))+1)","v":4},null,{"$f":"IFERROR(ABS(RIGHT(LEFT(E13,6),2)),-1)","v":-1},null,{"$f":"IFERROR(\"Tener en cuenta :\"& VLOOKUP($F$9,M6:P11,2,0),\".\")","v":"."}]
[null,{"$f":"ROW()-9","v":5},"SRL Comprometido al finalizar el proyecto",null,null,null,null,null,{"$f":"IF(C14=\"\",0,LEN(TRIM(C14))-LEN(SUBSTITUTE(TRIM(C14),\" \",\"\"))+1)","v":6},null,{"$f":"IFERROR(ABS(RIGHT(LEFT(E14,6),2)),0)","v":0}]
[null,null,null,null,null,null,null,null,{"$f":"IF(C15=\"\",0,LEN(TRIM(C15))-LEN(SUBSTITUTE(TRIM(C15),\" \",\"\"))+1)","v":0},null,{"$f":"IFERROR(IF(K13<K14,\"\",\"No esta  bien definido la selección de los SRL. Por favor confirmar.\"),\"\")","v":""},null,"Validacion de diligenciamiento de Imapctos"]
[null,{"$f":"ROW()-8","v":8},"Evolución del impacto alcanzado como resultado de proyectos anteriores",null,null,null,null,null,{"$f":"IF(C16=\"\",0,LEN(TRIM(C16))-LEN(SUBSTITUTE(TRIM(C16),\" \",\"\"))+1)","v":9},null,null,null,null,{"$f":"VLOOKUP($O$16,$L$17:$O$30,2,0)","v":"Impacto principal"},{"$f":"MAX(O17:O30)","v":10}]
[null,9,null,null,null,null,null,null,{"$f":"IF(C17=\"\",0,LEN(TRIM(C17))-LEN(SUBSTITUTE(TRIM(C17),\" \",\"\"))+1)","v":0},null,null,10,{"$f":"IF(N17=0,C8,\"\")","v":"Impacto principal"},{"$f":"LEN(D8)","v":0},{"$f":"IF(N17=0,L17,0)","v":10}]
[null,10,"Descripción de los Beneficiario(s) del  impacto del proyecto",null,null,null,null,null,8,null,null,{"$f":"L17-1","v":9},{"$f":"IF(N18=0,C9,\"\")","v":"Alcance"},{"$f":"LEN(D9)","v":0},{"$f":"IF(N18=0,L18,0)","v":9}]
[null,11,null,null,null,null,null,null,0,null,null,{"$f":"L18-1","v":8},{"$f":"IF(N19=0,E8,\"\")","v":"Principal objetivo de desarrollo sostenible:"},{"$f":"LEN(F8)","v":0},8]
[null,12,"Descripción del impacto esperado.",null,null,null,null,null,4,null,null,7,{"$f":"IF(N20=0,E9,\"\")","v":"Lineas de apropiación social"},{"$f":"LEN(F9)","v":0},7]
[null,13,null,null,null,null,null,null,0,null,null,6,{"$f":"IF(N21=0,C16,\"\")","v":"Evolución del impacto alcanzado como resultado de proyectos anteriores"},{"$f":"LEN(C17)","v":0},6]
[null,14,null,null,null,null,null,null,0,null,null,5,{"$f":"IF(N22=0,C18,\"\")","v":"Descripción de los Beneficiario(s) del  impacto del proyecto"},{"$f":"LEN(C19)","v":0},5]
[null,15,null,null,null,null,null,null,0,null,null,4,{"$f":"IF(N23=0,C20,\"\")","v":"Descripción del impacto esperado."},{"$f":"LEN(C21)","v":0},4]
[null,16,null,null,null,null,null,null,0,null,null,3,{"$f":"IF(N24=0,C13,\"\")","v":"Estado actual del SRL"},{"$f":"LEN(E13)","v":0},{"$f":"IF(N24=0,L24,0)","v":3}]
[null,null,null,null,null,null,null,null,null,null,null,2,{"$f":"IF(N25=0,C14,\"\")","v":"SRL Comprometido al finalizar el proyecto"},{"$f":"LEN(E14)","v":0},2]
[]
[null,null,null,null,null,null,null,null,null,null,null,null,{"$f":"VLOOKUP(\"Impactos\",DT_Errores,3,0)","v":"Error : 021.- No se a diligenciado la hoja [Impactos]"}]
[]
[]
[null,null,"*Pueden  Ocultar las Filas que no se utilicen ( Favor no eliminar filas)."]

{"sheet":"Declaración","index":13,"n_rows":49,"n_cols":10,"rows_kept":49,"cut":false,"hidden":false,"merged":[[16,2,16,4],[12,2,12,4],[13,2,13,4],[14,2,14,4],[15,2,15,4],[11,2,11,4],[1,2,2,2],[6,2,6,4],[7,2,7,4],[9,2,9,4],[10,2,10,4]]}
[13,null,null,null,null,null,"*Pueden  Ocultar las Filas que no se utilicen."]
[null,null,{"$f":"General!B2","v":"PRESENTACIÓN DE PROYECTOS \nDE INVESTIGACIÓN"},{"$f":"General!$H$2","v":"Fecha de Emisión: 2019/03/18"},{"$f":"General!$I$2","v":"IN-IV-F-14"}]
[null,null,null,{"$f":"General!$H$3","v":"Revisión N°:\n4"},{"$f":"\"Página \"&$A$1&\" de \"&Dt_TPG","v":"Página 13 de 11"},null,{"$f":"SUM(G10:G3510)","v":0},"<== Total de palabras"]
[]
["15.-","#","Decaración la propuesta.",null,null,null,"Largo"]
[]
[null,null,{"$f":"\"Título Proyecto: \"& General!B9","v":"Título Proyecto: Formato: actualizado a 08 Abr 2022"}]
[null,null,{"$f":"\"Lider del proyecto: \"&General!C10","v":"Lider del proyecto: Luis Alexander Chirivi"}]
[]
[null,null,"a. Los investigadores y coinvestigadores declaran con la presentación de las propuestas que la información suministrada es veraz y puede ser verificable por la  Universidad Militar Nueva Granada en cualquier momento. Ante cualquier inconsistencia la Vicerrectoría de Investigaciones podrá rechazar la propuesta y, de ser el caso, implicaría la pérdida de la financiación del proyecto. Sin perjuicio de los procesos disciplinarios asociados.",null,null,null,null,null,null,"a. Los investigadores y coinvestigadores declaran con la presentación de las propuestas que la información suministrada es veraz y puede ser verificable por la  Universidad Militar Nueva Granada en cualquier momento. Ante cualquier inconsistencia la Vicerrectoría de Investigaciones podrá rechazar la propuesta y, de ser el caso, implicaría la pérdida de la financiación del proyecto. Sin perjuicio de los procesos disciplinarios asociados."]
[null,null,"b. La presentación de las propuestas a la convocatoria constituye la aceptación de los términos establecidos y sus anexos, en cuanto a características, condiciones y requisitos.",null,null,null,null,null,null,"b. La presentación de las propuestas a la convocatoria constituye la aceptación de los términos establecidos y sus anexos, en cuanto a características, condiciones y requisitos."]
[null,null,"c. La presentación de la propuesta constituye la aceptación, expresa e irrevocable de los investigadores y coinvestigadores, que conocen los lineamientos y condiciones de los términos de referencia, así como, que se someten a lo establecido durante las fases de la convocatoria, de legalización, ejecución y liquidación.",null,null,null,null,null,null,"c. La presentación de la propuesta constituye la aceptación, expresa e irrevocable de los investigadores y coinvestigadores, que conocen los lineamientos y condiciones de los términos de referencia, así como, que se someten a lo establecido durante las fases de la convocatoria, de legalización, ejecución y liquidación."]
[null,null,"d. Se aceptarán únicamente las propuestas que participen a través del procedimiento establecido y los plazos previstos en la presente convocatoria.",null,null,null,null,null,null,"d. Se aceptarán únicamente las propuestas que participen a través del procedimiento establecido y los plazos previstos en la presente convocatoria."]
[null,null,"e. La propuesta participante no podrá haber sido financiada previamente por la Universidad Militar Nueva Granada ni por otra fuente de financiación pública o privada.",null,null,null,null,null,null,"e. La propuesta participante no podrá haber sido financiada previamente por la Universidad Militar Nueva Granada ni por otra fuente de financiación pública o privada."]
[null,null,"f. La propuesta participante no podrá ser financiada simultáneamente por otra convocatoria interna o con recursos de otras entidades del Estado o agencias públicas internacionales.",null,null,null,null,null,null,"f. La propuesta participante no podrá ser financiada simultáneamente por otra convocatoria interna o con recursos de otras entidades del Estado o agencias públicas internacionales."]
[null,null,"g. Los participantes garantizarán que el desarrollo del proyecto se llevará a cabo de acuerdo con los protocolos y normas establecidas por la ley colombiana, y que no representa ningún riesgo para la sociedad, la salud o el ambiente.",null,null,null,null,null,null,"g. Los participantes garantizarán que el desarrollo del proyecto se llevará a cabo de acuerdo con los protocolos y normas establecidas por la ley colombiana, y que no representa ningún riesgo para la sociedad, la salud o el ambiente."]
[null,null,"h. Los participantes deben asegurar que cuentan o que obtendrán los permisos y licencias respectivas para el cumplimiento de la normatividad colombiana vigente en relación con el objeto y desarrollo de la propuesta.",null,null,null,null,null,null,"h. Los participantes deben asegurar que cuentan o que obtendrán los permisos y licencias respectivas para el cumplimiento de la normatividad colombiana vigente en relación con el objeto y desarrollo de la propuesta."]
[]
[null,null,"El investigador principal y coinvestigadores del proyecto firman aceptando esta declaración :"]
[]
[]
[]
[]
[]
[]
[]
[]
[]
[]
[null,null,"Firma y fecha : _________________________________ "]
[]
[]
[]
[]
[]
[]
[]
[]
[]
[]
[]
[]
[]
[]
[]
[]
[]
[]
[null,"*Pueden  Ocultar las Filas que no se utilicen ( Favor no eliminar filas)."]